Workbook

Sheet Main Menu
AE2: early warning
AM7: =IF($M$4="Periphyton",C44,N44) -> 
V8: Site | W8: Last Value | X8: Last Date | Y8: Yellow | Z8: Red
V9: Lake TP | W9: 4.943192177 | X9: 2024-03-14 | Y9: ='Lake Chemistry'!$F$6003 -> 9.393578291 | Z9: ='Lake Chemistry'!$F$6004 -> 10.89858053 | AL9: =IF($J$4="Periphyton",C46,N46) -> 
V10: Secchi (ft) | W10: 18 | X10: 2024-03-14 | Y10: ='Lake Chemistry'!$O$6003 -> 12.08807115 | Z10: ='Lake Chemistry'!$O$6004 -> 9.599753786
V11: Sur Temp (F) | W11: 38 | X11: 2024-03-13 | Y11: ='Lake Probe Data'!$K$9006 -> 76.29808499 | Z11: ='Lake Probe Data'!$K$9007 -> 83.86327524
V12: Bot Temp (F) | W12: 38.7 | X12: 2024-03-13 | Y12: ='Lake Probe Data'!$L$9006 -> 50.36510647 | Z12: ='Lake Probe Data'!$L$9007 -> 52.10639716
V13: Bot Oxygen | W13: 13.17 | X13: 2024-03-13 | Y13: 4 | Z13: 2
V14: Stone TP | W14: 11.41157886 | X14: 2024-03-14 | Y14: ='Stream Chemistry'!$C$4003 -> 13.66646385 | Z14: ='Stream Chemistry'!$C$4004 -> 16.11714252
V15: Vet's TP | W15: 11.76382746 | X15: 2024-03-14 | Y15: ='Stream Chemistry'!$F$4003 -> 15.48512076 | Z15: ='Stream Chemistry'!$F$4004 -> 18.34015564
V16: Haze TP | W16: 10.88320595 | X16: 2024-03-14 | Y16: ='Stream Chemistry'!$I$4003 -> 17.97527984 | Z16: ='Stream Chemistry'!$I$4004 -> 22.70457959
V17: Carter TP | W17: 10.53095735 | X17: 2024-03-14 | Y17: ='Stream Chemistry'!$L$4003 -> 19.27438871 | Z17: ='Stream Chemistry'!$L$4004 -> 25.33554864
V18: Pioneer TP | W18: 13.23152998 | X18: 2024-03-14 | Y18: ='Stream Chemistry'!$O$4003 -> 20.07584321 | Z18: ='Stream Chemistry'!$O$4004 -> 25.20123368
V19: USGS TP | W19: 14.69923249 | X19: 2024-03-14 | Y19: ='Stream Chemistry'!$R$4003 -> 20.01061574 | Z19: ='Stream Chemistry'!$R$4004 -> 24.56548488
V20: NB Ind Hill TP | W20: 23.45009427 | X20: 2023-08-30 | Y20: ='Stream Chemistry'!$U$4003 -> 21.67814929 | Z20: ='Stream Chemistry'!$U$4004 -> 26.29320958
V21: NB Dead TP | W21: 10.17870875 | X21: 2024-03-14 | Y21: ='Stream Chemistry'!$X$4003 -> 17.84667622 | Z21: ='Stream Chemistry'!$X$4004 -> 21.73355878
C44: ="" ->  | N44: ="" -> 
C45: ="" ->  | N45: ="" -> 
C46: ="" ->  | N46: ="" -> 
C47: ="" ->  | N47: ="" -> 
C48: ="" ->  | N48: ="" -> 
C49: ="" ->  | N49: ="" -> 
C50: ="" ->  | N50: ="" -> 
C51: ="" ->  | N51: ="" -> 
C52: ="" ->  | N52: ="" -> 
C53: ="" ->  | N53: ="" -> 
C54: ="" ->  | N54: ="" -> 
C55: ="" ->  | N55: ="" -> 
C56: ="" ->  | N56: ="" -> 
C57: ="" ->  | N57: ="" -> 
C58: ="" ->  | N58: ="" -> 
C59: ="" ->  | N59: ="" -> 
C60: ="" ->  | N60: ="" -> 
C61: ="" ->  | N61: ="" -> 
C62: ="" ->  | N62: ="" -> 
C63: ="" ->  | N63: ="" -> 
C64: ="" ->  | N64: ="" -> 
C65: ="" ->  | N65: ="" -> 
C66: ="" ->  | N66: ="" -> 
C67: ="" ->  | N67: ="" -> 
C68: ="" ->  | N68: ="" -> 
C69: ="" ->  | N69: ="" -> 
C70: ="" ->  | N70: ="" -> 
C71: ="" ->  | N71: ="" -> 
C72: ="" ->  | N72: ="" -> 
C73: ="" ->  | N73: ="" -> 
C74: ="" ->  | N74: ="" -> 
C75: ="" ->  | N75: ="" -> 
C76: ="" ->  | N76: ="" -> 
C77: ="" ->  | N77: ="" -> 
C78: ="" ->  | N78: ="" -> 
C79: ="" ->  | N79: ="" -> 
C80: ="" ->  | N80: ="" -> 
C81: ="" ->  | N81: ="" -> 
C82: ="" ->  | N82: ="" -> 
C83: ="" ->  | N83: ="" -> 
C84: ="" ->  | N84: ="" -> 
C85: ="" ->  | N85: ="" -> 
C86: ="" ->  | N86: ="" -> 
C87: ="" ->  | N87: ="" -> 
C88: ="" ->  | N88: ="" -> 
C89: ="" ->  | N89: ="" -> 
C90: ="" ->  | N90: ="" -> 
C91: ="" ->  | N91: ="" -> 
C92: ="" ->  | N92: ="" -> 
C93: ="" ->  | N93: ="" -> 
C94: ="" ->  | N94: ="" -> 
C95: ="" ->  | N95: ="" -> 
C96: ="" ->  | N96: ="" -> 
C97: ="" ->  | N97: ="" -> 
C98: ="" ->  | N98: ="" -> 
C99: ="" ->  | N99: ="" -> 
C100: ="" ->  | N100: ="" -> 
C101: ="" ->  | N101: ="" -> 
C102: ="" ->  | N102: ="" -> 
C103: ="" ->  | N103: ="" -> 
C104: ="" ->  | N104: ="" -> 
C105: ="" ->  | N105: ="" -> 
C106: ="" ->  | N106: ="" -> 
C107: ="" ->  | N107: ="" -> 
C108: ="" ->  | N108: ="" -> 
C109: ="" ->  | N109: ="" -> 
C110: ="" ->  | N110: ="" -> 
C111: ="" ->  | N111: ="" -> 
C112: ="" ->  | N112: ="" -> 
C113: ="" ->  | N113: ="" -> 
C114: ="" ->  | N114: ="" -> 
C115: ="" ->  | N115: ="" -> 
C116: ="" ->  | N116: ="" -> 
C117: ="" ->  | N117: ="" -> 
C118: ="" ->  | N118: ="" -> 
C119: ="" ->  | N119: ="" -> 
N120: ="" -> 
N121: ="" -> 
N122: ="" -> 
N123: ="" -> 
N124: ="" -> 
N125: ="" -> 
N126: ="" -> 
N127: ="" -> 
N128: ="" -> 
N129: ="" -> 
N130: ="" -> 
N131: ="" -> 
N132: ="" -> 
N133: ="" -> 
N134: ="" -> 
N135: ="" -> 
N136: ="" -> 
N137: ="" -> 
N138: ="" -> 
N139: ="" -> 
N140: ="" -> 
N141: ="" -> 
N142: ="" -> 
N143: ="" -> 
N144: ="" -> 
N145: ="" -> 
N146: ="" -> 
N147: ="" -> 
N148: ="" -> 
N149: ="" -> 
N150: ="" -> 
N151: ="" -> 
N152: ="" -> 
N153: ="" -> 
N154: ="" -> 
N155: ="" -> 
N156: ="" -> 
N157: ="" -> 
N158: ="" -> 
N159: ="" -> 
N160: ="" -> 
N161: ="" -> 
N162: ="" -> 
N163: ="" -> 
N164: ="" -> 
N165: ="" -> 
N166: ="" -> 
N167: ="" -> 
N168: ="" -> 
N169: ="" -> 
N170: ="" -> 
N171: ="" -> 
N172: ="" -> 
N173: ="" -> 
N174: ="" -> 
N175: ="" -> 
N176: ="" -> 
N177: ="" -> 
N178: ="" -> 
N179: ="" -> 
N180: ="" -> 
N181: ="" -> 
N182: ="" -> 
N183: ="" -> 
N184: ="" -> 
N185: ="" -> 
N186: ="" -> 
N187: ="" -> 
N188: ="" -> 
N189: ="" -> 
N190: ="" -> 
N191: ="" -> 
N192: ="" -> 
N193: ="" -> 
N194: ="" -> 
N195: ="" -> 
N196: ="" -> 
N197: ="" -> 
N198: ="" -> 
N199: ="" -> 
N200: ="" -> 
N201: ="" -> 
N202: ="" -> 
N203: ="" -> 
N204: ="" -> 
N205: ="" -> 
N206: ="" -> 
N207: ="" -> 
N208: ="" -> 
N209: ="" -> 
N210: ="" -> 
N211: ="" -> 
N212: ="" -> 
N213: ="" -> 
N214: ="" -> 
N215: ="" -> 
N216: ="" -> 
N217: ="" -> 
N218: ="" -> 
N219: ="" -> 
N220: ="" -> 
N221: ="" -> 
N222: ="" -> 
N223: ="" -> 
N224: ="" -> 
N225: ="" -> 
N226: ="" -> 
N227: ="" -> 
... 167 more rows

Sheet Lake Chemistry
AP1: =MAX(AP2:AP4) -> 12.6506193 | AZ1: =MAX(AZ2:AZ4) -> 19.3 | BC1: =AVERAGE(BC4:BC86) -> 7.198333333 | BK1: Chart 1 | BL1: Vol Wt | BM1: =AVERAGE(BM4:BM90) -> 7.217836662 | BQ1: Chart 2 | BR1: Vol Wt | BS1: =AVERAGE(BS4:BS90) -> 7.823423919 | BX1: these are averages of just the data ignoring the extrapolatioon
AH2: =YEAR(TODAY()) -> 2024 | AP2: =MAX(AS4:AS90) -> 7.90367806 | AQ2: Chart 1 | AS2: Surface | AT2: Chart 1 | AV2: Middle | AW2: Chart 1 | AY2: Bottom | AZ2: =MAX(BC4:BC90) -> 9.06 | BA2: Chart 2 | BC2: Surface | BD2: Chart 2 | BF2: Middle | BG2: Chart 2 | BI2: Bottom | BK2: Date | BL2: Day | BM2: Value | BN2: =COUNT(BM4:BM90) -> 16 | BO2: Count | BQ2: Date | BR2: Day | BS2: Value | BT2: =COUNT(BS4:BS90) -> 19 | BU2: Count | BX2: Chart 1 | BY2: Chart 2
H3: 2023 | N3: 2022 | AG3: parameters | AI3: Chart 1 labels | AK3: Depths | AP3: =MAX(AV4:AV90) -> 8.667033217 | AQ3: Date | AR3: Day | AS3: Value | AT3: Date | AU3: Day | AV3: Value | AW3: Date | AX3: Day | AY3: Value | AZ3: =MAX(BF4:BF90) -> 9.7 | BA3: Date | BB3: Day | BC3: Value | BD3: Date | BE3: Day | BF3: Value | BG3: Date | BH3: Day | BI3: Value | BK3: 2023-01-01 | BL3: =BK3-DATE(YEAR(BK3),1,0) -> 1 | BM3: 7.576539564 | BN3: 33 | BO3: Days > 8 | BQ3: 2022-01-01 | BR3: 1 | BS3: 7.568098996 | BT3: 160 | BU3: Days > 8 | BX3: =AVERAGEIF(BX4:BX90,"<>0") -> 7.185754059 | BY3: =AVERAGEIF(BY4:BY90,"<>0") -> 7.836255809
H4: Total P | N4: Total P | AG4: Total P | AI4: Total P 2023 Average = 7.22 Compliance % = 91 | AK4: Sur | AP4: =MAX(AY4:AY90) -> 12.6506193 | AQ4: 2023-04-07 | AR4: =IF(AQ4<>"",AQ4-DATE(YEAR(AQ4),1,0),"") -> 97 | AS4: 6.09 | AT4: 2023-04-07 | AU4: =AT4-DATE(YEAR(AT4),1,0) -> 97 | AV4: 6.03 | AW4: 2023-04-07 | AX4: =AW4-DATE(YEAR(AW4),1,0) -> 97 | AY4: 6.67 | AZ4: =MAX(BI4:BI90) -> 19.3 | BA4: 2022-01-21 | BB4: =BA4-DATE(YEAR(BA4),1,0) -> 21 | BC4: 8.16 | BD4: 2022-01-21 | BE4: =BD4-DATE(YEAR(BD4),1,0) -> 21 | BF4: 6.12 | BG4: 2022-01-21 | BH4: =BG4-DATE(YEAR(BG4),1,0) -> 21 | BI4: 9.99 | BK4: 2023-04-07 | BL4: =BK4-DATE(YEAR(BK4),1,0) -> 97 | BM4: 6.049147449 | BQ4: 2022-01-21 | BR4: =BQ4-DATE(YEAR(BQ4),1,0) -> 21 | BS4: 6.447409529 | BX4: =$C$36*AS4+$D$36*AV4+$E$36*AY4 -> 6.049147449 | BY4: =$C$36*BC4+$D$36*BF4+$E$36*BI4 -> 6.447409529
AG5: Nitrate | AH5: mg/m3 | AI5: mg/m3 | AK5: Mid | AQ5: 2023-04-26 | AR5: =AQ5-DATE(YEAR(AQ5),1,0) -> 116 | AS5: 6.14070881 | AT5: 2023-04-26 | AU5: =AT5-DATE(YEAR(AT5),1,0) -> 116 | AV5: 6.552123188 | AW5: 2023-04-26 | AX5: =AW5-DATE(YEAR(AW5),1,0) -> 116 | AY5: 8.667968559 | BA5: 2022-02-02 | BB5: =BA5-DATE(YEAR(BA5),1,0) -> 33 | BC5: 6.3 | BD5: 2022-02-02 | BE5: =BD5-DATE(YEAR(BD5),1,0) -> 33 | BF5: 7.7 | BG5: 2022-02-02 | BH5: =BG5-DATE(YEAR(BG5),1,0) -> 33 | BI5: 11.49 | BK5: 2023-04-26 | BL5: =BK5-DATE(YEAR(BK5),1,0) -> 116 | BM5: 6.538483498 | BQ5: 2022-02-02 | BR5: =BQ5-DATE(YEAR(BQ5),1,0) -> 33 | BS5: 7.591903693 | BX5: =$C$36*AS5+$D$36*AV5+$E$36*AY5 -> 6.538483498 | BY5: =$C$36*BC5+$D$36*BF5+$E$36*BI5 -> 7.591903693
AG6: Chlorophyll | AK6: Bot | AQ6: 2023-05-10 | AR6: 130 | AS6: 6.543809622 | AT6: 2023-05-10 | AU6: 130 | AV6: 7.71882561 | AW6: 2023-05-10 | AX6: 130 | AY6: 9.833854389 | BA6: 2022-02-18 | BB6: 49 | BC6: 5.96 | BD6: 2022-02-18 | BE6: 49 | BF6: 7.35 | BG6: 2022-02-18 | BH6: 49 | BI6: 9.21 | BK6: 2023-05-10 | BL6: 130 | BM6: 7.608819997 | BQ6: 2022-02-18 | BR6: 49 | BS6: 7.208254638 | BX6: 7.608819997 | BY6: 7.208254638
AG7: Secchi | AK7: Vol Wt | AQ7: 2023-05-31 | AR7: 151 | AS7: 4.374475106 | AT7: 2023-05-31 | AU7: 151 | AV7: 5.372210562 | AW7: 2023-05-31 | AX7: 151 | AY7: 9.128391101 | BA7: 2022-03-09 | BB7: 68 | BC7: 8.56 | BD7: 2022-03-09 | BE7: 68 | BF7: 6.84 | BG7: 2022-03-09 | BH7: 68 | BI7: 9.02 | BK7: 2023-05-31 | BL7: 151 | BM7: 5.314260199 | BQ7: 2022-03-09 | BR7: 68 | BS7: 7.096462363 | BX7: 5.314260199 | BY7: 7.096462363
U8: Site | V8: Value | AG8: TDP | AI8: Chart 2 labels | AQ8: 2023-06-13 | AR8: 164 | AS8: 6.840373315 | AT8: 2023-06-13 | AU8: 164 | AV8: 8.65974327 | AW8: 2023-06-13 | AX8: 164 | AY8: 12.6506193 | BA8: 2022-04-29 | BB8: 119 | BC8: 7.5 | BD8: 2022-04-29 | BE8: 119 | BF8: 8.66 | BG8: 2022-04-29 | BH8: 119 | BI8: 8.66 | BK8: 2023-06-13 | BL8: 164 | BM8: 8.502364468 | BQ8: 2022-04-29 | BR8: 119 | BS8: 8.51363135 | BX8: 8.502364468 | BY8: 8.51363135
U9: Date | V9: 2024-03-14 | AI9: Total P 2022 Average = 7.82 Compliance % = 56 | AQ9: 2023-06-30 | AR9: 181 | AS9: 6.613132871 | AT9: 2023-06-30 | AU9: 181 | AV9: 7.787360365 | AW9: 2023-06-30 | AX9: 181 | AY9: 8.491896861 | BA9: 2022-05-11 | BB9: 131 | BC9: 6.91 | BD9: 2022-05-11 | BE9: 131 | BF9: 8.6 | BG9: 2022-05-11 | BH9: 131 | BI9: 9.76 | BK9: 2023-06-30 | BL9: 181 | BM9: 7.651940518 | BQ9: 2022-05-11 | BR9: 131 | BS9: 8.407738709 | BX9: 7.651940518 | BY9: 8.407738709
U10: Sur TP | V10: 5.599476908 | AI10: mg/m3 | AN10: 16 | AQ10: 2023-07-14 | AR10: 195 | AS10: 7.90367806 | AT10: 2023-07-14 | AU10: 195 | AV10: 8.667033217 | AW10: 2023-07-14 | AX10: 195 | AY10: 11.36813608 | BA10: 2022-05-27 | BB10: 147 | BC10: 7.8 | BD10: 2022-05-27 | BE10: 147 | BF10: 9.7 | BG10: 2022-05-27 | BH10: 147 | BI10: 19.3 | BK10: 2023-07-14 | BL10: 195 | BM10: 8.619572131 | BQ10: 2022-05-27 | BR10: 147 | BS10: 9.633908091 | BX10: 8.619572131 | BY10: 9.633908091
U11: Mid TP | V11: 4.836271601 | AN11: 24 | AQ11: 2023-07-28 | AR11: 209 | AS11: 5.567504945 | AT11: 2023-07-28 | AU11: 209 | AV11: 7.385533293 | AW11: 2023-07-28 | AX11: 209 | AY11: 8.851685187 | BA11: 2022-06-14 | BB11: 165 | BC11: 7.49 | BD11: 2022-06-14 | BE11: 165 | BF11: 8.88 | BG11: 2022-06-14 | BH11: 165 | BI11: 9.76 | BK11: 2023-07-28 | BL11: 209 | BM11: 7.182655238 | BQ11: 2022-06-14 | BR11: 165 | BS11: 8.720527883 | BX11: 7.182655238 | BY11: 8.720527883
U12: Bot TP | V12: 5.423352606 | AG12: Chart 1 Secchi Average | AH12: =IF(H4="Secchi", AVERAGE(AS4:AS90), "") ->  | AN12: 40 | AQ12: 2023-08-15 | AR12: 227 | AS12: 6.209860135 | AT12: 2023-08-15 | AU12: 227 | AV12: 7.441444536 | AW12: 2023-08-15 | AX12: 227 | AY12: 8.145207051 | BA12: 2022-06-28 | BB12: 179 | BC12: 6.9 | BD12: 2022-06-28 | BE12: 179 | BF12: 8.07 | BG12: 2022-06-28 | BH12: 179 | BI12: 11.67 | BK12: 2023-08-15 | BL12: 227 | BM12: 7.298773402 | BQ12: 2022-06-28 | BR12: 179 | BS12: 7.987488244 | BX12: 7.298773402 | BY12: 7.987488244
U13: Secchi | V13: 18 | AG13: Chart 2 Secchi Average | AH13: =IF(N4="Secchi",AVERAGE(BC4:BC90),"") ->  | AN13: 64 | AQ13: 2023-08-30 | AR13: 242 | AS13: 7.493917057 | AT13: 2023-08-30 | AU13: 242 | AV13: 8.139203635 | AW13: 2023-08-30 | AX13: 242 | AY13: 11.24831169 | BA13: 2022-07-12 | BB13: 193 | BC13: 6.68 | BD13: 2022-07-12 | BE13: 193 | BF13: 8.83 | BG13: 2022-07-12 | BH13: 193 | BI13: 9.24 | BK13: 2023-08-30 | BL13: 242 | BM13: 8.114020639 | BQ13: 2022-07-12 | BR13: 193 | BS13: 8.566129574 | BX13: 8.114020639 | BY13: 8.566129574
AG14: Chart 1 TP Average) | AH14: =IF(H4="Total P",AVERAGE(BM4:BM90),"") -> 7.217836662 | AN14: 128 | AQ14: 2023-09-15 | AR14: 258 | AS14: 7.55 | AT14: 2023-09-15 | AU14: 258 | AV14: 7.43 | AW14: 2023-09-15 | AX14: 258 | AY14: 7.55 | BA14: 2022-07-29 | BB14: 210 | BC14: 6.32 | BD14: 2022-07-29 | BE14: 210 | BF14: 7.72 | BG14: 2022-07-29 | BH14: 210 | BI14: 8.13 | BK14: 2023-09-15 | BL14: 258 | BM14: 7.447312207 | BQ14: 2022-07-29 | BR14: 210 | BS14: 7.550764477 | BX14: 7.447312207 | BY14: 7.550764477
AG15: Chart 2 TP Average) | AH15: =IF(N4="Total P",AVERAGE(BS4:BS90),"") -> 7.823423919 | AQ15: 2023-11-07 | AR15: 311 | AS15: 6.56626231 | AT15: 2023-11-07 | AU15: 311 | AV15: 6.86 | AW15: 2023-11-07 | AX15: 311 | AY15: 7.212109322 | BA15: 2022-08-12 | BB15: 224 | BC15: 5.34 | BD15: 2022-08-12 | BE15: 224 | BF15: 6.1 | BG15: 2022-08-12 | BH15: 224 | BI15: 6.36 | BK15: 2023-11-07 | BL15: 311 | BM15: 6.829305355 | BQ15: 2022-08-12 | BR15: 224 | BS15: 6.008806315 | BX15: 6.829305355 | BY15: 6.008806315
AQ16: 2023-11-22 | AR16: 326 | AS16: 5.861746814 | AT16: 2023-11-22 | AU16: 326 | AV16: 5.861746814 | AW16: 2023-11-22 | AX16: 326 | AY16: 5.920446379 | BA16: 2022-08-26 | BB16: 238 | BC16: 7.01 | BD16: 2022-08-26 | BE16: 238 | BF16: 6.6 | BG16: 2022-08-26 | BH16: 238 | BI16: 8.35 | BK16: 2023-11-22 | BL16: 326 | BM16: 5.862808602 | BQ16: 2022-08-26 | BR16: 238 | BS16: 6.683388666 | BX16: 5.862808602 | BY16: 6.683388666
AQ17: 2023-12-06 | AR17: 340 | AS17: 7.033464741 | AT17: 2023-12-06 | AU17: 340 | AV17: 7.092168587 | AW17: 2023-12-06 | AX17: 340 | AY17: 6.152907038 | BA17: 2022-09-15 | BB17: 258 | BC17: 7.47 | BD17: 2022-09-15 | BE17: 258 | BF17: 8 | BG17: 2022-09-15 | BH17: 258 | BI17: 10.16 | BK17: 2023-12-06 | BL17: 340 | BM17: 7.067771487 | BQ17: 2022-09-15 | BR17: 258 | BS17: 7.972195884 | BX17: 7.067771487 | BY17: 7.972195884
AJ18: =AH15 -> 7.823423919 | AK18: =BT3 -> 160 | AQ18: 2023-12-20 | AR18: 354 | AS18: 7.581633948 | AT18: 2023-12-20 | AU18: 354 | AV18: 7.69902407 | AW18: 2023-12-20 | AX18: 354 | AY18: 8.520754922 | BA18: 2022-09-30 | BB18: 273 | BC18: 7.08 | BD18: 2022-09-30 | BE18: 273 | BF18: 7.43 | BG18: 2022-09-30 | BH18: 273 | BI18: 9.95 | BK18: 2023-12-20 | BL18: 354 | BM18: 7.699075699 | BQ18: 2022-09-30 | BR18: 273 | BS18: 7.43142013 | BX18: 7.699075699 | BY18: 7.43142013
AR19: 0 | AU19: 0 | AX19: 0 | BA19: 2022-10-14 | BB19: 287 | BC19: 8.43 | BD19: 2022-10-14 | BE19: 287 | BF19: 8.49 | BG19: 2022-10-14 | BH19: 287 | BI19: 9.9 | BK19: 2023-12-31 | BL19: 365 | BM19: 7.699075699 | BQ19: 2022-10-14 | BR19: 287 | BS19: 8.507934029 | BX19: 0 | BY19: 8.507934029
AR20: 0 | AU20: 0 | AX20: 0 | BA20: 2022-11-04 | BB20: 308 | BC20: 6.6 | BD20: 2022-11-04 | BE20: 308 | BF20: 8.88 | BG20: 2022-11-04 | BH20: 308 | BI20: 10.58 | BL20: 0 | BQ20: 2022-11-04 | BR20: 308 | BS20: 8.623060389 | BX20: 0 | BY20: 8.623060389
AR21: 0 | AU21: 0 | AX21: 0 | BA21: 2022-11-29 | BB21: 333 | BC21: 9.06 | BD21: 2022-11-29 | BE21: 333 | BF21: 7.94 | BG21: 2022-11-29 | BH21: 333 | BI21: 9.06 | BL21: 0 | BQ21: 2022-11-29 | BR21: 333 | BS21: 8.101580603 | BX21: 0 | BY21: 8.101580603
AR22: 0 | AU22: 0 | AX22: 0 | BB22: 0 | BE22: 0 | BH22: 0 | BL22: 0 | BQ22: 2022-12-31 | BR22: 365 | BS22: 7.592449898 | BX22: 0 | BY22: 0
AR23: 0 | AU23: 0 | AX23: 0 | BB23: 0 | BE23: 0 | BH23: 0 | BL23: 0 | BR23: 0 | BX23: 0 | BY23: 0
AR24: 0 | AU24: 0 | AX24: 0 | BB24: 0 | BE24: 0 | BH24: 0 | BL24: 0 | BR24: 0 | BX24: 0 | BY24: 0
AR25: 0 | AU25: 0 | AX25: 0 | BB25: 0 | BE25: 0 | BH25: 0 | BL25: 0 | BR25: 0 | BX25: 0 | BY25: 0
AR26: 0 | AU26: =AT26-DATE(YEAR(AT26),1,0) -> 0 | AX26: =AW26-DATE(YEAR(AW26),1,0) -> 0 | BB26: =BA26-DATE(YEAR(BA26),1,0) -> 0 | BE26: =BD26-DATE(YEAR(BD26),1,0) -> 0 | BH26: =BG26-DATE(YEAR(BG26),1,0) -> 0 | BL26: 0 | BR26: 0 | BX26: 0 | BY26: 0
AR27: 0 | AU27: 0 | AX27: 0 | BB27: 0 | BE27: 0 | BH27: 0 | BL27: 0 | BR27: 0 | BX27: 0 | BY27: 0
AR28: 0 | AU28: 0 | AX28: 0 | BB28: 0 | BE28: 0 | BH28: 0 | BL28: 0 | BR28: 0 | BX28: 0 | BY28: 0
AR29: =AQ29-DATE(YEAR(AQ29),1,0) -> 0 | AU29: 0 | AX29: 0 | BB29: 0 | BE29: 0 | BH29: 0 | BL29: 0 | BR29: 0 | BX29: 0 | BY29: 0
AR30: 0 | AU30: 0 | AX30: 0 | BB30: 0 | BE30: 0 | BH30: 0 | BL30: 0 | BR30: 0 | BX30: 0 | BY30: 0
AR31: 0 | AU31: 0 | AX31: 0 | BB31: 0 | BE31: 0 | BH31: 0 | BL31: 0 | BR31: 0 | BX31: 0 | BY31: 0
AR32: 0 | AU32: 0 | AX32: 0 | BB32: 0 | BE32: 0 | BH32: 0 | BL32: 0 | BR32: =BQ32-DATE(YEAR(BQ32),1,0) -> 0 | BX32: 0 | BY32: 0
AR33: 0 | AU33: 0 | AX33: 0 | BB33: 0 | BE33: 0 | BH33: 0 | BL33: 0 | BR33: 0 | BX33: 0 | BY33: 0
AR34: 0 | AU34: 0 | AX34: 0 | BB34: 0 | BE34: 0 | BH34: 0 | BL34: 0 | BR34: 0 | BX34: 0 | BY34: 0
AR35: 0 | AU35: 0 | AX35: 0 | BB35: 0 | BE35: 0 | BH35: 0 | BL35: 0 | BR35: 0 | BX35: 0 | BY35: 0
B36: Range | C36: =Support!$J$14 -> 0.1261798703 | D36: =Support!$J$72 -> 0.8557316042 | E36: =Support!$J$177 -> 0.01808852551 | G36: Range | J36: Range | M36: Range | P36: Range | AR36: 0 | AU36: 0 | AX36: 0 | BB36: 0 | BE36: 0 | BH36: 0 | BL36: 0 | BR36: 0 | BX36: 0 | BY36: 0
B37: =YEAR(MIN(B39:B10001)) -> 1990 | F37: =COUNT(F39:F6000) -> 696 | G37: =YEAR(MIN(G39:G10001)) -> 2004 | I37: =COUNT(I39:I6000) -> 163 | J37: =YEAR(MIN(J39:J10001)) -> 1990 | L37: =COUNT(L39:L6000) -> 555 | M37: =YEAR(MIN(M39:M10001)) -> 1990 | O37: =COUNT(O39:O6000) -> 1216 | P37: =YEAR(MIN(P39:P10001)) -> 2004 | R37: =COUNT(R39:R6000) -> 152 | AR37: 0 | AU37: 0 | AX37: 0 | BB37: 0 | BE37: 0 | BH37: 0 | BL37: 0 | BR37: 0 | BX37: 0 | BY37: 0
B38: =YEAR(MAX(B39:B10001)) -> 2024 | C38: Sur | D38: Mid (7.5-60) | E38: Bot (75-90) | F38: Vol Wt TP | G38: =YEAR(MAX(G39:G10001)) -> 2008 | H38: Depth | I38: NO3 | J38: =YEAR(MAX(J39:J10001)) -> 2011 | K38: Depth | L38: Chl | M38: =YEAR(MAX(M39:M10001)) -> 2024 | N38: Depth | O38: Secchi (ft) | P38: =YEAR(MAX(P39:P10001)) -> 2009 | Q38: Depth | R38: TDP | T38: Lake and Stream & Miscellaneous Comments | AR38: 0 | AU38: 0 | AX38: 0 | BB38: 0 | BE38: 0 | BH38: 0 | BL38: 0 | BR38: 0 | BX38: 0 | BY38: 0
B39: 1990-01-03 | C39: 7.9 | D39: 8.9 | E39: 12.34 | F39: =$C$36*C39+$D$36*D39+$E$36*E39 -> 8.836044657 | G39: 2004-07-14 | H39: Sur | I39: 134.9066667 | J39: 1990-04-18 | K39: Sur | L39: 1.46 | M39: 1990-01-03 | N39: Sur | O39: 9 | P39: 2004-08-11 | Q39: Sur | R39: 4.083333333 | AR39: 0 | AU39: 0 | AX39: 0 | BB39: 0 | BE39: 0 | BH39: 0 | BL39: 0 | BR39: 0 | BX39: 0 | BY39: 0
B40: 1990-03-06 | C40: 13.43333333 | D40: 10.74166667 | E40: 11.98 | F40: =$C$36*C40+$D$36*D40+$E$36*E40 -> 11.10370044 | G40: 2004-07-28 | H40: Sur | I40: 61.64333333 | J40: 1990-05-16 | K40: Sur | L40: 2.19 | M40: 1990-03-06 | N40: Sur | O40: 18 | P40: 2004-08-25 | Q40: Sur | R40: 3.653333333 | AR40: 0 | AU40: 0 | AX40: 0 | BB40: 0 | BE40: 0 | BH40: 0 | BL40: 0 | BR40: 0 | BX40: 0 | BY40: 0
B41: 1990-04-18 | C41: 10.43333333 | D41: 10.13333333 | E41: 9.716666667 | F41: =$C$36*C41+$D$36*D41+$E$36*E41 -> 10.16365041 | G41: 2004-09-08 | H41: Sur | I41: 29.15666667 | J41: 1990-05-30 | K41: Sur | L41: 1.245 | M41: 1990-04-18 | N41: Sur | O41: 18 | P41: 2004-09-08 | Q41: Sur | R41: 3.213333333 | AR41: 0 | AU41: 0 | AX41: 0 | BB41: 0 | BE41: 0 | BH41: 0 | BL41: 0 | BR41: 0 | BX41: 0 | BY41: 0
B42: 1990-05-16 | C42: 7.266666667 | D42: 6.708333333 | E42: 6 | F42: 6.765971055 | G42: 2004-09-22 | H42: Sur | I42: 59.04 | J42: 1990-06-14 | K42: Sur | L42: 4.93 | M42: 1990-05-03 | N42: Sur | O42: 11 | P42: 2004-09-08 | Q42: Bot | R42: 4.546666667 | AR42: 0 | AU42: 0 | AX42: 0 | BB42: 0 | BE42: 0 | BH42: 0 | BL42: 0 | BR42: 0 | BX42: 0 | BY42: 0
B43: 1990-05-30 | C43: 6.933333333 | D43: 10.01666667 | E43: 16.83333333 | F43: 9.750915515 | G43: 2004-09-22 | H43: Bot | I43: 39.16 | J43: 1990-06-27 | K43: Sur | L43: 1.354 | M43: 1990-05-10 | N43: Sur | O43: 11 | P43: 2004-09-22 | Q43: Sur | R43: 4.956666667 | AR43: 0 | AU43: 0 | AX43: 0 | BB43: 0 | BE43: 0 | BH43: 0 | BL43: 0 | BR43: 0 | BX43: 0 | BY43: 0
B44: 1990-06-14 | C44: 10.4 | D44: 10.68333333 | E44: 14.48333333 | F44: 10.71631877 | G44: 2004-10-06 | H44: Sur | I44: 39.66833333 | J44: 1990-07-11 | K44: Sur | L44: 1.725 | M44: 1990-05-16 | N44: Sur | O44: 8 | P44: 2004-10-06 | Q44: Sur | R44: 7.463333333 | AR44: 0 | AU44: 0 | AX44: 0 | BB44: 0 | BE44: 0 | BH44: 0 | BL44: 0 | BR44: 0 | BX44: 0 | BY44: 0
B45: 1990-06-27 | C45: 8.733333333 | D45: 10.36666667 | E45: 14.93333333 | F45: 10.24317715 | G45: 2004-10-20 | H45: Sur | I45: 70.94666667 | J45: 1990-07-25 | K45: Sur | L45: 2.2832 | M45: 1990-05-17 | N45: Sur | O45: 11 | P45: 2004-10-20 | Q45: Sur | R45: 3.31 | AR45: 0 | AU45: 0 | AX45: 0 | BB45: 0 | BE45: 0 | BH45: 0 | BL45: 0 | BR45: 0 | BX45: 0 | BY45: 0
B46: 1990-07-11 | C46: 8.3 | D46: 9.683333333 | E46: 12.56666667 | F46: 9.560939761 | G46: 2004-10-20 | H46: Bot | I46: 76.01333333 | J46: 1990-08-08 | K46: Sur | L46: 1.23 | M46: 1990-05-24 | N46: Sur | O46: 10.5 | P46: 2004-10-20 | Q46: Bot | R46: 4.426666667 | AR46: 0 | AU46: 0 | AX46: 0 | BB46: 0 | BE46: 0 | BH46: 0 | BL46: 0 | BR46: 0 | BX46: 0 | BY46: 0
B47: 1990-07-25 | C47: 6.833333333 | D47: 7.991666667 | E47: 13.18333333 | F47: 7.939417912 | G47: 2004-11-03 | H47: Sur | I47: 85.21666667 | J47: 1990-08-24 | K47: Sur | L47: 2.065 | M47: 1990-05-30 | N47: Sur | O47: 6 | P47: 2004-11-03 | Q47: Sur | R47: 4.656666667 | AR47: 0 | AU47: 0 | AX47: 0 | BB47: 0 | BE47: 0 | BH47: 0 | BL47: 0 | BR47: 0 | BX47: 0 | BY47: 0
B48: 1990-08-08 | C48: 6.566666667 | D48: 6.1 | E48: 11.16666667 | F48: 6.250532469 | G48: 2004-11-03 | H48: Bot | I48: 88.76 | J48: 1990-09-05 | K48: Sur | L48: 4.024 | M48: 1990-05-31 | N48: Sur | O48: 8 | P48: 2004-11-03 | Q48: Bot | R48: 4.383333333 | AR48: 0 | AU48: 0 | AX48: 0 | BB48: 0 | BE48: 0 | BH48: 0 | BL48: 0 | BR48: 0 | BX48: 0 | BY48: 0
B49: 1990-08-24 | C49: 5.866666667 | D49: 6.591666667 | E49: 13.35 | F49: 6.622434546 | G49: 2004-11-17 | H49: Sur | I49: 111.8133333 | J49: 1990-09-12 | K49: Sur | L49: 1.516 | M49: 1990-06-07 | N49: Sur | O49: 5.5 | P49: 2004-11-17 | Q49: Sur | R49: 2.64 | AR49: 0 | AU49: 0 | AX49: 0 | BB49: 0 | BE49: 0 | BH49: 0 | BL49: 0 | BR49: 0 | BX49: 0 | BY49: 0
B50: 1990-09-05 | C50: 8.5 | D50: 6.908333333 | E50: 10.55 | F50: 7.175042007 | G50: 2004-11-17 | H50: Bot | I50: 118.6266667 | J50: 1990-10-05 | K50: Sur | L50: 2.55 | M50: 1990-06-14 | N50: Sur | O50: 5 | P50: 2004-11-17 | Q50: Bot | R50: 2.206666667 | AR50: 0 | AU50: 0 | AX50: 0 | BB50: 0 | BE50: 0 | BH50: 0 | BL50: 0 | BR50: =BQ50-DATE(YEAR(BQ50),1,0) -> 0 | BX50: 0 | BY50: 0
B51: 1990-09-12 | C51: 6.6 | D51: 8.116666667 | E51: 11.18333333 | F51: 7.980765342 | G51: 2004-12-01 | H51: Sur | I51: 133.2633333 | J51: 1990-10-17 | K51: Sur | L51: 2.475 | M51: 1990-06-21 | N51: Sur | O51: 7 | P51: 2004-12-01 | Q51: Sur | R51: 4.573333333 | AR51: 0 | AU51: 0 | AX51: 0 | BB51: 0 | BE51: 0 | BH51: 0 | BL51: 0 | BR51: 0 | BX51: 0 | BY51: 0
B52: 1990-09-19 | C52: 8.733333333 | D52: 6.716666667 | E52: 8.983333333 | F52: 7.012130063 | G52: 2004-12-01 | H52: Bot | I52: 133.4133333 | J52: 1990-10-31 | K52: Sur | L52: 4.549 | M52: 1990-06-27 | N52: Sur | O52: 5 | P52: 2004-12-01 | Q52: Bot | R52: 4.036666667 | AR52: 0 | AU52: 0 | AX52: 0 | BB52: 0 | BE52: 0 | BH52: 0 | BL52: =BK52-DATE(YEAR(BK52),1,0) -> 0 | BR52: 0 | BX52: 0 | BY52: 0
B53: 1990-10-05 | C53: 7.9 | D53: 7.990909091 | E53: 8.416666667 | F53: 7.98713952 | G53: 2005-01-19 | H53: Sur | I53: 176.5466667 | J53: 1990-11-16 | K53: Sur | L53: 4.36 | M53: 1990-06-28 | N53: Sur | O53: 11.5 | P53: 2005-01-19 | Q53: Sur | R53: 3.213333333 | AR53: 0 | AU53: 0 | AX53: 0 | BB53: 0 | BE53: 0 | BH53: 0 | BL53: 0 | BR53: 0 | BX53: 0 | BY53: 0
B54: 1990-10-17 | C54: 9.733333333 | D54: 9.466666667 | E54: 9.9 | F54: 9.508152993 | G54: 2005-01-19 | H54: Bot | I54: 232.1966667 | J54: 1990-12-05 | K54: Sur | L54: 5.2493 | M54: 1990-07-05 | N54: Sur | O54: 16 | P54: 2005-01-19 | Q54: Bot | R54: 4.936666667 | AR54: 0 | AU54: 0 | AX54: 0 | BB54: 0 | BE54: 0 | BH54: 0 | BL54: 0 | BR54: 0 | BX54: 0 | BY54: 0
B55: 1990-10-31 | C55: 10.13333333 | D55: 9.758333333 | E55: 10.33333333 | F55: 9.816051687 | G55: 2005-02-15 | H55: Sur | I55: 200.1333333 | J55: 1991-01-09 | K55: Sur | L55: 3.3232 | M55: 1990-07-11 | N55: Sur | O55: 14 | P55: 2005-02-15 | Q55: Sur | R55: 6.27 | AR55: 0 | AU55: 0 | AX55: 0 | BB55: 0 | BE55: 0 | BH55: 0 | BL55: 0 | BR55: 0 | BX55: 0 | BY55: 0
B56: 1990-11-16 | C56: 10.36666667 | D56: 9.866666667 | E56: 10.58333333 | F56: 9.942720045 | G56: 2005-02-15 | H56: Bot | I56: 222.57 | J56: 1991-02-01 | K56: Sur | L56: 3.48 | M56: 1990-07-12 | N56: Sur | O56: 16 | P56: 2005-02-15 | Q56: Bot | R56: 8.916666667 | AR56: 0 | AU56: 0 | AX56: 0 | BB56: 0 | BE56: 0 | BH56: 0 | BL56: 0 | BR56: 0 | BX56: 0 | BY56: 0
B57: 1990-12-05 | C57: 9.3 | D57: 10.19166667 | E57: 9.75 | F57: 10.07116718 | G57: 2005-03-02 | H57: Sur | I57: 213.12 | J57: 1991-02-19 | K57: Sur | L57: 1.411 | M57: 1990-07-19 | N57: Sur | O57: 22 | P57: 2005-03-02 | Q57: Sur | R57: 4.986666667 | AR57: 0 | AU57: 0 | AX57: 0 | BB57: 0 | BE57: 0 | BH57: 0 | BL57: 0 | BR57: 0 | BX57: 0 | BY57: 0
B58: 1991-01-09 | C58: 7.266666667 | D58: 7.45 | E58: 9.166666667 | F58: 7.457918993 | G58: 2005-03-02 | H58: Bot | I58: 288.26 | J58: 1991-03-05 | K58: Sur | L58: 3.768 | M58: 1990-07-25 | N58: Sur | O58: 16 | P58: 2005-03-02 | Q58: Bot | R58: 7 | AR58: 0 | AU58: 0 | AX58: 0 | BB58: 0 | BE58: 0 | BH58: 0 | BL58: 0 | BR58: 0 | BX58: 0 | BY58: 0
B59: 1991-02-01 | C59: 6.966666667 | D59: 8.358333333 | E59: 8.4 | F59: 8.183486702 | G59: 2005-04-14 | H59: Sur | I59: 343.8 | J59: 1991-03-19 | K59: Sur | L59: 1.755 | M59: 1990-07-26 | N59: Sur | O59: 20 | P59: 2005-04-14 | Q59: Sur | R59: 3.466666667 | AR59: 0 | AU59: 0 | AX59: 0 | BB59: 0 | BE59: 0 | BH59: 0 | BL59: 0 | BR59: 0 | BX59: 0 | BY59: 0
B60: 1991-02-19 | C60: 24.3 | D60: 7.425 | E60: 7.583333333 | F60: 9.557149328 | G60: 2005-04-14 | H60: Bot | I60: 472.7833333 | J60: 1991-04-09 | K60: Sur | L60: 2.318 | M60: 1990-08-02 | N60: Sur | O60: 18.5 | P60: 2005-04-14 | Q60: Bot | R60: 4.18 | AR60: 0 | AU60: 0 | AX60: 0 | BB60: 0 | BE60: 0 | BH60: 0 | BL60: 0 | BR60: 0 | BX60: 0 | BY60: 0
B61: 1991-03-05 | C61: 8.5 | D61: 8.375 | E61: 10.15 | F61: 8.422879617 | G61: 2005-04-28 | H61: Sur | I61: 262.0666667 | J61: 1991-04-16 | K61: Sur | L61: 0.818 | M61: 1990-08-08 | N61: Sur | O61: 10 | P61: 2005-04-28 | Q61: Sur | R61: 6.14 | AR61: 0 | AU61: 0 | AX61: 0 | BB61: 0 | BE61: 0 | BH61: 0 | BL61: 0 | BR61: 0 | BX61: 0 | BY61: 0
B62: 1991-03-19 | C62: 9.15 | D62: 9 | E62: 8.65 | F62: 9.012595997 | G62: 2005-04-28 | H62: Bot | I62: 261.35 | J62: 1991-05-03 | K62: Sur | L62: 1.614 | M62: 1990-08-09 | N62: Sur | O62: 19 | P62: 2005-04-28 | Q62: Bot | R62: 6.953333333 | AR62: 0 | AU62: 0 | AX62: 0 | BB62: 0 | BE62: 0 | BH62: 0 | BL62: 0 | BR62: 0 | BX62: 0 | BY62: 0
B63: 1991-04-09 | C63: 9.433333333 | D63: 9.708333333 | E63: 9.45 | F63: 9.668961 | G63: 2005-05-11 | H63: Sur | I63: 249.7 | J63: 1991-05-14 | K63: Sur | L63: 2.092 | M63: 1990-08-16 | N63: Sur | O63: 15 | P63: 2005-05-11 | Q63: Sur | R63: 4.203333333 | AR63: 0 | AU63: 0 | AX63: 0 | BB63: 0 | BE63: 0 | BH63: 0 | BL63: 0 | BR63: 0 | BX63: 0 | BY63: 0
B64: 1991-04-16 | C64: 8.6 | D64: 8.458333333 | E64: 9.266666667 | F64: 8.490830373 | G64: 2005-05-11 | H64: Bot | I64: 262.5333333 | J64: 1991-06-11 | K64: Sur | L64: 3.878 | M64: 1990-08-23 | N64: Sur | O64: 15 | P64: 2005-05-11 | Q64: Bot | R64: 4.833333333 | AR64: 0 | AU64: 0 | AX64: 0 | BB64: 0 | BE64: 0 | BH64: 0 | BL64: 0 | BR64: 0 | BX64: 0 | BY64: 0
B65: 1991-05-03 | C65: 7.9 | D65: 8.991666667 | E65: 10.46666667 | F65: 8.880600883 | G65: 2005-05-25 | H65: Sur | I65: 214.4 | J65: 1991-06-25 | K65: Sur | L65: 1.045 | M65: 1990-08-24 | N65: Sur | O65: 11 | P65: 2005-05-25 | Q65: Sur | R65: 6.336666667 | AR65: 0 | AU65: 0 | AX65: 0 | BB65: 0 | BE65: 0 | BH65: 0 | BL65: 0 | BR65: 0 | BX65: 0 | BY65: 0
B66: 1991-05-14 | C66: 6.133333333 | D66: 9.558333333 | E66: 16.83333333 | F66: 9.257761301 | G66: 2005-05-25 | H66: Bot | I66: 264.7666667 | J66: 1991-07-09 | K66: Sur | L66: 0.9539 | M66: 1990-08-30 | N66: Sur | O66: 11 | P66: 2005-05-25 | Q66: Bot | R66: 4.553333333 | AR66: 0 | AU66: 0 | AX66: 0 | BB66: 0 | BE66: 0 | BH66: 0 | BL66: 0 | BR66: 0 | BX66: 0 | BY66: 0
B67: 1991-05-28 | C67: 4.7 | D67: 8.458333333 | E67: 15.41666667 | F67: 8.109973311 | G67: 2005-06-08 | H67: Sur | I67: 159.4 | J67: 1991-07-23 | K67: Sur | L67: 1.47 | M67: 1990-09-05 | N67: Sur | O67: 7 | P67: 2005-06-08 | Q67: Sur | R67: 3.65 | AR67: 0 | AU67: 0 | AX67: 0 | BB67: 0 | BE67: 0 | BH67: 0 | BL67: 0 | BR67: 0 | BX67: 0 | BY67: 0
B68: 1991-06-11 | C68: 6.133333333 | D68: 8.308333333 | E68: 13.15 | F68: 8.121470726 | G68: 2005-06-08 | H68: Bot | I68: 294.7333333 | J68: 1991-08-06 | K68: Sur | L68: 2.121 | M68: 1990-09-06 | N68: Sur | O68: 11 | P68: 2005-06-08 | Q68: Bot | R68: 4.36 | AR68: 0 | AU68: 0 | AX68: 0 | BB68: 0 | BE68: 0 | BH68: 0 | BL68: 0 | BR68: 0 | BX68: 0 | BY68: 0
B69: 1991-06-25 | C69: 5.966666667 | D69: 8.233333333 | E69: 14.55 | F69: 8.061584813 | G69: 2005-06-22 | H69: Sur | I69: 114.4 | J69: 1991-08-20 | K69: Sur | L69: 2.258 | M69: 1990-09-12 | N69: Sur | O69: 8 | P69: 2005-06-22 | Q69: Sur | R69: 3.79 | AR69: 0 | AU69: 0 | AX69: 0 | BB69: 0 | BE69: 0 | BH69: 0 | BL69: =BK69-DATE(YEAR(BK69),1,0) -> 0 | BR69: =BQ69-DATE(YEAR(BQ69),1,0) -> 0 | BX69: =$C$36*AS69+$D$36*AV69+$E$36*AY69 -> 0 | BY69: =$C$36*BC69+$D$36*BF69+$E$36*BI69 -> 0
B70: 1991-07-09 | C70: 5.166666667 | D70: 7.633333333 | E70: 13 | F70: 7.41916474 | G70: 2005-06-22 | H70: Bot | I70: 307.2433333 | J70: 1991-09-03 | K70: Sur | L70: 3.95 | M70: 1990-09-13 | N70: Sur | O70: 12 | P70: 2005-06-22 | Q70: Bot | R70: 5.133333333 | AR70: 0 | AU70: 0 | AX70: 0 | BB70: 0 | BE70: 0 | BH70: 0 | BL70: 0 | BR70: 0 | BX70: 0 | BY70: 0
B71: 1991-07-23 | C71: 5.3 | D71: 8.641666667 | E71: 13.21666667 | F71: 8.302770604 | G71: 2005-07-13 | H71: Sur | I71: 60.81333333 | J71: 1991-09-17 | K71: Sur | L71: 5.78 | M71: 1990-09-19 | N71: Sur | O71: 12 | P71: 2005-07-13 | Q71: Sur | R71: 4.896666667 | AR71: 0 | AU71: 0 | AX71: 0 | BB71: 0 | BE71: 0 | BH71: 0 | BL71: 0 | BR71: 0 | BX71: 0 | BY71: 0
B72: 1991-08-06 | C72: 7.2 | D72: 9.275 | E72: 12.33333333 | F72: 9.06849751 | G72: 2005-07-13 | H72: Bot | I72: 362.1666667 | J72: 1991-10-01 | K72: Sur | L72: 2.406 | M72: 1990-09-20 | N72: Sur | O72: 14 | P72: 2005-07-13 | Q72: Bot | R72: 6.393333333 | AR72: 0 | AU72: 0 | AX72: 0 | BB72: 0 | BE72: 0 | BH72: 0 | BL72: 0 | BR72: 0 | BX72: 0 | BY72: 0
B73: 1991-08-20 | C73: 5.766666667 | D73: 7.733333333 | E73: 11.05 | F73: 7.545173198 | G73: 2005-07-27 | H73: Sur | I73: 37.99333333 | J73: 1991-10-15 | K73: Sur | L73: 3.153 | M73: 1990-10-05 | N73: Sur | O73: 9 | P73: 2005-07-27 | Q73: Sur | R73: 4.9 | AR73: 0 | AU73: 0 | AX73: 0 | BB73: 0 | BE73: 0 | BH73: 0 | BL73: 0 | BR73: 0 | BX73: 0 | BY73: 0
B74: 1991-09-03 | C74: 4.766666667 | D74: 6.218181818 | E74: 10.16666667 | F74: 6.106452094 | G74: 2005-07-27 | H74: Bot | I74: 236.7466667 | J74: 1991-11-05 | K74: Sur | L74: 3.836 | M74: 1990-10-17 | N74: Sur | O74: 9 | P74: 2005-07-27 | Q74: Bot | R74: 2.536666667 | AR74: 0 | AU74: 0 | AX74: 0 | BB74: 0 | BE74: 0 | BH74: 0 | BL74: 0 | BR74: 0 | BX74: 0 | BY74: 0
B75: 1991-09-17 | C75: 6.333333333 | D75: 6.816666667 | E75: 10.53333333 | F75: 6.822908749 | G75: 2005-08-10 | H75: Sur | I75: 20.27666667 | J75: 1991-11-19 | K75: Sur | L75: 2.33 | M75: 1990-10-31 | N75: Sur | O75: 9 | P75: 2005-08-10 | Q75: Sur | R75: 3.8 | AR75: 0 | AU75: 0 | AX75: 0 | BB75: 0 | BE75: 0 | BH75: 0 | BL75: 0 | BR75: 0 | BX75: 0 | BY75: 0
B76: 1991-10-01 | C76: 6.366666667 | D76: 6.05 | E76: 10.3 | F76: 6.166833192 | G76: 2005-08-10 | H76: Bot | I76: 206.38 | J76: 1991-12-10 | K76: Sur | L76: 1.71 | M76: 1990-11-16 | N76: Sur | O76: 8 | P76: 2005-08-10 | Q76: Bot | R76: 4.503333333 | AR76: 0 | AU76: 0 | AX76: 0 | BB76: 0 | BE76: 0 | BH76: 0 | BL76: 0 | BR76: 0 | BX76: 0 | BY76: 0
B77: 1991-10-15 | C77: 7.066666667 | D77: 5.966666667 | E77: 7.233333333 | F77: 6.128376656 | G77: 2005-08-24 | H77: Sur | I77: 12.53 | J77: 1992-01-17 | K77: Sur | L77: 3.22 | M77: 1990-12-05 | N77: Sur | O77: 9 | P77: 2005-08-24 | Q77: Sur | R77: 4.4 | AR77: 0 | AU77: 0 | AX77: 0 | BB77: 0 | BE77: 0 | BH77: 0 | BL77: 0 | BR77: 0 | BX77: 0 | BY77: 0
B78: 1991-11-05 | C78: 9 | D78: 8.816666667 | E78: 10.58333333 | F78: 8.871756038 | G78: 2005-08-24 | H78: Bot | I78: 111.03 | J78: 1992-01-28 | K78: Sur | L78: 3.08 | M78: 1991-01-09 | N78: Sur | O78: 9 | P78: 2005-08-24 | Q78: Bot | R78: 7.92 | AR78: 0 | AU78: 0 | AX78: 0 | BB78: 0 | BE78: 0 | BH78: 0 | BL78: 0 | BR78: 0 | BX78: 0 | BY78: 0
B79: 1991-11-19 | C79: 8.5 | D79: 10.975 | E79: 10.35 | F79: 10.65139949 | G79: 2005-09-07 | H79: Sur | I79: 13.97333333 | J79: 1992-02-18 | K79: Sur | L79: 2.28 | M79: 1991-02-01 | N79: Sur | O79: 14 | P79: 2005-09-07 | Q79: Sur | R79: 3.453333333 | AR79: 0 | AU79: 0 | AX79: 0 | BB79: 0 | BE79: 0 | BH79: 0 | BL79: 0 | BR79: 0 | BX79: 0 | BY79: 0
B80: 1991-12-10 | C80: 9.1 | D80: 9.291666667 | E80: 8.933333333 | F80: 9.26100047 | G80: 2005-09-07 | H80: Bot | I80: 59.04666667 | J80: 1992-03-13 | K80: Sur | L80: 2.105 | M80: 1991-02-19 | N80: Sur | O80: 17 | P80: 2005-09-07 | Q80: Bot | R80: 7.766666667 | AR80: 0 | AU80: 0 | AX80: 0 | BB80: 0 | BE80: 0 | BH80: 0 | BL80: 0 | BR80: 0 | BX80: 0 | BY80: 0
B81: 1992-01-17 | C81: 5.433333333 | D81: 6.466666667 | E81: 5.133333333 | F81: 6.312162767 | G81: 2005-09-21 | H81: Sur | I81: 28.56 | J81: 1992-05-12 | K81: Sur | L81: 3.676 | M81: 1991-03-05 | N81: Sur | O81: 12 | P81: 2005-09-21 | Q81: Sur | R81: 7.156666667 | AR81: 0 | AU81: 0 | AX81: 0 | BB81: 0 | BE81: 0 | BH81: 0 | BL81: 0 | BR81: 0 | BX81: 0 | BY81: 0
B82: 1992-01-28 | C82: 8.466666667 | D82: 6.241666667 | E82: 7.3 | F82: 6.541560568 | G82: 2005-09-21 | H82: Bot | I82: 23.35 | J82: 1992-05-26 | K82: Sur | L82: 1.764 | M82: 1991-03-19 | N82: Sur | O82: 14 | P82: 2005-09-21 | Q82: Bot | R82: 8.55 | AR82: 0 | AU82: 0 | AX82: 0 | BB82: 0 | BE82: 0 | BH82: 0 | BL82: 0 | BR82: 0 | BX82: 0 | BY82: 0
B83: 1992-02-18 | C83: 15 | D83: 8.316666667 | E83: 12.01666667 | F83: 9.226896344 | G83: 2005-10-05 | H83: Sur | I83: 40.53666667 | J83: 1992-06-09 | K83: Sur | L83: 1.745 | M83: 1991-04-09 | N83: Sur | O83: 9 | P83: 2005-10-05 | Q83: Sur | R83: 6.56 | AR83: 0 | AU83: 0 | AX83: 0 | BB83: 0 | BE83: 0 | BH83: 0 | BL83: 0 | BR83: 0 | BX83: 0 | BY83: 0
B84: 1992-03-13 | C84: 6.566666667 | D84: 9.75 | E84: 11.83333333 | F84: 9.386011841 | G84: 2005-10-05 | H84: Bot | I84: 14.44 | J84: 1992-06-19 | K84: Sur | L84: 4.719 | M84: 1991-04-16 | N84: Sur | O84: 10 | P84: 2005-10-05 | Q84: Bot | R84: 6.783333333 | AR84: 0 | AU84: 0 | AX84: 0 | BB84: 0 | BE84: 0 | BH84: 0 | BL84: 0 | BR84: 0 | BX84: 0 | BY84: 0
B85: 1992-04-09 | C85: 6.333333333 | D85: 6.808333333 | E85: 12.75 | F85: 6.855873884 | G85: 2005-11-02 | H85: Sur | I85: 66.61 | J85: 1992-06-30 | K85: Sur | L85: 2.218 | M85: 1991-05-03 | N85: Sur | O85: 7 | P85: 2005-11-02 | Q85: Sur | R85: 8.863333333 | AR85: 0 | AU85: 0 | AX85: 0 | BB85: 0 | BE85: 0 | BH85: 0 | BL85: 0 | BR85: 0 | BX85: 0 | BY85: 0
B86: 1992-04-14 | C86: 7.966666667 | D86: 8.033333333 | E86: 15.56666667 | F86: 8.161188234 | G86: 2005-11-02 | H86: Bot | I86: 65.89666667 | J86: 1992-07-21 | K86: Sur | L86: 1.9 | M86: 1991-05-10 | N86: Sur | O86: 15 | P86: 2005-11-02 | Q86: Bot | R86: 10.07333333 | AR86: 0 | AU86: 0 | AX86: 0 | BB86: 0 | BE86: 0 | BH86: 0 | BL86: 0 | BR86: 0 | BX86: 0 | BY86: 0
B87: 1992-04-28 | C87: 8.5 | D87: 8.25 | E87: 8.9 | F87: 8.293302509 | G87: 2005-11-30 | H87: Sur | I87: 124.0866667 | J87: 1992-08-18 | K87: Sur | L87: 1.49 | M87: 1991-05-14 | N87: Sur | O87: 11 | P87: 2005-11-30 | Q87: Sur | R87: 6.333333333 | AR87: 0 | AU87: 0 | AX87: 0 | BB87: 0 | BE87: 0 | BH87: 0 | BL87: 0 | BR87: 0 | BX87: 0 | BY87: 0
B88: 1992-05-12 | C88: 12.73333333 | D88: 8.358333333 | E88: 14.18333333 | F88: 9.015735927 | G88: 2005-11-30 | H88: Bot | I88: 123.8033333 | J88: 1992-09-01 | K88: Sur | L88: 1.3 | M88: 1991-05-17 | N88: Sur | O88: 13.5 | P88: 2005-11-30 | Q88: Bot | R88: 6.353333333 | AR88: 0 | AU88: 0 | AX88: 0 | BB88: 0 | BE88: 0 | BH88: 0 | BL88: 0 | BR88: 0 | BX88: 0 | BY88: 0
B89: 1992-05-26 | C89: 9.6 | D89: 10.40833333 | E89: 14.38333333 | F89: 10.37823983 | G89: 2006-03-01 | H89: Sur | I89: 207.3166667 | J89: 1992-09-09 | K89: Sur | L89: 1.96 | M89: 1991-05-24 | N89: Sur | O89: 13 | P89: 2006-03-01 | Q89: Sur | R89: 4.67 | AR89: 0 | AU89: 0 | AX89: 0 | BB89: 0 | BE89: 0 | BH89: 0 | BL89: 0 | BR89: 0 | BX89: 0 | BY89: 0
B90: 1992-06-09 | C90: 6.466666667 | D90: 12.00833333 | E90: 15 | F90: 11.36320139 | G90: 2006-03-01 | H90: Bot | I90: 235.8566667 | J90: 1992-09-15 | K90: Sur | L90: 1.37 | M90: 1991-05-28 | N90: Sur | O90: 11 | P90: 2006-03-01 | Q90: Bot | R90: 6.03 | AR90: =AQ90-DATE(YEAR(AQ90),1,0) -> 0 | AU90: =AT90-DATE(YEAR(AT90),1,0) -> 0 | AX90: =AW90-DATE(YEAR(AW90),1,0) -> 0 | BB90: =BA90-DATE(YEAR(BA90),1,0) -> 0 | BE90: =BD90-DATE(YEAR(BD90),1,0) -> 0 | BH90: =BG90-DATE(YEAR(BG90),1,0) -> 0 | BL90: 0 | BR90: 0 | BX90: 0 | BY90: 0
B91: 1992-06-19 | C91: 13.1 | D91: 10.23 | E91: 16.9 | F91: 10.71278669 | G91: 2006-04-05 | H91: Sur | I91: 229.15 | J91: 1992-09-22 | K91: Sur | L91: 1.53 | M91: 1991-05-31 | N91: Sur | O91: 13.5 | P91: 2006-04-05 | Q91: Sur | R91: 9.963333333
B92: 1992-06-30 | C92: 9.033333333 | D92: 9.463636364 | E92: 12.93333333 | F92: 9.472102485 | G92: 2006-04-05 | H92: Bot | I92: 224.98 | J92: 1992-09-29 | K92: Sur | L92: 2.11 | M92: 1991-06-07 | N92: Sur | O92: 10 | P92: 2006-04-05 | Q92: Bot | R92: 9.006666667
B93: 1992-07-21 | C93: 7.533333333 | D93: 8.336363636 | E93: 8.333333333 | F93: 8.234982563 | G93: 2006-04-19 | H93: Sur | I93: 229.89 | J93: 1992-10-06 | K93: Sur | L93: 1.63 | M93: 1991-06-11 | N93: Sur | O93: 9 | P93: 2006-04-19 | Q93: Sur | R93: 5.806666667
B94: 1992-08-04 | C94: 5.5 | D94: 6.819166667 | E94: 11.95 | F94: 6.745523597 | G94: 2006-04-19 | H94: Bot | I94: 231.7633333 | J94: 1992-10-13 | K94: Sur | L94: 1.65 | M94: 1991-06-14 | N94: Sur | O94: 16 | P94: 2006-04-19 | Q94: Bot | R94: 5.99
B95: 1992-08-18 | C95: 5.733333333 | D95: 6.633333333 | E95: 10.8 | F95: 6.595140306 | G95: 2006-05-03 | H95: Sur | I95: 216.87 | J95: 1992-10-21 | K95: Sur | L95: 2.53 | M95: 1991-06-21 | N95: Sur | O95: 16 | P95: 2006-05-03 | Q95: Sur | R95: 8.016666667
B96: 1992-09-01 | C96: 7.633333333 | D96: 8.341666667 | E96: 15.03333333 | F96: 8.373331642 | G96: 2006-05-03 | H96: Bot | I96: 228.7033333 | J96: 1992-10-27 | K96: Sur | L96: 3.11 | M96: 1991-06-25 | N96: Sur | O96: 12 | P96: 2006-05-03 | Q96: Bot | R96: 6.283333333
B97: 1992-09-09 | C97: 6.133333333 | D97: 6.633333333 | E97: 13.4 | F97: 6.692642421 | G97: 2006-05-16 | H97: Sur | I97: 194.4133333 | J97: 1992-11-04 | K97: Sur | L97: 4.53 | M97: 1991-06-28 | N97: Sur | O97: 17 | P97: 2006-05-16 | Q97: Sur | R97: 8.36
B98: 1992-09-15 | C98: 6.733333333 | D98: 6.666666667 | E98: 10.63333333 | F98: 6.746829809 | G98: 2006-05-16 | H98: Bot | I98: 205.03 | J98: 1992-11-12 | K98: Sur | L98: 4.22 | M98: 1991-07-05 | N98: Sur | O98: 21 | P98: 2006-05-16 | Q98: Bot | R98: 4.743333333
B99: 1992-09-22 | C99: 8.533333333 | D99: 7.275 | E99: 10.11666667 | F99: 7.485177897 | G99: 2006-06-01 | H99: Sur | I99: 169.8266667 | J99: 1992-11-18 | K99: Sur | L99: 3.4 | M99: 1991-07-09 | N99: Sur | O99: 14 | P99: 2006-06-01 | Q99: Sur | R99: 5.446666667
B100: 1992-09-29 | C100: 7.3 | D100: 7.216666667 | E100: 9.05 | F100: 7.260343953 | G100: 2006-06-01 | H100: Bot | I100: 189.6 | J100: 1992-11-24 | K100: Sur | L100: 3.35 | M100: 1991-07-12 | N100: Sur | O100: 20 | P100: 2006-06-01 | Q100: Bot | R100: 6.503333333
B101: 1992-10-06 | C101: 6.1 | D101: 5.766666667 | E101: 8.116666667 | F101: 5.851234658 | G101: 2006-06-14 | H101: Sur | I101: 103.1733333 | J101: 1992-12-01 | K101: Sur | L101: 4.13 | M101: 1991-07-19 | N101: Sur | O101: 14 | P101: 2006-06-14 | Q101: Sur | R101: 7.53
B102: 1992-10-13 | C102: 8.966666667 | D102: 8.858333333 | E102: 12.01666667 | F102: 8.929132412 | G102: 2006-06-14 | H102: Bot | I102: 247.18 | J102: 1992-12-08 | K102: Sur | L102: 2.85 | M102: 1991-07-23 | N102: Sur | O102: 7 | P102: 2006-06-14 | Q102: Bot | R102: 6.636666667
B103: 1992-10-21 | C103: 8.833333333 | D103: 9.133333333 | E103: 9.8 | F103: 9.107538389 | G103: 2006-06-28 | H103: Sur | I103: 101.05 | J103: 1992-12-15 | K103: Sur | L103: 2.64 | M103: 1991-07-26 | N103: Sur | O103: 12 | P103: 2006-06-28 | Q103: Sur | R103: 6.11
B104: 1992-10-27 | C104: 8.366666667 | D104: 9.766666667 | E104: 12.68333333 | F104: =$C$36*C104+$D$36*D104+$E$36*E104 -> 9.642773048 | G104: 2006-06-28 | H104: Bot | I104: 415.5533333 | J104: 1992-12-22 | K104: Sur | L104: 2.35 | M104: 1991-08-02 | N104: Sur | O104: 12 | P104: 2006-06-28 | Q104: Bot | R104: 7.673333333
B105: 1992-11-04 | C105: 10.5 | D105: 9.633333333 | E105: 9.966666667 | F105: 9.748718729 | G105: 2006-07-12 | H105: Sur | I105: 42.22 | J105: 1993-01-12 | K105: Sur | L105: 2.55 | M105: 1991-08-06 | N105: Sur | O105: 11 | P105: 2006-07-12 | Q105: Sur | R105: 5.463333333
B106: 1992-11-12 | C106: 9.266666667 | D106: 9.808333333 | E106: 9.133333333 | F106: 9.727776149 | G106: 2006-07-12 | H106: Bot | I106: 263.5466667 | J106: 1993-01-26 | K106: Sur | L106: 2.57 | M106: 1991-08-09 | N106: Sur | O106: 12 | P106: 2006-07-12 | Q106: Bot | R106: 7.22
B107: 1992-11-18 | C107: 9.733333333 | D107: 10.075 | E107: 10.33333333 | F107: 10.03656141 | G107: 2006-07-27 | H107: Sur | I107: 13.25 | J107: 1993-02-09 | K107: Sur | L107: 1.87 | M107: 1991-08-16 | N107: Sur | O107: 13 | P107: 2006-07-27 | Q107: Sur | R107: 6.48
B108: 1992-11-24 | C108: 9.6 | D108: 9.516666667 | E108: 9.983333333 | F108: 9.535622968 | G108: 2006-07-27 | H108: Bot | I108: 194.0966667 | J108: 1993-02-23 | K108: Sur | L108: 1.71 | M108: 1991-08-20 | N108: Sur | O108: 11 | P108: 2006-07-27 | Q108: Bot | R108: 6.143333333
B109: 1992-12-01 | C109: 7.733333333 | D109: 8.183333333 | E109: 8.333333333 | F109: 8.129265671 | G109: 2006-08-09 | H109: Sur | I109: 9.276666667 | J109: 1993-03-09 | K109: Sur | L109: 2.266666667 | M109: 1991-08-23 | N109: Sur | O109: 15 | P109: 2006-08-09 | Q109: Sur | R109: 4.863333333
B110: 1992-12-08 | C110: 7.2 | D110: 8.441666667 | E110: 7.583333333 | F110: 8.269467343 | G110: 2006-08-09 | H110: Bot | I110: 130.17 | J110: 1993-03-23 | K110: Sur | L110: 2.56 | M110: 1991-08-30 | N110: Sur | O110: 15 | P110: 2006-08-09 | Q110: Bot | R110: 7.353333333
B111: 1992-12-15 | C111: 7.666666667 | D111: 7.816666667 | E111: 7.716666667 | F111: 7.795930834 | G111: 2006-08-23 | H111: Sur | I111: 0.8766666667 | J111: 1993-04-21 | K111: Sur | L111: 3.36 | M111: 1991-09-03 | N111: Sur | O111: 7 | P111: 2006-08-23 | Q111: Sur | R111: 5.623333333
B112: 1992-12-22 | C112: 7.866666667 | D112: 9.425 | E112: 8.266666667 | F112: 9.20741716 | G112: 2006-08-23 | H112: Bot | I112: 95.67 | J112: 1993-05-04 | K112: Sur | L112: 3.43 | M112: 1991-09-06 | N112: Sur | O112: 15 | P112: 2006-08-23 | Q112: Bot | R112: 7.553333333
B113: 1993-01-12 | C113: 6.133333333 | D113: 7.975 | E113: 12.51666667 | F113: 7.824770792 | G113: 2006-09-06 | H113: Sur | I113: 1.1 | J113: 1993-05-18 | K113: Sur | L113: 1.48 | M113: 1991-09-13 | N113: Sur | O113: 12.5 | P113: 2006-09-06 | Q113: Sur | R113: 7.376666667
B114: 1993-01-26 | C114: 5.7 | D114: 8.116666667 | E114: 12.33333333 | F114: 7.888005263 | G114: 2006-09-06 | H114: Bot | I114: 48.62 | J114: 1993-06-01 | K114: Sur | L114: 1.2 | M114: 1991-09-17 | N114: Sur | O114: 13 | P114: 2006-09-06 | Q114: Bot | R114: 8.766666667
B115: 1993-02-09 | C115: 7.233333333 | D115: 8.016666667 | E115: 11.71666667 | F115: 7.984753313 | G115: 2006-09-20 | H115: Sur | I115: 20.8 | J115: 1993-06-15 | K115: Sur | L115: 2.32 | M115: 1991-10-01 | N115: Sur | O115: 10 | P115: 2006-09-20 | Q115: Sur | R115: 5.57
B116: 1993-02-23 | C116: 8.933333333 | D116: 7.2 | E116: 10.66666667 | F116: 7.481418664 | G116: 2006-09-20 | H116: Bot | I116: 11.01666667 | J116: 1993-06-29 | K116: Sur | L116: 1.56 | M116: 1991-10-15 | N116: Sur | O116: 9 | P116: 2006-09-20 | Q116: Bot | R116: 8.24
B117: 1993-03-09 | C117: 14.93333333 | D117: 8.375 | E117: 12.6 | F117: 9.27895367 | G117: 2006-10-09 | H117: Sur | I117: 37.96333333 | J117: 1993-07-13 | K117: Sur | L117: 2.98 | M117: 1991-11-05 | N117: Sur | O117: 7 | P117: 2006-10-09 | Q117: Sur | R117: 5.016666667
B118: 1993-03-23 | C118: 12.06666667 | D118: 5.106666667 | E118: 9.3 | F118: 6.060729781 | G118: 2006-10-09 | H118: Bot | I118: 20.8 | J118: 1993-07-27 | K118: Sur | L118: 2.77 | M118: 1991-11-19 | N118: Sur | O118: 10 | P118: 2006-10-09 | Q118: Bot | R118: 6.926666667
B119: 1993-04-21 | C119: 7.933333333 | D119: 9.306666667 | E119: 7.816666667 | F119: 9.106427742 | G119: 2006-10-24 | H119: Sur | I119: 111.03 | J119: 1993-08-10 | K119: Sur | L119: 2.77 | M119: 1991-12-10 | N119: Sur | O119: 9 | P119: 2006-10-24 | Q119: Sur | R119: 5.316666667
B120: 1993-05-04 | C120: 8 | D120: 8.76 | E120: 15.18333333 | F120: 8.780291927 | G120: 2006-10-24 | H120: Bot | I120: 59.47666667 | J120: 1993-08-24 | K120: Sur | L120: 3.9 | M120: 1992-01-17 | N120: Sur | O120: 6 | P120: 2006-10-24 | Q120: Bot | R120: 4.79
B121: 1993-05-18 | C121: 7.566666667 | D121: 8.413333333 | E121: 12.6 | F121: 8.38223167 | G121: 2006-11-08 | H121: Sur | I121: 85.41666667 | J121: 1993-09-07 | K121: Sur | L121: 3.19 | M121: 1992-01-28 | N121: Sur | O121: 9 | P121: 2006-11-08 | Q121: Sur | R121: 5.043333333
B122: 1993-06-01 | C122: 8.1 | D122: 11.11333333 | E122: 20.8 | F122: 10.90832884 | G122: 2006-11-08 | H122: Bot | I122: 79.45666667 | J122: 1993-09-21 | K122: Sur | L122: 4.68 | M122: 1992-02-18 | N122: Sur | O122: 9 | P122: 2006-11-08 | Q122: Bot | R122: 5.283333333
B123: 1993-06-15 | C123: 9.266666667 | D123: 9.886666667 | E123: 16.51666667 | F123: 9.928362071 | G123: 2006-11-27 | H123: Sur | I123: 101.09 | J123: 1993-10-05 | K123: Sur | L123: 5.81 | M123: 1992-03-13 | N123: Sur | O123: 10 | P123: 2006-11-27 | Q123: Sur | R123: 4.796666667
B124: 1993-06-29 | C124: 6.866666667 | D124: 8.193333333 | E124: 12.43333333 | F124: 8.102630054 | G124: 2006-11-27 | H124: Bot | I124: 100.2966667 | J124: 1993-10-19 | K124: Sur | L124: 5.55 | M124: 1992-04-09 | N124: Sur | O124: 16 | P124: 2006-11-27 | Q124: Bot | R124: 5.03
B125: 1993-07-13 | C125: 4.6 | D125: 6.913333333 | E125: 12.68333333 | F125: 6.725808026 | G125: 2006-12-13 | H125: Sur | I125: 117.5266667 | J125: 1993-11-02 | K125: Sur | L125: 7.55 | M125: 1992-04-14 | N125: Sur | O125: 9 | P125: 2006-12-13 | Q125: Sur | R125: 6.24
B126: 1993-07-27 | C126: 6.866666667 | D126: 9.146666667 | E126: 8.55 | F126: 8.848183742 | G126: 2006-12-13 | H126: Bot | I126: 125.5233333 | J126: 1993-11-17 | K126: Sur | L126: 8.71 | M126: 1992-04-28 | N126: Sur | O126: 16 | P126: 2006-12-13 | Q126: Bot | R126: 5.096666667
B127: 1993-08-10 | C127: 5.433333333 | D127: 5.853333333 | E127: 8.166666667 | F127: 5.842182577 | G127: 2007-01-05 | H127: Sur | I127: 157.9366667 | J127: 1993-11-30 | K127: Sur | L127: 4.85 | M127: 1992-05-10 | N127: Sur | O127: 12 | P127: 2007-01-05 | Q127: Sur | R127: 4.09
B128: 1993-08-24 | C128: 4.9 | D128: 5.54 | E128: 6.75 | F128: 5.481131999 | G128: 2007-01-05 | H128: Bot | I128: 158.8266667 | J128: 1993-12-14 | K128: Sur | L128: 5.55 | M128: 1992-05-12 | N128: Sur | O128: 8 | P128: 2007-01-05 | Q128: Bot | R128: 4.003333333
B129: 1993-09-07 | C129: 5.5 | D129: 5.184615385 | E129: 8.433333333 | F129: 5.283175092 | G129: 2007-03-29 | H129: Sur | I129: 226.3233333 | J129: 1994-01-04 | K129: Sur | L129: 5.52 | M129: 1992-05-17 | N129: Sur | O129: 10 | P129: 2007-03-29 | Q129: Sur | R129: 5.103333333
B130: 1993-09-21 | C130: 6.15 | D130: 6.166666667 | E130: 8.716666667 | F130: 6.210689409 | G130: 2007-03-29 | H130: Bot | I130: 231.5666667 | J130: 1994-01-21 | K130: Sur | L130: 4.05 | M130: 1992-05-24 | N130: Sur | O130: 9 | P130: 2007-03-29 | Q130: Bot | R130: 6.71
B131: 1993-10-05 | C131: 8.966666667 | D131: 10.34 | E131: 12.38333333 | F131: 10.20367387 | G131: 2007-04-17 | H131: Sur | I131: 230.88 | J131: 1994-02-01 | K131: Sur | L131: 3.02 | M131: 1992-05-26 | N131: Sur | O131: 8.5 | P131: 2007-04-17 | Q131: Sur | R131: 8.796666667
B132: 1993-10-19 | C132: 9.4 | D132: 9.7 | E132: 10.58333333 | F132: 9.678124236 | G132: 2007-04-17 | H132: Bot | I132: 228.12 | J132: 1994-02-15 | K132: Sur | L132: 1.77 | M132: 1992-05-31 | N132: Sur | O132: 12 | P132: 2007-04-17 | Q132: Bot | R132: 8.066666667
B133: 1993-11-02 | C133: 9.233333333 | D133: 9.406666667 | E133: 9.883333333 | F133: 9.393417686 | G133: 2007-05-02 | H133: Sur | I133: 219.58 | J133: 1994-03-01 | K133: Sur | L133: 1.21 | M133: 1992-06-07 | N133: Sur | O133: 8 | P133: 2007-05-02 | Q133: Sur | R133: 3.553333333
B134: 1993-11-17 | C134: 9.066666667 | D134: 9.413333333 | E134: 8.816666667 | F134: 9.358798158 | G134: 2007-05-02 | H134: Bot | I134: 225.6566667 | J134: 1994-03-15 | K134: Sur | L134: 1.52 | M134: 1992-06-09 | N134: Sur | O134: 6 | P134: 2007-05-02 | Q134: Bot | R134: 4.9
B135: 1993-11-30 | C135: 8.1 | D135: 7.84 | E135: 8.666666667 | F135: 7.887759947 | G135: 2007-05-16 | H135: Sur | I135: 207.3833333 | J135: 1994-04-05 | K135: Sur | L135: 3.37 | M135: 1992-06-14 | N135: Sur | O135: 3.5 | P135: 2007-05-16 | Q135: Sur | R135: 5.833333333
B136: 1993-12-14 | C136: 7.066666667 | D136: 6.773333333 | E136: 7.3 | F136: 6.819872719 | G136: 2007-05-16 | H136: Bot | I136: 216.5 | J136: 1994-04-19 | K136: Sur | L136: 4.45 | M136: 1992-06-19 | N136: Sur | O136: 4.5 | P136: 2007-05-16 | Q136: Bot | R136: 4.716666667
B137: 1994-01-04 | C137: 5.766666667 | D137: 7.14 | E137: 13.28333333 | F137: 7.07783682 | G137: 2007-06-01 | H137: Sur | I137: 166 | J137: 1994-05-03 | K137: Sur | L137: 5.62 | M137: 1992-06-21 | N137: Sur | O137: 5 | P137: 2007-06-01 | Q137: Sur | R137: 4.37
B138: 1994-01-21 | C138: 6.366666667 | D138: 6.393333333 | E138: 11.38333333 | F138: 6.480230279 | G138: 2007-06-01 | H138: Bot | I138: 202.5966667 | J138: 1994-05-17 | K138: Sur | L138: 6.1 | M138: 1992-06-28 | N138: Sur | O138: 4 | P138: 2007-06-01 | Q138: Bot | R138: 4.936666667
B139: 1994-02-01 | C139: 7.966666667 | D139: 8.666666667 | E139: 12.86666667 | F139: 8.654312565 | G139: 2007-06-13 | H139: Sur | I139: 139.3033333 | J139: 1994-05-31 | K139: Sur | L139: 5.25 | M139: 1992-06-30 | N139: Sur | O139: 3.5 | P139: 2007-06-13 | Q139: Sur | R139: 4.773333333
B140: 1994-02-15 | C140: 5.5 | D140: 6.493333333 | E140: 11.36666667 | F140: 6.456146076 | G140: 2007-06-13 | H140: Bot | I140: 187.5166667 | J140: 1994-06-14 | K140: Sur | L140: 3.54 | M140: 1992-07-05 | N140: Sur | O140: 5 | P140: 2007-06-13 | Q140: Bot | R140: 5.563333333
B141: 1994-03-01 | C141: 9.966666667 | D141: 7.793333333 | E141: 11.51666667 | F141: 8.134913861 | G141: 2007-06-27 | H141: Sur | I141: 92.22666667 | J141: 1994-06-28 | K141: Sur | L141: 4.96 | M141: 1992-07-12 | N141: Sur | O141: 6 | P141: 2007-06-27 | Q141: Sur | R141: 5.25
B142: 1994-03-15 | C142: 5.133333333 | D142: 7.246666667 | E142: 12.56666667 | F142: 7.076237496 | G142: 2007-06-27 | H142: Bot | I142: 188.6333333 | J142: 1994-07-12 | K142: Sur | L142: 4.82 | M142: 1992-07-19 | N142: Sur | O142: 9 | P142: 2007-06-27 | Q142: Bot | R142: 6.763333333
B143: 1994-04-05 | C143: 4.7 | D143: 4.9 | E143: 6.9 | F143: 4.910941077 | G143: 2007-07-11 | H143: Sur | I143: 56.89 | J143: 1994-07-26 | K143: Sur | L143: 3.66 | M143: 1992-07-21 | N143: Sur | O143: 7 | P143: 2007-07-11 | Q143: Sur | R143: 4.916666667
B144: 1994-04-19 | C144: 6.933333333 | D144: 6.506666667 | E144: 7.683333333 | F144: 6.581787576 | G144: 2007-07-11 | H144: Bot | I144: 269.13 | J144: 1994-08-09 | K144: Sur | L144: 2.98 | M144: 1992-07-26 | N144: Sur | O144: 10 | P144: 2007-07-11 | Q144: Bot | R144: 5.336666667
B145: 1994-05-03 | C145: 7.033333333 | D145: 8.973333333 | E145: 10.56666667 | F145: 8.757365436 | G145: 2007-07-25 | H145: Sur | I145: 12.45333333 | J145: 1994-08-23 | K145: Sur | L145: 2.52 | M145: 1992-08-02 | N145: Sur | O145: 11 | P145: 2007-07-25 | Q145: Sur | R145: 4.72
B146: 1994-05-17 | C146: 8.033333333 | D146: 9.726666667 | E146: 14 | F146: 9.590300385 | G146: 2007-07-25 | H146: Bot | I146: 310.3366667 | J146: 1994-09-06 | K146: Sur | L146: 2.76 | M146: 1992-08-04 | N146: Sur | O146: 8.5 | P146: 2007-07-25 | Q146: Bot | R146: 4.56
B147: 1994-05-31 | C147: 9.566666667 | D147: 9.733333333 | E147: 19.13333333 | F147: 9.882335495 | G147: 2007-08-08 | H147: Sur | I147: 13.54666667 | J147: 1994-09-20 | K147: Sur | L147: 1.69 | M147: 1992-08-09 | N147: Sur | O147: 13 | P147: 2007-08-08 | Q147: Sur | R147: 4.196666667
B148: 1994-06-14 | C148: 8.233333333 | D148: 9.833333333 | E148: 15.33333333 | F148: 9.730932431 | G148: 2007-08-08 | H148: Bot | I148: 264.2333333 | J148: 1994-10-04 | K148: Sur | L148: 3.23 | M148: 1992-08-16 | N148: Sur | O148: 15.5 | P148: 2007-08-08 | Q148: Bot | R148: 5.11
B149: 1994-06-28 | C149: 7.7 | D149: 8.226666667 | E149: 11.8 | F149: 8.224848266 | G149: 2007-08-22 | H149: Sur | I149: 6.143333333 | J149: 1994-10-18 | K149: Sur | L149: 4.01 | M149: 1992-08-18 | N149: Sur | O149: 9.5 | P149: 2007-08-22 | Q149: Sur | R149: 4.89
B150: 1994-07-12 | C150: 6.3 | D150: 6.986666667 | E150: 8.233333333 | F150: 6.922573518 | G150: 2007-08-22 | H150: Bot | I150: 197.0166667 | J150: 1994-11-01 | K150: Sur | L150: 3.28 | M150: 1992-08-23 | N150: Sur | O150: 16 | P150: 2007-08-22 | Q150: Bot | R150: 5.026666667
B151: 1994-07-26 | C151: 5.1 | D151: 6.9 | E151: 7.733333333 | F151: 6.687950005 | G151: 2007-09-05 | H151: Sur | I151: 1.906666667 | J151: 1994-11-15 | K151: Sur | L151: 6.46 | M151: 1992-08-30 | N151: Sur | O151: 15.5 | P151: 2007-09-05 | Q151: Sur | R151: 4.333333333
B152: 1994-08-09 | C152: 7.366666667 | D152: 7.853333333 | E152: 10.56666667 | F152: 7.841005996 | G152: 2007-09-05 | H152: Bot | I152: 137.0333333 | J152: 1994-11-29 | K152: Sur | L152: 6.86 | M152: 1992-09-01 | N152: Sur | O152: 15 | P152: 2007-09-05 | Q152: Bot | R152: 6.18
B153: 1994-08-23 | C153: 5.8 | D153: 6.386666667 | E153: 9.833333333 | F153: 6.374986261 | G153: 2007-09-26 | H153: Sur | I153: 19.48 | J153: 1994-12-13 | K153: Sur | L153: 6.56 | M153: 1992-09-06 | N153: Sur | O153: 15 | P153: 2007-09-26 | Q153: Sur | R153: 5.163333333
B154: 1994-09-06 | C154: 7.466666667 | D154: 6.806666667 | E154: 9.066666667 | F154: 6.930825449 | G154: 2007-09-26 | H154: Bot | I154: 22.77 | J154: 1994-12-27 | K154: Sur | L154: 6.7 | M154: 1992-09-13 | N154: Sur | O154: 13.5 | P154: 2007-09-26 | Q154: Bot | R154: 6.543333333
B155: 1994-09-20 | C155: 6.066666667 | D155: 7.221428571 | E155: 9.916666667 | F155: 7.124473747 | G155: 2007-10-10 | H155: Sur | I155: 23.03333333 | J155: 1995-01-24 | K155: Sur | L155: 3.25 | M155: 1992-09-15 | N155: Sur | O155: 13.5 | P155: 2007-10-10 | Q155: Sur | R155: 6.333333333
B156: 1994-10-04 | C156: 6.666666667 | D156: 7.22 | E156: 8.05 | F156: 7.165193948 | G156: 2007-10-10 | H156: Bot | I156: 11.51 | J156: 1995-02-07 | K156: Sur | L156: 2.18 | M156: 1992-09-20 | N156: Sur | O156: 14.5 | P156: 2007-10-10 | Q156: Bot | R156: 6.313333333
B157: 1994-10-18 | C157: 7.666666667 | D157: 7.386666667 | E157: 8.816666667 | F157: 7.447863622 | G157: 2007-10-24 | H157: Sur | I157: 33.79666667 | J157: 1995-02-21 | K157: Sur | L157: 1.27 | M157: 1992-09-22 | N157: Sur | O157: 10 | P157: 2007-10-24 | Q157: Sur | R157: 6.24
B158: 1994-11-01 | C158: 9.4 | D158: 9.64 | E158: 10.11666667 | F158: 9.618339028 | G158: 2007-10-24 | H158: Bot | I158: 16.61666667 | J158: 1995-03-07 | K158: Sur | L158: 1.79 | M158: 1992-09-29 | N158: Sur | O158: 10 | P158: 2007-10-24 | Q158: Bot | R158: 6.62
B159: 1994-11-15 | C159: 10.23333333 | D159: 10.46 | E159: 11.2 | F159: 10.44478474 | G159: 2007-11-07 | H159: Sur | I159: 72.13333333 | J159: 1995-03-28 | K159: Sur | L159: 2.02 | M159: 1992-10-06 | N159: Sur | O159: 15.1 | P159: 2007-11-07 | Q159: Sur | R159: 7.006666667
B160: 1994-11-29 | C160: 11.93333333 | D160: 12.34666667 | E160: 12.8 | F160: 12.30271245 | G160: 2007-11-07 | H160: Bot | I160: 73.32333333 | J160: 1995-04-11 | K160: Sur | L160: 3.8 | M160: 1992-10-13 | N160: Sur | O160: 9.5 | P160: 2007-11-07 | Q160: Bot | R160: 6.793333333
B161: 1994-12-13 | C161: 8.866666667 | D161: 9.1 | E161: 8.966666667 | F161: 9.068146227 | G161: 2008-02-01 | H161: Sur | I161: 196.3166667 | J161: 1995-04-25 | K161: Sur | L161: 6.27 | M161: 1992-10-21 | N161: Sur | O161: 8.5 | P161: 2008-02-01 | Q161: Sur | R161: 6.753333333
B162: 1994-12-27 | C162: 7.7 | D162: 7.98 | E162: 7.616666667 | F162: 7.938097472 | G162: 2008-02-01 | H162: Bot | I162: 226.2766667 | J162: 1995-05-09 | K162: Sur | L162: 6.26 | M162: 1992-10-27 | N162: Sur | O162: 12.5 | P162: 2008-02-01 | Q162: Bot | R162: 8.756666667
B163: 1995-01-24 | C163: 7.633333333 | D163: 7.886666667 | E163: 13.4 | F163: 7.95442917 | G163: 2008-02-14 | H163: Sur | I163: 197.0166667 | J163: 1995-05-23 | K163: Sur | L163: 5.12 | M163: 1992-11-04 | N163: Sur | O163: 8.5 | P163: 2008-02-14 | Q163: Sur | R163: 8.516666667
B164: 1995-02-07 | C164: 5.633333333 | D164: 7.226666667 | E164: 8.833333333 | F164: 7.054682304 | G164: 2008-02-14 | H164: Bot | I164: 256.38 | J164: 1995-06-06 | K164: Sur | L164: 4.88 | M164: 1992-11-12 | N164: Sur | O164: 9 | P164: 2008-02-14 | Q164: Bot | R164: 10.34
B165: 1995-02-21 | C165: 4.333333333 | D165: 5.94 | E165: 10.7 | F165: 5.82337239 | G165: 2008-03-05 | H165: Sur | I165: 228.4533333 | J165: 1995-06-20 | K165: Sur | L165: 3.22 | M165: 1992-11-18 | N165: Sur | O165: 9.5 | P165: 2008-03-05 | Q165: Sur | R165: 5.643333333
B166: 1995-03-07 | C166: 8.233333333 | D166: 6.833333333 | E166: 11.25 | F166: 7.089876139 | G166: 2008-03-05 | H166: Bot | I166: 302.4733333 | J166: 1995-07-03 | K166: Sur | L166: 1.75 | M166: 1992-11-24 | N166: Sur | O166: 9.5 | P166: 2008-03-05 | Q166: Bot | R166: 6.39
B167: 1995-03-28 | C167: 7 | D167: 7.133333333 | E167: 7.416666667 | F167: 7.121634433 | G167: 2008-03-20 | H167: Sur | I167: 275.7 | J167: 1995-07-18 | K167: Sur | L167: 3.86 | M167: 1992-12-01 | N167: Sur | O167: 9 | P167: 2008-03-20 | Q167: Sur | R167: 3.996666667
B168: 1995-04-11 | C168: 8.266666667 | D168: 9.193333333 | E168: 9.016666667 | F168: =$C$36*C168+$D$36*D168+$E$36*E168 -> 9.073211014 | G168: 2008-03-20 | H168: Bot | J168: 1995-08-01 | K168: Sur | L168: 2.48 | M168: 1992-12-08 | N168: Sur | O168: 11.5 | P168: 2008-03-20 | Q168: Bot | R168: 3.253333333
B169: 1995-04-25 | C169: 8.366666667 | D169: 9.18 | E169: 8.983333333 | F169: 9.073816295 | G169: 2008-04-16 | H169: Sur | I169: 255.4833333 | J169: 1995-08-15 | K169: Sur | L169: 2.05 | M169: 1992-12-15 | N169: Sur | O169: 10.5 | P169: 2008-04-16 | Q169: Sur | R169: 5.196666667
B170: 1995-05-09 | C170: 9.133333333 | D170: 8.793333333 | E170: 8.333333333 | F170: 8.827913768 | G170: 2008-04-16 | H170: Bot | I170: 253.4866667 | J170: 1995-08-29 | K170: Sur | L170: 4.9 | M170: 1992-12-22 | N170: Sur | O170: 11 | P170: 2008-04-16 | Q170: Bot | R170: 5.88
B171: 1995-05-23 | C171: 8.733333333 | D171: 8.673333333 | E171: 11.01666667 | F171: 8.72329157 | G171: 2008-04-30 | H171: Sur | I171: 244.9966667 | J171: 1995-09-12 | K171: Sur | L171: 3.71 | M171: 1993-01-12 | N171: Sur | O171: 13 | P171: 2008-04-30 | Q171: Sur | R171: 6.333333333
B172: 1995-06-06 | C172: 6.266666667 | D172: 8.433333333 | E172: 17 | F172: 8.314901983 | G172: 2008-04-30 | H172: Bot | I172: 246.4033333 | J172: 1995-09-26 | K172: Sur | L172: 3.29 | M172: 1993-01-26 | N172: Sur | O172: 11 | P172: 2008-04-30 | Q172: Bot | R172: 7.093333333
B173: 1995-06-20 | C173: 6.966666667 | D173: 8.38 | E173: 13.08333333 | F173: 8.286742148 | G173: 2008-05-15 | H173: Sur | I173: 234.72 | J173: 1995-10-10 | K173: Sur | L173: 3.69 | M173: 1993-02-09 | N173: Sur | O173: 14.5 | P173: 2008-05-15 | Q173: Sur | R173: 4.916666667
B174: 1995-07-03 | C174: 9.366666667 | D174: 7.971428571 | E174: 10.8 | F174: 8.19864422 | G174: 2008-05-15 | H174: Bot | I174: 252.0533333 | J174: 1995-10-24 | K174: Sur | L174: 4.92 | M174: 1993-02-23 | N174: Sur | O174: 9 | P174: 2008-05-15 | Q174: Bot | R174: 7.09
B175: 1995-07-18 | C175: 8.333333333 | D175: 9.32 | E175: 9.95 | F175: 9.206898299 | G175: 2008-05-23 | H175: Sur | I175: 222.1 | J175: 1995-11-07 | K175: Sur | L175: 3.74 | M175: 1993-03-23 | N175: Sur | O175: 9 | P175: 2008-05-23 | Q175: Sur | R175: 5.85
B176: 1995-08-01 | C176: 4.45 | D176: 6.033333333 | E176: 8.183333333 | F176: 5.872438869 | G176: 2008-05-23 | H176: Bot | I176: 262.3833333 | J176: 1995-11-21 | K176: Sur | L176: 5.41 | M176: 1993-05-04 | N176: Sur | O176: 12 | P176: 2008-05-23 | Q176: Bot | R176: 6.563333333
B177: 1995-08-15 | C177: 4.866666667 | D177: 6.064285714 | E177: 8.066666667 | F177: 5.949390417 | G177: 2008-06-04 | H177: Sur | I177: 211.3266667 | J177: 1995-12-05 | K177: Sur | L177: 3.11 | M177: 1993-05-10 | N177: Sur | O177: 12 | P177: 2008-06-04 | Q177: Sur | R177: 6.166666667
B178: 1995-08-29 | C178: 7.1 | D178: 7.313333333 | E178: 11.35 | F178: 7.359432309 | G178: 2008-06-04 | H178: Bot | I178: 284.97 | J178: 1995-12-22 | K178: Sur | L178: 2.76 | M178: 1993-05-17 | N178: Sur | O178: 12 | P178: 2008-06-04 | Q178: Bot | R178: 7.676666667
B179: 1995-09-12 | C179: 7.866666667 | D179: 7.113333333 | E179: 9.466666667 | F179: 7.250957166 | G179: 2008-06-20 | H179: Sur | I179: 177.22 | J179: 1996-01-02 | K179: Sur | L179: 2.46 | M179: 1993-05-18 | N179: Sur | O179: 10 | P179: 2008-06-20 | Q179: Sur | R179: 5.806666667
B180: 1995-09-26 | C180: 8.866666667 | D180: 8.686666667 | E180: 9.183333333 | F180: 8.718363011 | G180: 2008-06-20 | H180: Bot | I180: 278.4766667 | J180: 1996-01-16 | K180: Sur | L180: 1.7 | M180: 1993-05-24 | N180: Sur | O180: 10 | P180: 2008-06-20 | Q180: Bot | R180: 9.61
B181: 1995-10-10 | C181: 8.333333333 | D181: 7.686666667 | E181: 9.25 | F181: 7.796541378 | G181: 2008-07-01 | H181: Sur | I181: 141.2766667 | J181: 1996-01-31 | K181: Sur | L181: 1.17 | M181: 1993-05-31 | N181: Sur | O181: 13 | P181: 2008-10-09 | Q181: Sur | R181: 14.02666667
B182: 1995-10-24 | C182: 10.56666667 | D182: 10.35333333 | E182: 9.866666667 | F182: 10.37144862 | G182: 2008-07-01 | H182: Bot | I182: 294.85 | J182: 1996-02-13 | K182: Sur | L182: 0.96 | M182: 1993-06-01 | N182: Sur | O182: 10 | P182: 2008-10-09 | Q182: Bot | R182: 6.883333333
B183: 1995-11-07 | C183: 11.33333333 | D183: 11.03333333 | E183: 10.08333333 | F183: 11.0540032 | G183: 2008-07-17 | H183: Sur | I183: 77.68 | J183: 1996-02-27 | K183: Sur | L183: 0.76 | M183: 1993-06-07 | N183: Sur | O183: 10 | P183: 2008-10-15 | Q183: Sur | R183: 6.363333333
B184: 1995-11-21 | C184: 12.23333333 | D184: 10.90666667 | E184: 10.78333333 | F184: 11.07183438 | G184: 2008-07-17 | H184: Bot | I184: 283.7033333 | J184: 1996-03-12 | K184: Sur | L184: 1.39 | M184: 1993-06-14 | N184: Sur | O184: 12 | P184: 2008-10-15 | Q184: Bot | R184: 7.303333333
B185: 1995-12-05 | C185: 8.5 | D185: 8.78 | E185: 8.766666667 | F185: 8.744428456 | G185: 2008-07-30 | H185: Sur | I185: 28.09333333 | J185: 1996-03-19 | K185: Sur | L185: 2.53 | M185: 1993-06-15 | N185: Sur | O185: 8 | P185: 2008-10-30 | Q185: Sur | R185: 5.373333333
B186: 1995-12-22 | C186: 7.133333333 | D186: 7.12 | E186: 9.8 | F186: 7.170159647 | G186: 2008-07-30 | H186: Bot | I186: 243.7766667 | J186: 1996-04-16 | K186: Sur | L186: 1.63 | M186: 1993-06-21 | N186: Sur | O186: 13 | P186: 2008-10-30 | Q186: Bot | R186: 7.856666667
B187: 1996-01-02 | C187: 7.633333333 | D187: 6.713333333 | E187: 11.18333333 | F187: 6.910274523 | G187: 2008-08-14 | H187: Sur | I187: 7.93 | J187: 1996-04-23 | K187: Sur | L187: 2.09 | M187: 1993-06-28 | N187: Sur | O187: 13.5 | P187: 2008-11-12 | Q187: Sur | R187: 6.846666667
B188: 1996-01-16 | C188: 7.833333333 | D188: 6.633333333 | E188: 11.01666667 | F188: 6.864037215 | G188: 2008-08-14 | H188: Bot | I188: 182.5233333 | J188: 1996-04-30 | K188: Sur | L188: 2.31 | M188: 1993-06-29 | N188: Sur | O188: 9 | P188: 2008-11-12 | Q188: Bot | R188: 7.896666667
B189: 1996-01-31 | C189: 7.366666667 | D189: 5.32 | E189: 11.41666667 | F189: 5.688527845 | G189: 2008-08-27 | H189: Sur | I189: 6.453333333 | J189: 1996-05-07 | K189: Sur | L189: 2.54 | M189: 1993-07-05 | N189: Sur | O189: 19 | P189: 2009-01-27 | Q189: Sur | R189: 8.03
B190: 1996-02-13 | C190: 7.913333333 | D190: 7.913333333 | E190: 12.13333333 | F190: 7.989666911 | G190: 2008-08-27 | H190: Bot | I190: 125.66 | J190: 1996-05-14 | K190: Sur | L190: 3.89 | M190: 1993-07-12 | N190: Sur | O190: 21 | P190: 2009-01-27 | Q190: Bot | R190: 9.67
B191: 1996-02-27 | C191: 20.65 | D191: 6.566666667 | E191: 12.16666667 | F191: 8.444995583 | G191: 2008-09-10 | H191: Sur | I191: 14.06 | J191: 1996-05-21 | K191: Sur | L191: 3.42 | M191: 1993-07-13 | N191: Sur | O191: 17
B192: 1996-03-12 | C192: 6.533333333 | D192: 7.093333333 | E192: 13.45 | F192: 7.137655333 | G192: 2008-09-10 | H192: Bot | I192: 40.62 | J192: 1996-05-28 | K192: Sur | L192: 2.98 | M192: 1993-07-19 | N192: Sur | O192: 18.5
B193: 1996-03-19 | C193: 9.713333333 | D193: 9.713333333 | E193: 13.63333333 | F193: 9.784240353 | G193: 2008-09-23 | H193: Sur | I193: 22.17666667 | J193: 1996-06-04 | K193: Sur | L193: 2.91 | M193: 1993-07-26 | N193: Sur | O193: 17
B194: 1996-04-16 | C194: 6.4 | D194: 6.713333333 | E194: 6.283333333 | F194: 6.666018908 | G194: 2008-09-23 | H194: Bot | I194: 11.83 | J194: 1996-06-11 | K194: Sur | L194: 1.53 | M194: 1993-07-27 | N194: Sur | O194: 16
B195: 1996-04-23 | C195: 7.566666667 | D195: 6.7 | E195: 7.516666667 | F195: 6.824128183 | G195: 2008-10-09 | H195: Sur | I195: 29.67 | J195: 1996-06-18 | K195: Sur | L195: 2.26 | M195: 1993-08-02 | N195: Sur | O195: 18
B196: 1996-04-30 | C196: 6.366666667 | D196: 7.246666667 | E196: 7.016666667 | F196: 7.13146802 | G196: 2008-10-09 | H196: Bot | I196: 14.82666667 | J196: 1996-06-25 | K196: Sur | L196: 2.89 | M196: 1993-08-09 | N196: Sur | O196: 14
B197: 1996-05-07 | C197: 7.466666667 | D197: 6.873333333 | E197: 7.8 | F197: 6.96496209 | G197: 2008-10-15 | H197: Sur | I197: 35.01333333 | J197: 1996-07-02 | K197: Sur | L197: 2.95 | M197: 1993-08-10 | N197: Sur | O197: 11
B198: 1996-05-14 | C198: 8.933333333 | D198: 7.9 | E198: 9.133333333 | F198: 8.052695047 | G198: 2008-10-15 | H198: Bot | I198: 18.24333333 | J198: 1996-07-09 | K198: Sur | L198: 2.04 | M198: 1993-08-16 | N198: Sur | O198: 11
B199: 1996-05-21 | C199: 7.8 | D199: 8.253333333 | E199: 10.56666667 | F199: 8.237976581 | G199: 2008-10-30 | H199: Sur | I199: 53.68 | J199: 1996-07-16 | K199: Sur | L199: 2.8 | M199: 1993-08-23 | N199: Sur | O199: 10.5
B200: 1996-05-28 | C200: 7.766666667 | D200: 8.36 | E200: 13.63333333 | F200: 8.380520101 | G200: 2008-10-30 | H200: Bot | I200: 53.80666667 | J200: 1996-07-23 | K200: Sur | L200: 1.68 | M200: 1993-08-24 | N200: Sur | O200: 7
... 1144 more rows

Sheet Lake Probe Data
AM1: =H3 -> 2024 | AN1: =L3 -> 2023
H2: Chart 1 | L2: Chart 2 | AG2: Chart | AI2: Chart 1 | AJ2: Chart 2 | AM2: Chart 1 | AN2: Chart 2
H3: 2024 | L3: 2023 | AC3: Parameter List | AE3: Chart 1 Labels | AG3: Depths | AI3: Days | AJ3: Days | AK3: area | AL3: RR | AM3: Release | AN3: Release
H4: Temperature | L4: Temperature | AC4: Temperature | AE4: 2024 Temperature Max = 38.7 | AG4: 0 | AI4: 2 | AJ4: 57 | AK4: 1149270 | AL4: 0.411 | AM4: =AI4*AK4*AL4/1000000 -> 0.94469994 | AN4: =AJ4*AK4*AL4/1000000 -> 26.92394829
AC5: Oxygen | AE5: degrees F | AG5: 7.5 | AI5: 42 | AJ5: 93 | AK5: 1023821 | AL5: 0.411 | AM5: =AI5*AK5*AL5/1000000 -> 17.6731981 | AN5: =AJ5*AK5*AL5/1000000 -> 39.13351008
AC6: ORP | AG6: 15 | AI6: 56 | AJ6: 114 | AK6: 473467 | AL6: 0.411 | AM6: =AI6*AK6*AL6/1000000 -> 10.89731647 | AN6: =AJ6*AK6*AL6/1000000 -> 22.18382282
AC7: Conductivity | AG7: 30 | AI7: 61 | AJ7: 121 | AK7: 105215 | AL7: 1.547 | AM7: =AI7*AK7*AL7/1000000 -> 9.928823905 | AN7: =AJ7*AK7*AL7/1000000 -> 19.6948802
AC8: pH | AE8: Chart 2 Labels | AG8: 45 | AM8: =SUM(AM4:AM7)*2.204 -> 86.93466068 | AN8: =SUM(AN4:AN7)*2.204 -> 237.8912997
AE9: 2023 Temperature Max = 76.6 | AG9: 60
AE10: degrees F | AG10: 75
AG11: 90
R13: =IF(K43>0,K43,"") -> 2024-03-13 | AC13: Temperature 3/13/2024 | AJ13: Temperature
R14: =IF(K44>0,K44,"") ->  | AC14: Oxygen 3/13/2024 | AJ14: Temperature
... 38 more rows

Sheet Stream Chemistry
K2: Sites | AQ2: Sites
K3: Stone | O3: Years | P3: Sites | AP3: mg/m3 | AQ3: =C39 -> Stone | AT3: mg/m3
I4: 2024 | K4: Collision | N4: Start | O4: 2018 | P4: Stone | AQ4: =F39 -> Vet's
K5: USGS | N5: End | O5: 2024 | P5: USGS | AQ5: =I39 -> Haze
AQ6: =L39 -> Carter
AQ7: =O39 -> Pioneer
AQ8: =R39 -> USGS
W9: Site | X9: Value | AQ9: =U39 -> Ind Hill
W10: Date | X10: 2024-03-13 | AQ10: =X39 -> Dead
W11: Stone | X11: 11.41157886 | AQ11: =AA39 -> Collison
W12: Vet's | X12: 11.76382746 | AQ12: =AD39 -> M-22
W13: Haze | X13: 10.88320595 | AQ13: =AG39 -> Old Res
W14: Carter | X14: 10.53095735 | AQ14: =AJ39 -> Hooker
W15: Pioneer | X15: 13.23152998
W16: USGS | X16: 14.69923249
W17: Ind Hill
W18: Dead | X18: 10.17870875 | AO18: TP Year = 2024
AO19: Stone = | AP19: =AO19&TEXT(AO37,"0.0") -> Stone = 10.1 | AS19: Start = 2018 End = 2024
AO20: Collision = | AP20: =AO20&TEXT(AQ37,"0.0") -> Collision = 8.0
AO21: USGS = | AP21: =AO21&TEXT(AS37,"0.0") -> USGS = 17.6
AS22: =AT38&" = "& TEXT(AU37,"0.0") -> Stone = 11.1
AS23: =AV38&" = "& TEXT(AW37,"0.0") -> USGS = 15.7
AT35: what is this
C37: =MAX(C40:C1000) -> 30.28333333 | F37: =MAX(F40:F1000) -> 31.90666667 | I37: =MAX(I40:I1000) -> 59.04 | L37: =MAX(L40:L1000) -> 51.32 | O37: =MAX(O40:O1000) -> 37.85 | R37: =MAX(R40:R1000) -> 29.57666667 | U37: =MAX(U40:U1000) -> 40.33 | X37: =MAX(X40:X1000) -> 72.46666667 | AA37: =MAX(AA40:AA1000) -> 175.2333333 | AD37: =MAX(AD40:AD1000) -> 41.23666667 | AG37: =MAX(AG40:AG1000) -> 37.61666667 | AJ37: =MAX(AJ40:AJ1000) -> 32.62 | AO37: =IF(SUM(AO40:AO500)>0,AVERAGE(AO40:AO500),"") -> 10.06606816 | AQ37: =IF(SUM(AQ40:AQ500)>0,AVERAGE(AQ40:AQ500),"") -> 8.011184535 | AS37: =IF(SUM(AS40:AS500)>0,AVERAGE(AS40:AS500),"") -> 17.61222955 | AU37: =IF(SUM(AU40:AU500)>0,AVERAGE(AU40:AU500),"") -> 11.11661492 | AW37: =IF(SUM(AW40:AW500)>0,AVERAGE(AW40:AW500),"") -> 15.66243359 | AX37: Avg
B38: =YEAR(MIN(B40:B4000)) -> 2003 | C38: =COUNT(C40:C4000) -> 428 | E38: =YEAR(MIN(E40:E4000)) -> 2003 | F38: =COUNT(F40:F4000) -> 230 | H38: =YEAR(MIN(H40:H4000)) -> 2010 | I38: =COUNT(I40:I4000) -> 215 | K38: =YEAR(MIN(K40:K4000)) -> 2017 | L38: =COUNT(L40:L4000) -> 135 | N38: =YEAR(MIN(N40:N4000)) -> 2016 | O38: =COUNT(O40:O4000) -> 159 | Q38: =YEAR(MIN(Q40:Q4000)) -> 1989 | R38: =COUNT(R40:R4000) -> 832 | T38: =YEAR(MIN(T40:T4000)) -> 2015 | U38: =COUNT(U40:U4000) -> 169 | W38: =YEAR(MIN(W40:W4000)) -> 1989 | X38: =COUNT(X40:X4000) -> 802 | Z38: =YEAR(MIN(Z40:Z4000)) -> 2004 | AA38: =COUNT(AA40:AA4000) -> 38 | AC38: =YEAR(MIN(AC40:AC4000)) -> 1989 | AD38: =COUNT(AD40:AD4000) -> 392 | AF38: =YEAR(MIN(AF40:AF4000)) -> 2003 | AG38: =COUNT(AG40:AG4000) -> 73 | AI38: =YEAR(MIN(AI40:AI4000)) -> 2007 | AJ38: =COUNT(AJ40:AJ4000) -> 122 | AN38: =AO19 -> Stone = | AO38: =MAX(AO40:AO4000) -> 11.41157886 | AP38: =AO20 -> Collision = | AQ38: =MAX(AQ40:AQ4000) -> 11.23545456 | AR38: =AO21 -> USGS = | AS38: =MAX(AS40:AS4000) -> 22.85 | AT38: Stone | AU38: =MAX(AU39:AU4000) -> 19.26 | AV38: USGS | AW38: =MAX(AW39:AW4000) -> 28.41 | AX38: Max | AY38: =MAX(AT38:AW38) -> 28.41
B39: =YEAR(MAX(B40:B4000)) -> 2024 | C39: Stone | E39: =YEAR(MAX(E40:E4000)) -> 2024 | F39: Vet's | H39: =YEAR(MAX(H40:H4000)) -> 2024 | I39: Haze | K39: =YEAR(MAX(K40:K4000)) -> 2024 | L39: Carter | N39: =YEAR(MAX(N40:N4000)) -> 2024 | O39: Pioneer | Q39: =YEAR(MAX(Q40:Q4000)) -> 2024 | R39: USGS | T39: =YEAR(MAX(T40:T4000)) -> 2023 | U39: Ind Hill | W39: =YEAR(MAX(W40:W4000)) -> 2024 | X39: Dead | Z39: =YEAR(MAX(Z40:Z4000)) -> 2024 | AA39: Collison | AC39: =YEAR(MAX(AC40:AC4000)) -> 2013 | AD39: M-22 | AF39: =YEAR(MAX(AF40:AF4000)) -> 2013 | AG39: Old Res | AI39: =YEAR(MAX(AI40:AI4000)) -> 2009 | AJ39: Hooker | AN39: Date | AO39: Value | AP39: Date | AQ39: Value | AR39: Date | AS39: Value | AT39: Date | AU39: Value | AV39: Date | AW39: Value
B40: 2003-10-15 | C40: 8.276666667 | E40: 2003-11-24 | F40: 8.943333333 | H40: 2010-11-09 | I40: 6.63 | K40: 2017-06-06 | L40: 13.38 | N40: 2016-06-15 | O40: 18.79 | Q40: 1989-11-30 | R40: 14.73333333 | T40: 2015-09-16 | U40: 20.11 | W40: 1989-11-30 | X40: 19.26666667 | Z40: 2004-01-26 | AA40: 6.833333333 | AC40: 1989-11-30 | AD40: 13.43333333 | AF40: 2003-10-15 | AG40: 10.04 | AI40: 2007-06-27 | AJ40: 9.21 | AN40: 5 | AO40: 8.578551496 | AP40: 5 | AQ40: 5.7 | AR40: 5 | AS40: 13.62620281 | AT40: 2018.024658 | AU40: 10.97 | AV40: 2018.024658 | AW40: 22.39
B41: 2003-11-24 | C41: 8.27 | E41: 2004-01-30 | F41: 11.8 | H41: 2010-11-16 | I41: 6.723333333 | K41: 2017-06-19 | L41: 16.18 | N41: 2016-06-28 | O41: 20.72 | Q41: 1989-12-27 | R41: 14.4 | T41: 2015-10-05 | U41: 11.89 | W41: 1989-12-27 | X41: 12.8 | Z41: 2004-02-27 | AA41: 14.13333333 | AC41: 1989-12-27 | AD41: 7.266666667 | AF41: 2004-02-23 | AG41: 10.85 | AI41: 2007-06-27 | AJ41: 9.93 | AN41: 26 | AO41: 10.87 | AP41: 26 | AQ41: 7.82 | AR41: 26 | AS41: 22.85 | AT41: 2018.065753 | AU41: 9.13 | AV41: 2018.065753 | AW41: 17.76
B42: 2004-01-30 | C42: 13.13333333 | E42: 2004-02-17 | F42: 11.46333333 | H42: 2010-11-23 | I42: 9.85 | K42: 2017-07-05 | L42: 13.29 | N42: 2016-07-13 | O42: 16.51 | Q42: 1990-02-21 | R42: 22.1 | T42: 2015-10-26 | U42: 11.82 | W42: 1990-01-17 | X42: 22.23333333 | Z42: 2004-03-26 | AA42: 51.36666667 | AC42: 1990-01-17 | AD42: 11.1 | AF42: 2004-03-29 | AG42: 37.61666667 | AI42: 2007-06-27 | AJ42: 11.35 | AN42: 44 | AO42: 9.404142286 | AP42: 44 | AQ42: 7.289283583 | AR42: 44 | AS42: 19.2734829 | AT42: 2018.10411 | AU42: 13.06 | AV42: 2018.10411 | AW42: 18.47
B43: 2004-02-23 | C43: 12.67333333 | E43: 2004-03-26 | F43: 14.74333333 | H43: 2010-11-29 | I43: 8.136666667 | K43: 2017-07-20 | L43: 13.23 | N43: 2016-07-26 | O43: 16 | Q43: 1990-03-21 | R43: 13.73333333 | T43: 2015-11-17 | U43: 13.9 | W43: 1990-02-21 | X43: 15.33333333 | Z43: 2004-04-21 | AA43: 142.9666667 | AC43: 1990-02-21 | AD43: 12.03333333 | AF43: 2004-04-29 | AG43: 8.14 | AI43: 2007-07-11 | AJ43: 14.57 | AN43: 73 | AO43: 11.41157886 | AP43: 73 | AQ43: 11.23545456 | AR43: 73 | AS43: 14.69923249 | AT43: 2018.147945 | AU43: 8.13 | AV43: 2018.147945 | AW43: 14.94
B44: 2004-04-29 | C44: 12.21333333 | E44: 2004-04-21 | F44: 17.81333333 | H44: 2010-12-08 | I44: 9.253333333 | K44: 2017-08-01 | L44: 11.42 | N44: 2016-08-09 | O44: 11.31 | Q44: 1990-04-04 | R44: 15.63333333 | T44: 2015-12-02 | U44: 19.8 | W44: 1990-03-14 | X44: 27.5 | Z44: 2004-05-31 | AA44: 175.2333333 | AC44: 1990-03-14 | AD44: 8.043333333 | AF44: 2004-05-24 | AG44: 21.08 | AI44: 2007-07-11 | AJ44: 14.34 | AT44: 2018.263014 | AU44: 9.18 | AV44: 2018.263014 | AW44: 11.61
B45: 2004-05-24 | C45: 14.395 | E45: 2004-05-31 | F45: 31.90666667 | H45: 2010-12-15 | I45: 9.8 | K45: 2017-08-18 | L45: 21.12 | N45: 2016-08-23 | O45: 13.55 | Q45: 1990-04-18 | R45: 18.03333333 | T45: 2015-12-16 | U45: 22.85 | W45: 1990-03-21 | X45: 36.06666667 | Z45: 2004-06-26 | AA45: 18.56666667 | AC45: 1990-03-21 | AD45: 7.71 | AF45: 2004-06-01 | AG45: 14.475 | AI45: 2007-07-11 | AJ45: 13.61 | AT45: 2018.312329 | AU45: 10.17 | AV45: 2018.312329 | AW45: 19.14
B46: 2004-06-01 | C46: 12.6 | E46: 2004-07-09 | F46: 10.26666667 | H46: 2010-12-28 | I46: 8.526666667 | K46: 2017-09-06 | L46: 13.68 | N46: 2016-09-16 | O46: 10.31 | Q46: 1990-04-20 | R46: 19.06666667 | T46: 2016-01-06 | U46: 21.85 | W46: 1990-04-04 | X46: 16.56666667 | Z46: 2004-08-21 | AA46: 13.23333333 | AC46: 1990-04-04 | AD46: 9 | AF46: 2004-06-26 | AG46: 11.16333333 | AI46: 2007-07-25 | AJ46: 10.32 | AT46: 2018.350685 | AU46: 14.12 | AV46: 2018.350685 | AW46: 18.33
B47: 2004-07-09 | C47: 9.24 | E47: 2004-08-21 | F47: 9.543333333 | H47: 2011-01-05 | I47: 12.03666667 | K47: 2017-09-21 | L47: 10.8 | N47: 2016-09-27 | O47: 10.49 | Q47: 1990-04-23 | R47: 19.8 | T47: 2016-01-21 | U47: 23.09 | W47: 1990-04-18 | X47: 15.16666667 | Z47: 2004-10-02 | AA47: 30.4 | AC47: 1990-04-18 | AD47: 9.29 | AF47: 2004-10-12 | AG47: 6.543333333 | AI47: 2007-07-25 | AJ47: 11.46 | AT47: 2018.394521 | AU47: 11.79 | AV47: 2018.394521 | AW47: 18.98
B48: 2004-10-12 | C48: 8.09 | E48: 2004-10-02 | F48: 10.05 | H48: 2011-01-12 | I48: 11.03 | K48: 2017-10-11 | L48: 10.21 | N48: 2016-10-14 | O48: 11.42 | Q48: 1990-04-25 | R48: 23.73333333 | T48: 2016-02-01 | U48: 22.58 | W48: 1990-04-25 | X48: 41.93333333 | Z48: 2004-10-24 | AA48: 6.733333333 | AC48: 1990-04-25 | AD48: 9.433333333 | AF48: 2004-11-28 | AG48: 18.86333333 | AI48: 2007-07-25 | AJ48: 11.87 | AT48: 2018.430137 | AU48: 11.8 | AV48: 2018.430137 | AW48: 17.27
B49: 2004-11-29 | C49: 10.19333333 | E49: 2004-11-26 | F49: 11.09666667 | H49: 2011-01-20 | I49: 18.10666667 | K49: 2017-10-30 | L49: 10.75 | N49: 2016-10-26 | O49: 9.27 | Q49: 1990-04-27 | R49: 25.5 | T49: 2016-03-07 | U49: 29.09 | W49: 1990-05-02 | X49: 26.9 | Z49: 2004-11-28 | AA49: 33.66666667 | AC49: 1990-05-02 | AD49: 7.8 | AF49: 2004-12-22 | AG49: 10.45666667 | AI49: 2007-08-08 | AJ49: 10.77 | AT49: 2018.468493 | AU49: 10.55 | AV49: 2018.468493 | AW49: 17.88
B50: 2004-12-22 | C50: 10.56666667 | E50: 2004-12-18 | F50: 10.44333333 | H50: 2011-02-04 | I50: 18.15 | K50: 2017-11-17 | L50: 10.74 | N50: 2016-11-16 | O50: 8.08 | Q50: 1990-04-30 | R50: 19.96666667 | T50: 2016-03-30 | U50: 17.81 | W50: 1990-05-09 | X50: 28.33333333 | Z50: 2004-12-17 | AA50: 9.233333333 | AC50: 1990-05-09 | AD50: 4.5 | AF50: 2005-05-31 | AG50: 6.916666667 | AI50: 2007-08-08 | AJ50: 9.59 | AT50: 2018.512329 | AU50: 15.53 | AV50: 2018.512329 | AW50: 16.23
B51: 2005-05-31 | C51: 10.05333333 | E51: 2005-08-10 | F51: 12.89 | H51: 2011-02-09 | I51: 16.19333333 | K51: 2017-11-30 | L51: 10.41 | N51: 2016-12-13 | O51: 27.57 | Q51: 1990-05-02 | R51: 17.86666667 | T51: 2016-04-15 | U51: 16.5 | W51: 1990-05-10 | X51: 26.45 | Z51: 2005-02-02 | AA51: 13.56666667 | AC51: 1990-05-10 | AD51: 7.05 | AF51: 2005-06-07 | AG51: 4.403333333 | AI51: 2007-08-08 | AJ51: 11.32 | AT51: 2018.578082 | AU51: 12.3 | AV51: 2018.578082 | AW51: 10.96
B52: 2005-06-07 | C52: 8.163333333 | E52: 2005-09-13 | F52: 11.17 | H52: 2011-02-16 | I52: 12.01 | K52: 2017-12-15 | L52: 10.94 | N52: 2016-12-28 | O52: 18.3 | Q52: 1990-05-04 | R52: 14.26666667 | T52: 2016-04-26 | U52: 20.13 | W52: 1990-05-11 | X52: 23.83333333 | Z52: 2005-08-07 | AA52: 20.06666667 | AC52: 1990-05-11 | AD52: 11.43333333 | AF52: 2005-06-13 | AG52: 8.77 | AI52: 2007-08-22 | AJ52: 11.17 | AT52: 2018.621918 | AU52: 11.54 | AV52: 2018.621918 | AW52: 12.13
B53: 2005-06-13 | C53: 11.82333333 | E53: 2005-10-20 | F53: 11.09 | H53: 2011-02-23 | I53: 12.09333333 | K53: 2018-01-09 | L53: 12.8 | N53: 2017-01-18 | O53: 17.18 | Q53: 1990-05-07 | R53: 13.86666667 | T53: 2016-05-09 | U53: 13.17 | W53: 1990-05-16 | X53: 19.06666667 | Z53: 2005-09-03 | AA53: 12.86666667 | AC53: 1990-05-16 | AD53: 9.266666667 | AF53: 2005-06-20 | AG53: 9.233333333 | AI53: 2007-08-22 | AJ53: 11.39 | AT53: 2018.660274 | AU53: 19.12 | AV53: 2018.70411 | AW53: 10.32
B54: 2005-06-20 | C54: 9.646666667 | E54: 2005-12-01 | F54: 9.38 | H54: 2011-03-08 | I54: 12.77666667 | K54: 2018-01-24 | L54: 15.69 | N54: 2017-01-31 | O54: 12.9 | Q54: 1990-05-09 | R54: 14.26666667 | T54: 2016-05-27 | U54: 14.3 | W54: 1990-06-04 | X54: 19.86666667 | Z54: 2005-10-18 | AA54: 6.5 | AC54: 1990-06-04 | AD54: 11.43333333 | AF54: 2005-06-27 | AG54: 8.56 | AI54: 2007-08-22 | AJ54: 10.51 | AT54: 2018.70411 | AU54: 10.49 | AV54: 2018.742466 | AW54: 10.86
B55: 2005-06-27 | C55: 12.26333333 | E55: 2006-05-16 | F55: 16.58666667 | H55: 2011-03-17 | I55: 12.57333333 | K55: 2018-02-07 | L55: 12.88 | N55: 2017-02-17 | O55: 14.37 | Q55: 1990-05-11 | R55: 15.1 | T55: 2016-06-15 | U55: 36.59 | W55: 1990-06-12 | X55: 21.6 | Z55: 2005-11-07 | AA55: 10.5 | AC55: 1990-06-12 | AD55: 17.265 | AF55: 2005-07-06 | AG55: 8.423333333 | AI55: 2007-09-05 | AJ55: 14.19 | AT55: 2018.742466 | AU55: 9.94 | AV55: 2018.791781 | AW55: 12
B56: 2005-07-06 | C56: 11.95666667 | E56: 2006-06-14 | F56: 10.42333333 | H56: 2011-03-22 | I56: 10.09 | K56: 2018-02-23 | L56: 11.86 | N56: 2017-02-28 | O56: 11.1 | Q56: 1990-05-14 | R56: 13.4 | T56: 2016-06-28 | U56: 17.28 | W56: 1990-06-13 | X56: 25.36666667 | Z56: 2005-11-29 | AA56: 11.56666667 | AC56: 1990-06-13 | AD56: 12.85 | AF56: 2005-07-11 | AG56: 9.543333333 | AI56: 2007-09-05 | AJ56: 13.73 | AT56: 2018.791781 | AU56: 10.37 | AV56: 2018.832877 | AW56: 10.19
B57: 2005-07-11 | C57: 13.12333333 | E57: 2006-07-12 | F57: 11.02333333 | H57: 2011-03-31 | I57: 24.36666667 | K57: 2018-04-06 | L57: 9.12 | N57: 2017-03-15 | O57: 14.76 | Q57: 1990-05-16 | R57: 17.86666667 | T57: 2016-07-13 | U57: 21.14 | W57: 1990-06-17 | X57: 32.7 | Z57: 2006-05-16 | AA57: 8.533333333 | AC57: 1990-06-17 | AD57: 12.05 | AF57: 2005-07-19 | AG57: 8.866666667 | AI57: 2007-09-05 | AJ57: 15.17 | AT57: 2018.832877 | AU57: 7.23 | AV57: 2018.871233 | AW57: 11.82
B58: 2005-07-19 | C58: 12.47 | E58: 2006-09-21 | F58: 8.966666667 | H58: 2011-04-06 | I58: 11.59666667 | K58: 2018-04-24 | L58: 16.83 | N58: 2017-03-29 | O58: 14.61 | Q58: 1990-05-18 | R58: 16.13333333 | T58: 2016-07-26 | U58: 22.51 | W58: 1990-06-23 | X58: 28.9 | Z58: 2006-06-12 | AA58: 8.6 | AC58: 1990-06-23 | AD58: 12.55 | AF58: 2005-07-25 | AG58: 8.713333333 | AI58: 2007-09-26 | AJ58: 9.91 | AT58: 2018.871233 | AU58: 9.2 | AV58: 2018.915068 | AW58: 8.62
B59: 2005-07-25 | C59: 12.58666667 | E59: 2006-10-23 | F59: 9.326666667 | H59: 2011-04-13 | I59: 12.92333333 | K59: 2018-05-08 | L59: 15.62 | N59: 2017-04-18 | O59: 19.66 | Q59: 1990-05-21 | R59: 16.3 | T59: 2016-08-09 | U59: 21.12 | W59: 1990-06-27 | X59: 46.5 | Z59: 2006-07-11 | AA59: 16.7 | AC59: 1990-06-27 | AD59: 8.533333333 | AF59: 2005-08-02 | AG59: 8.926666667 | AI59: 2007-09-26 | AJ59: 10.5 | AT59: 2018.915068 | AU59: 6.6 | AV59: 2018.947945 | AW59: 14.43
B60: 2005-08-02 | C60: 12.54666667 | E60: 2010-11-16 | F60: 6.763333333 | H60: 2011-04-21 | I60: 12.83 | K60: 2018-05-24 | L60: 11.67 | N60: 2017-05-03 | O60: 18.09 | Q60: 1990-05-23 | R60: 16.38333333 | T60: 2016-08-23 | U60: 23.85 | W60: 1990-07-11 | X60: 26.16666667 | Z60: 2006-09-19 | AA60: 12.3 | AC60: 1990-07-11 | AD60: 8.776666667 | AF60: 2005-08-07 | AG60: 7.946666667 | AI60: 2007-09-26 | AJ60: 9.87 | AT60: 2018.947945 | AU60: 8.31 | AV60: 2018.989041 | AW60: 15.35
B61: 2005-08-08 | C61: 15.25 | E61: 2010-11-23 | F61: 8.21 | H61: 2011-04-27 | I61: 17.65666667 | K61: 2018-06-06 | L61: 16.46 | N61: 2017-05-22 | O61: 16.8 | Q61: 1990-05-25 | R61: 14.8 | T61: 2016-09-16 | U61: 18.67 | W61: 1990-07-25 | X61: 20.46666667 | Z61: 2006-10-24 | AA61: 6.8 | AC61: 1990-07-25 | AD61: 8.766666667 | AF61: 2005-08-08 | AG61: 10.50666667 | AI61: 2007-10-10 | AJ61: 11.94 | AT61: 2018.989041 | AU61: 8.31 | AV61: 2019.049315 | AW61: 16.58
B62: 2005-08-10 | C62: 10.71 | E62: 2010-11-29 | F62: 7.753333333 | H62: 2011-05-04 | I62: 11.14 | K62: 2018-06-20 | L62: 14.51 | N62: 2017-06-06 | O62: 18 | Q62: 1990-05-30 | R62: 15.86666667 | T62: 2016-09-27 | U62: 17.19 | W62: 1990-08-08 | X62: 13.66666667 | Z62: 2013-03-24 | AA62: 17.96666667 | AC62: 1990-08-08 | AD62: 5 | AF62: 2005-08-15 | AG62: 7.753333333 | AI62: 2007-10-10 | AJ62: 13.14 | AT62: 2019.049315 | AU62: 12.08 | AV62: 2019.09589 | AW62: 28.41
B63: 2005-08-15 | C63: 12.15333333 | E63: 2010-12-08 | F63: 10.2 | H63: 2011-05-11 | I63: 57.64666667 | K63: 2018-07-06 | L63: 14.83 | N63: 2017-06-19 | O63: 19.42 | Q63: 1990-06-01 | R63: 13.36666667 | T63: 2016-10-14 | U63: 17.87 | W63: 1990-08-24 | X63: 21.3 | Z63: 2013-05-22 | AA63: 14.66666667 | AC63: 1990-08-24 | AD63: 6.4 | AF63: 2005-08-22 | AG63: 7.476666667 | AI63: 2007-10-10 | AJ63: 12.13 | AT63: 2019.09589 | AU63: 10.12 | AV63: 2019.158904 | AW63: 20.43
B64: 2005-08-22 | C64: 9.773333333 | E64: 2010-12-15 | F64: 9.3 | H64: 2011-05-17 | I64: 10.38666667 | K64: 2018-07-30 | L64: 12.01 | N64: 2017-07-05 | O64: 13.23 | Q64: 1990-06-04 | R64: 12.4 | T64: 2016-10-26 | U64: 12.4 | W64: 1990-09-05 | X64: 19.73333333 | Z64: 2013-06-05 | AA64: 20.43333333 | AC64: 1990-09-05 | AD64: 6.666666667 | AF64: 2005-08-29 | AG64: 7.776666667 | AI64: 2007-10-24 | AJ64: 15.27 | AT64: 2019.158904 | AU64: 9.59 | AV64: 2019.19726 | AW64: 20.31
B65: 2005-08-29 | C65: 9.433333333 | E65: 2010-12-28 | F65: 8.966666667 | H65: 2011-05-25 | I65: 12.58666667 | K65: 2018-08-15 | L65: 13.12 | N65: 2017-07-20 | O65: 12.81 | Q65: 1990-06-13 | R65: 21.83333333 | T65: 2016-11-16 | U65: 13.11 | W65: 1990-09-12 | X65: 26.63333333 | Z65: 2013-06-18 | AA65: 22.36666667 | AC65: 1990-09-12 | AD65: 6.966666667 | AF65: 2005-09-04 | AG65: 8.216666667 | AI65: 2007-10-24 | AJ65: 15.27 | AT65: 2019.19726 | AU65: 9.55 | AV65: 2019.232877 | AW65: 14.49
B66: 2005-09-04 | C66: 11.21333333 | E66: 2011-01-05 | F66: 12.26666667 | H66: 2011-06-02 | I66: 9.956666667 | K66: 2018-09-14 | L66: 10.84 | N66: 2017-08-01 | O66: 13.15 | Q66: 1990-06-27 | R66: 18.96666667 | T66: 2016-12-13 | U66: 23.28 | W66: 1990-09-14 | X66: 27.45 | Z66: 2013-07-03 | AA66: 39.2 | AC66: 1990-09-14 | AD66: 7.6 | AF66: 2005-09-06 | AG66: 11.93333333 | AI66: 2007-10-24 | AJ66: 7.26 | AT66: 2019.232877 | AU66: 8.03 | AV66: 2019.279452 | AW66: 24.32
B67: 2005-09-06 | C67: 9.433333333 | E67: 2011-01-12 | F67: 8.556666667 | H67: 2011-06-08 | I67: 13.58333333 | K67: 2018-09-28 | L67: 11.15 | N67: 2017-08-18 | O67: 14.5 | Q67: 1990-07-11 | R67: 17.4 | T67: 2016-12-28 | U67: 29.17 | W67: 1990-09-19 | X67: 16.7 | Z67: 2013-07-07 | AA67: 35.03333333 | AC67: 1990-09-19 | AD67: 7.666666667 | AF67: 2005-09-12 | AG67: 6.626666667 | AI67: 2007-11-07 | AJ67: 6.09 | AT67: 2019.279452 | AU67: 11.55 | AV67: 2019.328767 | AW67: 16.29
B68: 2005-09-12 | C68: 9.12 | E68: 2011-01-20 | F68: 14.65333333 | H68: 2011-06-14 | I68: 10.59333333 | K68: 2018-10-16 | L68: 8.86 | N68: 2017-09-06 | O68: 8.97 | Q68: 1990-07-25 | R68: 13.73333333 | T68: 2017-01-18 | U68: 21.84 | W68: 1990-10-05 | X68: 28.56666667 | Z68: 2023-08-30 | AA68: 12.3 | AC68: 1990-10-05 | AD68: 6.633333333 | AF68: 2005-09-19 | AG68: 6.116666667 | AI68: 2007-11-07 | AJ68: 5.54 | AT68: 2019.328767 | AU68: 10.9 | AV68: 2019.367123 | AW68: 14.95
B69: 2005-09-19 | C69: 7.593333333 | E69: 2011-02-04 | F69: 11.98 | H69: 2011-06-22 | I69: 28.65666667 | K69: 2018-10-31 | L69: 7.93 | N69: 2017-09-21 | O69: 7.83 | Q69: 1990-08-08 | R69: 10.96666667 | T69: 2017-01-31 | U69: 19.58 | W69: 1990-10-17 | X69: 12.43333333 | Z69: 2023-09-15 | AA69: 12.71 | AC69: 1990-10-17 | AD69: 9.133333333 | AF69: 2005-09-26 | AG69: 7.196666667 | AI69: 2007-11-07 | AJ69: 5.45 | AT69: 2019.367123 | AU69: 9.98 | AV69: 2019.413699 | AW69: 20.14
B70: 2005-09-26 | C70: 7.41 | E70: 2011-02-09 | F70: 15.16 | H70: 2011-06-29 | I70: 8.77 | K70: 2018-11-14 | L70: 10.48 | N70: 2017-10-11 | O70: 7.3 | Q70: 1990-08-24 | R70: 11.33333333 | T70: 2017-02-17 | U70: 20.9 | W70: 1990-10-31 | X70: 9.866666667 | Z70: 2023-11-07 | AA70: 5.27 | AC70: 1990-10-31 | AD70: 8.9 | AF70: 2005-10-03 | AG70: 7.393333333 | AI70: 2007-11-19 | AJ70: 6.51 | AT70: 2019.413699 | AU70: 14.7 | AV70: 2019.446575 | AW70: 19.94
B71: 2005-10-03 | C71: 7.87 | E71: 2011-02-16 | F71: 11.39666667 | H71: 2011-07-06 | I71: 13.50666667 | K71: 2018-11-30 | L71: 9.84 | N71: 2017-10-30 | O71: 11.7 | Q71: 1990-09-05 | R71: 11.96666667 | T71: 2017-02-28 | U71: 33.47 | W71: 1990-11-16 | X71: 14.03333333 | Z71: 2023-11-22 | AA71: 5.57 | AC71: 1990-11-16 | AD71: 9.066666667 | AF71: 2005-10-10 | AG71: 7.166666667 | AI71: 2007-11-19 | AJ71: 6.96 | AT71: 2019.446575 | AU71: 15.27 | AV71: 2019.523288 | AW71: 21.56
B72: 2005-10-10 | C72: 8.906666667 | E72: 2011-02-23 | F72: 10.91 | H72: 2011-07-13 | I72: 12.13 | K72: 2018-12-12 | L72: 10.73 | N72: 2017-11-17 | O72: 10.09 | Q72: 1990-09-12 | R72: 11 | T72: 2017-03-15 | U72: 15.05 | W72: 1990-12-05 | X72: 27 | Z72: 2023-12-06 | AA72: 3.63 | AC72: 1990-12-05 | AD72: 10.49 | AF72: 2005-10-14 | AG72: 6.973333333 | AI72: 2007-11-19 | AJ72: 6.66 | AT72: 2019.482192 | AU72: 19.26 | AV72: 2019.561644 | AW72: 18.56
B73: 2005-10-14 | C73: 8.606666667 | E73: 2011-03-08 | F73: 22.49666667 | H73: 2011-07-20 | I73: 12.44666667 | K73: 2018-12-27 | L73: 11.77 | N73: 2017-11-30 | O73: 9.28 | Q73: 1990-09-19 | R73: 11.8 | T73: 2017-03-29 | U73: 16.7 | W73: 1991-01-09 | X73: 10.16666667 | Z73: 2023-12-20 | AA73: 9.87 | AC73: 1991-01-09 | AD73: 8.533333333 | AF73: 2005-10-31 | AG73: 5.726666667 | AI73: 2007-12-05 | AJ73: 8.21 | AT73: 2019.523288 | AU73: 14.4 | AV73: 2019.6 | AW73: 12.4
B74: 2005-10-31 | C74: 10.77666667 | E74: 2011-03-17 | F74: 11.36666667 | H74: 2011-07-29 | I74: 47.09 | K74: 2019-01-18 | L74: 13.23 | N74: 2017-12-15 | O74: 36.62 | Q74: 1990-10-05 | R74: 9.4 | T74: 2017-04-18 | U74: 14.64 | W74: 1991-02-08 | X74: 15.5 | Z74: 2024-01-05 | AA74: 5.7 | AC74: 1992-08-04 | AD74: 6.666666667 | AF74: 2005-11-07 | AG74: 6.776666667 | AI74: 2007-12-05 | AJ74: 8.23 | AT74: 2019.561644 | AU74: 12.61 | AV74: 2019.663014 | AW74: 7.68
B75: 2005-11-07 | C75: 11.30333333 | E75: 2011-03-22 | F75: 10.77666667 | H75: 2011-08-03 | I75: 21.10666667 | K75: 2019-02-04 | L75: 24.66 | N75: 2018-01-09 | O75: 34.59 | Q75: 1990-10-17 | R75: 12.03333333 | T75: 2017-05-03 | U75: 16.83 | W75: 1991-02-19 | X75: 14.4 | Z75: 2024-01-26 | AA75: 7.82 | AC75: 1992-08-18 | AD75: 6.866666667 | AF75: 2005-11-30 | AG75: 7.013333333 | AI75: 2007-12-05 | AJ75: 7.11 | AT75: 2019.6 | AU75: 12.46 | AV75: 2019.69589 | AW75: 11.49
B76: 2005-11-30 | C76: 8.686666667 | E76: 2011-03-31 | F76: 24.06 | H76: 2011-08-10 | I76: 14.90333333 | K76: 2019-02-27 | L76: 12.39 | N76: 2018-01-24 | O76: 19.06 | Q76: 1990-10-31 | R76: 7.633333333 | T76: 2017-05-22 | U76: 15.23 | W76: 1991-03-05 | X76: 15.06666667 | Z76: 2024-02-13 | AA76: 7.289283583 | AC76: 1992-09-01 | AD76: 6.4 | AF76: 2006-05-08 | AG76: 9.393333333 | AI76: 2007-12-19 | AJ76: 11.23 | AT76: 2019.663014 | AU76: 9.17 | AV76: 2019.739726 | AW76: 12.76
B77: 2006-05-15 | C77: 12.25666667 | E77: 2011-04-06 | F77: 13.14333333 | H77: 2011-08-17 | I77: 13.4 | K77: 2019-03-13 | L77: 23.71 | N77: 2018-02-07 | O77: 20.44 | Q77: 1990-11-16 | R77: 9.3 | T77: 2017-06-06 | U77: 13.74 | W77: 1991-03-19 | X77: 15.96666667 | Z77: 2024-03-13 | AA77: 11.23545456 | AC77: 1992-09-22 | AD77: 6.3 | AF77: 2006-05-15 | AG77: 12.93 | AI77: 2007-12-19 | AJ77: 9.75 | AT77: 2019.739726 | AU77: 9.37 | AV77: 2019.789041 | AW77: 10.03
B78: 2006-06-14 | C78: 10.56666667 | E78: 2011-04-13 | F78: 12.12 | H78: 2011-08-24 | I78: 14.61 | K78: 2019-03-26 | L78: 13.58 | N78: 2018-02-23 | O78: 11.15 | Q78: 1990-11-21 | R78: 11.46666667 | T78: 2017-06-19 | U78: 16.06 | W78: 1991-04-02 | X78: 13.56666667 | AC78: 1992-09-29 | AD78: 7.133333333 | AF78: 2006-05-30 | AG78: 8.623333333 | AI78: 2007-12-19 | AJ78: 6.07 | AT78: 2019.789041 | AU78: 10.09 | AV78: 2019.827397 | AW78: 12.15
B79: 2006-07-12 | C79: 10.17666667 | E79: 2011-04-21 | F79: 11.79333333 | H79: 2011-09-01 | I79: 9.943333333 | K79: 2019-04-30 | L79: 13.93 | N79: 2018-04-06 | O79: 11.96 | Q79: 1990-12-05 | R79: 10.06666667 | T79: 2017-07-05 | U79: 13.29 | W79: 1991-04-09 | X79: 25.7 | AC79: 1992-10-06 | AD79: 5.8 | AF79: 2006-06-05 | AG79: 7.363333333 | AI79: 2008-01-03 | AJ79: 12.07 | AT79: 2019.827397 | AU79: 9.89 | AV79: 2019.868493 | AW79: 13.85
B80: 2006-09-21 | C80: 7.91 | E80: 2011-04-27 | F80: 14.37333333 | H80: 2011-09-07 | I80: 7.546666667 | K80: 2019-05-14 | L80: 12.59 | N80: 2018-04-24 | O80: 15.9 | Q80: 1991-01-09 | R80: 18.23333333 | T80: 2017-07-20 | U80: 13.82 | W80: 1991-04-16 | X80: 15.26666667 | AC80: 1992-10-13 | AD80: 8.5 | AF80: 2006-06-13 | AG80: 7.951666667 | AI80: 2008-01-03 | AJ80: 11.33 | AT80: 2019.868493 | AU80: 9.52 | AV80: 2019.90411 | AW80: 13.69
B81: 2006-10-23 | C81: 8.043333333 | E81: 2011-05-04 | F81: 11.27 | H81: 2011-09-13 | I81: 7.99 | K81: 2019-05-31 | L81: 16.15 | N81: 2018-05-08 | O81: 16.08 | Q81: 1991-02-01 | R81: 20.2 | T81: 2017-08-01 | U81: 17.2 | W81: 1991-05-03 | X81: 16.55 | AC81: 1992-10-21 | AD81: 10.5 | AF81: 2006-06-20 | AG81: 10.33 | AI81: 2008-01-03 | AJ81: 13.31 | AT81: 2019.90411 | AU81: 8.31 | AV81: 2019.950685 | AW81: 16.33
B82: 2007-06-25 | C82: 11.19 | E82: 2011-05-17 | F82: 10.06 | H82: 2011-09-21 | I82: 9.476666667 | K82: 2019-06-12 | L82: 17.52 | N82: 2018-05-24 | O82: 16.08 | Q82: 1991-02-06 | R82: 18.5 | T82: 2017-08-18 | U82: 21.72 | W82: 1991-05-14 | X82: 27.83333333 | AC82: 1992-10-27 | AD82: 8.343333333 | AF82: 2006-06-26 | AG82: 8.616666667 | AI82: 2008-01-17 | AJ82: 13.32 | AT82: 2019.950685 | AU82: 9.45 | AV82: 2020.024658 | AW82: 21.14
B83: 2007-06-27 | C83: 11.77333333 | E83: 2011-05-25 | F83: 11.60333333 | H83: 2011-09-28 | I83: 9.406666667 | K83: 2019-07-10 | L83: 18.65 | N83: 2018-06-06 | O83: 16.86 | Q83: 1991-02-08 | R83: 17.13333333 | T83: 2017-09-06 | U83: 25.24 | W83: 1991-05-28 | X83: 31.23333333 | AC83: 1992-11-04 | AD83: 9.8 | AF83: 2006-07-06 | AG83: 11.94 | AI83: 2008-01-17 | AJ83: 11.86 | AT83: 2020.024658 | AU83: 9.63 | AV83: 2020.065753 | AW83: 18.37
B84: 2007-07-01 | C84: 8.86 | E84: 2011-06-02 | F84: 11.56666667 | H84: 2011-10-05 | I84: 11.21 | K84: 2019-07-24 | L84: 13.27 | N84: 2018-06-20 | O84: 16.19 | Q84: 1991-02-19 | R84: 15.36666667 | T84: 2017-09-21 | U84: 17.11 | W84: 1991-06-11 | X84: 17.4 | AC84: 1992-11-12 | AD84: 8.976666667 | AF84: 2006-07-10 | AG84: 13.29333333 | AI84: 2008-01-17 | AJ84: 11.07 | AT84: 2020.065753 | AU84: 9.76 | AV84: 2020.10411 | AW84: 20.72
B85: 2007-07-09 | C85: 14.30666667 | E85: 2011-06-08 | F85: 9.93 | H85: 2011-10-12 | I85: 19.15333333 | K85: 2019-08-07 | L85: 12.1 | N85: 2018-07-06 | O85: 18.09 | Q85: 1991-03-05 | R85: 20.73333333 | T85: 2017-10-11 | U85: 15.18 | W85: 1991-06-25 | X85: 16.56666667 | AC85: 1992-11-18 | AD85: 8.566666667 | AF85: 2006-07-12 | AG85: 8.84 | AI85: 2008-02-01 | AJ85: 16.75 | AT85: 2020.10411 | AU85: 10.41 | AV85: 2020.158904 | AW85: 18.75
B86: 2007-07-11 | C86: 12.14333333 | E86: 2011-06-14 | F86: 8.586666667 | H86: 2011-10-21 | I86: 10.41 | K86: 2019-08-30 | L86: 10.43 | N86: 2018-07-30 | O86: 11.86 | Q86: 1991-03-19 | R86: 19.16666667 | T86: 2017-10-30 | U86: 14.66 | W86: 1991-07-09 | X86: 45.93333333 | AC86: 1992-11-24 | AD86: 8.433333333 | AF86: 2006-07-19 | AG86: 8.55 | AI86: 2008-02-01 | AJ86: 18.04 | AT86: 2020.158904 | AU86: 9.75 | AV86: 2020.194521 | AW86: 20.01
B87: 2007-07-17 | C87: 10.83333333 | E87: 2011-06-22 | F87: 14.67333333 | H87: 2011-10-26 | I87: 11.77 | K87: 2019-09-27 | L87: 16.15 | N87: 2018-08-15 | O87: 12.18 | Q87: 1991-04-02 | R87: 17.63333333 | T87: 2017-11-17 | U87: 15.44 | W87: 1991-07-23 | X87: 40.9 | AC87: 1992-12-01 | AD87: 5.533333333 | AF87: 2006-08-01 | AG87: 9.17 | AI87: 2008-02-01 | AJ87: 17.65 | AT87: 2020.194521 | AU87: 10.89 | AV87: 2020.238356 | AW87: 15.82
B88: 2007-07-23 | C88: 11.22 | E88: 2011-06-29 | F88: 9.006666667 | H88: 2011-11-04 | I88: 7.53 | K88: 2019-10-15 | L88: 11.81 | N88: 2018-09-14 | O88: 9.97 | Q88: 1991-04-16 | R88: 21.8 | T88: 2017-11-30 | U88: 18.51 | W88: 1991-08-06 | X88: 26.66666667 | AC88: 1992-12-08 | AD88: 6.59 | AF88: 2006-08-07 | AG88: 8.94 | AI88: 2008-02-14 | AJ88: 19.21 | AT88: 2020.238356 | AU88: 7.92 | AV88: 2020.268493 | AW88: 17.54
B89: 2007-07-25 | C89: 11.10666667 | E89: 2011-07-06 | F89: 13.40666667 | H89: 2013-08-02 | I89: 23.76 | K89: 2019-10-29 | L89: 13.99 | N89: 2018-09-28 | O89: 9.76 | Q89: 1991-05-03 | R89: 16.96666667 | T89: 2017-12-15 | U89: 16.85 | W89: 1991-08-20 | X89: 29.26666667 | AC89: 1992-12-15 | AD89: 9.533333333 | AF89: 2006-08-14 | AG89: 7.363333333 | AI89: 2008-02-14 | AJ89: 21.38 | AT89: 2020.268493 | AU89: 13.04 | AV89: 2020.315068 | AW89: 16.84
B90: 2007-07-30 | C90: 9.82 | E90: 2011-07-13 | F90: 12.04666667 | H90: 2013-08-16 | I90: 12.81333333 | K90: 2019-11-13 | L90: 9.22 | N90: 2018-10-16 | O90: 10.43 | Q90: 1991-05-14 | R90: 19 | T90: 2018-01-09 | U90: 21.27 | W90: 1991-09-03 | X90: 35 | AC90: 1992-12-22 | AD90: 8.2 | AF90: 2006-08-28 | AG90: 6.343333333 | AI90: 2008-02-14 | AJ90: 19.05 | AT90: 2020.315068 | AU90: 11.09 | AV90: 2020.372603 | AW90: 16.42
B91: 2007-08-06 | C91: 11.45333333 | E91: 2011-07-20 | F91: 9.61 | H91: 2013-09-05 | I91: 12.42333333 | K91: 2019-11-26 | L91: 12.86 | N91: 2018-10-31 | O91: 8.86 | Q91: 1991-05-28 | R91: 26.66666667 | T91: 2018-01-24 | U91: 20.12 | W91: 1991-09-17 | X91: 29 | AC91: 1993-01-12 | AD91: 6.666666667 | AF91: 2006-09-11 | AG91: 6.31 | AI91: 2008-03-05 | AJ91: 19.5 | AT91: 2020.372603 | AU91: 12.01 | AV91: 2020.410959 | AW91: 20.07
B92: 2007-08-08 | C92: 9.693333333 | E92: 2011-07-29 | F92: 19.49666667 | H92: 2013-09-27 | I92: 12.99666667 | K92: 2019-12-13 | L92: 15.33 | N92: 2018-11-14 | O92: 13.68 | Q92: 1991-06-11 | R92: 19.06666667 | T92: 2018-02-07 | U92: 14.96 | W92: 1991-10-01 | X92: 17.3 | AC92: 1993-01-26 | AD92: 6.6 | AF92: 2006-09-18 | AG92: 9.336666667 | AI92: 2008-03-05 | AJ92: 20.7 | AT92: 2020.410959 | AU92: 15.03 | AV92: 2020.449315 | AW92: 19.29
B93: 2007-08-13 | C93: 12.28 | E93: 2011-08-03 | F93: 15.23 | H93: 2013-10-09 | I93: 13.67333333 | K93: 2020-01-09 | L93: 15.86 | N93: 2018-11-30 | O93: 9.95 | Q93: 1991-06-25 | R93: 14.13333333 | T93: 2018-02-23 | U93: 22.17 | W93: 1991-10-15 | X93: 9.7 | AC93: 1993-02-09 | AD93: 7.066666667 | AF93: 2006-09-21 | AG93: 6.286666667 | AI93: 2008-03-05 | AJ93: 16.65 | AT93: 2020.449315 | AU93: 13.45 | AV93: 2020.564384 | AW93: 16.96
B94: 2007-08-20 | C94: 12.35 | E94: 2011-08-10 | F94: 16.97333333 | H94: 2013-10-23 | I94: 12.70333333 | K94: 2020-01-24 | L94: 20.6 | N94: 2018-12-12 | O94: 16.22 | Q94: 1991-07-09 | R94: 14.93333333 | T94: 2018-04-06 | U94: 13.7 | W94: 1991-11-05 | X94: 19.83333333 | AC94: 1993-02-23 | AD94: 8.043333333 | AF94: 2006-09-25 | AG94: 5.88 | AI94: 2008-03-19 | AJ94: 4.96 | AT94: 2020.526027 | AU94: 18.69 | AV94: 2020.60274 | AW94: 12.59
B95: 2007-08-22 | C95: 9.856666667 | E95: 2011-08-17 | F95: 14.09 | H95: 2013-11-19 | I95: 12.28333333 | K95: 2020-02-07 | L95: 19.9 | N95: 2018-12-27 | O95: 11.08 | Q95: 1991-07-23 | R95: 19.13333333 | T95: 2018-04-24 | U95: 14.74 | W95: 1991-11-19 | X95: 12.83333333 | AC95: 1993-03-09 | AD95: 7.233333333 | AF95: 2006-10-02 | AG95: 16.16 | AI95: 2008-03-19 | AJ95: 4.95 | AT95: 2020.564384 | AU95: 11.76 | AV95: 2020.709589 | AW95: 11.76
B96: 2007-08-27 | C96: 11.46666667 | E96: 2011-08-24 | F96: 15.26666667 | H96: 2013-12-13 | I96: 28.91333333 | K96: 2020-02-27 | L96: 18.4 | N96: 2019-01-18 | O96: 19.24 | Q96: 1991-08-06 | R96: 12 | T96: 2018-05-08 | U96: 10.43 | W96: 1991-12-10 | X96: 13.43333333 | AC96: 1993-03-23 | AD96: 6.166666667 | AF96: 2006-10-10 | AG96: 4.49 | AI96: 2008-04-02 | AJ96: 20.83 | AT96: 2020.60274 | AU96: 12.7 | AV96: 2020.747945 | AW96: 12.02
B97: 2007-09-04 | C97: 8.81 | E97: 2011-09-01 | F97: 8.95 | H97: 2016-08-09 | I97: 13.75 | K97: 2020-03-11 | L97: 21.8 | N97: 2019-02-04 | O97: 25.64 | Q97: 1991-08-20 | R97: 9.933333333 | T97: 2018-05-24 | U97: 9.12 | W97: 1992-01-17 | X97: 9.766666667 | AC97: 1993-04-21 | AD97: 8.233333333 | AF97: 2006-10-24 | AG97: 6.41 | AI97: 2008-04-02 | AJ97: 21.84 | AT97: 2020.709589 | AU97: 10.09 | AV97: 2020.789041 | AW97: 12.64
B98: 2007-09-05 | C98: 8.113333333 | E98: 2011-09-07 | F98: 8.64 | H98: 2016-09-16 | I98: 12.58 | K98: 2020-03-27 | L98: 16.74 | N98: 2019-02-27 | O98: 23.35 | Q98: 1991-09-03 | R98: 13.83333333 | T98: 2018-06-06 | U98: 10.05 | W98: 1992-01-28 | X98: 11.3 | AC98: 1993-05-04 | AD98: 10.86666667 | AF98: 2007-03-24 | AG98: 11.84333333 | AI98: 2008-04-02 | AJ98: 21.79 | AT98: 2020.747945 | AU98: 9.07 | AV98: 2020.843836 | AW98: 11.18
B99: 2007-09-10 | C99: 11.96 | E99: 2011-09-13 | F99: 8.13 | H99: 2016-09-27 | I99: 11.16 | K99: 2020-04-07 | L99: 18.75 | N99: 2019-03-13 | O99: 17.8 | Q99: 1991-09-17 | R99: 15.5 | T99: 2018-06-20 | U99: 10.38 | W99: 1992-02-18 | X99: 17.9 | AC99: 1993-05-18 | AD99: 7.3 | AF99: 2007-05-14 | AG99: 16.24666667 | AI99: 2008-04-16 | AJ99: 11 | AT99: 2020.789041 | AU99: 8.42 | AV99: 2020.887671 | AW99: 11.69
B100: 2007-09-17 | C100: 9.85 | E100: 2011-09-21 | F100: 9.266666667 | H100: 2016-10-14 | I100: 12.4 | K100: 2020-04-24 | L100: 13.76 | N100: 2019-03-26 | O100: 11.89 | Q100: 1991-10-15 | R100: 6.033333333 | T100: 2018-07-06 | U100: 15.12 | W100: 1992-03-13 | X100: 14.83333333 | AC100: 1993-06-01 | AD100: 7.8 | AF100: 2007-05-21 | AG100: 5.093333333 | AI100: 2008-04-16 | AJ100: 11.1 | AT100: 2020.843836 | AU100: 8.69 | AV100: 2020.928767 | AW100: 10.65
B101: 2007-09-24 | C101: 30.28333333 | E101: 2011-09-28 | F101: 8.165 | H101: 2016-10-26 | I101: 10.5 | K101: 2020-05-15 | L101: 13.06 | N101: 2019-04-12 | O101: 17.36 | Q101: 1991-11-05 | R101: 9.266666667 | T101: 2018-07-30 | U101: 15.1 | W101: 1992-04-09 | X101: 20.06666667 | AC101: 1993-06-15 | AD101: 9.566666667 | AF101: 2007-05-29 | AG101: 5.546666667 | AI101: 2008-04-16 | AJ101: 10.84 | AT101: 2020.887671 | AU101: 7.81 | AV101: 2020.964384 | AW101: 13.9
B102: 2007-09-26 | C102: 9.64 | E102: 2011-10-05 | F102: 10.32333333 | H102: 2016-11-16 | I102: 7.96 | K102: 2020-05-29 | L102: 18.22 | N102: 2019-04-30 | O102: 15.14 | Q102: 1991-11-19 | R102: 12.16666667 | T102: 2018-08-15 | U102: 13.58 | W102: 1992-04-14 | X102: 11.8 | AC102: 1993-06-29 | AD102: 6.166666667 | AF102: 2007-06-11 | AG102: 8.003333333 | AI102: 2008-04-30 | AJ102: 9.84 | AT102: 2020.928767 | AU102: 8.04 | AV102: 2021.013699 | AW102: 16.28
B103: 2007-10-01 | C103: 9.176666667 | E103: 2011-10-12 | F103: 16.50666667 | H103: 2016-12-13 | I103: 9.24 | K103: 2020-06-12 | L103: 18.54 | N103: 2019-05-14 | O103: 13.8 | Q103: 1991-12-10 | R103: 14.03333333 | T103: 2018-08-29 | U103: 28.59 | W103: 1992-04-28 | X103: 14.76666667 | AC103: 1993-07-13 | AD103: 4.556666667 | AF103: 2007-06-18 | AG103: 8.076666667 | AI103: 2008-04-30 | AJ103: 11.28 | AT103: 2020.964384 | AU103: 15.99 | AV103: 2021.057534 | AW103: 17.25
B104: 2007-10-10 | C104: 7.583333333 | E104: 2011-10-21 | F104: 13.23333333 | H104: 2016-12-28 | I104: 11.82 | K104: 2020-07-24 | L104: 10.32 | N104: 2019-05-31 | O104: 19.66 | Q104: 1992-01-17 | R104: 17.53333333 | T104: 2018-09-14 | U104: 14.51 | W104: 1992-05-12 | X104: 39.56666667 | AC104: 1993-07-27 | AD104: 7.066666667 | AF104: 2007-06-25 | AG104: 8.853333333 | AI104: 2008-04-30 | AJ104: 9.34 | AT104: 2021.013699 | AU104: 9.9 | AV104: 2021.09589 | AW104: 19.68
B105: 2007-10-15 | C105: 10.61 | E105: 2011-10-26 | F105: 11.18666667 | H105: 2017-01-18 | I105: 10.52 | K105: 2020-08-07 | L105: 12.88 | N105: 2019-06-12 | O105: 18.18 | Q105: 1992-01-28 | R105: 16.8 | T105: 2018-09-28 | U105: 15.26 | W105: 1992-05-26 | X105: 14.26666667 | AC105: 1993-08-10 | AD105: 5.6 | AF105: 2011-11-04 | AG105: 7.73 | AI105: 2008-05-15 | AJ105: 7.31 | AT105: 2021.057534 | AU105: 10.47 | AV105: 2021.150685 | AW105: 23.91
B106: 2007-10-22 | C106: 7.976666667 | E106: 2011-11-04 | F106: 7.556666667 | H106: 2017-01-31 | I106: 9.7 | K106: 2020-09-15 | L106: 13.5 | N106: 2019-07-10 | O106: 19.43 | Q106: 1992-02-18 | R106: 14.73333333 | T106: 2018-10-16 | U106: 11.88 | W106: 1992-06-09 | X106: 16.06666667 | AC106: 1993-08-24 | AD106: 3.9 | AF106: 2013-08-02 | AG106: 14.53333333 | AI106: 2008-05-15 | AJ106: 7.27 | AT106: 2021.09589 | AU106: 10.47 | AV106: 2021.186301 | AW106: 19.46
B107: 2007-10-24 | C107: 8.383333333 | E107: 2013-08-02 | F107: 14.53333333 | H107: 2017-02-17 | I107: 12.44 | K107: 2020-09-29 | L107: 12.71 | N107: 2019-07-24 | O107: 15.92 | Q107: 1992-03-13 | R107: 20.83333333 | T107: 2018-10-31 | U107: 10.89 | W107: 1992-06-19 | X107: 24.76666667 | AC107: 1993-09-07 | AD107: 4.266666667 | AF107: 2013-08-16 | AG107: 12.07333333 | AI107: 2008-05-15 | AJ107: 8.21 | AT107: 2021.150685 | AU107: 10.87 | AV107: 2021.224658 | AW107: 17.02
B108: 2007-10-29 | C108: 7.796666667 | E108: 2013-08-16 | F108: 12.07333333 | H108: 2017-02-28 | I108: 10.63 | K108: 2020-10-14 | L108: 7.9 | N108: 2019-08-07 | O108: 11.56 | Q108: 1992-04-09 | R108: 16.43333333 | T108: 2018-11-14 | U108: 13.68 | W108: 1992-07-21 | X108: 17.6 | AC108: 1993-09-21 | AD108: 5.333333333 | AF108: 2013-09-05 | AG108: 12.11666667 | AI108: 2008-05-23 | AJ108: 9.58 | AT108: 2021.186301 | AU108: 11.2 | AV108: 2021.265753 | AW108: 17.08
B109: 2007-11-07 | C109: 8.87 | E109: 2013-09-05 | F109: 12.11666667 | H109: 2017-03-15 | I109: 10.94 | K109: 2020-11-03 | L109: 6.26 | N109: 2019-08-30 | O109: 8.57 | Q109: 1992-04-14 | R109: 14.13333333 | T109: 2018-11-30 | U109: 13.19 | W109: 1992-08-04 | X109: 17.06666667 | AC109: 1993-10-05 | AD109: 7.726666667 | AF109: 2013-09-27 | AG109: 12.81333333 | AI109: 2008-05-23 | AJ109: 8.76 | AT109: 2021.224658 | AU109: 11.26 | AV109: 2021.29863 | AW109: 18.84
B110: 2007-11-19 | C110: 7.406666667 | E110: 2013-09-27 | F110: 12.81333333 | H110: 2017-03-29 | I110: 14.85 | K110: 2020-11-19 | L110: 9.32 | N110: 2019-09-11 | O110: 14.17 | Q110: 1992-04-28 | R110: 16.76666667 | T110: 2018-12-12 | U110: 14.49 | W110: 1992-09-01 | X110: 13.56666667 | AC110: 1993-10-19 | AD110: 8.49 | AF110: 2013-10-09 | AG110: 13.55333333 | AI110: 2008-05-23 | AJ110: 8.47 | AT110: 2021.265753 | AU110: 11.89 | AV110: 2021.342466 | AW110: 20.71
B111: 2007-12-05 | C111: 9.36 | E111: 2013-10-09 | F111: 13.55333333 | H111: 2017-04-18 | I111: 12.43 | K111: 2020-12-04 | L111: 8.02 | N111: 2019-09-27 | O111: 11.09 | Q111: 1992-05-12 | R111: 16.33333333 | T111: 2018-12-27 | U111: 14.02 | W111: 1992-09-22 | X111: 20.56666667 | AC111: 1993-11-02 | AD111: 9.903333333 | AF111: 2013-10-23 | AG111: 11.90333333 | AI111: 2008-06-04 | AJ111: 6.79 | AT111: 2021.29863 | AU111: 12.11 | AV111: 2021.4 | AW111: 19
B112: 2007-12-19 | C112: 9.043333333 | E112: 2013-10-23 | F112: 11.90333333 | H112: 2017-05-03 | I112: 14.54 | K112: 2020-12-17 | L112: 10.36 | N112: 2019-10-15 | O112: 10.5 | Q112: 1992-05-26 | R112: 15.76666667 | T112: 2019-01-18 | U112: 20.16 | W112: 1992-09-29 | X112: 14.53333333 | AC112: 1993-11-17 | AD112: 9.233333333 | AF112: 2013-11-19 | AG112: 12.47 | AI112: 2008-06-04 | AJ112: 6.2 | AT112: 2021.342466 | AU112: 14.48 | AV112: 2021.435616 | AW112: 18.25
B113: 2008-01-03 | C113: 10.31 | E113: 2013-11-19 | F113: 12.47 | H113: 2017-05-22 | I113: 14.57 | K113: 2021-01-05 | L113: 12.51 | N113: 2019-10-29 | O113: 12.33 | Q113: 1992-06-09 | R113: 18.3 | T113: 2019-02-04 | U113: 21.43 | W113: 1992-10-06 | X113: 9.766666667 | AC113: 1993-11-30 | AD113: 9.266666667 | AI113: 2008-06-04 | AJ113: 6.01 | AT113: 2021.4 | AU113: 15.49 | AV113: 2021.490411 | AW113: 22.88
B114: 2008-01-17 | C114: 9.943333333 | E114: 2013-12-13 | F114: 13.07666667 | H114: 2017-06-06 | I114: 15.6 | K114: 2021-01-21 | L114: 14.87 | N114: 2019-11-13 | O114: 13.56 | Q114: 1992-06-19 | R114: 18.1 | T114: 2019-02-27 | U114: 13.4 | W114: 1992-10-13 | X114: 11.73333333 | AC114: 1993-12-14 | AD114: 6.2 | AI114: 2008-06-20 | AJ114: 7.38 | AT114: 2021.435616 | AU114: 13.07 | AV114: 2021.528767 | AW114: 16.21
B115: 2008-02-01 | C115: 11.37 | E115: 2016-09-16 | F115: 10.74 | H115: 2017-06-19 | I115: 15.52 | K115: 2021-02-04 | L115: 10.81 | N115: 2019-11-26 | O115: 11.91 | Q115: 1992-07-21 | R115: 10.4 | T115: 2019-03-13 | U115: 17.75 | W115: 1992-10-21 | X115: 9.2 | AC115: 1994-01-04 | AD115: 6.266666667 | AI115: 2008-06-20 | AJ115: 6.53 | AT115: 2021.490411 | AU115: 17.2 | AV115: 2021.572603 | AW115: 13.31
B116: 2008-02-14 | C116: 11.43666667 | E116: 2016-09-27 | F116: 12.39 | H116: 2017-07-05 | I116: 10.73 | K116: 2021-02-24 | L116: 12.44 | N116: 2019-12-13 | O116: 16.33 | Q116: 1992-08-04 | R116: 10.1 | T116: 2019-03-26 | U116: 15.76 | W116: 1992-10-27 | X116: 10.03333333 | AC116: 1994-01-21 | AD116: 12.36666667 | AI116: 2008-06-20 | AJ116: 6.59 | AT116: 2021.528767 | AU116: 12.16 | AV116: 2021.624658 | AW116: 9.16
B117: 2008-03-05 | C117: 10.27666667 | E117: 2016-10-14 | F117: 12.34 | H117: 2017-07-20 | I117: 15.34 | K117: 2021-03-09 | L117: 13.82 | N117: 2020-01-09 | O117: 22.37 | Q117: 1992-08-18 | R117: 9.133333333 | T117: 2019-04-12 | U117: 21.5 | W117: 1992-11-04 | X117: 11.7 | AC117: 1994-02-01 | AD117: 7.463333333 | AI117: 2008-07-01 | AJ117: 6.32 | AT117: 2021.572603 | AU117: 12.7 | AV117: 2021.665753 | AW117: 11.36
B118: 2008-03-19 | C118: 7.163333333 | E118: 2016-10-26 | F118: 10.56 | H118: 2017-08-01 | I118: 19.16 | K118: 2021-03-23 | L118: 10.8 | N118: 2020-01-24 | O118: 18.9 | Q118: 1992-09-01 | R118: 9.266666667 | T118: 2019-04-30 | U118: 9.94 | W118: 1992-11-12 | X118: 15.7 | AC118: 1994-02-15 | AD118: 5.91 | AI118: 2008-07-01 | AJ118: 6.28 | AT118: 2021.624658 | AU118: 10.72 | AV118: 2021.726027 | AW118: 8.94
B119: 2008-04-02 | C119: 18.42333333 | E119: 2016-11-16 | F119: 9.43 | H119: 2017-08-18 | I119: 15.93 | K119: 2021-04-07 | L119: 9.13 | N119: 2020-02-07 | O119: 18.49 | Q119: 1992-09-22 | R119: 10.03333333 | T119: 2019-05-14 | U119: 9.44 | W119: 1992-11-18 | X119: 12.66666667 | AC119: 1994-03-01 | AD119: 7.416666667 | AI119: 2008-07-01 | AJ119: 5.79 | AT119: 2021.665753 | AU119: 12.06 | AV119: 2021.761644 | AW119: 12.23
B120: 2008-04-16 | C120: 11.08333333 | E120: 2016-12-13 | F120: 8.44 | H120: 2017-09-06 | I120: 9.57 | K120: 2021-04-19 | L120: 12.63 | N120: 2020-02-27 | O120: 14.36 | Q120: 1992-09-29 | R120: 8.433333333 | T120: 2019-05-31 | U120: 15.85 | W120: 1992-11-24 | X120: 10 | AC120: 1994-03-15 | AD120: 7.19 | AI120: 2008-07-17 | AJ120: 11.73 | AT120: 2021.726027 | AU120: 9.52 | AV120: 2021.816438 | AW120: 7.74
B121: 2008-04-30 | C121: 12.07666667 | E121: 2016-12-28 | F121: 10.75 | H121: 2017-09-21 | I121: 8.86 | K121: 2021-05-05 | L121: 16.79 | N121: 2020-03-11 | O121: 17.18 | Q121: 1992-10-06 | R121: 5.066666667 | T121: 2019-06-12 | U121: 14.91 | W121: 1992-12-01 | X121: 5.666666667 | AC121: 1994-04-05 | AD121: 6.833333333 | AI121: 2008-07-17 | AJ121: 11.08 | AT121: 2021.761644 | AU121: 11.48 | AV121: 2021.860274 | AW121: 5.94
B122: 2008-05-15 | C122: 11.94 | E122: 2017-01-18 | F122: 11.49 | H122: 2017-10-11 | I122: 10.09 | K122: 2021-05-26 | L122: 18.19 | N122: 2020-03-27 | O122: 12.94 | Q122: 1992-10-13 | R122: 7.866666667 | T122: 2019-06-25 | U122: 23.43 | W122: 1992-12-08 | X122: 9.9 | AC122: 1994-04-19 | AD122: 4.833333333 | AI122: 2008-07-17 | AJ122: 11.98 | AT122: 2021.816438 | AU122: 7.8 | AV122: 2021.915068 | AW122: 8.84
B123: 2008-05-23 | C123: 10.89 | E123: 2017-01-31 | F123: 9.07 | H123: 2017-10-30 | I123: 11.46 | K123: 2021-06-08 | L123: 19.22 | N123: 2020-04-07 | O123: 13.85 | Q123: 1992-10-21 | R123: 8.6 | T123: 2019-07-10 | U123: 16.16 | W123: 1992-12-15 | X123: 9.7 | AC123: 1994-05-03 | AD123: 7.8 | AI123: 2008-07-30 | AJ123: 15.1 | AT123: 2021.860274 | AU123: 7.86 | AV123: 2021.958904 | AW123: 28.38
B124: 2008-06-04 | C124: 11.66 | E124: 2017-02-17 | F124: 11.04 | H124: 2017-11-17 | I124: 9.49 | K124: 2021-06-28 | L124: 18.82 | N124: 2020-04-24 | O124: 14.4 | Q124: 1992-10-27 | R124: 6.766666667 | T124: 2019-07-24 | U124: 17.6 | W124: 1992-12-22 | X124: 6.733333333 | AC124: 1994-05-17 | AD124: 8.843333333 | AI124: 2008-07-30 | AJ124: 15.25 | AT124: 2021.915068 | AU124: 9.3 | AV124: 2021.994521 | AW124: 13.85
B125: 2008-06-20 | C125: 12.11666667 | E125: 2017-02-28 | F125: 10.11 | H125: 2017-11-30 | I125: 8.57 | K125: 2021-07-12 | L125: 11.98 | N125: 2020-05-15 | O125: 13.81 | Q125: 1992-11-04 | R125: 9.9 | T125: 2019-08-07 | U125: 15.63 | W125: 1993-01-12 | X125: 9.566666667 | AC125: 1999-05-18 | AD125: 9.466666667 | AI125: 2008-07-30 | AJ125: 15.24 | AT125: 2021.958904 | AU125: 12.86 | AV125: 2022.057534 | AW125: 24.37
B126: 2008-07-01 | C126: 10.88666667 | E126: 2017-03-15 | F126: 10.04 | H126: 2017-12-15 | I126: 10.7 | K126: 2021-07-28 | L126: 11.77 | N126: 2020-05-29 | O126: 19.84 | Q126: 1992-11-12 | R126: 17.3 | T126: 2019-08-30 | U126: 13.71 | W126: 1993-01-26 | X126: 10.43333333 | AC126: 2002-01-22 | AD126: 8.133333333 | AI126: 2008-08-14 | AJ126: 8.49 | AT126: 2021.994521 | AU126: 11.11 | AV126: 2022.090411 | AW126: 25.83
B127: 2008-07-17 | C127: 8.116666667 | E127: 2017-03-29 | F127: 15.39 | H127: 2018-01-09 | I127: 12.92 | K127: 2021-08-16 | L127: 9.45 | N127: 2020-06-12 | O127: 16.52 | Q127: 1992-11-18 | R127: 11.46666667 | T127: 2019-09-11 | U127: 14.95 | W127: 1993-02-09 | X127: 8.933333333 | AC127: 2002-02-05 | AD127: 7.2 | AI127: 2008-08-14 | AJ127: 8.9 | AT127: 2022.057534 | AU127: 10.37 | AV127: 2022.326027 | AW127: 18.61
B128: 2008-07-30 | C128: 13.05666667 | E128: 2017-04-18 | F128: 11.59 | H128: 2018-01-24 | I128: 13.09 | K128: 2021-08-31 | L128: 11.02 | N128: 2020-07-24 | O128: 11.82 | Q128: 1992-11-24 | R128: 12.2 | T128: 2019-09-27 | U128: 18 | W128: 1993-02-23 | X128: 9.966666667 | AC128: 2002-02-19 | AD128: 6.566666667 | AI128: 2008-08-14 | AJ128: 7.43 | AT128: 2022.090411 | AU128: 13.06 | AV128: 2022.358904 | AW128: 21.85
B129: 2008-08-14 | C129: 8.706666667 | E129: 2017-05-03 | F129: 13.46 | H129: 2018-02-07 | I129: 13.83 | K129: 2021-09-22 | L129: 10.92 | N129: 2020-08-07 | O129: 11.61 | Q129: 1992-12-01 | R129: 7.166666667 | T129: 2019-10-15 | U129: 12.29 | W129: 1993-03-09 | X129: 10.93333333 | AC129: 2002-03-05 | AD129: 6.6 | AI129: 2008-08-27 | AJ129: 9.79 | AT129: 2022.326027 | AU129: 11.63 | AV129: 2022.40274 | AW129: 17.63
B130: 2008-08-27 | C130: 10.35333333 | E130: 2017-05-22 | F130: 15.23 | H130: 2018-02-23 | I130: 9.85 | K130: 2021-10-05 | L130: 8.95 | N130: 2020-09-15 | O130: 13.5 | Q130: 1992-12-08 | R130: 11.4 | T130: 2019-10-29 | U130: 15.18 | W130: 1993-03-23 | X130: 7.466666667 | AC130: 2002-03-19 | AD130: 7.033333333 | AI130: 2008-08-27 | AJ130: 10.17 | AT130: 2022.358904 | AU130: 11.56 | AV130: 2022.452055 | AW130: 18.26
B131: 2008-09-10 | C131: 9.113333333 | E131: 2017-06-06 | F131: 17.16 | H131: 2018-04-06 | I131: 10.45 | K131: 2021-10-25 | L131: 5.81 | N131: 2020-09-29 | O131: 11.27 | Q131: 1992-12-15 | R131: 15.4 | T131: 2019-11-13 | U131: 13.97 | W131: 1993-04-21 | X131: 11.5 | AC131: 2002-04-02 | AD131: 8.723333333 | AI131: 2008-08-27 | AJ131: 10.19 | AT131: 2022.40274 | AU131: 14.95 | AV131: 2022.490411 | AW131: 15.56
B132: 2008-09-23 | C132: 24.89333333 | E132: 2017-06-19 | F132: 16.78 | H132: 2018-04-24 | I132: 14.57 | K132: 2021-11-10 | L132: 5.76 | N132: 2020-10-14 | O132: 10.62 | Q132: 1992-12-22 | R132: 13.56666667 | T132: 2019-11-26 | U132: 14.75 | W132: 1993-05-04 | X132: 16.83333333 | AC132: 2002-04-16 | AD132: 11.56333333 | AI132: 2008-09-10 | AJ132: 10.59 | AT132: 2022.452055 | AU132: 16.86 | AV132: 2022.528767 | AW132: 17.15
B133: 2008-10-09 | C133: 7.333333333 | E133: 2017-07-05 | F133: 11.86 | H133: 2018-05-08 | I133: 15.85 | K133: 2021-11-30 | L133: 11.93 | N133: 2020-11-03 | O133: 10.89 | Q133: 1993-01-12 | R133: 17.73333333 | T133: 2019-12-13 | U133: 16.33 | W133: 1993-05-18 | X133: 12.83333333 | AC133: 2002-04-30 | AD133: 11.37333333 | AI133: 2008-09-10 | AJ133: 11 | AT133: 2022.490411 | AU133: 10.62 | AV133: 2022.575342 | AW133: 12.63
B134: 2008-10-15 | C134: 5.993333333 | E134: 2017-07-20 | F134: 17.13 | H134: 2018-05-24 | I134: 14.75 | K134: 2021-12-16 | L134: 51.32 | N134: 2020-11-19 | O134: 9.95 | Q134: 1993-01-26 | R134: 18.06666667 | T134: 2020-01-09 | U134: 16.44 | W134: 1993-06-01 | X134: 12.36666667 | AC134: 2002-05-14 | AD134: 9.326666667 | AI134: 2008-09-10 | AJ134: 10.02 | AT134: 2022.528767 | AU134: 11.45 | AV134: 2022.706849 | AW134: 9.28
B135: 2008-10-30 | C135: 7.856666667 | E135: 2017-08-01 | F135: 17.02 | H135: 2018-06-06 | I135: 16.75 | K135: 2021-12-29 | L135: 12.4 | N135: 2020-12-04 | O135: 9.89 | Q135: 1993-02-09 | R135: 19.56666667 | T135: 2020-01-24 | U135: 16.2 | W135: 1993-06-15 | X135: 23.5 | AC135: 2002-05-28 | AD135: 12.80333333 | AI135: 2008-10-09 | AJ135: 7.02 | AT135: 2022.575342 | AU135: 10.76 | AV135: 2022.747945 | AW135: 10.69
B136: 2008-11-12 | C136: 7.743333333 | E136: 2017-08-18 | F136: 14.98 | H136: 2018-06-20 | I136: 12.88 | K136: 2022-01-21 | L136: 13.99 | N136: 2020-12-17 | O136: 14.43 | Q136: 1993-02-23 | R136: 16.8 | T136: 2020-02-07 | U136: 15.45 | W136: 1993-06-29 | X136: 14.33333333 | AC136: 2002-06-14 | AD136: 11.26666667 | AI136: 2008-10-09 | AJ136: 5.41 | AT136: 2022.706849 | AU136: 9.87 | AV136: 2022.786301 | AW136: 11.43
B137: 2008-11-26 | C137: 9.62 | E137: 2017-09-06 | F137: 10.58 | H137: 2018-07-06 | I137: 15.88 | K137: 2022-02-02 | L137: 14.46 | N137: 2021-01-05 | O137: 17.67 | Q137: 1993-03-09 | R137: 12.06666667 | T137: 2020-02-27 | U137: 12.92 | W137: 1993-07-13 | X137: 15.86666667 | AC137: 2002-06-25 | AD137: 9.253333333 | AI137: 2008-10-09 | AJ137: 6.14 | AT137: 2022.747945 | AU137: 8.08 | AV137: 2022.843836 | AW137: 9.76
B138: 2008-12-10 | C138: 9.16 | E138: 2017-09-21 | F138: 10.86 | H138: 2018-07-30 | I138: 13.17 | K138: 2022-04-29 | L138: 11.51 | N138: 2021-01-21 | O138: 17.6 | Q138: 1993-03-23 | R138: 11.96666667 | T138: 2020-03-11 | U138: 17.18 | W138: 1993-07-27 | X138: 19.43333333 | AC138: 2002-07-09 | AD138: 8.736666667 | AI138: 2008-10-15 | AJ138: 5.77 | AT138: 2022.786301 | AU138: 9.66 | AV138: 2022.912329 | AW138: 12.53
B139: 2008-12-23 | C139: 7.836666667 | E139: 2017-10-11 | F139: 10.86 | H139: 2018-08-15 | I139: 13.82 | K139: 2022-05-11 | L139: 27.14 | N139: 2021-02-04 | O139: 24.31 | Q139: 1993-04-21 | R139: 19 | T139: 2020-03-27 | U139: 13.17 | W139: 1993-08-10 | X139: 15.73333333 | AC139: 2002-07-23 | AD139: 14.72333333 | AI139: 2008-10-15 | AJ139: 5.07 | AT139: 2022.843836 | AU139: 7.94 | AV139: 2022.950685 | AW139: 10.75
B140: 2009-01-07 | C140: 13.30333333 | E140: 2017-10-30 | F140: 10.87 | H140: 2018-08-29 | I140: 23.48 | K140: 2022-05-27 | L140: 14.89 | N140: 2021-02-24 | O140: 16.56 | Q140: 1993-05-04 | R140: 19.7 | T140: 2020-04-07 | U140: 13.39 | W140: 1993-08-24 | X140: 15.6 | AC140: 2002-08-06 | AD140: 4.44 | AI140: 2008-10-15 | AJ140: 4.46 | AT140: 2022.912329 | AU140: 10.53 | AV140: 2022.991781 | AW140: 20.32
B141: 2009-01-27 | C141: 11.64666667 | E141: 2017-11-17 | F141: 10.2 | H141: 2018-09-14 | I141: 11.48 | K141: 2022-06-14 | L141: 14.36 | N141: 2021-03-09 | O141: 15.93 | Q141: 1993-05-18 | R141: 11.33333333 | T141: 2020-04-24 | U141: 12.72 | W141: 1993-09-07 | X141: 9.466666667 | AC141: 2002-08-20 | AD141: 7.12 | AI141: 2008-10-30 | AJ141: 6.14 | AT141: 2022.950685 | AU141: 11.01 | AV141: 2023.071233 | AW141: 17.87046392
B142: 2009-02-11 | C142: 9.773333333 | E142: 2017-11-30 | F142: 7.45 | H142: 2018-09-28 | I142: 12.6 | K142: 2022-06-28 | L142: 12.65 | N142: 2021-03-23 | O142: 14.4 | Q142: 1993-06-01 | R142: 13.16666667 | T142: 2020-05-15 | U142: 11.43 | W142: 1993-09-21 | X142: 18.93333333 | AC142: 2002-08-28 | AD142: 6.826666667 | AI142: 2008-10-30 | AJ142: 7.06 | AT142: 2022.991781 | AU142: 14.67 | AV142: 2023.123288 | AW142: 16.33
B143: 2009-02-26 | C143: 10.36 | E143: 2017-12-15 | F143: 9.81 | H143: 2018-10-16 | I143: 13.8 | K143: 2022-07-12 | L143: 12.38 | N143: 2021-04-07 | O143: 16.97 | Q143: 1993-06-15 | R143: 15.66666667 | T143: 2020-05-29 | U143: 15.79 | W143: 1993-10-05 | X143: 15 | AC143: 2002-09-03 | AD143: 6.713333333 | AI143: 2008-10-30 | AJ143: 5.86 | AT143: 2023.071233 | AU143: 9.63612606 | AV143: 2023.161644 | AW143: 20.05
B144: 2009-03-12 | C144: 7.55 | E144: 2018-01-09 | F144: 11.8 | H144: 2018-10-31 | I144: 9.5 | K144: 2022-07-29 | L144: 12.22 | N144: 2021-04-19 | O144: 17.35 | Q144: 1993-06-29 | R144: 13.93333333 | T144: 2020-06-12 | U144: 13.86 | W144: 1993-10-19 | X144: 15.36666667 | AC144: 2002-09-17 | AD144: 6.48 | AI144: 2008-11-12 | AJ144: 8.02 | AT144: 2023.123288 | AU144: 12.39 | AV144: 2023.219178 | AW144: 17.9463879
B145: 2009-03-25 | C145: 7.84 | E145: 2018-01-24 | F145: 11.67 | H145: 2018-11-14 | I145: 11.07 | K145: 2022-09-15 | L145: 11.21 | N145: 2021-05-05 | O145: 18.34 | Q145: 1993-07-13 | R145: 22.13333333 | T145: 2020-07-10 | U145: 24.23 | W145: 1993-11-02 | X145: 9.266666667 | AC145: 2002-10-02 | AD145: 6.086666667 | AI145: 2008-11-12 | AJ145: 7.74 | AT145: 2023.161644 | AU145: 12.05 | AV145: 2023.265753 | AW145: 22.02
B146: 2009-04-09 | C146: 10.31666667 | E146: 2018-02-07 | F146: 13.47 | H146: 2018-11-30 | I146: 7.99 | K146: 2022-09-30 | L146: 6.67 | N146: 2021-05-26 | O146: 17.96 | Q146: 1993-07-27 | R146: 15.16666667 | T146: 2020-07-24 | U146: 14.19 | W146: 1993-11-17 | X146: 12.86666667 | AC146: 2002-10-15 | AD146: 6.38 | AI146: 2008-11-12 | AJ146: 8.51 | AT146: 2023.219178 | AU146: 11.53719362 | AV146: 2023.317808 | AW146: 17.83663183
B147: 2009-04-16 | C147: 10.41 | E147: 2018-02-23 | F147: 10.44 | H147: 2018-12-12 | I147: 9.69 | K147: 2022-10-14 | L147: 12.72 | N147: 2021-06-08 | O147: 17.27 | Q147: 1993-08-10 | R147: 10.6 | T147: 2020-08-07 | U147: 16.98 | W147: 1993-11-30 | X147: 8.6 | AC147: 2002-10-30 | AD147: 7.943333333 | AI147: 2008-11-26 | AJ147: 7.56 | AT147: 2023.265753 | AU147: 13.79 | AV147: 2023.356164 | AW147: 19.17523149
B148: 2009-04-30 | C148: 8.826666667 | E148: 2018-04-06 | F148: 11.79 | H148: 2018-12-27 | I148: 9.23 | K148: 2022-11-04 | L148: 6.89 | N148: 2021-06-28 | O148: 21.83 | Q148: 1993-08-24 | R148: 10.63333333 | T148: 2020-09-15 | U148: 17.66 | W148: 1993-12-14 | X148: 8.6 | AC148: 2002-11-13 | AD148: 6.28 | AI148: 2008-11-26 | AJ148: 8.27 | AT148: 2023.317808 | AU148: 11.95928358 | AV148: 2023.413699 | AW148: 12.59112004
B149: 2009-05-14 | C149: 12.44333333 | E149: 2018-04-24 | F149: 12.83 | H149: 2019-01-18 | I149: 9.77 | K149: 2022-11-29 | L149: 9 | N149: 2021-07-12 | O149: 15.75 | Q149: 1993-09-07 | R149: 7.166666667 | T149: 2020-09-29 | U149: 14.21 | W149: 1994-01-04 | X149: 6.966666667 | AC149: 2002-11-27 | AD149: 7.306666667 | AI149: 2008-11-26 | AJ149: 9.09 | AT149: 2023.356164 | AU149: 14.24016434 | AV149: 2023.449315 | AW149: 14.88081473
B150: 2009-05-28 | C150: 16.42333333 | E150: 2018-05-08 | F150: 15.21 | H150: 2019-02-04 | I150: 15.37 | K150: 2022-12-13 | L150: 7.87 | N150: 2021-07-28 | O150: 13.05 | Q150: 1993-09-21 | R150: 11.46666667 | T150: 2020-10-14 | U150: 14.84 | W150: 1994-01-21 | X150: 72.46666667 | AC150: 2003-02-06 | AD150: 5.55 | AI150: 2008-12-10 | AJ150: 11.31 | AT150: 2023.413699 | AU150: 10.41957816 | AV150: 2023.49589 | AW150: 14.01076608
B151: 2009-06-12 | C151: 20.29666667 | E151: 2018-05-24 | F151: 13.82 | H151: 2019-02-27 | I151: 12.92 | K151: 2022-12-28 | L151: 11.43 | N151: 2021-08-16 | O151: 9.91 | Q151: 1993-10-05 | R151: 8 | T151: 2020-11-03 | U151: 12.86 | W151: 1994-02-01 | X151: 10.56666667 | AC151: 2003-03-12 | AD151: 10.52666667 | AI151: 2008-12-10 | AJ151: 9.92 | AT151: 2023.449315 | AU151: 11.18338547 | AV151: 2023.534247 | AW151: 14.89131373
B152: 2009-06-24 | C152: 11.41666667 | E152: 2018-06-06 | F152: 13.43 | H152: 2019-03-13 | I152: 11.43 | K152: 2023-01-26 | L152: 9.694942759 | N152: 2021-08-31 | O152: 10.38 | Q152: 1993-10-19 | R152: 8.4 | T152: 2020-11-19 | U152: 16.79 | W152: 1994-02-15 | X152: 8.733333333 | AC152: 2003-03-26 | AD152: 8.673333333 | AI152: 2008-12-10 | AJ152: 9.73 | AT152: 2023.49589 | AU152: 11.36875422 | AV152: 2023.572603 | AW152: 17.58995047
B153: 2009-07-09 | C153: 10.09666667 | E153: 2018-06-20 | F153: 12 | H153: 2019-03-26 | I153: 9.6 | K153: 2023-02-14 | L153: 12.51 | N153: 2021-09-22 | O153: 9.7 | Q153: 1993-11-02 | R153: 7.833333333 | T153: 2020-12-04 | U153: 15.51 | W153: 1994-03-01 | X153: 11.4 | AC153: 2003-04-09 | AD153: 12.67 | AI153: 2008-12-23 | AJ153: 32.62 | AT153: 2023.534247 | AU153: 13.42332304 | AV153: 2023.621918 | AW153: 9.963260215
B154: 2009-07-29 | C154: 9.683333333 | E154: 2018-07-06 | F154: 15.18 | H154: 2019-04-12 | I154: 16.7 | K154: 2023-02-28 | L154: 12.58 | N154: 2021-10-05 | O154: 9.85 | Q154: 1993-11-17 | R154: 8.666666667 | T154: 2020-12-17 | U154: 21.21 | W154: 1994-03-15 | X154: 10.2 | AC154: 2003-04-24 | AD154: 9.586666667 | AI154: 2008-12-23 | AJ154: 32.02 | AT154: 2023.572603 | AU154: 11.7253429 | AV154: 2023.663014 | AW154: 9.488439208
B155: 2009-08-05 | C155: 10.99333333 | E155: 2018-07-30 | F155: 12.76 | H155: 2019-04-30 | I155: 13.26 | K155: 2023-03-21 | L155: 14.00679142 | N155: 2021-10-25 | O155: 8.81 | Q155: 1993-11-30 | R155: 9.233333333 | T155: 2021-01-05 | U155: 17.61 | W155: 1994-04-05 | X155: 9.7 | AC155: 2003-05-09 | AD155: 9.78 | AI155: 2008-12-23 | AJ155: 31.4 | AT155: 2023.621918 | AU155: 10.60837585 | AV155: 2023.706849 | AW155: 7.96
B156: 2009-08-19 | C156: 11.06333333 | E156: 2018-08-15 | F156: 15.39 | H156: 2019-05-14 | I156: 13.31 | K156: 2023-04-07 | L156: 13.55 | N156: 2021-11-10 | O156: 7.86 | Q156: 1993-12-14 | R156: 10.26666667 | T156: 2021-01-21 | U156: 19.4 | W156: 1994-04-19 | X156: 11.4 | AC156: 2003-05-22 | AD156: 10.11333333 | AI156: 2009-01-07 | AJ156: 13.27 | AT156: 2023.663014 | AU156: 9.019139878 | AV156: 2023.852055 | AW156: 8.56251671
B157: 2009-09-02 | C157: 10.98333333 | E157: 2018-08-29 | F157: 22.55 | H157: 2019-05-31 | I157: 17.54 | K157: 2023-04-26 | L157: 10.37239955 | N157: 2021-11-30 | O157: 11.58 | Q157: 1994-01-04 | R157: 17.56666667 | T157: 2021-02-04 | U157: 17.83 | W157: 1994-05-03 | X157: 11.46666667 | AC157: 2003-06-05 | AD157: 6.47 | AI157: 2009-01-07 | AJ157: 12.85 | AT157: 2023.706849 | AU157: 8.37 | AV157: 2023.893151 | AW157: 8.561926822
B158: 2009-09-22 | C158: 8.75 | E158: 2018-09-14 | F158: 11.25 | H158: 2019-06-12 | I158: 15.64 | K158: 2023-05-10 | L158: 12.41888956 | N158: 2021-12-16 | O158: 23.83 | Q158: 1994-01-21 | R158: 6.766666667 | T158: 2021-02-24 | U158: 15.45 | W158: 1994-05-17 | X158: 11.56666667 | AC158: 2003-06-18 | AD158: 15.52 | AI158: 2009-01-07 | AJ158: 13.25 | AT158: 2023.852055 | AU158: 8.034096428 | AV158: 2023.931507 | AW158: 12.14069942
B159: 2009-10-07 | C159: 9.82 | E159: 2018-09-28 | F159: 11.21 | H159: 2019-06-25 | I159: 22.58 | K159: 2023-05-31 | L159: 14.11706838 | N159: 2021-12-29 | O159: 13.85 | Q159: 1994-02-01 | R159: 17.83333333 | T159: 2021-03-09 | U159: 16.39 | W159: 1996-03-19 | X159: 12.6 | AC159: 2003-07-02 | AD159: 24.96666667 | AI159: 2009-01-27 | AJ159: 21.11 | AT159: 2023.893151 | AU159: 7.329235948 | AV159: 2023.969863 | AW159: 12.453324
B160: 2009-10-21 | C160: 7.573333333 | E160: 2018-10-16 | F160: 12.52 | H160: 2019-07-10 | I160: 20.4 | K160: 2023-06-13 | L160: 16.0546018 | N160: 2022-01-21 | O160: 37.85 | Q160: 1994-02-15 | R160: 12.36666667 | T160: 2021-03-23 | U160: 15.54 | W160: 1996-04-16 | X160: 16.9 | AC160: 2003-07-18 | AD160: 41.23666667 | AI160: 2009-01-27 | AJ160: 19.07 | AT160: 2023.931507 | AU160: 7.855318596 | AV160: 2024.013699 | AW160: 13.62620281
B161: 2009-11-04 | C161: 8.633333333 | E161: 2018-10-31 | F161: 8.86 | H161: 2019-07-24 | I161: 16.1 | K161: 2023-06-30 | L161: 14.12818883 | N161: 2022-02-02 | O161: 25.48 | Q161: 1994-03-01 | R161: 16.26666667 | T161: 2021-04-07 | U161: 14.66 | W161: 1996-04-23 | X161: 14.83333333 | AC161: 2003-07-30 | AD161: 23.91333333 | AI161: 2009-01-27 | AJ161: 20.47 | AT161: 2023.969863 | AU161: 8.109889496 | AV161: 2024.071233 | AW161: 22.85
B162: 2009-11-17 | C162: 7.98 | E162: 2018-11-14 | F162: 10.08 | H162: 2019-08-07 | I162: 14.25 | K162: 2023-07-14 | L162: 13.5407623 | N162: 2022-04-29 | O162: 14.86 | Q162: 1994-03-15 | R162: 15.5 | T162: 2021-04-19 | U162: 15.1 | W162: 1996-04-30 | X162: 15.53333333 | AC162: 2003-08-13 | AD162: 31.96333333 | AT162: 2024.013699 | AU162: 8.578551496 | AV162: 2024.120548 | AW162: 19.2734829
B163: 2009-12-02 | C163: 10.59666667 | E163: 2018-11-30 | F163: 9.49 | H163: 2019-08-30 | I163: 12.52 | K163: 2023-07-28 | L163: 16.47567503 | N163: 2022-05-11 | O163: 16.91 | Q163: 1994-04-05 | R163: 14.73333333 | T163: 2021-05-05 | U163: 14.83 | W163: 1996-05-07 | X163: 13.36666667 | AC163: 2003-08-27 | AD163: 34.07666667 | AT163: 2024.071233 | AU163: 10.87 | AV163: 2024.20274 | AW163: 14.69923249
B164: 2009-12-16 | C164: 8.273333333 | E164: 2018-12-12 | F164: 10.85 | H164: 2019-09-11 | I164: 59.04 | K164: 2023-08-15 | L164: 15.00689157 | N164: 2022-05-27 | O164: 16.4 | Q164: 1994-04-19 | R164: 14.23333333 | T164: 2021-05-26 | U164: 15.43 | W164: 1996-05-14 | X164: 13.56666667 | AC164: 2003-09-10 | AD164: 20.17666667 | AT164: 2024.120548 | AU164: 9.404142286
B165: 2009-12-29 | C165: 12.45 | E165: 2018-12-27 | F165: 8.66 | H165: 2019-09-27 | I165: 12.76 | K165: 2023-08-30 | L165: 10.5443627 | N165: 2022-06-14 | O165: 18.67 | Q165: 1994-05-03 | R165: 14.9 | T165: 2021-06-08 | U165: 16.12 | W165: 1996-05-21 | X165: 25.26666667 | AC165: 2003-09-24 | AD165: 30.60666667 | AT165: 2024.2 | AU165: 11.41157886
B166: 2010-01-13 | C166: 10.06333333 | E166: 2019-01-18 | F166: 8.45 | H166: 2019-10-15 | I166: 11.63 | K166: 2023-09-15 | L166: 9.9 | N166: 2022-06-28 | O166: 12.83 | Q166: 1994-05-17 | R166: 12 | T166: 2021-06-28 | U166: 17.55 | W166: 1996-05-28 | X166: 11.03333333 | AC166: 2003-10-08 | AD166: 11.2325
B167: 2010-01-27 | C167: 11.78333333 | E167: 2019-02-04 | F167: 12.89 | H167: 2019-10-29 | I167: 11.73 | K167: 2023-11-07 | L167: 5.56813511 | N167: 2022-07-12 | O167: 17.73 | Q167: 1996-03-19 | R167: 15.93333333 | T167: 2021-07-12 | U167: 16.73 | W167: 1996-06-04 | X167: 12.6 | AC167: 2003-10-22 | AD167: 10.24333333
B168: 2010-02-04 | C168: 13.67333333 | E168: 2019-02-27 | F168: 11.49 | H168: 2019-11-13 | I168: 12.19 | K168: 2023-11-22 | L168: 6.448742468 | N168: 2022-07-29 | O168: 12.05 | Q168: 1996-04-16 | R168: 14.93333333 | T168: 2021-07-28 | U168: 17.46 | W168: 1996-06-11 | X168: 26.83333333 | AC168: 2003-10-24 | AD168: 6.953333333
B169: 2010-02-17 | C169: 8.846666667 | E169: 2019-03-13 | F169: 12.14 | H169: 2019-11-26 | I169: 9.67 | K169: 2023-12-06 | L169: 7.561799362 | N169: 2022-09-15 | O169: 8.93 | Q169: 1996-04-23 | R169: 15.73333333 | T169: 2021-08-16 | U169: 14.84 | W169: 1996-06-18 | X169: 51.6 | AC169: 2003-11-05 | AD169: 7.1
B170: 2010-03-03 | C170: 9.313333333 | E170: 2019-03-26 | F170: 9.72 | H170: 2019-12-13 | I170: 10.16 | K170: 2023-12-20 | L170: 9.342485774 | N170: 2022-09-30 | O170: 7.43 | Q170: 1996-04-30 | R170: 15.53333333 | T170: 2021-08-31 | U170: 16 | W170: 1996-06-25 | X170: 17.46666667 | AC170: 2003-11-19 | AD170: 6.615185185
B171: 2010-03-17 | C171: 9.293333333 | E171: 2019-04-12 | F171: 13.64 | H171: 2020-01-09 | I171: 11.16 | K171: 2024-01-05 | L171: 9.282874935 | N171: 2022-10-14 | O171: 9.84 | Q171: 1996-05-07 | R171: 15.06666667 | T171: 2021-09-22 | U171: 15.91 | W171: 1996-07-02 | X171: 15.16666667 | AC171: 2003-11-24 | AD171: 5.433333333
B172: 2010-03-31 | C172: 11.24666667 | E172: 2019-04-30 | F172: 13.08 | H172: 2020-01-24 | I172: 11.93 | K172: 2024-01-26 | L172: 15.28 | N172: 2022-11-04 | O172: 9 | Q172: 1996-05-14 | R172: 13.06666667 | T172: 2021-10-05 | U172: 18.75 | W172: 1996-07-09 | X172: 15.7 | AC172: 2003-12-03 | AD172: 8.002916667
B173: 2010-04-14 | C173: 10.55 | E173: 2019-05-14 | F173: 13.19 | H173: 2020-02-07 | I173: 10 | K173: 2024-02-13 | L173: 10.52031771 | N173: 2022-11-29 | O173: 14.38 | Q173: 1996-05-21 | R173: 17.83333333 | T173: 2021-10-25 | U173: 15.63 | W173: 1996-07-16 | X173: 14.33333333 | AC173: 2003-12-19 | AD173: 5.851111111
B174: 2010-05-12 | C174: 12.37333333 | E174: 2019-05-31 | F174: 17.9 | H174: 2020-02-27 | I174: 11.65 | K174: 2024-03-13 | L174: 10.53095735 | N174: 2022-12-13 | O174: 10.57 | Q174: 1996-05-28 | R174: 16.76666667 | T174: 2021-11-10 | U174: 16.33 | W174: 1996-07-23 | X174: 15 | AC174: 2004-01-14 | AD174: 6.873846154
B175: 2010-05-19 | C175: 9.486666667 | E175: 2019-06-12 | F175: 15.27 | H175: 2020-03-11 | I175: 11.76 | N175: 2022-12-28 | O175: 23.62 | Q175: 1996-06-04 | R175: 16.86666667 | T175: 2021-11-30 | U175: 17.13 | W175: 1996-07-30 | X175: 18.33333333 | AC175: 2004-01-23 | AD175: 9.883333333
B176: 2010-06-02 | C176: 14.69666667 | E176: 2019-07-10 | F176: 18.58 | H176: 2020-03-27 | I176: 10.17 | N176: 2023-01-26 | O176: 17.45874702 | Q176: 1996-06-11 | R176: 20.36666667 | T176: 2021-12-16 | U176: 40.33 | W176: 1996-08-06 | X176: 18.13333333 | AC176: 2004-01-27 | AD176: 7.013333333
B177: 2010-06-24 | C177: 14.38666667 | E177: 2019-07-24 | F177: 14.9 | H177: 2020-04-07 | I177: 14.48 | N177: 2023-02-14 | O177: 17.27 | Q177: 1996-06-25 | R177: 14 | T177: 2021-12-29 | U177: 20.44 | W177: 1996-08-20 | X177: 17.83333333 | AC177: 2004-02-05 | AD177: 7.576666667
B178: 2010-07-06 | C178: 12.66666667 | E178: 2019-08-07 | F178: 14.61 | H178: 2020-04-24 | I178: 13.18 | N178: 2023-02-28 | O178: 23.04 | Q178: 1996-07-02 | R178: 14.86666667 | T178: 2022-01-21 | U178: 16.73 | W178: 1996-09-03 | X178: 9.766666667 | AC178: 2004-02-18 | AD178: 6.816666667
B179: 2010-07-21 | C179: 13.95666667 | E179: 2019-08-30 | F179: 12.34 | H179: 2020-05-15 | I179: 12.65 | N179: 2023-03-21 | O179: 17.41718837 | Q179: 1996-07-09 | R179: 11.83333333 | T179: 2022-02-02 | U179: 18.83 | W179: 1996-09-17 | X179: 12.63333333 | AC179: 2004-03-04 | AD179: 6.563333333
B180: 2010-08-04 | C180: 13.38333333 | E180: 2019-09-11 | F180: 13.22 | H180: 2020-05-29 | I180: 16.08 | N180: 2023-04-07 | O180: 18.9 | Q180: 1996-07-16 | R180: 11.6 | T180: 2022-02-18 | U180: 19.82 | W180: 1996-10-01 | X180: 25 | AC180: 2004-03-18 | AD180: 8.286666667
B181: 2010-08-19 | C181: 11.19333333 | E181: 2019-09-27 | F181: 13.95 | H181: 2020-06-12 | I181: 15.54 | N181: 2023-04-26 | O181: 14.31022288 | Q181: 1996-07-23 | R181: 10.56666667 | T181: 2022-04-29 | U181: 13.43 | W181: 1996-10-15 | X181: 12.26666667 | AC181: 2004-03-20 | AD181: 8.1
B182: 2010-09-01 | C182: 11.39 | E182: 2019-10-15 | F182: 11.69 | H182: 2020-07-10 | I182: 21.58 | N182: 2023-05-10 | O182: 16.82519952 | Q182: 1996-07-30 | R182: 12.13333333 | T182: 2022-05-11 | U182: 19.18 | W182: 1996-10-29 | X182: 10.26666667 | AC182: 2004-04-07 | AD182: 7.063333333
B183: 2010-09-15 | C183: 8.746666667 | E183: 2019-10-29 | F183: 11.56 | H183: 2020-07-24 | I183: 16.21 | N183: 2023-05-31 | O183: 14.11706838 | Q183: 1996-08-06 | R183: 11.23333333 | T183: 2022-05-27 | U183: 14.54 | W183: 1996-11-12 | X183: 14.1 | AC183: 2004-04-19 | AD183: 6.13
B184: 2010-09-29 | C184: 11.36 | E184: 2019-11-13 | F184: 9.17 | H184: 2020-08-07 | I184: 12.88 | N184: 2023-06-13 | O184: 14.82212538 | Q184: 1996-08-20 | R184: 25.53333333 | T184: 2022-06-14 | U184: 15.12 | W184: 1996-11-26 | X184: 9.633333333 | AC184: 2004-04-21 | AD184: 4.936666667
B185: 2010-10-12 | C185: 6.863333333 | E185: 2019-11-26 | F185: 9.14 | H185: 2020-09-15 | I185: 14.42 | N185: 2023-06-30 | O185: 13.30622958 | Q185: 1996-09-03 | R185: 8.533333333 | T185: 2022-06-28 | U185: 15.79 | W185: 1996-12-10 | X185: 11.06666667 | AC185: 2004-05-05 | AD185: 5.926666667
B186: 2010-11-09 | C186: 5.086666667 | E186: 2019-12-13 | F186: 9.57 | H186: 2020-09-29 | I186: 13.35 | N186: 2023-07-14 | O186: 14.1866782 | Q186: 1996-09-17 | R186: 7.166666667 | T186: 2022-07-12 | U186: 27.67 | W186: 1996-12-23 | X186: 11.36666667 | AC186: 2004-05-19 | AD186: 16.98333333
B187: 2010-11-24 | C187: 6.726666667 | E187: 2020-01-09 | F187: 10.04 | H187: 2020-10-14 | I187: 12.35 | N187: 2023-07-28 | O187: 13.95389378 | Q187: 1996-10-01 | R187: 7.5 | T187: 2022-07-29 | U187: 20.12 | W187: 1997-01-14 | X187: 18 | AC187: 2004-05-24 | AD187: 5.053333333
B188: 2010-12-01 | C188: 6.156666667 | E188: 2020-01-24 | F188: 9.82 | H188: 2020-11-03 | I188: 11.07 | N188: 2023-08-15 | O188: 11.31213837 | Q188: 1996-10-15 | R188: 6.1 | T188: 2022-09-15 | U188: 15.01 | W188: 1997-01-28 | X188: 9.266666667 | AC188: 2004-06-02 | AD188: 5.786666667
B189: 2010-12-15 | C189: 6.51 | E189: 2020-02-07 | F189: 10.24 | H189: 2020-11-19 | I189: 11.69 | N189: 2023-08-30 | O189: 9.723088873 | Q189: 1996-10-29 | R189: 6.366666667 | T189: 2022-09-30 | U189: 13.18 | W189: 1997-02-11 | X189: 8.533333333 | AC189: 2004-06-16 | AD189: 5.896666667
B190: 2011-01-05 | C190: 11.43 | E190: 2020-02-27 | F190: 10.56 | H190: 2020-12-04 | I190: 10.88 | N190: 2023-09-15 | O190: 9.31 | Q190: 1996-11-12 | R190: 8.633333333 | T190: 2022-10-14 | U190: 14.71 | W190: 1997-02-25 | X190: 10.96666667 | AC190: 2004-06-28 | AD190: 4.713333333
B191: 2011-01-20 | C191: 10.06666667 | E191: 2020-03-11 | F191: 11.76 | H191: 2020-12-17 | I191: 10.13 | N191: 2023-11-07 | O191: 9.090936992 | Q191: 1996-11-26 | R191: 6.133333333 | T191: 2022-11-04 | U191: 14.51 | W191: 1997-03-11 | X191: 11.66666667 | AC191: 2004-07-14 | AD191: 7.09
B192: 2011-02-04 | C192: 11.84333333 | E192: 2020-03-27 | F192: 9.02 | H192: 2021-01-05 | I192: 10.42 | N192: 2023-11-22 | O192: 7.916231602 | Q192: 1996-12-10 | R192: 7.633333333 | T192: 2022-11-29 | U192: 17.05 | W192: 1997-03-25 | X192: 11.2 | AC192: 2004-07-28 | AD192: 8.403333333
B193: 2011-02-16 | C193: 13.24666667 | E193: 2020-04-07 | F193: 12.75 | H193: 2021-01-21 | I193: 10.64 | N193: 2023-12-06 | O193: 12.19940326 | Q193: 1996-12-23 | R193: 11.46666667 | T193: 2022-12-13 | U193: 14.74 | W193: 1997-04-08 | X193: 11.13333333 | AC193: 2004-08-11 | AD193: 6.37
B194: 2011-03-08 | C194: 9.896666667 | E194: 2020-04-24 | F194: 12.43 | H194: 2021-02-04 | I194: 11.57 | N194: 2023-12-20 | O194: 13.27505485 | Q194: 1997-01-14 | R194: 17.53333333 | T194: 2022-12-28 | U194: 19.08 | W194: 1997-04-15 | X194: 10.46666667 | AC194: 2004-08-14 | AD194: 6.076666667
B195: 2011-03-22 | C195: 10.19 | E195: 2020-05-15 | F195: 14.39 | H195: 2021-02-24 | I195: 11.62 | N195: 2024-01-05 | O195: 13.68489643 | Q195: 1997-01-28 | R195: 14.46666667 | T195: 2023-01-26 | U195: 12.69459441 | W195: 1997-04-22 | X195: 8.833333333 | AC195: 2004-08-25 | AD195: 30.03
B196: 2011-04-06 | C196: 16.14666667 | E196: 2020-05-29 | F196: 15.9 | H196: 2021-03-09 | I196: 17.01 | N196: 2024-01-26 | O196: 21.56 | Q196: 1997-02-11 | R196: 9.933333333 | T196: 2023-02-14 | U196: 13.39 | W196: 1997-04-29 | X196: 8.833333333 | AC196: 2004-09-08 | AD196: 7.016666667
B197: 2011-04-21 | C197: 13.44666667 | E197: 2020-06-12 | F197: 14.38 | H197: 2021-03-23 | I197: 11.2 | N197: 2024-02-13 | O197: 13.75135184 | Q197: 1997-02-25 | R197: 12.53333333 | T197: 2023-02-28 | U197: 13.82 | W197: 1997-05-07 | X197: 9.166666667 | AC197: 2004-09-22 | AD197: 7.243333333
B198: 2011-05-04 | C198: 10.51333333 | E198: 2020-07-10 | F198: 23.14 | H198: 2021-04-07 | I198: 15.81 | N198: 2024-03-13 | O198: 13.23152998 | Q198: 1997-03-11 | R198: 10.53333333 | T198: 2023-03-21 | U198: 12.30159294 | W198: 1997-05-13 | X198: 8.7 | AC198: 2004-10-06 | AD198: 7.126666667
B199: 2011-05-17 | C199: 12.55333333 | E199: 2020-07-24 | F199: 13.78 | H199: 2021-04-19 | I199: 14.58 | Q199: 1997-03-25 | R199: 14.2 | T199: 2023-04-07 | U199: 17.55 | W199: 1997-05-20 | X199: 9.1 | AC199: 2004-10-08 | AD199: 8.223333333
B200: 2011-06-02 | C200: 13.28 | E200: 2020-08-07 | F200: 16.4 | H200: 2021-05-05 | I200: 15.35 | Q200: 1997-04-08 | R200: 12.7 | T200: 2023-04-26 | U200: 13.07597975 | W200: 1997-05-27 | X200: 11.16666667 | AC200: 2004-10-20 | AD200: 6.87
B201: 2011-06-14 | C201: 10.46333333 | E201: 2020-09-15 | F201: 15.81 | H201: 2021-05-26 | I201: 17.5 | Q201: 1997-04-15 | R201: 11.3 | T201: 2023-05-10 | U201: 16.53144552 | W201: 1997-06-03 | X201: 19.63333333 | AC201: 2004-11-03 | AD201: 5.996666667
B202: 2011-06-29 | C202: 9.25 | E202: 2020-09-29 | F202: 13.64 | H202: 2021-06-08 | I202: 14.39 | Q202: 1997-04-22 | R202: 9.666666667 | T202: 2023-05-31 | U202: 16.05384897 | W202: 1997-06-10 | X202: 20.53333333 | AC202: 2004-11-17 | AD202: 3.783333333
B203: 2011-07-13 | C203: 13.55666667 | E203: 2020-10-14 | F203: 12.18 | H203: 2021-06-28 | I203: 20.79 | Q203: 1997-04-29 | R203: 12.1 | T203: 2023-06-13 | U203: 22.27567326 | W203: 1997-06-17 | X203: 11.93333333 | AC203: 2004-11-26 | AD203: 7.7
B204: 2011-07-29 | C204: 16.17666667 | E204: 2020-11-03 | F204: 10.78 | H204: 2021-07-12 | I204: 14.36 | Q204: 1997-05-07 | R204: 10.5 | T204: 2023-06-30 | U204: 18.64896468 | W204: 1997-06-24 | X204: 17.03333333 | AC204: 2004-12-01 | AD204: 5.143333333
B205: 2011-08-10 | C205: 13.22333333 | E205: 2020-11-19 | F205: 12.12 | H205: 2021-07-28 | I205: 18.56 | Q205: 1997-05-13 | R205: 10.26666667 | T205: 2023-07-14 | U205: 19.76504281 | W205: 1997-07-01 | X205: 15.86666667 | AC205: 2004-12-17 | AD205: 7.453333333
B206: 2011-08-24 | C206: 16.36 | E206: 2020-12-04 | F206: 9.78 | H206: 2021-08-16 | I206: 11.83 | Q206: 1997-05-20 | R206: 10.03333333 | T206: 2023-07-28 | U206: 19.52527097 | W206: 1997-07-08 | X206: 14.6 | AC206: 2004-12-22 | AD206: 8.136666667
B207: 2011-09-07 | C207: 7.61 | E207: 2020-12-17 | F207: 10.25 | H207: 2021-08-31 | I207: 11.25 | Q207: 1997-05-27 | R207: 9.9 | T207: 2023-08-15 | U207: 17.05953224 | W207: 1997-07-15 | X207: 18.76666667 | AC207: 2005-01-06 | AD207: 8.223333333
B208: 2011-09-21 | C208: 8.47 | E208: 2021-01-05 | F208: 9.72 | H208: 2021-09-22 | I208: 10.39 | Q208: 1997-06-03 | R208: 13.1 | T208: 2023-08-30 | U208: 23.45009427 | W208: 1997-07-22 | X208: 14.6 | AC208: 2005-01-20 | AD208: 7.276666667
B209: 2011-10-05 | C209: 6.836666667 | E209: 2021-01-21 | F209: 10.06 | H209: 2021-10-05 | I209: 12.76 | Q209: 1997-06-10 | R209: 14.13333333 | W209: 1997-08-05 | X209: 9.466666667 | AC209: 2005-02-02 | AD209: 6.056666667
B210: 2011-10-26 | C210: 9.876666667 | E210: 2021-02-04 | F210: 10.12 | H210: 2021-10-25 | I210: 12.06 | Q210: 1997-06-17 | R210: 11.83333333 | W210: 1997-08-19 | X210: 10.4 | AC210: 2005-02-09 | AD210: 8.136666667
B211: 2011-11-08 | C211: 10.17 | E211: 2021-02-24 | F211: 11.51 | H211: 2021-11-10 | I211: 10.32 | Q211: 1997-06-24 | R211: 12.7 | W211: 1997-09-02 | X211: 15.1 | AC211: 2005-02-16 | AD211: 7.173333333
B212: 2011-11-22 | C212: 10.19 | E212: 2021-03-09 | F212: 12.91 | H212: 2021-11-30 | I212: 14.33 | Q212: 1997-07-01 | R212: 13.8 | W212: 1997-09-16 | X212: 11.6 | AC212: 2005-03-03 | AD212: 5.653333333
B213: 2011-12-07 | C213: 18.65666667 | E213: 2021-03-23 | F213: 9.83 | H213: 2021-12-16 | I213: 15.84 | Q213: 1997-07-15 | R213: 13.73333333 | W213: 1997-09-30 | X213: 12.8 | AC213: 2005-03-24 | AD213: 6.626666667
... 663 more rows

Sheet Stream Probe
J2: Chart 1 | N2: Chart 2 | BE2: Sites | BF2: =TODAY() -> 2024-03-21 | BL2: Stone
I3: Year | J3: 2024 | M3: Year | N3: 2023 | BB3: Chart 4 | BE3: Stone | BG3: Oxygen | BH3: mg/L | BL3: Vet's
I4: Parameter | J4: Temperature | M4: Parameter | N4: Temperature | BB4: Temperature 2024 | BE4: Vet's | BG4: Temperature | BH4: °F | BL4: Haze
I5: Site 1 | J5: Stone | M5: Site 1 | N5: Stone | BB5: degrees F | BE5: Haze | BG5: pH | BL5: Carter
I6: Site 2 | J6: Pioneer | M6: Site 2 | N6: Pioneer | BE6: Carter | BG6: Conductivity | BH6: S/cm | BL6: Pioneer
I7: Site 3 | J7: USGS | M7: Site 3 | N7: USGS | BE7: Pioneer | BL7: USGS
BE8: USGS | BL8: NB Ind Hill
BB9: Temperature 2023 | BE9: NB Ind Hill | BL9: NB Dead
BB10: degrees F | BE10: NB Dead | BL10: Vet's
BB14: Stone | BE14: Stone
BB15: Pioneer | BE15: Pioneer
BB16: USGS | BE16: USGS
B35: =YEAR(MIN(B39:B3000)) -> 2015
B36: =YEAR(MAX(B39:B3000)) -> 2024
B37: =COUNT(B39:B50000) -> 199 | C37: Stone | D37: Stone | E37: Stone | F37: Stone | H37: Vet's | I37: Vet's | J37: Vet's | K37: Vet's | M37: Haze | N37: Haze | O37: Haze | P37: Haze | R37: Carter | S37: Carter | T37: Carter | U37: Carter | W37: Pioneer | X37: Pioneer | Y37: Pioneer | Z37: Pioneer | AB37: USGS | AC37: USGS | AD37: USGS | AE37: USGS | AG37: NB Ind Hill | AH37: NB Ind Hill | AI37: NB Ind Hill | AJ37: =COUNT(AJ39:AJ50000) -> 177 | AL37: NB Dead | AM37: NB Dead | AN37: NB Dead | AO37: =COUNT(AO39:AO50000) -> 195
B38: Date | C38: DO | D38: Temp | E38: pH | F38: Cond | H38: DO | I38: Temp | J38: pH | K38: Cond | M38: DO | N38: Temp | O38: pH | P38: Cond | R38: DO | S38: Temp | T38: pH | U38: Cond | W38: DO | X38: Temp | Y38: pH | Z38: Cond | AB38: DO | AC38: Temp | AD38: pH | AE38: Cond | AG38: DO | AH38: Temp | AI38: pH | AJ38: Cond | AL38: DO | AM38: Temp | AN38: pH | AO38: Cond | BA38: Date | BB38: Day | BC38: Value | BE38: Date | BF38: Day | BG38: Value | BI38: Date | BJ38: Day | BK38: Value | BM38: Date | BN38: Day | BO38: Value | BQ38: Date | BR38: Day | BS38: Value | BU38: Date | BV38: Day | BW38: Value
B39: 2015-01-29 | AB39: 13.77 | AC39: 35.23 | AD39: 7.74 | AE39: 193 | AL39: 13.32 | AM39: 34.98 | AN39: 7.83 | AO39: 189 | BA39: 2024-01-05 | BB39: =BA39-DATE(YEAR(BA39),1,0) -> 5 | BC39: 37.6 | BE39: 2024-01-05 | BF39: =BB39 -> 5 | BG39: 38.2 | BI39: 2024-01-05 | BJ39: =BB39 -> 5 | BK39: 38.3 | BM39: 2023-01-26 | BN39: =BM39-DATE(YEAR(BM39),1,0) -> 26 | BO39: 37.2 | BQ39: 2023-01-26 | BR39: =BN39 -> 26 | BS39: 38.4 | BU39: 2023-01-26 | BV39: =BN39 -> 26 | BW39: 38.6
B40: 2015-02-12 | AB40: 13.82 | AC40: 32.31 | AD40: 7.67 | AE40: 185 | AL40: 13.31 | AM40: 32.47 | AN40: 7.86 | AO40: 180 | BA40: 2024-01-26 | BB40: =BA40-DATE(YEAR(BA40),1,0) -> 26 | BC40: 37.9 | BE40: 2024-01-26 | BF40: =BB40 -> 26 | BG40: 40 | BI40: 2024-01-26 | BJ40: =BB40 -> 26 | BK40: 40.5 | BM40: 2023-02-14 | BN40: =BM40-DATE(YEAR(BM40),1,0) -> 45 | BO40: 39.7 | BQ40: 2023-02-14 | BR40: =BN40 -> 45 | BS40: 40.1 | BU40: 2023-02-14 | BV40: =BN40 -> 45 | BW40: 40.4
B41: 2015-02-25 | AB41: 14.26 | AC41: 32.64 | AD41: 7.83 | AE41: 186 | AL41: 12.99 | AM41: 32.85 | AN41: 7.7 | AO41: 183 | BA41: 2024-02-13 | BB41: 44 | BC41: 38.2 | BE41: 2024-02-13 | BF41: 44 | BG41: 39.1 | BI41: 2024-02-13 | BJ41: 44 | BK41: 39 | BM41: 2023-02-28 | BN41: 59 | BO41: 38.9 | BQ41: 2023-02-28 | BR41: 59 | BS41: 39.6 | BU41: 2023-02-28 | BV41: 59 | BW41: 39.6
B42: 2015-03-12 | AB42: 12.64 | AC42: 37.81 | AD42: 7.76 | AE42: 207 | AL42: 9.27 | AM42: 35.47 | AN42: 7.64 | AO42: 187 | BA42: 2024-02-27 | BB42: 58 | BC42: 42.7 | BE42: 2024-02-27 | BF42: 58 | BG42: 45 | BI42: 2024-02-27 | BJ42: 58 | BK42: 45.9 | BM42: 2023-03-21 | BN42: 80 | BO42: 37 | BQ42: 2023-03-21 | BR42: 80 | BS42: 38.2 | BU42: 2023-03-21 | BV42: 80 | BW42: 38.5
B43: 2015-03-26 | AB43: 10.94 | AC43: 39.55 | AD43: 7.9 | AE43: 210 | AL43: 10.79 | AM43: 36.98 | AN43: 7.78 | AO43: 157 | BA43: 2024-03-13 | BB43: 73 | BC43: 45.1 | BE43: 2024-03-13 | BF43: 73 | BG43: 45.3 | BI43: 2024-03-13 | BJ43: 73 | BK43: 44.5 | BM43: 2023-04-07 | BN43: 97 | BO43: 39.6 | BQ43: 2023-04-07 | BR43: 97 | BS43: 41.2 | BU43: 2023-04-07 | BV43: 97 | BW43: 41.4
B44: 2015-04-08 | AB44: 10.12 | AC44: 41.78 | AD44: 7.68 | AE44: 214 | AL44: 10.08 | AM44: 39.68 | AN44: 7.84 | AO44: 150 | BB44: 0 | BF44: 0 | BJ44: 0 | BM44: 2023-04-26 | BN44: 116 | BO44: 47.1 | BQ44: 2023-04-26 | BR44: 116 | BS44: 46.1 | BU44: 2023-04-26 | BV44: 116 | BW44: 45.8
B45: 2015-04-29 | AB45: 11.38 | AC45: 45.56 | AD45: 7.63 | AE45: 233 | AL45: 10.33 | AM45: 48.22 | AN45: 7.86 | AO45: 194 | BB45: 0 | BF45: 0 | BJ45: 0 | BM45: 2023-05-10 | BN45: 130 | BO45: 59.9 | BQ45: 2023-05-10 | BR45: 130 | BS45: 59.1 | BU45: 2023-05-10 | BV45: 130 | BW45: 57.8
B46: 2015-05-12 | AB46: 10.93 | AC46: 50.75 | AD46: 7.65 | AE46: 253 | AL46: 8.55 | AM46: 52.97 | AN46: 7.74 | AO46: 217 | BB46: 0 | BF46: 0 | BJ46: 0 | BM46: 2023-05-31 | BN46: 151 | BO46: 68.4 | BQ46: 2023-05-31 | BR46: 151 | BS46: 65.1 | BU46: 2023-05-31 | BV46: 151 | BW46: 64.1
B47: 2015-05-26 | AB47: 10.11 | AC47: 58.3 | AD47: 7.68 | AE47: 271 | AL47: 2.35 | AM47: 61.68 | AN47: 7.86 | AO47: 206 | BB47: 0 | BF47: 0 | BJ47: 0 | BM47: 2023-06-13 | BN47: 164 | BO47: 58 | BQ47: 2023-06-13 | BR47: 164 | BS47: 55 | BU47: 2023-06-13 | BV47: 164 | BW47: 54.3
B48: 2015-06-09 | AB48: 9.7 | AC48: 57.75 | AD48: 8.04 | AE48: 270 | AL48: 7.92 | AM48: 62.06 | AN48: 8.09 | AO48: 226 | BB48: 0 | BF48: 0 | BJ48: 0 | BM48: 2023-06-30 | BN48: 181 | BO48: 65.3 | BQ48: 2023-06-30 | BR48: 181 | BS48: 63.8 | BU48: 2023-06-30 | BV48: 181 | BW48: 62.5
B49: 2015-06-23 | AB49: 10.5 | AC49: 58.74 | AD49: 7.59 | AE49: 277 | AG49: 10.61 | AH49: 51.2 | AI49: 8.07 | AJ49: 319.8 | AL49: 7.91 | AM49: 62.68 | AN49: 8.28 | AO49: 236 | BB49: 0 | BF49: 0 | BJ49: 0 | BM49: 2023-07-14 | BN49: 195 | BO49: 69.8 | BQ49: 2023-07-14 | BR49: 195 | BS49: 65.9 | BU49: 2023-07-14 | BV49: 195 | BW49: 63.9
B50: 2015-07-06 | AB50: 10.73 | AC50: 62.6 | AD50: 8.35 | AE50: 340 | AG50: 10.93 | AH50: 52.5 | AI50: 8.28 | AJ50: 320.7 | AL50: 10.3 | AM50: 61.4 | AN50: 8 | AO50: 325.9 | BB50: 0 | BF50: 0 | BJ50: 0 | BM50: 2023-07-28 | BN50: 209 | BO50: 73.7 | BQ50: 2023-07-28 | BR50: 209 | BS50: 69.3 | BU50: 2023-07-28 | BV50: 209 | BW50: 67.2
B51: 2015-07-21 | AB51: 10.09 | AC51: 59.5 | AD51: 8.18 | AE51: 350.9 | AG51: 10.85 | AH51: 50.6 | AI51: 8.19 | AJ51: 323.9 | AL51: 9.49 | AM51: 59.7 | AN51: 7.93 | AO51: 321.8 | BB51: 0 | BF51: 0 | BJ51: 0 | BM51: 2023-08-15 | BN51: 227 | BO51: 63.4 | BQ51: 2023-08-15 | BR51: 227 | BS51: 60.8 | BU51: 2023-08-15 | BV51: 227 | BW51: 60.5
B52: 2015-08-05 | C52: 9.08 | D52: 62 | E52: 8.05 | F52: 328.2 | AB52: 10.5 | AC52: 57.2 | AD52: 8.15 | AE52: 354.1 | AG52: 11.11 | AH52: 49.5 | AI52: 8.23 | AJ52: 325 | AL52: 9.03 | AM52: 56.7 | AN52: 7.92 | AO52: 326.8 | BB52: 0 | BF52: 0 | BJ52: 0 | BM52: 2023-08-30 | BN52: 242 | BO52: 63.9 | BQ52: 2023-08-30 | BR52: 242 | BS52: 60.7 | BU52: 2023-08-30 | BV52: 242 | BW52: 59.5
B53: 2015-08-20 | C53: 9.42 | D53: 65.4 | E53: 8.15 | F53: 321 | AB53: 10.05 | AC53: 60.3 | AD53: 8.26 | AE53: 345.3 | AG53: 10.4 | AH53: 52 | AI53: 8.12 | AJ53: 319.4 | AL53: 8.32 | AM53: 65.6 | AN53: 7.96 | AO53: 285.8 | BB53: 0 | BF53: 0 | BJ53: 0 | BM53: 2023-11-07 | BN53: 311 | BO53: 46.1 | BQ53: 2023-11-07 | BR53: 311 | BS53: 46.4 | BU53: 2023-11-07 | BV53: 311 | BW53: 46.3
B54: 2015-09-02 | C54: 8.05 | D54: 65.6 | E54: 8.09 | F54: 343.1 | AB54: 8.84 | AC54: 60.6 | AD54: 8.09 | AE54: 370 | AG54: 9.81 | AH54: 51.5 | AI54: 8.04 | AJ54: 339.6 | AL54: 7.67 | AM54: 66.2 | AN54: 8 | AO54: 304.8 | BB54: 0 | BF54: 0 | BJ54: 0 | BM54: 2023-11-22 | BN54: 326 | BO54: 44 | BQ54: 2023-11-22 | BR54: 326 | BS54: 43.7 | BU54: 2023-11-22 | BV54: 326 | BW54: 43.5
B55: 2015-09-16 | C55: 9.77 | D55: 61.7 | E55: 8.29 | F55: 325.9 | AB55: 10.71 | AC55: 57.5 | AD55: 8.36 | AE55: 350.4 | AG55: 10.79 | AH55: 50.9 | AI55: 8.25 | AJ55: 324.3 | AL55: 8.73 | AM55: 63.3 | AN55: 8.19 | AO55: 259.8 | BB55: 0 | BF55: 0 | BJ55: 0 | BM55: 2023-12-06 | BN55: 340 | BO55: 40.6 | BQ55: 2023-12-06 | BR55: 340 | BS55: 41 | BU55: 2023-12-06 | BV55: 340 | BW55: 41.2
B56: 2015-10-05 | C56: 10.28 | D56: 54.9 | E56: 8.13 | F56: 335.3 | AB56: 11.16 | AC56: 52.5 | AD56: 8.18 | AE56: 358.1 | AG56: 11.24 | AH56: 48.7 | AI56: 8.13 | AJ56: 323.9 | AL56: 9.97 | AM56: 53.7 | AN56: 8.08 | AO56: 278.1 | BB56: 0 | BF56: 0 | BJ56: 0 | BM56: 2023-12-20 | BN56: 354 | BO56: 38.2 | BQ56: 2023-12-20 | BR56: 354 | BS56: 39 | BU56: 2023-12-20 | BV56: 354 | BW56: 39.2
B57: 2015-10-26 | C57: 11.25 | D57: 48.2 | E57: 7.9 | F57: 336.9 | AB57: 12.2 | AC57: 45.6 | AD57: 8.13 | AE57: 357.4 | AG57: 12.07 | AH57: 44.7 | AI57: 8.14 | AJ57: 319.8 | AL57: 10.22 | AM57: 44.8 | AN57: 7.88 | AO57: 299.2 | BB57: 0 | BF57: 0 | BJ57: 0 | BN57: 0 | BR57: 0 | BV57: 0
B58: 2015-11-17 | C58: 11.15 | D58: 46.8 | E58: 7.96 | F58: 333.3 | AB58: 11.76 | AC58: 47.4 | AD58: 8.29 | AE58: 354 | AG58: 11.63 | AH58: 46.8 | AI58: 8.21 | AJ58: 317.7 | AL58: 10.5 | AM58: 45.2 | AN58: 7.96 | AO58: 283.6 | BB58: 0 | BF58: 0 | BJ58: 0 | BN58: 0 | BR58: 0 | BV58: 0
B59: 2015-12-02 | C59: 11.67 | D59: 41.4 | E59: 7.97 | F59: 328.8 | AB59: 11.79 | AC59: 41.5 | AD59: 8.07 | AE59: 351.6 | AG59: 11.72 | AH59: 42.3 | AI59: 8.14 | AJ59: 304.7 | AL59: 11.52 | AM59: 37.4 | AN59: 8 | AO59: 258.1 | BB59: 0 | BF59: 0 | BJ59: 0 | BN59: 0 | BR59: 0 | BV59: 0
B60: 2015-12-16 | C60: 11.41 | D60: 42.8 | E60: 7.99 | F60: 327.7 | AB60: 11.42 | AC60: 43.3 | AD60: 8.08 | AE60: 348 | AG60: 11.4 | AH60: 43.7 | AI60: 8.12 | AJ60: 300.6 | AL60: 9.56 | AM60: 42.2 | AN60: 7.91 | AO60: 237.1 | BB60: 0 | BF60: 0 | BJ60: 0 | BN60: 0 | BR60: 0 | BV60: 0
B61: 2016-01-06 | C61: 12.96 | D61: 35.9 | E61: 8.05 | F61: 333.9 | AB61: 12.97 | AC61: 37.1 | AD61: 8.12 | AE61: 354.3 | AG61: 12.3 | AH61: 40.5 | AI61: 8.22 | AJ61: 314.8 | AL61: 12.89 | AM61: 35 | AN61: 8.09 | AO61: 293.9 | BB61: 0 | BF61: 0 | BJ61: 0 | BN61: 0 | BR61: 0 | BV61: 0
B62: 2016-01-21 | C62: 13.26 | D62: 34.5 | E62: 8.11 | F62: 331.9 | AB62: 13.55 | AC62: 34.5 | AD62: 8.13 | AE62: 353.8 | AG62: 12.97 | AH62: 37.7 | AI62: 8.2 | AJ62: 315.7 | AL62: 12.1 | AM62: 33.8 | AN62: 8.08 | AO62: 311.1 | BB62: 0 | BF62: 0 | BJ62: 0 | BN62: 0 | BR62: 0 | BV62: 0
B63: 2016-02-01 | C63: 12.49 | D63: 38 | E63: 8.25 | F63: 324.8 | AB63: 12.5 | AC63: 40.1 | AD63: 8.19 | AE63: 346.2 | AG63: 12.29 | AH63: 40.7 | AI63: 8.28 | AJ63: 298.4 | AL63: 10.71 | AM63: 37 | AN63: 7.95 | AO63: 289.8 | BB63: 0 | BF63: 0 | BJ63: 0 | BN63: 0 | BR63: 0 | BV63: 0
B64: 2016-02-19 | C64: 12.42 | D64: 37.5 | E64: 8.17 | F64: 325.1 | AB64: 12.31 | AC64: 39.3 | AD64: 8.32 | AE64: 349.9 | AG64: 11.93 | AH64: 41.9 | AI64: 8.3 | AJ64: 311.2 | AL64: 9.88 | AM64: 37 | AN64: 8.17 | AO64: 322.7 | BB64: 0 | BF64: 0 | BJ64: 0 | BN64: 0 | BR64: 0 | BV64: 0
B65: 2016-03-07 | C65: 12.33 | D65: 39.8 | E65: 8.26 | F65: 328.9 | AB65: 12.48 | AC65: 42.5 | AD65: 8.3 | AE65: 350.2 | AG65: 11.99 | AH65: 43 | AI65: 8.32 | AJ65: 295.7 | AL65: 10.31 | AM65: 41.2 | AN65: 8.17 | AO65: 298.3 | BB65: 0 | BF65: 0 | BJ65: 0 | BN65: 0 | BR65: 0 | BV65: 0
B66: 2016-03-30 | C66: 11.81 | D66: 43 | E66: 8.12 | F66: 325.5 | AB66: 12.02 | AC66: 43.9 | AD66: 8.23 | AE66: 344.9 | AG66: 11.99 | AH66: 44.3 | AI66: 8.22 | AJ66: 307.4 | AL66: 11.46 | AM66: 44.1 | AN66: 8.17 | AO66: 264.6 | BB66: 0 | BF66: 0 | BJ66: 0 | BN66: 0 | BR66: 0 | BV66: 0
B67: 2016-04-15 | C67: 11.79 | D67: 45 | E67: 8.13 | F67: 325.5 | AB67: 11.84 | AC67: 46.3 | AD67: 8.19 | AE67: 345.5 | AG67: 12.03 | AH67: 46.8 | AI67: 8.25 | AJ67: 312.1 | AL67: 11.82 | AM67: 47.8 | AN67: 8.13 | AO67: 275.7 | BB67: 0 | BF67: 0 | BJ67: 0 | BN67: 0 | BR67: 0 | BV67: 0
B68: 2016-04-26 | C68: 10.94 | D68: 49 | E68: 7.98 | F68: 323.1 | AB68: 11.8 | AC68: 47.6 | AD68: 8.04 | AE68: 343.9 | AG68: 11.73 | AH68: 45.4 | AI68: 8.1 | AJ68: 297.5 | AL68: 9.41 | AM68: 47.3 | AN68: 7.93 | AO68: 270.6 | BB68: 0 | BF68: 0 | BJ68: 0 | BN68: 0 | BR68: 0 | BV68: 0
B69: 2016-05-09 | C69: 10.53 | D69: 51.4 | E69: 8.14 | F69: 326.1 | AB69: 11.33 | AC69: 48.6 | AD69: 8.23 | AE69: 348.9 | AG69: 12.01 | AH69: 45.9 | AI69: 8.21 | AJ69: 318.3 | AL69: 10.52 | AM69: 51.5 | AN69: 8.28 | AO69: 292.5 | BB69: 0 | BF69: 0 | BJ69: 0 | BN69: 0 | BR69: 0 | BV69: 0
B70: 2016-05-27 | C70: 9.63 | D70: 65.7 | E70: 8.09 | F70: 325.7 | AB70: 10.69 | AC70: 61 | AD70: 8.25 | AE70: 346.8 | AG70: 11.27 | AH70: 52.3 | AI70: 8.36 | AJ70: 318.9 | AL70: 7.83 | AM70: 64.7 | AN70: 7.75 | AO70: 326.7 | BB70: 0 | BF70: 0 | BJ70: 0 | BN70: 0 | BR70: 0 | BV70: 0
B71: 2016-06-15 | C71: 9.17 | D71: 62 | E71: 8.16 | F71: 318.5 | W71: 9.32 | X71: 58.7 | Y71: 8.11 | Z71: 337 | AB71: 9.65 | AC71: 57.6 | AD71: 8.14 | AE71: 345.1 | AG71: 10.06 | AH71: 50.8 | AI71: 8.17 | AJ71: 315.1 | AL71: 8.93 | AM71: 56.2 | AN71: 8.02 | AO71: 322.7 | BB71: 0 | BF71: 0 | BJ71: 0 | BN71: 0 | BR71: 0 | BV71: 0
B72: 2016-06-28 | C72: 9.31 | D72: 64.4 | E72: 8.21 | F72: 322.5 | W72: 9.96 | X72: 61.1 | Y72: 8.44 | Z72: 339.5 | AB72: 10.4 | AC72: 60.3 | AD72: 8.35 | AE72: 346.2 | AG72: 10.93 | AH72: 51.6 | AI72: 8.36 | AJ72: 321.2 | AL72: 9.4 | AM72: 64.1 | AN72: 8.37 | AO72: 290.2 | BB72: 0 | BF72: 0 | BJ72: 0 | BN72: 0 | BR72: 0 | BV72: 0
B73: 2016-07-13 | C73: 8.59 | D73: 67.9 | E73: 8.11 | F73: 326.1 | W73: 9.54 | X73: 65 | Y73: 8.29 | Z73: 339.9 | AB73: 9.81 | AC73: 63.9 | AD73: 8.34 | AE73: 348.3 | AG73: 10.43 | AH73: 53.1 | AI73: 8.34 | AJ73: 324.3 | AL73: 8.51 | AM73: 64.1 | AN73: 8.18 | AO73: 334.2 | BB73: 0 | BF73: 0 | BJ73: 0 | BN73: 0 | BR73: 0 | BV73: 0
B74: 2016-07-26 | C74: 8.85 | D74: 67.6 | E74: 8.24 | F74: 325.5 | W74: 9.93 | X74: 63.8 | Y74: 8.49 | Z74: 339.8 | AB74: 10.3 | AC74: 62.9 | AD74: 8.45 | AE74: 347.8 | AG74: 10.71 | AH74: 52.1 | AI74: 8.47 | AJ74: 323.7 | AL74: 9.02 | AM74: 61.2 | AN74: 8.22 | AO74: 334.9 | BB74: 0 | BF74: 0 | BJ74: 0 | BN74: 0 | BR74: 0 | BV74: 0
B75: 2016-08-09 | C75: 9.12 | D75: 64.5 | E75: 8.05 | F75: 329.4 | W75: 10.52 | X75: 61.6 | Y75: 8.4 | Z75: 341 | AB75: 10.97 | AC75: 61 | AD75: 8.39 | AE75: 348.6 | AG75: 10.9 | AH75: 51.9 | AI75: 8.43 | AJ75: 320.5 | AL75: 10.23 | AM75: 58.6 | AN75: 8.39 | AO75: 331.6 | BB75: 0 | BF75: 0 | BJ75: 0 | BN75: 0 | BR75: 0 | BV75: 0
B76: 2016-08-23 | C76: 9.15 | D76: 66.1 | E76: 8.21 | F76: 319.5 | W76: 10.33 | X76: 63.1 | Y76: 8.62 | Z76: 334.9 | AB76: 10.68 | AC76: 62.3 | AD76: 8.5 | AE76: 343.5 | AG76: 10.64 | AH76: 52.6 | AI76: 8.55 | AJ76: 321.6 | AL76: 9.42 | AM76: 65.7 | AN76: 8.47 | AO76: 287.3 | BB76: 0 | BF76: 0 | BJ76: 0 | BN76: 0 | BR76: 0 | BV76: 0
B77: 2016-09-16 | C77: 9.76 | D77: 60.9 | E77: 7.82 | F77: 328.2 | H77: 9.84 | I77: 58.6 | J77: 7.98 | K77: 332.7 | M77: 10.16 | N77: 58.5 | O77: 7.91 | P77: 335.8 | W77: 10.95 | X77: 58 | Y77: 8.42 | Z77: 339.3 | AB77: 11.48 | AC77: 57.3 | AD77: 8.56 | AE77: 345 | AG77: 10.99 | AH77: 50.8 | AI77: 8.46 | AJ77: 322.1 | AL77: 9.69 | AM77: 62.9 | AN77: 8.27 | AO77: 265.6 | BB77: 0 | BF77: 0 | BJ77: 0 | BN77: 0 | BR77: 0 | BV77: 0
B78: 2016-09-27 | C78: 9.54 | D78: 58.3 | E78: 7.93 | F78: 327.1 | H78: 9.51 | I78: 56.4 | J78: 8.25 | K78: 336 | M78: 9.76 | N78: 56.2 | O78: 8.03 | P78: 337.9 | W78: 10.28 | X78: 55.4 | Y78: 8.24 | Z78: 341.5 | AB78: 10.71 | AC78: 54.6 | AD78: 8.26 | AE78: 350.3 | AG78: 10.74 | AH78: 50.1 | AI78: 8.21 | AJ78: 321.4 | AL78: 9.25 | AM78: 55.2 | AN78: 8.11 | AO78: 288.2 | BB78: 0 | BF78: 0 | BJ78: 0 | BN78: 0 | BR78: 0 | BV78: 0
B79: 2016-10-14 | C79: 10.61 | D79: 51.2 | E79: 7.88 | F79: 330.1 | H79: 10.48 | I79: 50 | J79: 8.06 | K79: 338.4 | M79: 10.74 | N79: 49.9 | O79: 8 | P79: 340.3 | W79: 11.31 | X79: 49.4 | Y79: 8.22 | Z79: 343.6 | AB79: 11.76 | AC79: 48.9 | AD79: 8.3 | AE79: 352.4 | AG79: 11.44 | AH79: 46.2 | AI79: 8.45 | AJ79: 320.7 | AL79: 10.24 | AM79: 48.7 | AN79: 8.09 | AO79: 297.9 | BB79: 0 | BF79: 0 | BJ79: 0 | BN79: 0 | BR79: 0 | BV79: 0
B80: 2016-10-26 | C80: 10.86 | D80: 48.6 | E80: 8.12 | F80: 332.3 | H80: 10.96 | I80: 47.1 | J80: 7.85 | K80: 340.5 | M80: 11.05 | N80: 46.9 | O80: 8.09 | P80: 341.7 | W80: 11.23 | X80: 46.2 | Y80: 7.84 | Z80: 345.7 | AB80: 11.77 | AC80: 45.4 | AD80: 8 | AE80: 354.7 | AG80: 11.74 | AH80: 44.2 | AI80: 7.75 | AJ80: 321.3 | AL80: 11.23 | AM80: 44.9 | AN80: 7.76 | AO80: 284.9 | BB80: 0 | BF80: 0 | BJ80: 0 | BN80: 0 | BR80: 0 | BV80: 0
B81: 2016-11-16 | C81: 11.19 | D81: 47.2 | F81: 339.2 | H81: 11.22 | I81: 47.4 | K81: 345.2 | M81: 11.24 | N81: 47.4 | P81: 346.8 | W81: 11.66 | X81: 47.5 | Z81: 349.6 | AB81: 11.88 | AC81: 47.5 | AE81: 357.7 | AG81: 11.55 | AH81: 46.5 | AJ81: 320.1 | AL81: 11.65 | AM81: 47.6 | AO81: 299.8 | BB81: 0 | BF81: 0 | BJ81: 0 | BN81: 0 | BR81: 0 | BV81: 0
B82: 2016-12-28 | C82: 13.21 | D82: 36.6 | E82: 8.13 | F82: 341.4 | H82: 13.21 | I82: 36.9 | J82: 8.11 | K82: 345.9 | M82: 13.42 | N82: 36.8 | O82: 8.16 | P82: 345.9 | W82: 13.07 | X82: 37.2 | Y82: 8.19 | Z82: 351.6 | AB82: 13.34 | AC82: 37.3 | AD82: 8.19 | AE82: 351.6 | AG82: 12.9 | AH82: 39.4 | AI82: 8.32 | AJ82: 314.8 | AL82: 11.96 | AM82: 35.3 | AN82: 7.82 | AO82: 299.2 | BB82: 0 | BF82: 0 | BJ82: 0 | BN82: 0 | BR82: 0 | BV82: 0
B83: 2017-01-18 | C83: 12.69 | D83: 37.9 | E83: 8.17 | F83: 339.3 | H83: 12.65 | I83: 38.8 | J83: 8.12 | K83: 343.8 | M83: 12.83 | N83: 38.8 | O83: 8.17 | P83: 345 | W83: 12.17 | X83: 39.5 | Y83: 8.16 | Z83: 352.1 | AB83: 12.4 | AC83: 39.9 | AD83: 8.18 | AE83: 362.8 | AG83: 12.02 | AH83: 41.3 | AI83: 8.13 | AJ83: 311.3 | AL83: 10.08 | AM83: 36.9 | AN83: 7.7 | AO83: 315.1 | BB83: 0 | BF83: 0 | BJ83: 0 | BN83: 0 | BR83: 0 | BV83: 0
B84: 2017-01-31 | C84: 12.96 | D84: 37 | E84: 8.13 | F84: 336.7 | H84: 13.13 | I84: 37.1 | J84: 8.07 | K84: 342.2 | M84: 13.3 | N84: 37 | O84: 8.17 | P84: 343.6 | W84: 12.79 | X84: 37.5 | Y84: 8.16 | Z84: 348.5 | AB84: 12.95 | AC84: 37.5 | AD84: 8.15 | AE84: 358 | AG84: 12.59 | AH84: 39.4 | AI84: 8.21 | AJ84: 313.4 | AL84: 11.15 | AM84: 36.9 | AN84: 7.8 | AO84: 314.7 | BB84: 0 | BF84: 0 | BJ84: 0 | BN84: 0 | BR84: 0 | BV84: 0
B85: 2017-02-17 | C85: 12.64 | D85: 39.2 | E85: 8.17 | F85: 339.5 | H85: 12.79 | I85: 39.6 | J85: 8.16 | K85: 344.6 | M85: 12.94 | N85: 39.2 | O85: 8.23 | P85: 346.8 | W85: 12.52 | X85: 39.7 | Y85: 8.25 | Z85: 351.7 | AB85: 12.75 | AC85: 39.6 | AD85: 8.22 | AE85: 360.5 | AG85: 12.38 | AH85: 41.4 | AI85: 8.24 | AJ85: 318.1 | AL85: 11.86 | AM85: 39.2 | AN85: 7.93 | AO85: 327.1 | BB85: 0 | BF85: 0 | BJ85: 0 | BN85: 0 | BR85: 0 | BV85: 0
B86: 2017-02-28 | C86: 12.36 | D86: 38.7 | E86: 7.99 | F86: 335.4 | H86: 12.52 | I86: 39.1 | J86: 7.9 | K86: 341.6 | M86: 12.65 | N86: 39.1 | O86: 7.97 | P86: 343.8 | W86: 12.29 | X86: 39.3 | Y86: 8.04 | Z86: 349.4 | AB86: 12.44 | AC86: 39.5 | AD86: 8.06 | AE86: 359.8 | AG86: 11.96 | AH86: 41.2 | AI86: 8.1 | AJ86: 308.1 | AL86: 12.46 | AM86: 37.7 | AN86: 7.87 | AO86: 277.5 | BB86: 0 | BF86: 0 | BJ86: 0 | BN86: 0 | BR86: 0 | BV86: 0
B87: 2017-03-15 | C87: 13.17 | D87: 35.7 | E87: 8.08 | F87: 338.8 | H87: 13.42 | I87: 36 | J87: 8.03 | K87: 344.2 | M87: 13.69 | N87: 36 | O87: 8.08 | P87: 345.5 | W87: 13.34 | X87: 36.6 | Y87: 8.11 | Z87: 349.7 | AB87: 13.58 | AC87: 36.6 | AD87: 8.2 | AE87: 358.5 | AG87: 13.2 | AH87: 39 | AI87: 8.28 | AJ87: 316.6 | AL87: 13.83 | AM87: 36.3 | AN87: 8.02 | AO87: 295.8 | BB87: 0 | BF87: 0 | BJ87: 0 | BN87: 0 | BR87: 0 | BV87: 0
B88: 2017-03-29 | C88: 12.41 | D88: 39.8 | E88: 8.06 | F88: 334.6 | H88: 12.46 | I88: 40.5 | J88: 8.01 | K88: 340.1 | M88: 12.57 | N88: 40.5 | O88: 8.01 | P88: 341.1 | W88: 12.34 | X88: 41.1 | Y88: 8.17 | Z88: 346.7 | AB88: 12.66 | AC88: 41.4 | AD88: 8.13 | AE88: 354.2 | AG88: 12.57 | AH88: 42.6 | AI88: 8.27 | AJ88: 311.1 | AL88: 12.45 | AM88: 41.1 | AN88: 8.07 | AO88: 260.2 | BB88: 0 | BF88: 0 | BJ88: 0 | BN88: 0 | BR88: 0 | BV88: 0
B89: 2017-04-18 | C89: 11.38 | D89: 47.8 | E89: 8.2 | F89: 334.5 | H89: 11.52 | I89: 47.2 | J89: 8.14 | K89: 340.5 | M89: 11.56 | N89: 47.4 | O89: 8.11 | P89: 341.6 | W89: 11.35 | X89: 47.9 | Y89: 8.18 | Z89: 346.8 | AB89: 11.8 | AC89: 47.8 | AD89: 8.21 | AE89: 354.5 | AG89: 12.14 | AH89: 46.2 | AI89: 8.27 | AJ89: 313.4 | AL89: 7.9 | AM89: 45.4 | AN89: 7.5 | AO89: 264.7 | BB89: 0 | BF89: 0 | BJ89: 0 | BN89: 0 | BR89: 0 | BV89: 0
B90: 2017-05-03 | C90: 11.29 | D90: 47.1 | E90: 8.21 | F90: 334.5 | H90: 11.56 | I90: 46.5 | J90: 8.15 | K90: 339.3 | M90: 11.66 | N90: 46.6 | O90: 8.14 | P90: 340.9 | W90: 11.48 | X90: 47.3 | Y90: 8.18 | Z90: 346.7 | AB90: 11.92 | AC90: 47 | AD90: 8.24 | AE90: 354.7 | AG90: 12.27 | AH90: 45.7 | AI90: 8.24 | AJ90: 312.8 | AL90: 11.47 | AM90: 46.2 | AN90: 8.15 | AO90: 281.4 | BB90: 0 | BF90: 0 | BJ90: 0 | BN90: 0 | BR90: 0 | BV90: 0
B91: 2017-05-22 | C91: 10.06 | D91: 53.4 | E91: 8.15 | F91: 338.3 | H91: 10.21 | I91: 52.2 | J91: 8.06 | K91: 344.5 | M91: 10.47 | N91: 52.1 | O91: 8.07 | P91: 346.3 | W91: 10.63 | X91: 51.8 | Y91: 8.17 | Z91: 350.5 | AB91: 11.17 | AC91: 51.1 | AD91: 8.17 | AE91: 357 | AG91: 11.52 | AH91: 47.8 | AI91: 8.16 | AJ91: 321.5 | AL91: 11.17 | AM91: 52.2 | AN91: 8.29 | AO91: 303.9 | BB91: 0 | BF91: 0 | BJ91: 0 | BN91: 0 | BR91: 0 | BV91: 0
B92: 2017-06-06 | C92: 9.62 | D92: 62 | E92: 8.2 | F92: 334 | H92: 9.84 | I92: 59.8 | J92: 8.18 | K92: 341 | M92: 9.98 | N92: 59.9 | O92: 8.21 | P92: 342.7 | R92: 10.35 | S92: 50.7 | T92: 8.23 | U92: 362.8 | W92: 10.37 | X92: 61 | Y92: 8.34 | Z92: 346.3 | AB92: 11.34 | AC92: 59.7 | AD92: 8.44 | AE92: 352.9 | AG92: 11.27 | AH92: 51.9 | AI92: 8.31 | AJ92: 186.2 | AL92: 13.89 | AM92: 65.3 | AN92: 8.72 | AO92: 292.5 | BB92: 0 | BF92: 0 | BJ92: 0 | BN92: 0 | BR92: 0 | BV92: 0
B93: 2017-06-19 | C93: 8.94 | D93: 66 | E93: 8.18 | F93: 317.8 | H93: 9.18 | I93: 63.5 | J93: 8.13 | K93: 326.5 | M93: 9.35 | N93: 63.3 | O93: 8.13 | P93: 328 | R93: 9.94 | S93: 52.9 | T93: 8.15 | U93: 361.3 | W93: 9.69 | X93: 62.5 | Y93: 8.22 | Z93: 333 | AB93: 9.98 | AC93: 61.1 | AD93: 8.2 | AE93: 344 | AG93: 10.87 | AH93: 51.9 | AI93: 8.16 | AJ93: 317.5 | AL93: 11.44 | AM93: 63.8 | AN93: 8.26 | AO93: 291.5 | BB93: 0 | BF93: 0 | BJ93: 0 | BN93: 0 | BR93: 0 | BV93: 0
B94: 2017-07-05 | C94: 9.39 | D94: 64.4 | E94: 8.16 | F94: 326.1 | H94: 9.75 | I94: 62.1 | J94: 8.19 | K94: 336.1 | M94: 9.93 | N94: 62.4 | O94: 8.24 | P94: 337.3 | R94: 10.03 | S94: 52.9 | T94: 8.25 | U94: 366 | W94: 10.38 | X94: 62.5 | Y94: 8.38 | Z94: 341.3 | AB94: 10.68 | AC94: 61.5 | AD94: 8.39 | AE94: 350.2 | AG94: 11.08 | AH94: 52.6 | AI94: 8.31 | AJ94: 322.9 | AL94: 12.84 | AM94: 66.4 | AN94: 8.62 | AO94: 293.5 | BB94: 0 | BF94: 0 | BJ94: 0 | BN94: 0 | BR94: 0 | BV94: 0
B95: 2017-07-20 | C95: 9.17 | D95: 67.2 | E95: 8.29 | F95: 327.1 | H95: 9.28 | I95: 64.8 | J95: 8.25 | K95: 336.7 | M95: 9.48 | N95: 64.8 | O95: 8.3 | P95: 338.7 | R95: 9.88 | S95: 55.2 | T95: 8.36 | U95: 365.3 | W95: 10.34 | X95: 64.6 | Y95: 8.48 | Z95: 341.6 | AB95: 10.79 | AC95: 63.7 | AD95: 8.53 | AE95: 349.7 | AG95: 10.8 | AH95: 53.5 | AI95: 8.39 | AJ95: 324.1 | AL95: 11.04 | AM95: 67.2 | AN95: 8.48 | AO95: 303.1 | BB95: 0 | BF95: 0 | BJ95: 0 | BN95: 0 | BR95: 0 | BV95: 0
B96: 2017-08-01 | C96: 9.02 | D96: 65.9 | E96: 8.18 | F96: 330.6 | H96: 9.4 | I96: 63 | J96: 8.19 | K96: 342.7 | M96: 9.55 | N96: 63.4 | O96: 8.21 | P96: 342.8 | R96: 9.96 | S96: 54.1 | T96: 8.3 | U96: 271.1 | W96: 10.4 | X96: 63.3 | Y96: 8.42 | Z96: 343.7 | AB96: 11.3 | AC96: 63.3 | AD96: 8.53 | AE96: 350.5 | AG96: 10.78 | AH96: 52.9 | AI96: 8.3 | AJ96: 326.9 | AL96: 9.33 | AM96: 63.1 | AN96: 8.1 | AO96: 336 | BB96: 0 | BF96: 0 | BJ96: 0 | BN96: 0 | BR96: 0 | BV96: 0
B97: 2017-08-18 | C97: 9.11 | D97: 64.9 | E97: 8.09 | F97: 327.2 | H97: 9.14 | I97: 62.8 | J97: 8 | K97: 336 | M97: 9.39 | N97: 62.6 | O97: 8.08 | P97: 337.6 | R97: 9.91 | S97: 55.1 | T97: 8.12 | U97: 362 | W97: 9.63 | X97: 61.7 | Y97: 8.16 | Z97: 341.9 | AB97: 9.81 | AC97: 60.6 | AD97: 8.17 | AE97: 352.3 | AG97: 10.5 | AH97: 52.7 | AI97: 8.13 | AJ97: 327.8 | AL97: 7.98 | AM97: 63.9 | AN97: 7.95 | AO97: 294.6 | BB97: 0 | BF97: 0 | BJ97: 0 | BN97: 0 | BR97: 0 | BV97: 0
B98: 2017-09-06 | C98: 10.06 | D98: 58 | E98: 7.37 | F98: 331.4 | H98: 9.97 | I98: 55.7 | J98: 7.85 | K98: 340.2 | M98: 10.27 | N98: 55.6 | O98: 7.97 | P98: 342 | R98: 10.42 | S98: 50.8 | T98: 8.29 | U98: 361.6 | W98: 11.02 | X98: 54.9 | Y98: 8.26 | Z98: 343.5 | AB98: 11.26 | AC98: 53.9 | AD98: 8.25 | AE98: 354.6 | AG98: 10.8 | AH98: 49.2 | AI98: 8.04 | AJ98: 321.3 | AL98: 10.95 | AM98: 55.3 | AN98: 8.22 | AO98: 306.4 | BB98: 0 | BF98: 0 | BJ98: 0 | BN98: 0 | BR98: 0 | BV98: 0
B99: 2017-09-21 | C99: 9.18 | D99: 62.8 | E99: 8.09 | F99: 337.2 | H99: 8.93 | I99: 61 | J99: 7.96 | K99: 346.4 | M99: 9.36 | N99: 61 | O99: 8.06 | P99: 347.9 | R99: 9.72 | S99: 53.7 | T99: 8.15 | U99: 371.6 | W99: 10.28 | X99: 60.4 | Y99: 8.24 | Z99: 350.3 | AB99: 11.04 | AC99: 60.1 | AD99: 8.33 | AE99: 357.5 | AG99: 10.68 | AH99: 52.1 | AI99: 8.18 | AJ99: 328.2 | AL99: 11.72 | AM99: 63.5 | AN99: 8.42 | AO99: 301.2 | BB99: 0 | BF99: 0 | BJ99: 0 | BN99: 0 | BR99: 0 | BV99: 0
B100: 2017-10-11 | C100: 9.53 | D100: 55.6 | E100: 8.03 | F100: 339.3 | H100: 9.37 | I100: 53.8 | J100: 7.93 | K100: 347.9 | M100: 9.76 | N100: 53.7 | O100: 7.96 | P100: 348.6 | R100: 10.42 | S100: 48.9 | T100: 8.08 | U100: 369 | W100: 9.9 | X100: 52.8 | Y100: 8.08 | Z100: 353 | AB100: 10.54 | AC100: 52.1 | AD100: 8.04 | AE100: 360.6 | AG100: 11.09 | AH100: 48.2 | AI100: 8.09 | AJ100: 327.3 | AL100: 9.27 | AM100: 53.7 | AN100: 7.95 | AO100: 301.9 | BB100: 0 | BF100: 0 | BJ100: 0 | BN100: 0 | BR100: 0 | BV100: 0
B101: 2017-10-30 | C101: 10.61 | D101: 48.5 | E101: 7.89 | F101: 324.8 | H101: 10.73 | I101: 47.5 | J101: 8 | K101: 334.5 | M101: 10.92 | N101: 47.4 | O101: 8.01 | P101: 334.7 | R101: 11 | S101: 44.2 | T101: 8.07 | U101: 361.3 | W101: 11.18 | X101: 47 | Y101: 8.08 | Z101: 340 | AB101: 11.58 | AC101: 46.4 | AD101: 8.16 | AE101: 350.7 | AG101: 11.36 | AH101: 44.8 | AI101: 8.09 | AJ101: 303 | AL101: 10.17 | AM101: 43.7 | AN101: 7.79 | AO101: 244.9 | BB101: 0 | BF101: 0 | BJ101: 0 | BN101: 0 | BR101: 0 | BV101: 0
B102: 2017-11-17 | C102: 12.39 | D102: 41.6 | E102: 7.92 | F102: 335.9 | H102: 12.43 | I102: 41.6 | J102: 7.97 | K102: 341.6 | M102: 12.43 | N102: 41.5 | O102: 7.98 | P102: 343.8 | R102: 11.99 | S102: 41.7 | T102: 8.03 | U102: 361.8 | W102: 12.57 | X102: 41.8 | Y102: 8.11 | Z102: 347.9 | AB102: 13.12 | AC102: 41.9 | AD102: 8.22 | AE102: 356.6 | AG102: 12.49 | AH102: 42.5 | AI102: 8.16 | AJ102: 317.9 | AL102: 12.83 | AM102: 38.4 | AN102: 7.94 | AO102: 276.6 | BB102: 0 | BF102: 0 | BJ102: 0 | BN102: 0 | BR102: 0 | BV102: 0
B103: 2017-11-29 | C103: 12.71 | D103: 39.9 | E103: 7.89 | F103: 341.6 | H103: 12.7 | I103: 40.7 | J103: 7.9 | K103: 348 | M103: 12.79 | N103: 40.5 | O103: 8.01 | P103: 349.7 | R103: 12.07 | S103: 42 | T103: 8.1 | U103: 367.3 | W103: 12.57 | X103: 40.6 | Y103: 8.1 | Z103: 354.3 | AB103: 13.05 | AC103: 41 | AD103: 8.18 | AE103: 363.1 | AG103: 12.47 | AH103: 42.4 | AI103: 8.16 | AJ103: 324.1 | AL103: 12.96 | AM103: 39.5 | AN103: 8 | AO103: 291.1 | BB103: 0 | BF103: 0 | BJ103: 0 | BN103: 0 | BR103: 0 | BV103: 0
B104: 2017-12-15 | C104: 13.12 | D104: 34.9 | E104: 7.67 | F104: 338.3 | H104: 13.38 | I104: 34.8 | J104: 7.87 | K104: 343.5 | M104: 13.41 | N104: 34.7 | O104: 8.06 | P104: 345 | R104: 13.01 | S104: 35.8 | T104: 8.07 | U104: 359 | W104: 13.15 | X104: 34.9 | Y104: 8.03 | Z104: 349.5 | AB104: 14.06 | AC104: 35.1 | AD104: 8.11 | AE104: 358.8 | AG104: 12.85 | AH104: 38.5 | AI104: 8.12 | AJ104: 318.1 | AL104: 12.74 | AM104: 33.8 | AN104: 7.97 | AO104: 295 | BB104: =BA104-DATE(YEAR(BA104),1,0) -> 0 | BF104: =BB104 -> 0 | BJ104: =BB104 -> 0 | BN104: =BM104-DATE(YEAR(BM104),1,0) -> 0 | BR104: =BN104 -> 0 | BV104: =BN104 -> 0
B105: 2018-01-09 | C105: 13.32 | D105: 33.7 | E105: 7.93 | F105: 343.1 | H105: 13.42 | I105: 35 | J105: 7.98 | K105: 347.7 | M105: 13.51 | N105: 34.1 | O105: 7.95 | P105: 349.4 | R105: 12.96 | S105: 35.7 | T105: 8 | U105: 368.4 | W105: 13.22 | X105: 34.3 | Y105: 8.02 | Z105: 355.5 | AB105: 13.64 | AC105: 34.4 | AD105: 8.09 | AE105: 363.1 | AG105: 12.95 | AH105: 37.3 | AI105: 8.11 | AJ105: 323.4 | AL105: 10.58 | AM105: 35.3 | AN105: 7.85 | AO105: 319.3 | BB105: 0 | BF105: 0 | BJ105: 0 | BN105: 0 | BR105: 0 | BV105: 0
B106: 2018-01-24 | C106: 12.97 | D106: 35.6 | E106: 7.81 | F106: 337.3 | H106: 13.07 | I106: 36 | J106: 7.82 | K106: 341.6 | M106: 13.28 | N106: 36 | O106: 7.92 | P106: 340.1 | R106: 12.72 | S106: 37.3 | T106: 8.03 | U106: 357.6 | W106: 13.04 | X106: 36.2 | Y106: 8 | Z106: 347.7 | AB106: 13.36 | AC106: 36.4 | AD106: 8.12 | AE106: 356.5 | AG106: 12.85 | AH106: 38.5 | AI106: 8.16 | AJ106: 310 | AL106: 10.36 | AM106: 35 | AN106: 7.79 | AO106: 293.9 | BB106: 0 | BF106: 0 | BJ106: 0 | BN106: 0 | BR106: 0 | BV106: 0
B107: 2018-02-07 | C107: 13.53 | D107: 34.6 | E107: 8.1 | F107: 338.2 | H107: 13.74 | I107: 34.6 | J107: 8.08 | K107: 344.9 | M107: 14.2 | N107: 34.3 | O107: 8.09 | P107: 346.5 | R107: 14.03 | S107: 31.9 | T107: 8.12 | U107: 356.3 | W107: 13.79 | X107: 34.4 | Y107: 8.09 | Z107: 352.1 | AB107: 14.2 | AC107: 34.1 | AD107: 8.09 | AE107: 360.3 | AG107: 13.33 | AH107: 36.8 | AI107: 8.1 | AJ107: 321 | AL107: 10.52 | AM107: 35.2 | AN107: 7.86 | AO107: 327.2 | BB107: 0 | BF107: 0 | BJ107: 0 | BN107: 0 | BR107: 0 | BV107: 0
B108: 2018-02-23 | C108: 12.53 | D108: 37.9 | E108: 7.73 | F108: 336 | H108: 12.59 | I108: 38.6 | J108: 7.83 | K108: 342.2 | M108: 12.87 | N108: 38.6 | O108: 7.86 | P108: 343.7 | R108: 12.01 | S108: 40.6 | T108: 8.04 | U108: 362.4 | W108: 12.4 | X108: 39.2 | Y108: 8.03 | Z108: 348.7 | AB108: 12.66 | AC108: 39.7 | AD108: 8.07 | AE108: 361.7 | AG108: 12.06 | AH108: 40.9 | AI108: 8.05 | AJ108: 309 | AL108: 9.89 | AM108: 36.8 | AN108: 7.69 | AO108: 282.1 | BB108: 0 | BF108: 0 | BJ108: 0 | BN108: 0 | BR108: 0 | BV108: 0
B109: 2018-04-06 | C109: 12.93 | D109: 37.9 | E109: 7.95 | F109: 330.6 | H109: 12.94 | I109: 38 | J109: 7.96 | K109: 337.3 | M109: 13.34 | N109: 38 | O109: 8.01 | P109: 337.8 | R109: 12.86 | S109: 38.1 | T109: 8.16 | U109: 354.1 | W109: 13.33 | X109: 38.1 | Y109: 8.1 | Z109: 341.7 | AB109: 13.24 | AC109: 38.4 | AD109: 8.2 | AE109: 353.8 | AG109: 12.85 | AH109: 39.6 | AI109: 8.22 | AJ109: 310.5 | AL109: 12.79 | AM109: 36.1 | AN109: 8.06 | AO109: 281.5 | BB109: 0 | BF109: 0 | BJ109: 0 | BN109: 0 | BR109: 0 | BV109: 0
B110: 2018-04-24 | C110: 12.03 | D110: 44.2 | E110: 7.9 | F110: 315.4 | H110: 11.91 | I110: 44.2 | J110: 8.01 | K110: 325.1 | M110: 12 | N110: 45 | O110: 8.12 | P110: 326.4 | R110: 11.8 | S110: 44.2 | T110: 8.16 | U110: 340.5 | W110: 11.97 | X110: 45.5 | Y110: 8.11 | Z110: 327.6 | AB110: 11.95 | AC110: 46.1 | AD110: 8.1 | AE110: 336.7 | AG110: 11.79 | AH110: 46 | AI110: 8.21 | AJ110: 284.5 | AL110: 11.19 | AM110: 46.2 | AN110: 7.42 | AO110: 228.7 | BB110: 0 | BF110: 0 | BJ110: 0 | BN110: 0 | BR110: 0 | BV110: 0
B111: 2018-05-08 | C111: 10.34 | D111: 54.1 | E111: 7.98 | F111: 322.4 | H111: 10.53 | I111: 53.5 | J111: 8.12 | K111: 330.5 | M111: 10.57 | N111: 53.9 | O111: 8.11 | P111: 332.2 | R111: 10.52 | S111: 50.5 | T111: 8.19 | U111: 354.6 | W111: 10.32 | X111: 55.2 | Y111: 8 | Z111: 339.8 | AB111: 10.66 | AC111: 55.7 | AD111: 8.09 | AE111: 347.6 | AG111: 11.14 | AH111: 52.1 | AI111: 8.09 | AJ111: 316.4 | AL111: 9.92 | AM111: 62 | AN111: 8.1 | AO111: 260.3 | BB111: 0 | BF111: 0 | BJ111: 0 | BN111: 0 | BR111: 0 | BV111: 0
B112: 2018-05-24 | C112: 9.77 | D112: 59.3 | E112: 8.07 | F112: 320.7 | H112: 10.12 | I112: 57.6 | J112: 8.13 | K112: 328 | M112: 10.24 | N112: 57.9 | O112: 8.14 | P112: 329.9 | R112: 10.56 | S112: 50.7 | T112: 8.17 | U112: 354.5 | W112: 10.15 | X112: 59 | Y112: 8.1 | Z112: 335.5 | AB112: 10.8 | AC112: 58.7 | AD112: 8.17 | AE112: 343.3 | AG112: 11.29 | AH112: 52.6 | AI112: 8.05 | AJ112: 317.1 | AL112: 10.7 | AM112: 64 | AN112: 8.17 | AO112: 285.7 | BB112: 0 | BF112: 0 | BJ112: 0 | BN112: 0 | BR112: 0 | BV112: 0
B113: 2018-06-06 | C113: 9.77 | D113: 59.9 | E113: 8.03 | F113: 324.6 | H113: 10.14 | I113: 57.5 | J113: 8.01 | K113: 332.9 | M113: 10.31 | N113: 57.6 | O113: 7.95 | P113: 334.4 | R113: 10.85 | S113: 49 | T113: 8.05 | U113: 360.9 | W113: 10.61 | X113: 57.9 | Y113: 8.16 | Z113: 339.6 | AB113: 11.24 | AC113: 57.4 | AD113: 8.21 | AE113: 346.8 | AG113: 11.26 | AH113: 50.1 | AI113: 8.07 | AJ113: 323.5 | AL113: 10.54 | AM113: 56.8 | AN113: 7.88 | AO113: 318.1 | BB113: 0 | BF113: 0 | BJ113: 0 | BN113: 0 | BR113: 0 | BV113: 0
B114: 2018-06-20 | C114: 9.16 | D114: 65 | E114: 7.97 | F114: 322.5 | H114: 9.42 | I114: 62.4 | J114: 7.96 | K114: 327.7 | M114: 9.53 | N114: 62.5 | O114: 7.93 | P114: 333.6 | R114: 10.06 | S114: 53 | T114: 8.09 | U114: 358.3 | W114: 9.76 | X114: 62.4 | Y114: 8.12 | Z114: 338.1 | AB114: 10.35 | AC114: 62.1 | AD114: 8.22 | AE114: 346.8 | AG114: 10.15 | AH114: 53.5 | AI114: 8.03 | AJ114: 323.4 | AL114: 11 | AM114: 67.8 | AN114: 8.05 | AO114: 291.9 | BB114: 0 | BF114: 0 | BJ114: 0 | BN114: 0 | BR114: 0 | BV114: 0
B115: 2018-07-06 | C115: 8.82 | D115: 67.8 | E115: 8.21 | F115: 324.8 | H115: 9.42 | I115: 65.3 | J115: 8.08 | K115: 334.2 | M115: 9.53 | N115: 65.2 | O115: 8.06 | P115: 335.8 | R115: 10.12 | S115: 53.6 | T115: 8.1 | U115: 366.5 | W115: 10.06 | X115: 64.6 | Y115: 8.15 | Z115: 340 | AB115: 10.57 | AC115: 63.5 | AD115: 8.28 | AE115: 347.3 | AG115: 10.04 | AH115: 53.6 | AI115: 7.97 | AJ115: 328.3 | AL115: 10.94 | AM115: 62.4 | AN115: 8.09 | AO115: 330 | BB115: 0 | BF115: 0 | BJ115: 0 | BN115: 0 | BR115: 0 | BV115: 0
B116: 2018-07-30 | C116: 9.35 | D116: 65.3 | E116: 8.27 | F116: 326 | H116: 9.76 | I116: 62.7 | J116: 8.23 | K116: 335.3 | M116: 9.85 | N116: 62.6 | O116: 8.25 | P116: 337.1 | R116: 10.67 | S116: 53.1 | T116: 8.36 | U116: 358.1 | W116: 10.77 | X116: 62.3 | Y116: 8.43 | Z116: 340.3 | AB116: 11.11 | AC116: 61.2 | AD116: 8.42 | AE116: 348.8 | AG116: 10.5 | AH116: 52.4 | AI116: 8.08 | AJ116: 306.2 | AL116: 10.88 | AM116: 60.4 | AN116: 8.15 | AO116: 333.4 | BB116: 0 | BF116: 0 | BJ116: 0 | BN116: 0 | BR116: 0 | BV116: 0
B117: 2018-08-15 | C117: 9.46 | D117: 68 | E117: 8.23 | F117: 328 | H117: 9.55 | I117: 65.2 | J117: 8.2 | K117: 337.2 | M117: 9.67 | N117: 65.1 | O117: 8.19 | P117: 338.7 | R117: 10.36 | S117: 55.4 | T117: 8.3 | U117: 358.8 | W117: 10.62 | X117: 64.3 | Y117: 8.4 | Z117: 341.1 | AB117: 10.98 | AC117: 63.8 | AD117: 8.41 | AE117: 348 | AG117: 10.79 | AH117: 53.9 | AI117: 8.04 | AJ117: 326.8 | AL117: 11.62 | AM117: 62.2 | AN117: 8.13 | AO117: 331 | BB117: 0 | BF117: 0 | BJ117: 0 | BN117: 0 | BR117: 0 | BV117: 0
B118: 2018-08-29 | C118: 8.33 | D118: 66 | E118: 7.88 | F118: 310.4 | H118: 8.52 | I118: 64.1 | J118: 7.68 | K118: 310 | M118: 8.58 | N118: 63.9 | O118: 7.68 | P118: 311.3 | R118: 9.65 | S118: 58.3 | T118: 7.91 | U118: 299.3 | W118: 8.66 | X118: 63 | Y118: 7.77 | Z118: 315.1 | AB118: 8.71 | AC118: 62 | AD118: 7.77 | AE118: 323.7 | AG118: 8.68 | AH118: 56.3 | AI118: 7.53 | AJ118: 299 | AL118: 5.07 | AM118: 63.7 | AN118: 7.13 | AO118: 250.5 | BB118: 0 | BF118: 0 | BJ118: 0 | BN118: 0 | BR118: 0 | BV118: 0
B119: 2018-09-14 | C119: 9.56 | D119: 62.4 | E119: 8.13 | F119: 321.4 | H119: 9.81 | I119: 60.2 | J119: 7.99 | K119: 332.1 | M119: 9.94 | N119: 60.1 | O119: 8.03 | P119: 333.8 | R119: 10.19 | S119: 52 | T119: 8.04 | U119: 365 | W119: 10.73 | X119: 59.6 | Y119: 8.27 | Z119: 337.3 | AB119: 11.08 | AC119: 59.3 | AD119: 8.31 | AE119: 346.3 | AG119: 10.59 | AH119: 51.8 | AI119: 7.98 | AJ119: 323.5 | AL119: 9.98 | AM119: 66 | AN119: 8.15 | AO119: 269.9 | BB119: 0 | BF119: 0 | BJ119: 0 | BN119: 0 | BR119: 0 | BV119: 0
B120: 2018-09-28 | C120: 10.85 | D120: 58 | E120: 8.12 | F120: 326.5 | H120: 10.67 | I120: 56 | J120: 8.12 | K120: 336.3 | M120: 10.83 | N120: 55.8 | O120: 8.11 | P120: 338.2 | R120: 11.01 | S120: 50.7 | T120: 8.21 | U120: 349 | W120: 11.37 | X120: 55.1 | Y120: 8.25 | Z120: 341.8 | AB120: 11.47 | AC120: 54.2 | AD120: 8.29 | AE120: 350.4 | AG120: 10.93 | AH120: 50 | AI120: 8.02 | AJ120: 320.4 | AL120: 10.51 | AM120: 56.2 | AN120: 8.05 | AO120: 287.6 | BB120: 0 | BF120: 0 | BJ120: 0 | BN120: 0 | BR120: 0 | BV120: 0
B121: 2018-10-16 | C121: 11.31 | D121: 49.3 | E121: 8 | F121: 330.2 | H121: 11.39 | I121: 48 | J121: 7.97 | K121: 338.2 | M121: 11.53 | N121: 48 | O121: 7.94 | P121: 339.7 | R121: 11.81 | S121: 44.6 | T121: 7.98 | U121: 351.7 | W121: 11.98 | X121: 47.6 | Y121: 7.92 | Z121: 343 | AB121: 12.24 | AC121: 47.2 | AD121: 8.02 | AE121: 352.7 | AG121: 11.48 | AH121: 45.5 | AI121: 7.79 | AJ121: 286.6 | AL121: 11.77 | AM121: 45.4 | AN121: 7.71 | AO121: 281.6 | BB121: 0 | BF121: 0 | BJ121: 0 | BN121: 0 | BR121: 0 | BV121: 0
B122: 2018-10-31 | C122: 11.07 | D122: 46.7 | E122: 7.83 | F122: 338.2 | H122: 10.99 | I122: 46.9 | J122: 7.79 | K122: 345.2 | M122: 11.17 | N122: 46.9 | O122: 7.81 | P122: 346.7 | R122: 11.23 | S122: 46.6 | T122: 7.95 | U122: 351.1 | W122: 11.42 | X122: 47 | Y122: 7.95 | Z122: 350.5 | AB122: 11.63 | AC122: 47.1 | AD122: 7.95 | AE122: 359.5 | AG122: 11.64 | AH122: 47.4 | AI122: 7.63 | AJ122: 317.8 | AL122: 11.62 | AM122: 46.8 | AN122: 7.92 | AO122: 288.6 | BB122: 0 | BF122: 0 | BJ122: 0 | BN122: 0 | BR122: 0 | BV122: 0
B123: 2018-11-14 | C123: 12.58 | D123: 39.6 | E123: 7.81 | F123: 337.4 | H123: 12.8 | I123: 39.2 | J123: 7.66 | K123: 343.3 | M123: 13.03 | N123: 39.1 | O123: 7.89 | P123: 344.8 | R123: 13.35 | S123: 37.4 | T123: 8.09 | U123: 353.9 | W123: 13.11 | X123: 39 | Y123: 8.14 | Z123: 348.6 | AB123: 13.28 | AC123: 38.8 | AD123: 8.09 | AE123: 358.3 | AG123: 12.7 | AH123: 39.5 | AI123: 7.93 | AJ123: 315.6 | AL123: 13.52 | AM123: 34.7 | AN123: 7.87 | AO123: 285.8 | BB123: 0 | BF123: 0 | BJ123: 0 | BN123: 0 | BR123: 0 | BV123: 0
B124: 2018-11-30 | C124: 12.79 | D124: 37.9 | E124: 7.77 | F124: 339.8 | H124: 12.69 | I124: 38.5 | J124: 7.67 | K124: 345 | M124: 12.8 | N124: 38.5 | O124: 7.79 | P124: 346.6 | R124: 12.71 | S124: 39.5 | T124: 7.93 | U124: 352.6 | W124: 12.53 | X124: 38.9 | Y124: 7.91 | Z124: 350.7 | AB124: 12.76 | AC124: 39.2 | AD124: 7.95 | AE124: 359.5 | AG124: 11.97 | AH124: 40.7 | AI124: 7.93 | AJ124: 311.3 | AL124: 12.94 | AM124: 35.3 | AN124: 7.84 | AO124: 288.7 | BB124: 0 | BF124: 0 | BJ124: 0 | BN124: 0 | BR124: 0 | BV124: 0
B125: 2018-12-12 | C125: 12.87 | D125: 37 | E125: 7.77 | F125: 338.8 | H125: 12.78 | I125: 37.7 | J125: 7.62 | K125: 344.3 | M125: 12.86 | N125: 37.7 | O125: 7.67 | P125: 345.7 | W125: 12.54 | X125: 38.2 | Y125: 7.8 | Z125: 350 | AB125: 13.19 | AC125: 38.5 | AD125: 7.92 | AE125: 357.6 | AG125: 12.12 | AH125: 40.2 | AI125: 7.87 | AJ125: 307.1 | AL125: 12.62 | AM125: 35.6 | AN125: 7.74 | AO125: 300.5 | BB125: 0 | BF125: 0 | BJ125: 0 | BN125: 0 | BR125: 0 | BV125: 0
B126: 2018-12-27 | C126: 12.9 | D126: 37.5 | E126: 7.76 | F126: 341 | H126: 12.8 | I126: 38 | J126: 7.69 | K126: 346.2 | M126: 12.91 | N126: 38.1 | O126: 7.7 | P126: 347.5 | R126: 12.84 | S126: 39.2 | T126: 7.92 | U126: 353.3 | W126: 12.6 | X126: 38.7 | Y126: 7.86 | Z126: 351.9 | AB126: 13 | AC126: 38.8 | AD126: 7.93 | AE126: 359.8 | AG126: 12.28 | AH126: 40.3 | AI126: 7.89 | AJ126: 319.7 | AL126: 12.44 | AM126: 37 | AN126: 7.79 | AO126: 310.4 | BB126: 0 | BF126: 0 | BJ126: 0 | BN126: 0 | BR126: 0 | BV126: 0
B127: 2019-01-18 | C127: 13.44 | D127: 35.5 | E127: 7.93 | F127: 346.7 | H127: 13.46 | I127: 35.9 | J127: 7.85 | K127: 351.1 | M127: 13.47 | N127: 35.6 | O127: 7.88 | P127: 352.5 | R127: 13.7 | S127: 35.7 | T127: 7.96 | U127: 359.4 | W127: 13.27 | X127: 36 | Y127: 7.81 | Z127: 356.7 | AB127: 13.61 | AC127: 35.7 | AD127: 7.92 | AE127: 365.2 | AG127: 12.69 | AH127: 37.5 | AI127: 7.88 | AJ127: 321.3 | AL127: 12.62 | AM127: 34.3 | AN127: 7.66 | AO127: 325.1 | BB127: 0 | BF127: 0 | BJ127: 0 | BN127: 0 | BR127: 0 | BV127: 0
B128: 2019-02-04 | C128: 12.33 | D128: 37.6 | E128: 7.82 | F128: 341.3 | H128: 12.41 | I128: 38.4 | J128: 7.77 | K128: 345.7 | M128: 12.58 | N128: 38.4 | O128: 7.86 | P128: 347.3 | R128: 12.3 | S128: 39.9 | T128: 7.91 | U128: 342.1 | W128: 11.99 | X128: 39 | Y128: 7.84 | Z128: 354.9 | AB128: 12.16 | AC128: 39.4 | AD128: 7.74 | AE128: 378.7 | AG128: 11.53 | AH128: 41.2 | AI128: 7.66 | AJ128: 311.8 | AL128: 10.07 | AM128: 36.5 | AN128: 7.53 | AO128: 323.5 | BB128: 0 | BF128: 0 | BJ128: 0 | BN128: 0 | BR128: 0 | BV128: 0
B129: 2019-02-27 | C129: 13.15 | D129: 35.9 | E129: 7.9 | F129: 338.1 | H129: 13.47 | I129: 35.8 | J129: 7.96 | K129: 343.3 | M129: 13.56 | N129: 35.5 | O129: 8.02 | P129: 344.6 | R129: 13.78 | S129: 34.4 | T129: 8.1 | U129: 352.3 | W129: 13.09 | X129: 36 | Y129: 7.95 | Z129: 349.4 | AB129: 13.41 | AC129: 35.5 | AD129: 7.93 | AE129: 357.7 | AG129: 13.24 | AH129: 36.2 | AI129: 7.88 | AJ129: 315.7 | AL129: 7.88 | AM129: 34.8 | AN129: 7.74 | AO129: 327.4 | BB129: 0 | BF129: 0 | BJ129: 0 | BN129: 0 | BR129: 0 | BV129: 0
B130: 2019-03-13 | C130: 12.38 | D130: 37 | E130: 7.7 | F130: 339 | M130: 12.67 | N130: 37.8 | O130: 7.71 | P130: 345.8 | R130: 12.6 | S130: 39 | T130: 7.77 | U130: 347.4 | W130: 12.26 | X130: 38.3 | Y130: 7.77 | Z130: 357.8 | AB130: 12.35 | AC130: 38.5 | AD130: 7.74 | AE130: 364.1 | AG130: 11.7 | AH130: 39.9 | AI130: 7.77 | AJ130: 306.7 | AL130: 10.17 | AM130: 36.2 | AN130: 7.6 | AO130: 324.5 | BB130: 0 | BF130: 0 | BJ130: 0 | BN130: 0 | BR130: 0 | BV130: 0
B131: 2019-03-26 | C131: 12.73 | D131: 40.2 | E131: 7.9 | F131: 331.9 | H131: 13.08 | I131: 39.9 | J131: 8.06 | K131: 338.5 | M131: 13.25 | N131: 39.3 | O131: 8.07 | P131: 340.1 | R131: 13.37 | S131: 37.8 | T131: 8.15 | U131: 350.6 | W131: 12.89 | X131: 40.5 | Y131: 8.01 | Z131: 345.8 | AB131: 13.02 | AC131: 39.7 | AD131: 7.92 | AE131: 355.3 | AG131: 13.02 | AH131: 39.3 | AI131: 7.86 | AJ131: 307 | AL131: 12.2 | AM131: 38.9 | AN131: 7.69 | AO131: 282.3 | BB131: 0 | BF131: 0 | BJ131: 0 | BN131: 0 | BR131: 0 | BV131: 0
B132: 2019-04-12 | C132: 11.8 | D132: 39.8 | E132: 7.48 | F132: 305.7 | H132: 11.98 | I132: 40 | J132: 7.49 | K132: 314.7 | M132: 12.24 | N132: 40 | O132: 7.6 | P132: 315.6 | R132: 12.13 | S132: 40.4 | T132: 7.7 | U132: 304.7 | W132: 12.04 | X132: 40.7 | Y132: 7.76 | Z132: 319.5 | AB132: 11.91 | AC132: 40.9 | AD132: 7.79 | AE132: 326 | AG132: 11.65 | AH132: 40.9 | AI132: 7.76 | AJ132: 247.2 | AL132: 11.45 | AM132: 39.1 | AN132: 7.81 | AO132: 223 | BB132: 0 | BF132: 0 | BJ132: 0 | BN132: 0 | BR132: 0 | BV132: 0
B133: 2019-04-30 | C133: 11.51 | D133: 46.4 | E133: 7.68 | F133: 332 | H133: 11.53 | I133: 45.9 | J133: 7.8 | K133: 338 | M133: 11.63 | N133: 45.9 | O133: 7.81 | P133: 339.4 | R133: 12.1 | S133: 44.2 | T133: 7.84 | U133: 344 | W133: 11.55 | X133: 46.2 | Y133: 7.79 | Z133: 344.4 | AB133: 11.72 | AC133: 45.9 | AD133: 7.81 | AE133: 352.4 | AG133: 12.01 | AH133: 45 | AI133: 7.89 | AJ133: 315.1 | AL133: 11.25 | AM133: 45.8 | AN133: 7.9 | AO133: 271.2 | BB133: 0 | BF133: 0 | BJ133: 0 | BN133: 0 | BR133: 0 | BV133: 0
B134: 2019-05-14 | C134: 10.82 | D134: 50.6 | E134: 7.67 | F134: 331.5 | H134: 11.02 | I134: 49.6 | J134: 7.91 | K134: 338.2 | M134: 11.1 | N134: 49.7 | O134: 7.98 | P134: 339.6 | R134: 11.76 | S134: 46.2 | T134: 8.11 | U134: 348.4 | W134: 10.97 | X134: 50.9 | Y134: 8.08 | Z134: 344.5 | AB134: 11.43 | AC134: 50.6 | AD134: 8.08 | AE134: 352.2 | AG134: 11.77 | AH134: 48.2 | AI134: 8.05 | AJ134: 316.5 | AL134: 11.41 | AM134: 53.9 | AN134: 8.1 | AO134: 280.9 | BB134: 0 | BF134: 0 | BJ134: 0 | BN134: 0 | BR134: 0 | BV134: 0
B135: 2019-05-31 | C135: 9.86 | D135: 59.8 | E135: 7.76 | F135: 322.6 | H135: 10.13 | I135: 58 | J135: 7.98 | K135: 330.6 | M135: 10.22 | N135: 58.2 | O135: 8.03 | P135: 332.5 | R135: 10.87 | S135: 51.1 | T135: 8.2 | U135: 350.5 | W135: 10.38 | X135: 59.1 | Y135: 8.15 | Z135: 337.8 | AB135: 11.23 | AC135: 58.6 | AD135: 8.26 | AE135: 343.5 | AG135: 11.14 | AH135: 52.5 | AI135: 8.25 | AJ135: 316.8 | AL135: 10.55 | AM135: 62.3 | AN135: 8.24 | AO135: 277.7 | BB135: 0 | BF135: 0 | BJ135: 0 | BN135: 0 | BR135: 0 | BV135: 0
B136: 2019-06-12 | C136: 9.51 | D136: 62.2 | E136: 7.85 | F136: 324.8 | H136: 9.65 | I136: 59.7 | J136: 7.96 | K136: 333.7 | M136: 9.73 | N136: 59.5 | O136: 7.95 | P136: 335 | R136: 10.65 | S136: 51.3 | T136: 8.09 | U136: 351.2 | W136: 10.02 | X136: 58.9 | Y136: 8.05 | Z136: 339.7 | AB136: 10.66 | AC136: 57.8 | AD136: 8.15 | AE136: 347.4 | AG136: 10.58 | AH136: 50.9 | AI136: 8.09 | AJ136: 322.7 | AL136: 9.9 | AM136: 61.7 | AN136: 8.03 | AO136: 284.9 | BB136: 0 | BF136: 0 | BJ136: 0 | BN136: 0 | BR136: 0 | BV136: 0
B137: 2019-06-25 | C137: 9.16 | D137: 64.4 | E137: 7.87 | F137: 316.9 | H137: 9.43 | I137: 62.2 | J137: 7.95 | K137: 320.3 | M137: 9.57 | N137: 62.1 | O137: 7.96 | P137: 322.7 | R137: 10.23 | S137: 54.4 | T137: 8.18 | U137: 325.7 | W137: 10.13 | X137: 62.6 | Y137: 8.13 | Z137: 326.1 | AB137: 10.27 | AC137: 62.2 | AD137: 8.28 | AE137: 335.3 | AG137: 9.78 | AH137: 56.1 | AI137: 8.22 | AJ137: 306.9 | AL137: 11.07 | AM137: 64.8 | AN137: 8.18 | AO137: 273.8 | BB137: 0 | BF137: 0 | BJ137: 0 | BN137: 0 | BR137: 0 | BV137: 0
B138: 2019-07-10 | C138: 8.88 | D138: 68.6 | E138: 7.77 | F138: 319 | H138: 9.18 | I138: 66 | J138: 7.86 | K138: 327.9 | M138: 9.22 | N138: 66 | O138: 7.74 | P138: 329.9 | R138: 9.84 | S138: 54.8 | T138: 8.07 | U138: 363.9 | W138: 9.99 | X138: 66.1 | Y138: 8.1 | Z138: 333.9 | AB138: 10.14 | AC138: 65.2 | AD138: 8.26 | AE138: 343.1 | AG138: 10 | AH138: 55.5 | AI138: 8.22 | AJ138: 326.6 | AL138: 11.22 | AM138: 63.8 | AN138: 8.25 | AO138: 326.9 | BB138: 0 | BF138: 0 | BJ138: 0 | BN138: 0 | BR138: 0 | BV138: 0
B139: 2019-07-24 | C139: 9.16 | D139: 65.8 | E139: 7.92 | F139: 310.6 | H139: 9.54 | I139: 62.2 | J139: 8 | K139: 324.6 | M139: 9.57 | N139: 62.1 | O139: 7.98 | P139: 327 | R139: 10.62 | S139: 51.8 | T139: 8.14 | U139: 348.7 | W139: 10.23 | X139: 61.9 | Y139: 8.07 | Z139: 330.1 | AB139: 10.25 | AC139: 61 | AD139: 8.55 | AE139: 340.8 | AG139: 10.12 | AH139: 53.3 | AI139: 8.4 | AJ139: 318.5 | AL139: 6.24 | AM139: 68.1 | AN139: 7.81 | AO139: 243.3 | BB139: 0 | BF139: 0 | BJ139: 0 | BN139: 0 | BR139: 0 | BV139: 0
B140: 2019-08-07 | C140: 9.33 | D140: 72.2 | F140: 312.6 | H140: 9.81 | I140: 68.8 | K140: 324.7 | M140: 9.66 | N140: 68.3 | P140: 327.2 | R140: 9.81 | S140: 55.8 | U140: 361.3 | W140: 10.71 | X140: 67.3 | Z140: 331.6 | AB140: 10.64 | AC140: 65.4 | AE140: 341.8 | AG140: 9.95 | AH140: 56.4 | AJ140: 324.2 | AL140: 9.86 | AM140: 71.8 | AO140: 277
B141: 2019-08-30 | C141: 9.58 | D141: 59 | E141: 8.25 | F141: 329.8 | H141: 9.77 | I141: 57 | J141: 8.07 | K141: 340.7 | M141: 9.96 | N141: 57.1 | O141: 8.12 | P141: 342.2 | R141: 10.8 | S141: 50.9 | T141: 8.3 | U141: 356.8 | W141: 10.66 | X141: 56.7 | Y141: 8.3 | Z141: 345.7 | AB141: 10.98 | AC141: 56.7 | AD141: 8.34 | AE141: 354.3 | AG141: 10.47 | AH141: 52.1 | AI141: 8.05 | AJ141: 326.9 | AL141: 10.31 | AM141: 57.5 | AN141: 7.97 | AO141: 320.3
B142: 2019-09-11 | C142: 9.25 | D142: 61.6 | E142: 8.19 | F142: 313.9 | H142: 9.89 | I142: 59.6 | J142: 8.13 | K142: 330.3 | M142: 9.62 | N142: 59.5 | O142: 8.08 | P142: 324.5 | R142: 10.44 | S142: 54.4 | T142: 8.22 | U142: 325.1 | W142: 9.67 | X142: 59 | Y142: 8.19 | Z142: 334 | AB142: 10.51 | AC142: 58.1 | AD142: 8.27 | AE142: 351.8 | AG142: 10.09 | AH142: 53.3 | AI142: 7.92 | AJ142: 325 | AL142: 9.41 | AM142: 61.9 | AN142: 7.94 | AO142: 289.2
B143: 2019-09-27 | C143: 9.38 | D143: 59.4 | E143: 8.18 | F143: 325.4 | H143: 9.54 | I143: 57.4 | J143: 8.07 | K143: 335.1 | M143: 9.65 | N143: 57.3 | O143: 8.09 | P143: 337.2 | R143: 10.45 | S143: 51.4 | T143: 8.09 | U143: 353.6 | W143: 9.67 | X143: 56.5 | Y143: 8.14 | Z143: 343.2 | AB143: 10.22 | AC143: 55.4 | AD143: 8.18 | AE143: 352.2 | AG143: 9.5 | AH143: 51.1 | AI143: 7.86 | AJ143: 306.1 | AL143: 7.92 | AM143: 59.3 | AN143: 7.71 | AO143: 265.8
B144: 2019-10-15 | C144: 10.79 | D144: 49.7 | E144: 8.19 | F144: 332.4 | H144: 10.97 | I144: 47.8 | J144: 8.08 | K144: 340.2 | M144: 11.09 | N144: 47.6 | O144: 8.1 | P144: 342 | R144: 11.77 | S144: 44 | T144: 8.26 | U144: 351.7 | W144: 11.11 | X144: 46.7 | Y144: 8.16 | Z144: 347.4 | AB144: 11.47 | AC144: 45.9 | AD144: 8.17 | AE144: 357.9 | AG144: 11.14 | AH144: 43.9 | AI144: 8.01 | AJ144: 321.3 | AL144: 10.44 | AM144: 44.2 | AN144: 7.81 | AO144: 275.2
B145: 2019-10-29 | C145: 10.94 | D145: 46.8 | E145: 8.04 | F145: 332.8 | H145: 11.05 | I145: 46.3 | J145: 7.95 | K145: 338.7 | M145: 11.16 | N145: 46.3 | O145: 7.99 | P145: 340.3 | R145: 11.56 | S145: 44.7 | T145: 8.16 | U145: 339.9 | W145: 11.21 | X145: 46.3 | Y145: 8.09 | Z145: 344.5 | AB145: 11.43 | AC145: 46.1 | AD145: 8.1 | AE145: 355.7 | AG145: 10.79 | AH145: 44.8 | AI145: 7.87 | AJ145: 302.6 | AL145: 10.01 | AM145: 44.7 | AN145: 7.67 | AO145: 274
B146: 2019-11-13 | C146: 12.41 | D146: 38.4 | E146: 8.09 | F146: 333.7 | H146: 13.72 | I146: 35.8 | J146: 8.05 | M146: 12.82 | N146: 37.7 | O146: 8.02 | P146: 341.6 | R146: 13.33 | S146: 36.2 | T146: 8.17 | U146: 352.5 | W146: 12.78 | X146: 37.4 | Y146: 8.11 | Z146: 347.4 | AB146: 13.06 | AC146: 37.1 | AD146: 8.15 | AE146: 356.9 | AG146: 12.68 | AH146: 37 | AI146: 8.1 | AJ146: 316.7 | AL146: 12.9 | AM146: 33 | AN146: 8.01 | AO146: 280.2
B147: 2019-11-26 | C147: 12.01 | D147: 39.9 | E147: 8.04 | F147: 329.4 | H147: 12.04 | I147: 40.5 | J147: 7.97 | K147: 335.2 | M147: 12.06 | N147: 40.6 | O147: 8 | P147: 337 | R147: 12.05 | S147: 41.8 | T147: 8.2 | U147: 341.3 | W147: 11.76 | X147: 41 | Y147: 8.02 | Z147: 342.6 | AB147: 11.91 | AC147: 41.4 | AD147: 8.09 | AE147: 351.9 | AG147: 11.32 | AH147: 42.2 | AI147: 7.99 | AJ147: 304.2 | AL147: 12 | AM147: 38.3 | AN147: 7.82 | AO147: 268.6
B148: 2019-12-13 | C148: 12.74 | D148: 36.9 | E148: 7.99 | F148: 328.1 | H148: 12.74 | I148: 37.7 | J148: 7.99 | K148: 334.6 | M148: 12.81 | N148: 37.8 | O148: 7.98 | P148: 336.2 | R148: 12.55 | S148: 40.1 | T148: 8.22 | U148: 344.3 | W148: 12.49 | X148: 38.4 | Y148: 8.1 | Z148: 342 | AB148: 12.58 | AC148: 38.9 | AD148: 8.1 | AE148: 352.3 | AG148: 11.77 | AH148: 40 | AI148: 7.94 | AJ148: 289 | AL148: 12.22 | AM148: 35 | AN148: 7.76 | AO148: 284.2
B149: 2020-01-09 | C149: 13.2 | D149: 35.1 | E149: 7.96 | F149: 328.8 | H149: 13.46 | I149: 35.3 | J149: 8 | K149: 334.1 | M149: 13.41 | N149: 35.2 | O149: 7.95 | P149: 337.1 | R149: 13.49 | S149: 35.9 | T149: 8.21 | U149: 350.1 | W149: 13.24 | X149: 35.5 | Y149: 8.18 | Z149: 339.2 | AB149: 13.29 | AC149: 35.5 | AD149: 8.06 | AE149: 349.5 | AG149: 12.84 | AH149: 36.6 | AI149: 8.11 | AJ149: 310.3 | AL149: 12.73 | AM149: 34 | AN149: 7.87 | AO149: 288.7
B150: 2020-01-24 | C150: 12.92 | D150: 36.6 | E150: 8.01 | F150: 321.1 | H150: 12.91 | I150: 37.6 | J150: 8 | K150: 327.5 | M150: 12.97 | N150: 37.6 | O150: 7.99 | P150: 327.8 | R150: 12.73 | S150: 39.8 | T150: 8.2 | U150: 331.3 | W150: 12.61 | X150: 38.4 | Y150: 8.08 | Z150: 335.1 | AB150: 12.73 | AC150: 38.9 | AD150: 8.14 | AE150: 347 | AG150: 12.14 | AH150: 40.4 | AI150: 8.06 | AJ150: 287.7 | AL150: 11.76 | AM150: 36.5 | AN150: 7.76 | AO150: 292.2
B151: 2020-02-07 | C151: 12.98 | D151: 36.6 | E151: 8.07 | F151: 320.2 | H151: 13.14 | I151: 37 | J151: 8.08 | K151: 326.5 | M151: 13.13 | N151: 36.8 | O151: 8.13 | P151: 332 | R151: 12.27 | S151: 36.9 | T151: 8.25 | U151: 342.3 | W151: 12.88 | X151: 37 | Y151: 8.12 | Z151: 337.2 | AB151: 13.08 | AC151: 36.8 | AD151: 8.09 | AE151: 348.5 | AG151: 12.65 | AH151: 37.9 | AI151: 8.02 | AJ151: 302.4 | AL151: 12.02 | AM151: 36.3 | AN151: 7.67 | AO151: 302.7
B152: 2020-02-27 | C152: 13.22 | D152: 35.1 | E152: 8.13 | F152: 318.9 | H152: 13.46 | I152: 35.7 | J152: 8.13 | K152: 327.4 | M152: 13.47 | N152: 35.6 | O152: 8.17 | P152: 329.1 | R152: 13.68 | S152: 35.5 | T152: 8.34 | U152: 340.7 | W152: 13.37 | X152: 35.7 | Y152: 8.22 | Z152: 332.8 | AB152: 13.53 | AC152: 35.6 | AD152: 8.18 | AE152: 342.4 | AG152: 13.07 | AH152: 36.4 | AI152: 8.18 | AJ152: 309.4 | AL152: 12.16 | AM152: 34.3 | AN152: 7.84 | AO152: 305.8
B153: 2020-03-11 | C153: 12.48 | D153: 38.1 | E153: 7.89 | F153: 321.2 | H153: 12.61 | I153: 38.8 | J153: 8.01 | K153: 326.1 | M153: 12.59 | N153: 38.9 | O153: 8.05 | P153: 329.6 | R153: 12.68 | S153: 39.9 | T153: 8.27 | U153: 332.3 | W153: 12.39 | X153: 39.6 | Y153: 8.11 | Z153: 331.4 | AB153: 12.45 | AC153: 40 | AD153: 8.1 | AE153: 339.4 | AG153: 12.16 | AH153: 40.8 | AI153: 8.06 | AJ153: 287.1 | AL153: 10.73 | AM153: 35.6 | AN153: 7.65 | AO153: 219.7
B154: 2020-03-27 | H154: 12.13 | I154: 45.2 | J154: 8.16 | K154: 331.2 | M154: 12.14 | N154: 45.1 | O154: 8.22 | P154: 314.5 | R154: 12.13 | S154: 45.3 | T154: 8.41 | U154: 332.3 | W154: 11.78 | X154: 46.2 | Y154: 8.26 | Z154: 324.2 | AB154: 12.02 | AC154: 46.5 | AD154: 8.3 | AE154: 334.8 | AG154: 12.21 | AH154: 46.8 | AI154: 8.26 | AJ154: 295.3 | AL154: 12.22 | AM154: 44.7 | AN154: 8 | AO154: 244.5
B155: 2020-04-07 | C155: 11.52 | D155: 46.5 | E155: 8.14 | F155: 320.1 | H155: 11.43 | I155: 46.2 | J155: 8.18 | K155: 330.4 | M155: 11.46 | N155: 46 | O155: 8.18 | P155: 331.7 | R155: 11.78 | S155: 45.7 | T155: 8.34 | U155: 346.1 | W155: 11.34 | X155: 46.2 | Y155: 8.17 | Z155: 338.3 | AB155: 11.61 | AC155: 45.5 | AD155: 8.14 | AE155: 348.3 | AG155: 11.33 | AH155: 45.1 | AI155: 8.05 | AJ155: 312.1 | AL155: 11.4 | AM155: 46.5 | AN155: 8.14 | AO155: 263.3
B156: 2020-04-24 | C156: 11.72 | D156: 45.7 | E156: 8.26 | F156: 324.1 | H156: 11.9 | I156: 45.1 | J156: 8.27 | K156: 329 | M156: 11.86 | N156: 44.9 | O156: 8.27 | P156: 330.4 | R156: 12.24 | S156: 43.6 | T156: 8.37 | U156: 344.3 | W156: 11.8 | X156: 44.8 | Y156: 8.21 | Z156: 333.4 | AB156: 12.07 | AC156: 44.2 | AD156: 8.24 | AE156: 345.2 | AG156: 12.19 | AH156: 43.6 | AI156: 8.24 | AJ156: 312.3 | AL156: 11.9 | AM156: 42.3 | AN156: 8.15 | AO156: 280.3
B157: 2020-05-15 | C157: 10.41 | D157: 55 | E157: 8.25 | F157: 310.5 | H157: 10.57 | I157: 53.8 | J157: 8.27 | K157: 316.1 | M157: 10.61 | N157: 53.5 | O157: 8.27 | P157: 323.2 | R157: 10.9 | S157: 51.1 | T157: 8.33 | U157: 340 | W157: 10.49 | X157: 54 | Y157: 8.26 | Z157: 330.3 | AB157: 10.8 | AC157: 53.1 | AD157: 8.29 | AE157: 340.3 | AG157: 11.33 | AH157: 51.3 | AI157: 8.29 | AJ157: 316.7 | AL157: 11.05 | AM157: 52.4 | AN157: 8.03 | AO157: 298.2
B158: 2020-05-29 | C158: 9.22 | D158: 69 | E158: 8.28 | F158: 284.3 | H158: 9.73 | I158: 66.4 | J158: 8.29 | K158: 290.7 | M158: 9.91 | N158: 66.1 | O158: 8.32 | P158: 293.2 | R158: 10.43 | S158: 54.9 | T158: 8.35 | U158: 344.2 | W158: 10.07 | X158: 65.6 | Y158: 8.35 | Z158: 300.8 | AB158: 10.43 | AC158: 63.3 | AD158: 8.35 | AE158: 306.8 | AG158: 10.69 | AH158: 56.1 | AI158: 8.13 | AJ158: 316.9 | AL158: 9.6 | AM158: 68.1 | AN158: 8.2 | AO158: 263.4
B159: 2020-06-12 | C159: 9.75 | D159: 66.7 | E159: 8.36 | F159: 285.8 | H159: 9.75 | I159: 66.7 | J159: 8.36 | K159: 285.8 | M159: 10.22 | N159: 63.1 | O159: 8.35 | P159: 297 | R159: 10.95 | S159: 51.5 | T159: 8.32 | U159: 348.7 | W159: 11.05 | X159: 62.7 | Y159: 8.46 | Z159: 298.1 | AB159: 11.3 | AC159: 60.6 | AD159: 8.42 | AE159: 309.9 | AG159: 10.52 | AH159: 54.2 | AI159: 8.04 | AJ159: 303.1 | AL159: 11.86 | AM159: 59.4 | AN159: 8.19 | AO159: 276.9
B160: 2020-06-26 | C160: 9.31 | D160: 68.7 | E160: 8.36 | F160: 273.5 | H160: 9.03 | I160: 65.8 | J160: 8.3 | K160: 287.3 | M160: 9.58 | N160: 65.4 | O160: 8.28 | P160: 285 | R160: 10.26 | S160: 54.2 | T160: 8.27 | U160: 347.6 | W160: 9.96 | X160: 64.3 | Y160: 8.35 | Z160: 309.3 | AB160: 10.14 | AC160: 62.2 | AD160: 8.28 | AE160: 323.4 | AG160: 10.03 | AH160: 54.9 | AI160: 8.07 | AJ160: 320 | AL160: 9.93 | AM160: 62.8 | AN160: 7.99 | AO160: 273.7
B161: 2020-07-10 | C161: 8.55 | D161: 71.9 | E161: 8.19 | H161: 8.64 | I161: 67.9 | J161: 8.07 | M161: 8.67 | N161: 67.6 | O161: 8.07 | R161: 9.88 | S161: 57 | T161: 8.18 | W161: 8.93 | X161: 66.1 | Y161: 8.13 | AB161: 9.11 | AC161: 64.9 | AD161: 8.11 | AG161: 8.41 | AH161: 58.7 | AI161: 7.89 | AL161: 9.06 | AM161: 66.5 | AN161: 7.95
B162: 2020-07-24 | C162: 8.68 | D162: 68.8 | E162: 8.21 | H162: 9.14 | I162: 65.1 | J162: 8.14 | M162: 9.09 | N162: 65.7 | O162: 8.11 | R162: 10.35 | S162: 53.9 | T162: 8.23 | W162: 9.99 | X162: 65.7 | Y162: 8.33 | AB162: 9.89 | AC162: 64.2 | AD162: 8.27 | AG162: 8.01 | AH162: 55.4 | AI162: 8.01 | AL162: 9.65 | AM162: 69 | AN162: 8.11
B163: 2020-08-07 | C163: 9.26 | D163: 64.5 | E163: 8.3 | H163: 9.56 | I163: 61.9 | J163: 8.15 | M163: 9.62 | N163: 61.9 | O163: 8.17 | R163: 10.56 | S163: 52.3 | T163: 8.35 | W163: 10.65 | X163: 61.6 | Y163: 8.38 | AB163: 10.7 | AC163: 61.1 | AD163: 8.36 | AG163: 9.92 | AH163: 56.1 | AI163: 8.02 | AL163: 11.78 | AM163: 65.1 | AN163: 8.41
B164: 2020-09-15 | C164: 10.36 | D164: 58.2 | E164: 8.32 | F164: 318 | H164: 10.15 | I164: 56.3 | J164: 8.14 | K164: 329.8 | M164: 10.46 | N164: 56.4 | O164: 8.06 | P164: 331.4 | R164: 10.89 | S164: 50.9 | T164: 8.28 | U164: 353.3 | W164: 11.15 | X164: 56.2 | Y164: 8.34 | Z164: 334.2 | AB164: 11.35 | AC164: 55.6 | AD164: 8.34 | AE164: 344.5 | AG164: 10.22 | AH164: 52.7 | AI164: 7.97 | AJ164: 321.5 | AL164: 9.82 | AM164: 58 | AN164: 8.02 | AO164: 295.8
B165: 2020-09-29 | C165: 10.9 | D165: 58.3 | E165: 8.27 | F165: 321.3 | H165: 10.71 | I165: 56.3 | J165: 8.17 | K165: 333.3 | M165: 10.83 | N165: 55.9 | O165: 8.18 | P165: 335.9 | R165: 11.21 | S165: 50.4 | T165: 8.23 | U165: 351.5 | W165: 11.39 | X165: 55.5 | Y165: 8.24 | Z165: 340.6 | AB165: 11.67 | AC165: 54.5 | AD165: 8.22 | AE165: 350 | AG165: 10.46 | AH165: 50.7 | AI165: 7.86 | AJ165: 322.2 | AL165: 8.87 | AM165: 56.4 | AN165: 7.66 | AO165: 299
B166: 2020-10-14 | C166: 10.8 | D166: 52 | E166: 8.16 | F166: 326 | H166: 10.8 | I166: 52 | J166: 8.16 | K166: 326 | M166: 10.97 | N166: 49.9 | O166: 8.1 | P166: 336.9 | R166: 11.41 | S166: 46.1 | T166: 8.26 | U166: 352.4 | W166: 10.95 | X166: 49 | Y166: 8.06 | Z166: 342.5 | AB166: 11.45 | AC166: 48.3 | AD166: 8.15 | AE166: 351.5 | AG166: 10.7 | AH166: 46.1 | AI166: 7.81 | AJ166: 303.9 | AL166: 9.82 | AM166: 49.6 | AN166: 7.75 | AO166: 289.5
B167: 2020-11-03 | C167: 11.49 | D167: 45.4 | E167: 8.01 | F167: 318.5 | H167: 11.68 | I167: 45.3 | J167: 8.16 | K167: 326.6 | M167: 11.71 | N167: 45 | O167: 8.08 | P167: 328.9 | R167: 11.88 | S167: 42.9 | T167: 8.14 | U167: 349.8 | W167: 11.51 | X167: 44.7 | Y167: 8.08 | Z167: 335.1 | AB167: 11.84 | AC167: 44.3 | AD167: 8.07 | AE167: 344.5 | AG167: 11.41 | AH167: 43.6 | AI167: 8.1 | AJ167: 316.8 | AL167: 12.11 | AM167: 40 | AN167: 7.9 | AO167: 263.6
B168: 2020-11-19 | C168: 11.84 | D168: 44.5 | E168: 7.72 | F168: 323.6 | H168: 11.9 | I168: 44.6 | J168: 7.9 | K168: 331.1 | M168: 11.88 | N168: 44.5 | O168: 7.93 | P168: 333.4 | R168: 11.69 | S168: 44.5 | T168: 7.96 | U168: 350 | W168: 11.64 | X168: 44.4 | Y168: 7.81 | Z168: 339.6 | AB168: 11.97 | AC168: 44.4 | AD168: 7.84 | AE168: 348.8 | AG168: 11.49 | AH168: 44.4 | AI168: 7.74 | AJ168: 311.1 | AL168: 12.09 | AM168: 40.1 | AN168: 7.59 | AO168: 272.5
B169: 2020-12-02 | C169: 11.87 | D169: 40.1 | E169: 7.94 | F169: 322.4 | H169: 12.05 | I169: 40.3 | J169: 8.02 | K169: 328.2 | M169: 12.08 | N169: 40.1 | O169: 8.06 | P169: 331 | R169: 12.12 | S169: 39.6 | T169: 8.17 | U169: 346 | W169: 11.91 | X169: 39.8 | Y169: 8.01 | Z169: 336.7 | AB169: 12.18 | AC169: 39.6 | AD169: 8.01 | AE169: 345.4 | AG169: 12.18 | AH169: 39.6 | AI169: 8.01 | AJ169: 345.4 | AL169: 12.02 | AM169: 35.8 | AN169: 7.98 | AO169: 287.8
B170: 2020-12-17 | C170: 12.59 | D170: 37.8 | E170: 8.11 | F170: 326.9 | H170: 12.65 | I170: 38 | J170: 7.88 | K170: 336.2 | M170: 12.84 | N170: 37.9 | O170: 7.87 | P170: 337.9 | R170: 12.88 | S170: 38.2 | T170: 8.03 | U170: 352.4 | W170: 12.55 | X170: 38.3 | Y170: 7.95 | Z170: 342.9 | AB170: 12.87 | AC170: 38.3 | AD170: 7.94 | AE170: 351.5 | AG170: 12.34 | AH170: 39.3 | AI170: 7.9 | AJ170: 314.2 | AL170: 12.89 | AM170: 35.3 | AN170: 7.9 | AO170: 301.6
B171: 2021-01-05 | C171: 12.46 | D171: 38 | E171: 7.29 | F171: 330.8 | H171: 12.37 | I171: 38.8 | J171: 7.36 | K171: 337.8 | M171: 12.49 | N171: 38.8 | O171: 7.34 | P171: 339.2 | R171: 12.43 | S171: 40.2 | T171: 7.47 | U171: 351.8 | W171: 12.23 | X171: 39.5 | Y171: 7.32 | Z171: 343.8 | AB171: 12.42 | AC171: 39.8 | AD171: 7.2 | AE171: 352.9 | AG171: 11.71 | AH171: 41.1 | AI171: 7.35 | AJ171: 316.2 | AL171: 11.89 | AM171: 37.7 | AN171: 7.14 | AO171: 310.7
B172: 2021-01-21 | C172: 12.74 | D172: 37.1 | F172: 334.4 | H172: 12.81 | I172: 37.6 | K172: 340.4 | M172: 12.89 | N172: 37.7 | P172: 341.7 | R172: 12.81 | S172: 39.3 | U172: 353.4 | W172: 12.63 | X172: 38.5 | Z172: 346.3 | AB172: 12.95 | AC172: 38.9 | AE172: 354.4 | AG172: 12.12 | AH172: 40 | AJ172: 318 | AL172: 12.44 | AM172: 37.3 | AO172: 310.7
B173: 2021-02-04 | C173: 12.27 | D173: 38 | F173: 335.4 | H173: 12.41 | I173: 38.5 | K173: 340.9 | M173: 12.48 | N173: 38.4 | P173: 342.3 | R173: 12.48 | S173: 38.9 | U173: 352.8 | W173: 12.18 | X173: 38.7 | Z173: 346.9 | AB173: 12.52 | AC173: 38.9 | AE173: 354.9 | AG173: 12.06 | AH173: 40 | AJ173: 320.2 | AL173: 12.59 | AM173: 37.7 | AO173: 329.7
B174: 2021-02-24 | C174: 12.52 | D174: 38.5 | F174: 331.5 | H174: 12.53 | I174: 39.6 | K174: 336.7 | M174: 12.56 | N174: 39.6 | P174: 338 | R174: 12.61 | S174: 40.4 | U174: 347.8 | W174: 12.15 | X174: 40.2 | Z174: 342.6 | AB174: 12.37 | AC174: 40.6 | AE174: 352.8 | AG174: 11.88 | AH174: 41.2 | AJ174: 310.6 | AL174: 10.82 | AM174: 37.8 | AO174: 328.3
B175: 2021-03-09 | C175: 11.95 | D175: 43.2 | F175: 334.4 | H175: 12.09 | I175: 44.1 | K175: 338.9 | M175: 12.19 | N175: 43.9 | P175: 340.3 | R175: 12.4 | S175: 42 | U175: 348.2 | W175: 11.74 | X175: 44.6 | Z175: 345.8 | AB175: 12.23 | AC175: 43.7 | AE175: 355.1 | AG175: 12.13 | AH175: 43.9 | AJ175: 307.6 | AL175: 11.61 | AM175: 42 | AO175: 305.1
B176: 2021-03-23 | C176: 12.04 | D176: 44.8 | E176: 8.15 | F176: 327.4 | H176: 12.03 | I176: 45.5 | J176: 8.1 | K176: 335.6 | M176: 12.1 | N176: 45.9 | O176: 8.16 | P176: 336.9 | R176: 12.28 | S176: 46.5 | T176: 8.42 | U176: 346.4 | W176: 11.5 | X176: 48 | Y176: 8.21 | Z176: 342.1 | AB176: 11.64 | AC176: 48.8 | AD176: 8.27 | AE176: 350.8 | AG176: 11.76 | AH176: 49.2 | AI176: 8.27 | AJ176: 314.7 | AL176: 11.61 | AM176: 49.1 | AN176: 7.97 | AO176: 286.1
B177: 2021-04-07 | C177: 10.91 | D177: 55.6 | E177: 8.34 | F177: 327.4 | H177: 11.11 | I177: 54.7 | J177: 8.31 | K177: 342.4 | M177: 11.08 | N177: 54.5 | O177: 8.3 | P177: 344.5 | R177: 11.28 | S177: 52.5 | T177: 8.48 | U177: 352.4 | W177: 10.61 | X177: 52.5 | Y177: 8.29 | Z177: 350.6 | AB177: 11.21 | AC177: 53.9 | AD177: 8.31 | AE177: 357.8 | AG177: 11.07 | AH177: 52.7 | AI177: 8.2 | AJ177: 315.9 | AL177: 10.3 | AM177: 55.7 | AN177: 8.02 | AO177: 303.1
B178: 2021-04-19 | C178: 11.33 | D178: 48.7 | E178: 8.34 | F178: 332.7 | H178: 11.5 | I178: 48.2 | J178: 8.3 | K178: 341.9 | M178: 11.45 | N178: 48.2 | O178: 8.28 | P178: 343.8 | R178: 11.99 | S178: 44.8 | T178: 8.42 | U178: 352.4 | W178: 11.2 | X178: 48.2 | Y178: 8.27 | Z178: 348.8 | AB178: 11.64 | AC178: 47.3 | AD178: 8.28 | AE178: 357.3 | AG178: 11.62 | AH178: 46.3 | AI178: 8.2 | AJ178: 316.5 | AL178: 10.3 | AM178: 47.5 | AN178: 7.94 | AO178: 302.8
B179: 2021-05-05 | C179: 11.47 | D179: 48.8 | E179: 8.25 | F179: 329.9 | H179: 11.45 | I179: 48.2 | J179: 8.17 | K179: 336.2 | M179: 11.57 | N179: 48.2 | O179: 8.17 | P179: 337.6 | R179: 12.23 | S179: 44.8 | T179: 8.36 | U179: 350.7 | W179: 11.49 | X179: 48.4 | Y179: 8.22 | Z179: 342.5 | AB179: 11.85 | AC179: 48.3 | AD179: 8.28 | AE179: 350.8 | AG179: 11.78 | AH179: 47.5 | AI179: 8.19 | AJ179: 300 | AL179: 9.79 | AM179: 48.7 | AN179: 7.76 | AO179: 278.9
B180: 2021-06-08 | C180: 9.03 | D180: 66.9 | E180: 8.26 | F180: 337.7 | H180: 9.06 | I180: 64.2 | J180: 8.13 | K180: 345.6 | M180: 9.15 | N180: 64.1 | O180: 8.15 | P180: 347 | R180: 10.15 | S180: 55.6 | T180: 8.3 | U180: 358.7 | W180: 9.93 | X180: 65.5 | Y180: 8.33 | Z180: 348.3 | AB180: 10.55 | AC180: 65.2 | AD180: 8.37 | AE180: 354.4 | AG180: 9.45 | AH180: 60.8 | AI180: 7.97 | AJ180: 316.9 | AL180: 8.48 | AM180: 65.5 | AN180: 7.93 | AO180: 330.8
B181: 2021-06-28 | C181: 9.71 | D181: 65.4 | E181: 8.28 | F181: 327 | H181: 9.71 | I181: 65.4 | J181: 8.28 | K181: 327 | M181: 9.96 | N181: 63.5 | O181: 8.2 | P181: 337.9 | R181: 10.59 | S181: 54.6 | T181: 8.29 | U181: 356.2 | W181: 10.5 | X181: 64.5 | Y181: 8.35 | Z181: 341.7 | AB181: 10.7 | AC181: 63.9 | AD181: 8.37 | AE181: 350 | AG181: 9.79 | AH181: 59 | AI181: 7.99 | AJ181: 319.5 | AL181: 8.95 | AM181: 67.7 | AN181: 7.79 | AO181: 299.9
B182: 2021-07-12 | C182: 9.73 | D182: 64.6 | E182: 8.22 | F182: 325.7 | H182: 10.08 | I182: 62.5 | J182: 8.16 | K182: 335.4 | M182: 10.11 | N182: 62.5 | O182: 8.17 | P182: 337 | R182: 10.87 | S182: 53 | T182: 8.29 | U182: 358.8 | W182: 10.64 | X182: 62.8 | Y182: 8.35 | Z182: 340.4 | AB182: 10.82 | AC182: 63.1 | AD182: 8.33 | AE182: 348.4 | AG182: 10.26 | AH182: 57.6 | AI182: 8.03 | AJ182: 300 | AL182: 10.13 | AM182: 68.6 | AN182: 8.11 | AO182: 294.5
B183: 2021-07-28 | C183: 9.72 | D183: 72.3 | E183: 8.38 | F183: 310 | H183: 10.29 | I183: 69.3 | J183: 8.36 | K183: 323.5 | M183: 10.11 | N183: 68.6 | O183: 8.32 | P183: 326.4 | R183: 10.6 | S183: 56 | T183: 8.25 | U183: 354.9 | W183: 11.09 | X183: 67.9 | Y183: 8.48 | Z183: 330.7 | AB183: 11.07 | AC183: 65.5 | AD183: 8.44 | AE183: 340.7 | AG183: 10.48 | AH183: 57.5 | AI183: 7.99 | AJ183: 323.6 | AL183: 9.78 | AM183: 71.9 | AN183: 8.12 | AO183: 282.5
B184: 2021-08-16 | C184: 9.22 | D184: 65.2 | E184: 8.23 | F184: 318.2 | H184: 10.17 | I184: 67.9 | J184: 8.3 | K184: 325.2 | M184: 9.83 | N184: 62.8 | O184: 8.14 | P184: 331.2 | R184: 10.58 | S184: 52.8 | T184: 8.23 | U184: 360.8 | W184: 10.68 | X184: 62 | Y184: 8.33 | Z184: 335.2 | AB184: 10.96 | AC184: 61.5 | AD184: 8.35 | AE184: 345.4 | AG184: 10.4 | AH184: 55.3 | AI184: 8.05 | AJ184: 324.9 | AL184: 9.1 | AM184: 66.8 | AN184: 7.92 | AO184: 291
B185: 2021-08-31 | C185: 8.73 | D185: 66.1 | E185: 8.15 | F185: 315.9 | H185: 9 | I185: 63.8 | J185: 7.98 | K185: 331.2 | M185: 9.54 | N185: 63.4 | O185: 8.03 | P185: 332 | R185: 10.28 | S185: 54.1 | T185: 8.22 | U185: 357.9 | W185: 9.99 | X185: 62.6 | Y185: 8.12 | Z185: 338.2 | AB185: 10.26 | AC185: 61.6 | AD185: 8.25 | AE185: 349.9 | AG185: 10.09 | AH185: 54.1 | AI185: 8.06 | AJ185: 310.9 | AL185: 7.45 | AM185: 66.1 | AN185: 7.69 | AO185: 296.5
B186: 2021-09-22 | C186: 10.49 | D186: 61.5 | E186: 8.39 | F186: 318 | H186: 10.48 | I186: 59.5 | J186: 8.3 | K186: 329.2 | M186: 10.75 | N186: 59.2 | O186: 8.24 | P186: 331.5 | R186: 10.64 | S186: 52.3 | T186: 8.31 | U186: 355.1 | W186: 11.58 | X186: 58.5 | Y186: 8.55 | Z186: 334.4 | AB186: 11.44 | AC186: 56.8 | AD186: 8.4 | AE186: 314 | AG186: 11.15 | AH186: 52.4 | AI186: 8.18 | AJ186: 320.5 | AL186: 9.07 | AM186: 58.8 | AN186: 7.83
B187: 2021-10-05 | C187: 10.44 | D187: 59.4 | E187: 8.25 | F187: 324.6 | H187: 9.93 | I187: 57.5 | J187: 8.03 | K187: 336.3 | M187: 10.43 | N187: 57.6 | O187: 8.11 | P187: 337.9 | R187: 10.91 | S187: 52.5 | T187: 8.28 | U187: 357.8 | W187: 11.3 | X187: 57.5 | Y187: 8.28 | Z187: 340.8 | AB187: 11.52 | AC187: 56.6 | AD187: 8.35 | AE187: 350.9 | AG187: 10.98 | AH187: 52.7 | AI187: 8.12 | AJ187: 284.9 | AL187: 8.53 | AM187: 60.1 | AN187: 7.78 | AO187: 289
B188: 2021-10-25 | C188: 11.22 | D188: 51.6 | E188: 8.24 | F188: 330.5 | H188: 11.14 | I188: 50 | J188: 8.14 | K188: 339.2 | M188: 11.3 | N188: 49.7 | O188: 8.06 | P188: 341.5 | R188: 11.32 | S188: 46.4 | T188: 8.2 | U188: 356.7 | W188: 11.53 | X188: 49.1 | Y188: 8.28 | Z188: 345.6 | AB188: 11.94 | AC188: 48.5 | AD188: 8.34 | AE188: 354.3 | AG188: 11.27 | AH188: 46.4 | AI188: 8.07 | AJ188: 321.3 | AL188: 10.05 | AM188: 47.6 | AN188: 7.95 | AO188: 287
B189: 2021-11-10 | C189: 12.62 | D189: 47.4 | E189: 8.26 | F189: 329.5 | H189: 12.89 | I189: 45.9 | J189: 8.29 | K189: 335.4 | M189: 12.95 | N189: 45.4 | O189: 8.18 | P189: 337.7 | R189: 12.98 | S189: 42.6 | T189: 8.28 | U189: 348.3 | W189: 13.65 | X189: 45.2 | Y189: 8.47 | Z189: 340 | AB189: 14.31 | AC189: 44.6 | AD189: 8.57 | AE189: 345.8 | AG189: 13.05 | AH189: 44.5 | AI189: 8.21 | AJ189: 313.8 | AL189: 13.1 | AM189: 42.9 | AN189: 8.1 | AO189: 288.6
B190: 2021-11-30 | C190: 12.14 | D190: 39.9 | E190: 7.98 | F190: 339.6 | H190: 12.29 | I190: 40.1 | J190: 7.85 | K190: 344.5 | M190: 12.41 | N190: 40.1 | O190: 7.82 | P190: 346.7 | R190: 12.67 | S190: 40.1 | T190: 7.97 | U190: 354.4 | W190: 12.24 | X190: 40.2 | Y190: 7.86 | Z190: 351 | AB190: 12.51 | AC190: 40.3 | AD190: 7.88 | AE190: 361.3 | AG190: 12.08 | AH190: 41.1 | AI190: 7.88 | AJ190: 319.9 | AL190: 12.7 | AM190: 35.4 | AN190: 7.72 | AO190: 289.5
B191: 2021-12-16 | C191: 11.8 | D191: 40.7 | E191: 8 | F191: 340.4 | H191: 11.98 | I191: 41.7 | J191: 7.92 | K191: 339 | M191: 11.74 | N191: 42.6 | O191: 7.97 | P191: 334.7 | R191: 11.81 | S191: 43.8 | T191: 8.02 | U191: 298.4 | W191: 11.32 | X191: 43.3 | Y191: 7.92 | Z191: 337.3 | AB191: 11.41 | AC191: 43.9 | AD191: 7.89 | AE191: 342.3 | AG191: 11.31 | AH191: 44.4 | AI191: 7.86 | AJ191: 271.2 | AL191: 10.52 | AM191: 41.4 | AN191: 7.66 | AO191: 250.4
B192: 2021-12-29 | C192: 12.3 | D192: 37.1 | E192: 7.9 | F192: 338.2 | H192: 12.38 | I192: 37.5 | J192: 7.78 | K192: 343.8 | M192: 12.57 | N192: 37.5 | O192: 7.73 | P192: 344.9 | R192: 12.59 | S192: 38.6 | T192: 7.96 | U192: 355.8 | W192: 12.33 | X192: 37.9 | Y192: 7.81 | Z192: 349.9 | AB192: 12.58 | AC192: 38.2 | AD192: 7.87 | AE192: 359.4 | AG192: 12.09 | AH192: 38.9 | AI192: 7.81 | AJ192: 320 | AL192: 12.28 | AM192: 35.4 | AN192: 7.59 | AO192: 303.1
B193: 2022-01-21 | C193: 13.35 | D193: 34 | E193: 7.96 | F193: 350.7 | H193: 13.54 | I193: 34.3 | J193: 7.86 | K193: 355.7 | M193: 13.77 | N193: 34.1 | O193: 7.91 | P193: 357.2 | W193: 13.51 | X193: 34.5 | Y193: 7.96 | Z193: 361 | AB193: 13.9 | AC193: 34.4 | AD193: 7.97 | AE193: 357.2 | AG193: 13.29 | AH193: 36.9 | AI193: 8.04 | AJ193: 320.7 | AL193: 11.6 | AM193: 34.6 | AN193: 7.67 | AO193: 334.6
B194: 2022-02-02 | C194: 13.49 | D194: 35.5 | E194: 8.11 | F194: 345.2 | H194: 13.72 | I194: 36 | J194: 8.11 | K194: 350.2 | M194: 13.78 | N194: 35.9 | O194: 8.15 | P194: 352.3 | R194: 14.04 | S194: 35.7 | T194: 8.32 | U194: 357.8 | W194: 13.49 | X194: 36.1 | Y194: 8.16 | Z194: 356.9 | AB194: 14.09 | AC194: 36.1 | AD194: 8.12 | AE194: 365.4 | AG194: 13.22 | AH194: 37.5 | AI194: 8.14 | AJ194: 311.8 | AL194: 10.43 | AM194: 34.4 | AN194: 7.65 | AO194: 334.6
B195: 2022-02-18 | C195: 13.91 | D195: 35.6 | E195: 7.96 | F195: 352.4 | H195: 13.91 | I195: 35.6 | J195: 7.96 | K195: 352.4 | M195: 14.38 | N195: 35.2 | O195: 8.04 | P195: 357.9 | R195: 14.85 | S195: 33.6 | T195: 8.13 | U195: 363.5 | W195: 13.99 | X195: 35.5 | Y195: 8.01 | Z195: 362.3 | AB195: 14.56 | AC195: 35.5 | AD195: 8.06 | AE195: 369.9 | AG195: 14.01 | AH195: 37.2 | AI195: 8.08 | AJ195: 315 | AL195: 11.39 | AM195: 34.6 | AN195: 7.61 | AO195: 344.9
B196: 2022-03-09 | C196: 13.13 | D196: 37.7 | E196: 7.9 | F196: 344 | H196: 13.3 | I196: 37.9 | J196: 7.91 | K196: 348.7 | M196: 13.43 | N196: 37.8 | O196: 7.94 | P196: 350.2 | R196: 13.5 | S196: 37.8 | T196: 8.13 | U196: 357.5 | W196: 13 | X196: 38.5 | Y196: 8.01 | Z196: 355.1 | AB196: 13.34 | AC196: 38.6 | AD196: 8.13 | AE196: 365.3 | AG196: 12.79 | AH196: 40.6 | AI196: 8.03 | AJ196: 291.1 | AL196: 10.87 | AM196: 35.9 | AN196: 7.56 | AO196: 307.7
B197: 2022-03-23 | C197: 12.97 | D197: 38.6 | E197: 7.72 | F197: 314.7 | H197: 13.13 | I197: 39 | J197: 7.62 | K197: 305.8 | M197: 13.19 | N197: 39 | O197: 7.85 | P197: 305.2 | R197: 13.44 | S197: 38.8 | U197: 251.4 | W197: 12.85 | X197: 39.6 | Y197: 7.77 | Z197: 307.7 | AB197: 12.87 | AC197: 39.8 | AD197: 7.78 | AE197: 304.9 | AG197: 12.66 | AH197: 39.4 | AI197: 7.61 | AJ197: 250 | AL197: 12.09 | AM197: 35.3 | AN197: 7.44 | AO197: 195.3
B198: 2022-04-06 | C198: 12.68 | D198: 40.6 | E198: 7.72 | F198: 292.7 | H198: 12.65 | I198: 41.4 | J198: 7.66 | K198: 291.7 | M198: 12.55 | N198: 41.4 | O198: 7.67 | P198: 293.1 | R198: 12.85 | S198: 40.9 | T198: 7.7 | U198: 236.7 | W198: 12.18 | X198: 41.9 | Y198: 7.66 | Z198: 296.6 | AB198: 12.14 | AC198: 42 | AD198: 7.59 | AE198: 297.4 | AG198: 11.88 | AH198: 42.7 | AI198: 7.42 | AJ198: 233 | AL198: 11.7 | AM198: 38.4 | AN198: 7.31 | AO198: 213.1
B199: 2022-04-29 | C199: 11.54 | D199: 46.6 | E199: 7.76 | F199: 332.1 | H199: 11.69 | I199: 46.1 | J199: 7.85 | K199: 338.1 | M199: 11.69 | N199: 46.3 | O199: 7.85 | P199: 339.1 | R199: 12.14 | S199: 44.3 | T199: 8.08 | U199: 351.2 | W199: 11.45 | X199: 47.6 | Y199: 7.94 | Z199: 344.1 | AB199: 11.66 | AC199: 48.4 | AD199: 8.04 | AE199: 352.2 | AG199: 11.8 | AH199: 49.8 | AI199: 8.1 | AJ199: 316.8 | AL199: 11.38 | AM199: 49.7 | AN199: 7.89 | AO199: 272
B200: 2022-05-11 | C200: 9.95 | D200: 61.2 | E200: 8.11 | F200: 332.3 | H200: 10.09 | I200: 59.6 | J200: 8.03 | K200: 333.6 | M200: 10.11 | N200: 59.5 | O200: 8.08 | P200: 336.1 | R200: 10.47 | S200: 55.4 | T200: 8.12 | U200: 338.9 | W200: 9.93 | X200: 59.4 | Y200: 8.13 | Z200: 343.2 | AB200: 10.25 | AC200: 58.7 | AD200: 8.1 | AE200: 351.2 | AG200: 10.44 | AH200: 56.5 | AI200: 7.98 | AJ200: 302.5 | AL200: 7.72 | AM200: 59.9 | AN200: 7.49 | AO200: 291.6
B201: 2022-05-27 | C201: 10 | D201: 59.2 | E201: 8.23 | F201: 328.4 | H201: 10.46 | I201: 57.7 | J201: 8.26 | K201: 334.4 | M201: 10.65 | N201: 57.5 | O201: 8.22 | P201: 335.7 | R201: 10.74 | S201: 51.2 | T201: 8.26 | U201: 350 | W201: 10.44 | X201: 57.7 | Y201: 8.27 | Z201: 341.1 | AB201: 10.93 | AC201: 56.3 | AD201: 8.24 | AE201: 350.4 | AG201: 11.6 | AH201: 53 | AI201: 8.14 | AJ201: 315.9 | AL201: 7.9 | AM201: 56.3 | AN201: 7.71 | AO201: 303.4
B202: 2022-06-14 | C202: 9.64 | D202: 66.1 | E202: 8.25 | F202: 324.8 | H202: 10.1 | I202: 65.1 | J202: 8.28 | K202: 325.9 | M202: 10.13 | N202: 64.8 | O202: 8.24 | P202: 327.2 | R202: 10.13 | S202: 55.2 | T202: 8.37 | U202: 350.9 | W202: 9.87 | X202: 64.6 | Y202: 8.47 | Z202: 336 | AB202: 11.15 | AC202: 63.9 | AD202: 8.53 | AE202: 334.5 | AG202: 10.97 | AH202: 58.8 | AI202: 8.28 | AJ202: 300.7 | AL202: 10.33 | AM202: 66.8 | AN202: 8.35 | AO202: 284.2
B203: 2022-06-28 | C203: 9.87 | D203: 62.9 | E203: 8.23 | F203: 324.2 | H203: 10.35 | I203: 59.9 | J203: 8.17 | K203: 333.3 | M203: 10.49 | N203: 60.1 | O203: 8.16 | P203: 334.7 | R203: 10.98 | S203: 51.9 | T203: 8.42 | U203: 354.8 | W203: 10.83 | X203: 61 | Y203: 8.29 | Z203: 337.9 | AB203: 11.1 | AC203: 59.6 | AD203: 8.34 | AE203: 347 | AG203: 11.22 | AH203: 56.7 | AI203: 8.23 | AJ203: 315.8 | AL203: 11.01 | AM203: 60 | AN203: 8.24 | AO203: 329.7
B204: 2022-07-12 | C204: 9.79 | D204: 67 | E204: 8.19 | F204: 320.4 | H204: 10.09 | I204: 64.6 | J204: 8.24 | K204: 329.6 | M204: 10.12 | N204: 64.6 | O204: 8.23 | P204: 332 | R204: 10.48 | S204: 54.9 | T204: 8.29 | U204: 358.2 | W204: 10.34 | X204: 63.5 | Y204: 8.39 | Z204: 337.5 | AB204: 10.65 | AC204: 61.5 | AD204: 8.31 | AE204: 347.3 | AG204: 10.49 | AH204: 55.8 | AI204: 8.13 | AJ204: 304.8 | AL204: 14.2 | AM204: 60.8 | AN204: 8.36 | AO204: 327.8
B205: 2022-07-29 | C205: 9.64 | D205: 65.2 | E205: 8.35 | F205: 323.1 | H205: 9.94 | I205: 62.9 | J205: 8.33 | K205: 334.3 | M205: 10.4 | N205: 62.7 | O205: 8.37 | P205: 335.1 | R205: 10.72 | S205: 53.2 | T205: 7.87 | U205: 354.9 | W205: 10.68 | X205: 62.9 | Y205: 7.56 | Z205: 337.9 | AB205: 11.08 | AC205: 62.2 | AD205: 7.32 | AE205: 346.9 | AG205: 10.55 | AH205: 58.5 | AI205: 7.2 | AJ205: 316.5 | AL205: 9.78 | AM205: 62.6 | AN205: 7.17 | AO205: 333.9
B206: 2022-08-12 | C206: 9.67 | D206: 69.2 | E206: 8.21 | F206: 310.8 | H206: 10.32 | I206: 66.4 | J206: 8.17 | K206: 323.7 | M206: 10.54 | N206: 65.9 | O206: 8.2 | P206: 325.6 | R206: 10.45 | S206: 53.1 | T206: 8.31 | U206: 357.4 | W206: 11.01 | X206: 65 | Y206: 8.41 | Z206: 333.2 | AB206: 11.2 | AC206: 62.7 | AD206: 8.37 | AE206: 343.8 | AG206: 10.28 | AH206: 57.2 | AI206: 8.15 | AJ206: 326.6 | AL206: 8.35 | AM206: 69.5 | AN206: 8 | AO206: 257.1
B207: 2022-08-26 | C207: 9.77 | D207: 68.9 | E207: 8.22 | F207: 321.3 | H207: 10.2 | I207: 66 | J207: 8.22 | K207: 324.1 | M207: 10.58 | N207: 65.6 | O207: 8.19 | P207: 326.2 | R207: 10.22 | S207: 55.3 | T207: 8.19 | U207: 355.6 | W207: 11.14 | X207: 65.5 | Y207: 8.47 | Z207: 329.4 | AB207: 11.65 | AC207: 63.9 | AD207: 8.46 | AE207: 337.6 | AG207: 10.42 | AH207: 57.8 | AI207: 8.24 | AJ207: 324.6 | AL207: 9.79 | AM207: 67.3 | AN207: 8.1 | AO207: 286.6
B208: 2022-09-15 | C208: 10.41 | D208: 64.2 | E208: 8.26 | F208: 318.2 | H208: 10.81 | I208: 60.9 | J208: 8.04 | K208: 329.3 | M208: 10.94 | N208: 60.2 | O208: 8.27 | P208: 331.4 | R208: 10.85 | S208: 51.2 | T208: 8.46 | U208: 357.2 | W208: 11.76 | X208: 59.3 | Y208: 8.63 | Z208: 334.1 | AB208: 12.17 | AC208: 57.5 | AD208: 8.55 | AE208: 339.6 | AG208: 11.22 | AH208: 53.4 | AI208: 8.27 | AJ208: 320 | AL208: 11.07 | AM208: 58.1 | AN208: 8.04 | AO208: 304.6
B209: 2022-09-30 | C209: 10.56 | D209: 56.6 | E209: 8.37 | F209: 349.2 | H209: 10.88 | I209: 54.5 | J209: 8.31 | K209: 347.9 | M209: 10.93 | N209: 53.8 | O209: 8.32 | P209: 346.3 | R209: 11.48 | S209: 46.4 | T209: 8.44 | U209: 307.8 | W209: 11.52 | X209: 53.2 | Y209: 8.48 | Z209: 304.5 | AB209: 12.02 | AC209: 51.9 | AD209: 8.52 | AE209: 304.2 | AG209: 11.26 | AH209: 49.6 | AI209: 8.29 | AJ209: 304.8 | AL209: 11.7 | AM209: 50.5 | AN209: 8.15 | AO209: 304.3
B210: 2022-10-14 | C210: 10.62 | D210: 50.9 | E210: 8.32 | F210: 312.2 | H210: 10.62 | I210: 49.4 | J210: 8.2 | K210: 334.7 | M210: 10.77 | N210: 49.1 | O210: 8.23 | P210: 336.6 | R210: 11.07 | S210: 45.5 | T210: 8.32 | U210: 338.4 | W210: 10.98 | X210: 48.4 | Y210: 8.33 | Z210: 339.4 | AB210: 10.99 | AC210: 47.6 | AD210: 8.26 | AE210: 349.6 | AG210: 10.75 | AH210: 45.5 | AI210: 8.13 | AJ210: 306.1 | AL210: 8.97 | AM210: 46.5 | AN210: 7.8 | AO210: 296.2
B211: 2022-11-04 | C211: 10.69 | D211: 51.8 | E211: 8.57 | F211: 328.2 | H211: 10.67 | I211: 51.7 | J211: 8.51 | K211: 337.1 | M211: 10.8 | N211: 51.7 | O211: 8.53 | P211: 339.1 | R211: 10.39 | S211: 51.9 | T211: 8.64 | U211: 358 | W211: 10.76 | X211: 51.9 | Y211: 8.63 | Z211: 344.6 | AB211: 11.27 | AC211: 52 | AD211: 8.71 | AE211: 353.6 | AG211: 10.77 | AH211: 51.6 | AI211: 8.54 | AJ211: 323.1 | AL211: 10.33 | AM211: 53.2 | AN211: 8.42 | AO211: 272.1
B212: 2022-11-29 | C212: 12.14 | D212: 42.3 | E212: 8.24 | F212: 332.6 | H212: 12.2 | I212: 42.4 | J212: 8.2 | K212: 339.9 | M212: 12.18 | N212: 42.4 | O212: 8.23 | P212: 341.5 | R212: 11.98 | S212: 42.9 | T212: 8.36 | U212: 353.2 | W212: 12.05 | X212: 42.7 | Y212: 8.28 | Z212: 346.6 | AB212: 12.42 | AC212: 42.7 | AD212: 8.34 | AE212: 355.8 | AG212: 12.12 | AH212: 43.5 | AI212: 8.28 | AJ212: 318 | AL212: 12.24 | AM212: 39.1 | AN212: 8.06 | AO212: 277.2
B213: 2022-12-13 | C213: 12.41 | D213: 38.3 | E213: 8 | F213: 337.3 | H213: 12.47 | I213: 38.9 | J213: 8.03 | K213: 344 | M213: 12.68 | N213: 38.9 | O213: 8.01 | P213: 345.5 | R213: 12.72 | S213: 39.6 | T213: 8.29 | U213: 356.4 | W213: 12.76 | X213: 39.4 | Y213: 8.17 | Z213: 349.1 | AB213: 12.97 | AC213: 39.6 | AD213: 8.18 | AE213: 359.2 | AG213: 12.84 | AH213: 40.7 | AI213: 8.19 | AJ213: 320.4 | AL213: 13.1 | AM213: 36.3 | AN213: 7.91 | AO213: 288.9
B214: 2022-12-28 | C214: 12.33 | D214: 36.4 | E214: 8.21 | F214: 321.3 | H214: 12.75 | I214: 36.9 | J214: 8.12 | K214: 344.3 | M214: 12.91 | N214: 37 | O214: 8.13 | P214: 345.5 | R214: 12.68 | S214: 38.6 | T214: 8.33 | U214: 356.4 | W214: 12.67 | X214: 37.8 | Y214: 8.19 | Z214: 347.7 | AB214: 12.95 | AC214: 38.3 | AD214: 8.15 | AE214: 358.8 | AG214: 12.59 | AH214: 39.9 | AI214: 8.24 | AJ214: 319.8 | AL214: 11.61 | AM214: 33.5 | AN214: 7.81 | AO214: 305.6
B215: 2023-01-26 | C215: 12.73 | D215: 37.2 | E215: 8.05 | F215: 332.8 | H215: 12.61 | I215: 37.9 | J215: 8.11 | K215: 340.8 | M215: 12.83 | N215: 37.9 | O215: 8.14 | P215: 342.8 | R215: 12.81 | S215: 38.6 | T215: 8.34 | U215: 350.7 | W215: 12.44 | X215: 38.4 | Y215: 8.24 | Z215: 346.4 | AB215: 12.75 | AC215: 38.6 | AD215: 8.1 | AE215: 355.6 | AG215: 12.64 | AH215: 40.1 | AI215: 8.2 | AJ215: 315.2 | AL215: 12.34 | AM215: 36.9 | AN215: 8 | AO215: 288.1
B216: 2023-02-14 | C216: 12.4 | D216: 39.7 | E216: 8.05 | F216: 337.6 | H216: 12.37 | I216: 40 | J216: 8.08 | K216: 343.9 | M216: 12.53 | N216: 39.7 | O216: 8.05 | P216: 345.3 | R216: 12.56 | S216: 40.2 | T216: 8.3 | U216: 352.4 | W216: 12.15 | X216: 40.1 | Y216: 8.17 | Z216: 350 | AB216: 12.53 | AC216: 40.4 | AD216: 8.23 | AE216: 358 | AG216: 12.87 | AH216: 41.8 | AI216: 8.34 | AJ216: 312.2 | AL216: 12.6 | AM216: 39.2 | AN216: 8.01 | AO216: 303.6
B217: 2023-02-28 | C217: 12.64 | D217: 38.9 | E217: 8.01 | F217: 294.3 | H217: 12.64 | I217: 39.1 | J217: 8.01 | K217: 342.3 | M217: 12.71 | N217: 38.9 | O217: 8.04 | P217: 342.8 | R217: 12.79 | S217: 39.4 | T217: 8.25 | U217: 352.2 | W217: 12.35 | X217: 39.6 | Y217: 8.09 | Z217: 347.2 | AB217: 12.64 | AC217: 39.6 | AD217: 8.2 | AE217: 353.3 | AG217: 13.07 | AH217: 41.5 | AI217: 8.31 | AJ217: 315.3 | AL217: 12.56 | AM217: 36.6 | AN217: 7.96 | AO217: 394.7
B218: 2023-03-21 | C218: 12.83 | D218: 37 | E218: 8.04 | F218: 340.6 | H218: 12.9 | I218: 37.5 | J218: 8.07 | K218: 346.4 | M218: 13.05 | N218: 37.5 | O218: 7.92 | P218: 348.3 | R218: 13.36 | S218: 37.8 | T218: 8.37 | U218: 355.8 | W218: 12.84 | X218: 38.2 | Y218: 7.96 | Z218: 352.6 | AB218: 13.02 | AC218: 38.5 | AD218: 8.22 | AE218: 361.7 | AG218: 13.74 | AH218: 40.4 | AI218: 8.29 | AJ218: 314.4 | AM218: 37.1 | AN218: 8.05 | AO218: 282.3
B219: 2023-04-07 | C219: 12.31 | D219: 39.6 | E219: 8.09 | F219: 320.2 | H219: 12.47 | I219: 39.8 | J219: 8.07 | K219: 330.5 | N219: 39.9 | O219: 7.98 | P219: 331.6 | R219: 13.06 | S219: 39.1 | T219: 8.32 | U219: 344.3 | W219: 12.3 | X219: 41.2 | Y219: 8.05 | Z219: 336.7 | AB219: 12.49 | AC219: 41.4 | AD219: 8.1 | AE219: 345.5 | AG219: 12.56 | AH219: 44.1 | AI219: 8.2 | AJ219: 244.2 | AL219: 11.4 | AM219: 41.4 | AN219: 7.85 | AO219: 230.2
B220: 2023-04-26 | C220: 11.5 | D220: 47.1 | E220: 8.15 | F220: 325.6 | H220: 11.83 | I220: 46.5 | J220: 8.18 | K220: 332.8 | M220: 11.87 | N220: 46.6 | O220: 8.18 | P220: 334.8 | R220: 12.29 | S220: 43.2 | T220: 8.34 | U220: 346.1 | W220: 11.65 | X220: 46.1 | Y220: 8.21 | Z220: 338.8 | AB220: 11.91 | AC220: 45.8 | AD220: 8.24 | AE220: 349.7 | AG220: 12.27 | AH220: 44.3 | AI220: 8.23 | AJ220: 312.8 | AL220: 11.83 | AM220: 45.4 | AN220: 8.19 | AO220: 294.7
B221: 2023-05-10 | C221: 10.2 | D221: 59.9 | E221: 8.22 | F221: 322.7 | H221: 10.64 | I221: 58.1 | J221: 8.24 | K221: 332.3 | M221: 10.67 | N221: 58.5 | O221: 8.3 | P221: 329.7 | R221: 10.87 | S221: 53.3 | T221: 8.45 | U221: 345 | W221: 10.38 | X221: 59.1 | Y221: 8.32 | Z221: 336.3 | AB221: 10.79 | AC221: 57.8 | AD221: 8.38 | AE221: 345.7 | AG221: 10.93 | AH221: 56.8 | AI221: 8.34 | AJ221: 314.2 | AL221: 10.94 | AM221: 60.1 | AN221: 8.24 | AO221: 270.5
B222: 2023-05-31 | C222: 9.22 | D222: 68.4 | E222: 8.19 | F222: 327.5 | H222: 9.71 | I222: 65.1 | J222: 8.17 | K222: 334.4 | M222: 10.19 | N222: 64.8 | O222: 8.22 | P222: 335.7 | R222: 10.32 | S222: 55 | T222: 8.29 | U222: 352.7 | W222: 10.43 | X222: 65.1 | Y222: 8.36 | Z222: 344.8 | AB222: 11.74 | AC222: 64.1 | AD222: 8.53 | AE222: 324.5 | AG222: 10.42 | AH222: 59.4 | AI222: 8.2 | AJ222: 324.1 | AL222: 10.82 | AM222: 62.5 | AN222: 8.1 | AO222: 325.1
... 15 more rows

Sheet Flow & Rain & TP Comparison
I3: Flow & Rain Year | J3: 2023 | BA3: Flow 2023 Events = 17 | BB3: Rain 2023 | BC3: USGS Avg = 14.25 2023 | DS3: 2010 | DT3: 1st yr | ABN3: USGS 04126740 2020-01-01 173 A
I4: TP Site | J4: USGS | BE4: Lake TP | ABN4: USGS 04126740 2020-01-02 173 A | BNF4: USGS | BNG4: 4126740 | BNH4: 2020-01-01 | BNI4: 173 | BNJ4: A
BE5: Stone | DS5: =YEAR(TODAY()) -> 2024 | DU5: =IF(ISERROR(DS5),"",DS5) -> 2024 | ABN5: USGS 04126740 2020-01-03 174 A | BNF5: USGS | BNG5: 4126740 | BNH5: 2020-01-02 | BNI5: 173 | BNJ5: A
BE6: Vet's | DS6: =IF(DS5>DS$3,DS5-1,"") -> 2023 | DU6: 2023 | ABN6: USGS 04126740 2020-01-04 166 A | BNF6: USGS | BNG6: 4126740 | BNH6: 2020-01-03 | BNI6: 174 | BNJ6: A
BE7: Haze
N8: Event | P8: Event | Q8: Base | R8: Average | BE8: Carter | DS8: =IF(#REF!>DS$3,#REF!-1,"") ->  | ABN8: USGS 04126740 2020-01-06 162 A | BNF8: USGS | BNG8: 4126740 | BNH8: 2020-01-05 | BNI8: 162 | BNJ8: A
M9: Year | N9: Sensitivity % | O9: Events | P9: cfs | Q9: cfs | R9: cfs | BE9: Pioneer | ABN9: USGS 04126740 2020-01-07 160 A | BNF9: USGS | BNG9: 4126740 | BNH9: 2020-01-06 | BNI9: 162 | BNJ9: A
M10: 2010 | N10: 13 | O10: 13 | P10: 145.8461538 | Q10: 106.6065224 | R10: 108.0040984 | BE10: USGS | ABN10: USGS 04126740 2020-01-08 156 A | BNF10: USGS | BNG10: 4126740 | BNH10: 2020-01-07 | BNI10: 160 | BNJ10: A
M11: =M10+1 -> 2011 | N11: 13 | O11: 27 | P11: 141.7407407 | Q11: 110.9959461 | R11: 113.2702186 | BE11: NB Ind Hill | ABN11: USGS 04126740 2020-01-09 155 A | BNF11: USGS | BNG11: 4126740 | BNH11: 2020-01-08 | BNI11: 156 | BNJ11: A
M12: 2012 | N12: 13 | O12: 20 | P12: 161.85 | Q12: 115.1027124 | R12: 117.6642077 | BE12: NB Dead | ABN12: USGS 04126740 2020-01-10 163 A | BNF12: USGS | BNG12: 4126740 | BNH12: 2020-01-09 | BNI12: 155 | BNJ12: A
M13: 2013 | N13: 16 | O13: 25 | P13: 180.76 | Q13: 138.4079155 | R13: 141.3087432 | BE13: Collision | ABN13: USGS 04126740 2020-01-11 162 A | BNF13: USGS | BNG13: 4126740 | BNH13: 2020-01-10 | BNI13: 163 | BNJ13: A
M14: 2014 | N14: 13 | O14: 21 | P14: 227 | Q14: 155.7214465 | R14: 159.8224044 | ABN14: USGS 04126740 2020-01-12 157 A | BNF14: USGS | BNG14: 4126740 | BNH14: 2020-01-11 | BNI14: 162 | BNJ14: A
M15: 2015 | N15: 13 | O15: 14 | P15: 187.4285714 | Q15: 155.6840409 | R15: 156.9016393 | S15: =IF(((365-O15)*Q15+O15*P15)/365<>R15,"Error","") ->  | ABN15: USGS 04126740 2020-01-13 156 A | BNF15: USGS | BNG15: 4126740 | BNH15: 2020-01-12 | BNI15: 157 | BNJ15: A
M16: 2016 | N16: 13 | O16: 14 | P16: 173.2142857 | Q16: 139.0900316 | R16: 140.3989071 | S16: =IF(((365-O16)*Q16+O16*P16)/365<>R16,"Error","") ->  | ABN16: USGS 04126740 2020-01-14 157 A | BNF16: USGS | BNG16: 4126740 | BNH16: 2020-01-13 | BNI16: 156 | BNJ16: A
M17: 2017 | N17: 13 | O17: 18 | P17: 173.5555556 | Q17: 129.0597865 | R17: 131.2540984 | S17: =IF(((365-O17)*Q17+O17*P17)/365<>R17,"Error","") ->  | ABN17: USGS 04126740 2020-01-15 156 A | BNF17: USGS | BNG17: 4126740 | BNH17: 2020-01-14 | BNI17: 157 | BNJ17: A
M18: 2018 | N18: 13 | O18: 22 | P18: 176.6818182 | Q18: 136.1905797 | R18: 138.6311475 | S18: =IF(((365-O18)*Q18+O18*P18)/365<>R18,"Error","") ->  | ABN18: USGS 04126740 2020-01-16 155 A | BNF18: USGS | BNG18: 4126740 | BNH18: 2020-01-15 | BNI18: 156 | BNJ18: A
M19: 2019 | N19: 13 | O19: 26 | P19: 193.9615385 | Q19: 148.7640602 | R19: 151.9836066 | S19: =IF(((365-O19)*Q19+O19*P19)/365<>R19,"Error","") ->  | ABN19: USGS 04126740 2020-01-17 153 A | BNF19: USGS | BNG19: 4126740 | BNH19: 2020-01-16 | BNI19: 155 | BNJ19: A
M20: 2020 | N20: 13 | O20: 20 | P20: 212.55 | Q20: 153.4848658 | R20: 156.7213115 | S20: =IF(((365-O20)*Q20+O20*P20)/365<>R20,"Error","") ->  | ABN20: USGS 04126740 2020-01-18 158 A | BNF20: USGS | BNG20: 4126740 | BNH20: 2020-01-17 | BNI20: 153 | BNJ20: A
M21: 2021 | N21: 13 | O21: 14 | P21: 165.7142857 | Q21: 124.3506064 | R21: 125.9371585 | ABN21: USGS 04126740 2020-01-19 158 A | BNF21: USGS | BNG21: 4126740 | BNH21: 2020-01-18 | BNI21: 158 | BNJ21: A
M22: 2022 | N22: 13 | O22: 24 | P22: 167.3333333 | Q22: 118.8257616 | R22: 122.0153005 | ABN22: USGS 04126740 2020-01-20 156 A | BNF22: USGS | BNG22: 4126740 | BNH22: 2020-01-19 | BNI22: 158 | BNJ22: A
M23: 2023 | N23: 13 | O23: 17 | P23: 169.8823529 | Q23: 125.3092378 | R23: 127.3852459 | ABN23: USGS 04126740 2020-01-21 154 A | BNF23: USGS | BNG23: 4126740 | BNH23: 2020-01-20 | BNI23: 156 | BNJ23: A
M24: 2024 | ABN24: USGS 04126740 2020-01-22 154 A | BNF24: USGS | BNG24: 4126740 | BNH24: 2020-01-21 | BNI24: 154 | BNJ24: A
M25: 2025 | ABN25: USGS 04126740 2020-01-23 155 A | BNF25: USGS | BNG25: 4126740 | BNH25: 2020-01-22 | BNI25: 154 | BNJ25: A
M26: 2026 | ABN26: USGS 04126740 2020-01-24 162 A | BNF26: USGS | BNG26: 4126740 | BNH26: 2020-01-23 | BNI26: 155 | BNJ26: A
M27: 2027 | ABN27: USGS 04126740 2020-01-25 174 A | BNF27: USGS | BNG27: 4126740 | BNH27: 2020-01-24 | BNI27: 162 | BNJ27: A
M28: 2028 | ABN28: USGS 04126740 2020-01-26 168 A | BNF28: USGS | BNG28: 4126740 | BNH28: 2020-01-25 | BNI28: 174 | BNJ28: A
M29: 2029 | ABN29: USGS 04126740 2020-01-27 163 A | BNF29: USGS | BNG29: 4126740 | BNH29: 2020-01-26 | BNI29: 168 | BNJ29: A
M30: 2030 | ABN30: USGS 04126740 2020-01-28 160 A | BNF30: USGS | BNG30: 4126740 | BNH30: 2020-01-27 | BNI30: 163 | BNJ30: A
M31: 2031 | ABN31: USGS 04126740 2020-01-29 157 A | BNF31: USGS | BNG31: 4126740 | BNH31: 2020-01-28 | BNI31: 160 | BNJ31: A
... 38 more rows

Sheet Moving Average
I2: Moving Avg Start | J2: 2015 | M2: Moving Avg Start | N2: 2015 | AM2: Lake TP | AP2: Carter 2015 to 2023 | AR2: 0.5 | AU2: 16
I3: Moving Avg End | J3: 2023 | M3: Moving Avg End | N3: 2023 | AM3: Secchi | AP3: Compared to 2023 | AR3: =AR2+1 -> 1.5 | AU3: 24
I4: Standard Deviations | J4: 1 | M4: Standard Deviations | N4: 2 | AM4: Stone | AR4: =AR3+1 -> 2.5 | AU4: 48
I5: Site | J5: Carter | M5: Site | N5: USGS | AM5: Haze | AP5: USGS 2015 to 2023 | AR5: 3.5 | AU5: 96
AM6: Vet's | AP6: Compared to 2023 | AR6: 4.5
I7: Compare Year | J7: 2023 | M7: Compare Year | N7: 2023 | AM7: Carter | AR7: 5.5
AM8: Pioneer | AR8: 6.5
B9: Y Max | L9: Y Max | AM9: USGS | AP9: Toral P mg/m3 | AR9: 7.5
B10: 48 | L10: 48 | AM10: NB Ind Hill | AR10: 8.5
AM11: NB Dead | AR11: 9.5
AP12: ="Range = " & TEXT(J4,0) & " Std Dev" -> Range = 1 Std Dev | AR12: 10.5
AM13: 1 | AP13: ="Range = " & TEXT(N4,0) & " Std Dev" -> Range = 2 Std Dev | AR13: 11.5
AM14: 2
AM15: 3
D38: =AVERAGE(D41:D133) -> 12.04613577 | F38: count | G38: =COUNT(G41:G133) -> 6 | H38: =COUNT(H41:H133) -> 11 | I38: 7 | J38: 3 | K38: 12 | L38: 12 | M38: 13 | N38: 10 | O38: 11 | P38: 10 | Q38: 14 | R38: 11 | V38: =AVERAGE(V41:V133) -> 14.3528858 | X38: count | Y38: =COUNT(Y41:Y133) -> 9 | Z38: =COUNT(Z41:Z133) -> 16 | AA38: 13 | AB38: 6 | AC38: 18 | AD38: 16 | AE38: 16 | AF38: 14 | AG38: 15 | AH38: 14 | AI38: 16 | AJ38: 15
D39: =MAX(D41:D133) -> 16.47567503 | F39: Average | G39: =IF(G38>0,AVERAGE(G41:G91),"") -> 13.01415713 | H39: =IF(H38>0,AVERAGE(H41:H91),"") -> 14.80818182 | I39: 16.3509702 | J39: 17.05333333 | K39: 15.90466316 | L39: 15.98523255 | M39: 13.38203364 | N39: 12.70912543 | O39: 11.59363636 | P39: 9.893 | Q39: 8.909062684 | R39: 14.33925449 | V39: =MAX(V41:V133) -> 22.02 | X39: Average | Y39: =IF(Y38>0,AVERAGE(Y41:Y91),"") -> 19.53005155 | Z39: 19.53854167 | AA39: 17.35690163 | AB39: 17.89722222 | AC39: 18.41313064 | AD39: 18.80093213 | AE39: 16.31007901 | AF39: 11.58107377 | AG39: 10.47711111 | AH39: 10.46642857 | AI39: 10.54756939 | AJ39: 16.26671329
B40: Date | C40: Chart 1 | D40: Value | F40: n x STDEV | G40: =IF($J$4*_xlfn.STDEV.P(G41:G91)<G39,$J$4*_xlfn.STDEV.P(G41:G91),G39) -> 1.844582194 | H40: =IF($J$4*_xlfn.STDEV.P(H41:H91)<H39,$J$4*_xlfn.STDEV.P(H41:H91),H39) -> 4.113224389 | I40: 4.3816357 | J40: 2.530116379 | K40: 3.990911697 | L40: 2.117928262 | M40: 2.106131975 | N40: 3.187618047 | O40: 2.317915493 | P40: 2.360927996 | Q40: 2.270543316 | R40: 11.89162004 | T40: Date | U40: Chart 2 | V40: Value | X40: n x SD | Y40: =IF($N$4*_xlfn.STDEV.P(Y41:Y91)<Y39,$N$4*_xlfn.STDEV.P(Y41:Y91),Y39) -> 5.157185278 | Z40: =IF($N$4*_xlfn.STDEV.P(Z41:Z91)<Z39,$N$4*_xlfn.STDEV.P(Z41:Z91),Z39) -> 7.788578521 | AA40: 3.743048411 | AB40: 3.031768624 | AC40: 5.65222998 | AD40: 5.224241964 | AE40: 5.683034925 | AF40: 4.296694268 | AG40: 2.795654688 | AH40: 3.120673985 | AI40: 4.613002675 | AJ40: 9.137891241
B41: 2023-02-14 | C41: =MONTH(B41)-1+DAY(B41)/30 -> 1.466666667 | D41: 12.51 | G41: 12.8 | H41: 12.88 | I41: 23.71 | J41: 15.69 | K41: 15.62 | L41: 13.38 | M41: 13.29 | N41: 11.42 | O41: 13.68 | P41: 10.21 | Q41: 10.74 | R41: 10.94 | T41: 2023-02-14 | U41: =MONTH(T41)-1+DAY(T41)/30 -> 1.466666667 | V41: 16.33 | Y41: 19.22 | Z41: 15.23333333 | AA41: 16.19333333 | AB41: 15.54333333 | AC41: 15.76 | AD41: 21.72666667 | AE41: 22.01 | AF41: 15.46 | AG41: 11.89666667 | AH41: 8.76 | AI41: 14.21666667 | AJ41: 20.11
B42: 2023-02-28 | C42: =MONTH(B42)-1+DAY(B42)/30 -> 1.933333333 | D42: 12.58 | G42: 13.23 | H42: 11.86 | I42: 13.58 | J42: 20.6 | K42: 11.67 | L42: 16.18 | M42: 13.23 | N42: 21.12 | O42: 10.8 | P42: 10.75 | Q42: 10.41 | R42: 10.73 | T42: 2023-02-28 | U42: =MONTH(T42)-1+DAY(T42)/30 -> 1.933333333 | V42: 20.05 | Y42: 20.16 | Z42: 13.16333333 | AA42: 14.62 | AB42: 20.65 | AC42: 25.81 | AD42: 20.13666667 | AE42: 17.01 | AF42: 13.06333333 | AG42: 8.83 | AH42: 9.69 | AI42: 9.25 | AJ42: 19.47
B43: 2023-03-21 | C43: 2.7 | D43: 14.00679142 | G43: 15.86 | H43: 24.66 | I43: 21.8 | J43: 14.87 | K43: 12.59 | L43: 16.46 | M43: 14.83 | N43: 13.12 | O43: 10.84 | P43: 8.86 | Q43: 10.48 | R43: 11.77 | T43: 2023-03-21 | U43: 2.7 | V43: 17.9463879 | Y43: 17.76 | Z43: 21.21 | AA43: 18.63 | AB43: 17.81 | AC43: 16.68 | AD43: 21.93 | AE43: 16.88 | AF43: 10.06 | AG43: 11.29 | AH43: 11.17 | AI43: 11.74 | AJ43: 14.27
B44: 2023-04-07 | C44: 3.233333333 | D44: 13.55 | G44: 12.51 | H44: 12.39 | I44: 16.74 | K44: 16.15 | L44: 14.51 | M44: 12.01 | N44: 12.1 | O44: 11.15 | P44: 7.93 | Q44: 9.84 | R44: 15.33 | T44: 2023-04-07 | U44: 3.233333333 | V44: 22.02 | Y44: 22.39 | Z44: 18.51 | AA44: 18.43 | AB44: 17.76 | AC44: 18.69 | AD44: 17.9 | AE44: 15.13 | AF44: 14.11 | AG44: 10.4 | AH44: 9.27 | AI44: 8.51 | AJ44: 20.57
B45: 2023-04-26 | C45: 3.866666667 | D45: 10.37239955 | G45: 13.99 | H45: 19.9 | I45: 13.82 | K45: 13.06 | L45: 17.52 | M45: 18.65 | N45: 10.43 | O45: 16.15 | P45: 11.81 | Q45: 9.22 | R45: 8.02 | T45: 2023-04-26 | U45: 3.866666667 | V45: 17.83663183 | Y45: 16.58 | Z45: 16.98 | AA45: 15.77 | AB45: 18.37 | AC45: 18.33 | AD45: 18 | AE45: 13.88 | AF45: 10.41 | AG45: 8.66 | AH45: 7.95 | AI45: 11.82 | AJ45: 13.48
B46: 2023-05-10 | C46: 4.333333333 | D46: 12.41888956 | G46: 9.694942759 | H46: 18.4 | I46: 10.8 | K46: 18.22 | L46: 18.54 | M46: 13.27 | N46: 12.88 | O46: 13.5 | P46: 13.99 | Q46: 12.86 | R46: 10.36 | T46: 2023-05-10 | U46: 4.333333333 | V46: 19.17523149 | Y46: 21.14 | Z46: 18.47 | AA46: 16.94 | AB46: 17.25 | AC46: 16.32 | AD46: 22.9 | AE46: 16.23 | AF46: 14.26 | AG46: 10.32 | AH46: 11.28 | AI46: 8.62 | AJ46: 14.43
B47: 2023-05-31 | C47: 5.033333333 | D47: 14.11706838 | H47: 10.81 | I47: 14.00679142 | K47: 16.79 | L47: 19.22 | M47: 10.32 | N47: 9.45 | O47: 12.71 | P47: 7.9 | Q47: 6.26 | R47: 51.32 | T47: 2023-05-31 | U47: 5.033333333 | V47: 12.59112004 | Y47: 16.28 | Z47: 14.94 | AA47: 20.31 | AC47: 18.33 | AD47: 17.27 | AE47: 10.96 | AF47: 12.13 | AG47: 10.86 | AH47: 12 | AI47: 13.85 | AJ47: 15.35
B48: 2023-06-13 | C48: 5.433333333 | D48: 16.0546018 | H48: 12.44 | K48: 18.19 | L48: 18.82 | M48: 11.98 | N48: 11.02 | O48: 10.92 | P48: 8.95 | Q48: 9.32 | R48: 12.4 | T48: 2023-06-13 | U48: 5.433333333 | V48: 14.88081473 | Y48: 24.37 | Z48: 28.41 | AA48: 14.49 | AC48: 18.98 | AD48: 17.88 | AE48: 21.56 | AF48: 12.4 | AG48: 11.49 | AH48: 10.19 | AI48: 13.69 | AJ48: 16.33
B49: 2023-06-30 | C49: 6 | D49: 14.12818883 | H49: 14.46 | K49: 27.14 | L49: 14.36 | M49: 11.77 | N49: 15.00689157 | O49: 11.21 | P49: 5.81 | Q49: 5.76 | R49: 7.87 | T49: 2023-06-30 | U49: 6 | V49: 14.01076608 | Y49: 17.87046392 | Z49: 20.43 | AA49: 20.01 | AC49: 14.95 | AD49: 19.94 | AE49: 18.56 | AF49: 7.68 | AG49: 12.76 | AH49: 10.03 | AI49: 11.18 | AJ49: 10.65
B50: 2023-07-14 | C50: 6.466666667 | D50: 13.5407623 | H50: 12.51 | K50: 14.89 | L50: 12.65 | M50: 12.38 | N50: 10.5443627 | O50: 6.67 | P50: 12.72 | Q50: 11.93 | R50: 11.43 | T50: 2023-07-14 | U50: 6.466666667 | V50: 14.89131373 | Z50: 20.72 | AA50: 15.82 | AC50: 20.14 | AD50: 19.29 | AE50: 16.96 | AF50: 12.59 | AG50: 11.76 | AH50: 12.15 | AI50: 11.69 | AJ50: 13.9
B51: 2023-07-28 | C51: 6.933333333 | D51: 16.47567503 | H51: 12.58 | K51: 12.41888956 | L51: 16.0546018 | M51: 12.22 | O51: 9.9 | Q51: 6.89 | R51: 7.561799362 | T51: 2023-07-28 | U51: 6.933333333 | V51: 17.58995047 | Z51: 18.75 | AA51: 19.46 | AC51: 16.42 | AD51: 18.25 | AE51: 16.21 | AF51: 9.16 | AG51: 12.02 | AH51: 12.64 | AI51: 5.94 | AJ51: 28.38
B52: 2023-08-15 | C52: 7.5 | D52: 15.00689157 | K52: 14.11706838 | L52: 14.12818883 | M52: 13.5407623 | Q52: 9 | T52: 2023-08-15 | U52: 7.5 | V52: 9.963260215 | Z52: 19.68 | AA52: 17.02 | AC52: 20.07 | AD52: 22.88 | AE52: 13.31 | AF52: 11.36 | AG52: 8.94 | AH52: 12.23 | AI52: 8.84 | AJ52: 13.85
B53: 2023-08-30 | C53: 8 | D53: 10.5443627 | M53: 16.47567503 | Q53: 5.56813511 | T53: 2023-08-30 | U53: 8 | V53: 9.488439208 | Z53: 23.91 | AA53: 17.9463879 | AC53: 20.71 | AD53: 18.26 | AE53: 17.15 | AF53: 9.963260215 | AG53: 9.28 | AH53: 7.74 | AI53: 9.76 | AJ53: 10.75
B54: 2023-09-15 | C54: 8.5 | D54: 9.9 | Q54: 6.448742468 | T54: 2023-09-15 | U54: 8.5 | V54: 7.96 | Z54: 25.83 | AC54: 19 | AD54: 15.56 | AE54: 12.63 | AF54: 9.488439208 | AG54: 10.69 | AH54: 11.43 | AI54: 12.53 | AJ54: 20.32
B55: 2023-11-07 | C55: 10.23333333 | D55: 5.56813511 | T55: 2023-11-07 | U55: 10.23333333 | V55: 8.56251671 | Z55: 16.33 | AC55: 21.85 | AD55: 14.88081473 | AE55: 14.89131373 | AG55: 7.96 | AI55: 8.56251671 | AJ55: 12.14069942
B56: 2023-11-22 | C56: 10.73333333 | D56: 6.448742468 | T56: 2023-11-22 | U56: 10.73333333 | V56: 8.561926822 | Z56: 20.05 | AC56: 17.63 | AD56: 14.01076608 | AE56: 17.58995047 | AI56: 8.561926822
B57: 2023-12-06 | C57: 11.2 | D57: 7.561799362 | T57: 2023-12-06 | U57: 11.2 | V57: 12.14069942 | AC57: 19.17523149
C58: 0 | U58: 0 | AC58: 12.59112004
C59: 0 | U59: 0
C60: 0 | U60: 0
C61: 0 | U61: 0
C62: 0 | U62: 0
C63: 0 | U63: 0
C64: 0 | U64: 0
C65: 0 | U65: 0
C66: 0 | U66: 0
C67: 0 | U67: 0
C68: 0 | U68: 0
C69: 0 | U69: 0
C70: 0 | U70: 0
C71: 0 | U71: 0
C72: 0 | U72: 0
C73: 0 | U73: 0
C74: 0 | U74: 0
C75: 0 | U75: 0
C76: 0 | U76: 0
C77: 0 | U77: 0
C78: 0 | U78: 0
C79: 0 | U79: 0
C80: 0 | U80: 0
C81: 0 | U81: 0
C82: 0 | U82: 0
C83: 0 | U83: 0
C84: 0 | U84: 0
C85: 0 | U85: 0
C86: 0 | U86: 0
C87: 0 | U87: 0
C88: 0 | U88: 0
C89: 0 | U89: 0
C90: 0 | U90: 0
C91: 0 | U91: 0
C92: 0 | U92: 0
C93: 0 | U93: 0
C94: 0 | U94: 0
C95: 0 | U95: 0
C96: 0 | U96: 0
C97: 0 | U97: 0
C98: 0 | U98: 0
C99: 0 | U99: 0
C100: 0 | U100: 0
C101: 0 | U101: 0
C102: 0 | U102: 0
C103: 0 | U103: 0
C104: 0 | U104: 0
C105: 0 | U105: 0
C106: =MONTH(B106)-1+DAY(B106)/30 -> 0 | U106: =MONTH(T106)-1+DAY(T106)/30 -> 0
C107: 0 | U107: 0
C108: 0 | U108: 0
C109: 0 | U109: 0
C110: 0 | U110: 0
C111: 0 | U111: 0
C112: 0 | U112: 0
C113: 0 | U113: 0
C114: 0 | U114: 0
C115: 0 | U115: 0
C116: 0 | U116: 0
C117: 0 | U117: 0
C118: 0 | U118: 0
C119: 0 | U119: 0
C120: 0 | U120: 0
C121: 0 | U121: 0
C122: 0 | U122: 0
C123: 0 | U123: 0
C124: 0 | U124: 0
C125: 0 | U125: 0
C126: 0 | U126: 0
C127: 0 | U127: 0
C128: 0 | U128: 0
C129: 0 | U129: 0
C130: 0 | U130: 0
C131: 0 | U131: 0
C132: 0 | U132: 0
C133: 0 | U133: 0
K134: 1900-01-16T12:00:00 | L134: 13.5 | M134: 11 | N134: 14 | O134: 12.5 | AD134: 13.5 | AE134: 11 | AF134: 14
K135: 1900-01-13 | L135: 17 | M135: 9.5 | N135: 16 | O135: 15 | AD135: 17 | AE135: 9.5 | AF135: 16
K136: 1900-01-18 | L136: 21.5 | M136: 9 | N136: 14 | O136: 17 | AD136: 21.5 | AE136: 9 | AF136: 14
K137: 1900-01-17T12:00:00 | L137: 20 | M137: 10.5 | N137: 14.5 | O137: 17 | AD137: 20 | AE137: 10.5 | AF137: 14.5
K138: 1900-01-20 | L138: 21.5 | M138: 9.5 | N138: 12 | O138: 14 | AD138: 21.5 | AE138: 9.5 | AF138: 12
K139: 1900-01-21T12:00:00 | L139: 21.5 | M139: 13 | N139: 12 | O139: 15.5 | AD139: 21.5 | AE139: 13
K140: 1900-01-23T12:00:00 | L140: 22 | M140: 12 | N140: 8.5 | O140: 16 | AD140: 22 | AE140: 12
K141: 1900-01-16T12:00:00 | L141: 17 | M141: 16 | N141: 13 | O141: 19 | AD141: 17 | AE141: 16
K142: 1900-01-19T12:00:00 | L142: 21.5 | M142: 16 | N142: 13.5 | O142: 12.5 | AE142: 16
K143: 1900-01-13T12:00:00 | L143: 15 | M143: 11 | N143: 10.5 | AE143: 11
K144: 1900-01-14 | L144: 14 | M144: 11 | N144: 12.5 | AE144: 11
L145: 8 | M145: 14.5 | N145: 14 | AE145: 14.5
L146: 13.5 | M146: 13 | N146: 16 | AE146: 13
L147: 17 | M147: 12 | N147: 14 | AE147: 12
L148: 21.5 | M148: 13 | N148: 16 | AE148: 13
L149: 20 | M149: 9.5 | N149: 14
L150: 21.5 | M150: 12 | N150: 14.5
L151: 21.5 | M151: 10 | N151: 12
L152: 22 | M152: 11 | N152: 12
L153: 17 | M153: 9.5 | N153: 8.5
L154: 21.5 | M154: 13
L155: 15 | M155: 12
L156: 14 | M156: 16
L157: 8 | M157: 16
M158: 11
M159: 11
M160: 14.5
M161: 13
M162: 12
M163: 13
M164: 9.5
M165: 12
M166: 10
M167: 11

Sheet Long-Term Trends
AG2: Parameters | AI2: Range | AJ2: =IF(H6=AI4,1,IF(H6=AI5,2,IF(H6=AI6,3))) -> 1 | AK2: =IF(N6=AI4,1,IF(N6=AI5,2,IF(N6=AI6,3))) -> 1
G3: Start Year | H3: 1990 | M3: Start Year | N3: 1990 | AE3: Label | AG3: Lake Vol Wt TP | AI3: Min & Max
G4: End Year | H4: 2023 | M4: End Year | N4: 2023 | AE4: Average Vol Wt Summer Temp = 62.94 | AG4: Chlorophyll | AI4: 1 Std Dev
G5: Parameter | H5: Vol Wt Summer Temp | M5: Parameter | N5: Vol Wt Summer Temp | AE5: degrees F | AG5: Secchi | AI5: 2 Std Dev
G6: Range | H6: 1 Std Dev | M6: Range | N6: 1 Std Dev | AG6: Vol Wt Summer Temp | AI6: 3 Std Dev
AE7: Label | AG7: Stone TP
AE8: Average Vol Wt Summer Temp = 62.94 | AG8: Vet's TP
AE9: degrees F | AG9: Haze TP | AI9: =" Range = " & TEXT(H6,0) -> Range = 1 Std Dev
AG10: Carter TP | AI10: =" Range = " & TEXT(N6,0) -> Range = 1 Std Dev
AG11: Pioneer TP
AE12: Chart 1 avg | AG12: USGS TP | AI12: =AE4 & AI9 -> Average Vol Wt Summer Temp = 62.94 Range = 1 Std Dev
AE13: =AVERAGEIF(C46:DT46,">0") -> 62.94335917 | AG13: NB Ind Hill TP | AI13: =AE8 & AI10 -> Average Vol Wt Summer Temp = 62.94 Range = 1 Std Dev
AG14: NB Dead TP
AE15: Chart 2 avg | AG15: USGS Flow | AI15: ="Average USGS Flow = " & TEXT(G266,0) & " Range = " & H6 -> 
AE16: =AVERAGEIF(C153:DT153,">0") -> 62.94335917 | AI16: ="Average USGS Flow = " & TEXT(G281,0) & " Range = " & N6 -> 
B41: Std Dev | C41: =IF(SUM(C48:C138)>0,STDEV(C48:C138),NA()) -> 5.231791041 | D41: =IF(SUM(D48:D138)>0,STDEV(D48:D138),NA()) -> 4.348800643 | E41: 3.282730433 | F41: 6.460821504 | G41: 6.384356331 | H41: 6.295169116 | I41: 6.92559569 | J41: 6.932529959 | K41: 4.263995585 | L41: 5.360348849 | M41: 6.285264328 | N41: 5.03906076 | O41: 6.623495995 | P41: 6.306899059 | Q41: 5.775206684 | R41: 5.360665902 | S41: 5.679139129 | T41: 6.90927464 | U41: 5.639714873 | V41: 4.761690841 | W41: 4.759922971 | X41: 7.34750839 | Y41: 6.434466007 | Z41: 5.288590693 | AA41: 5.421915272 | AB41: 4.805171563 | AC41: 5.280712095 | AD41: 6.110194508 | AE41: 5.770412964 | AF41: 5.084765138 | AG41: 5.286688519 | AH41: 5.839570546 | AI41: 4.803743291 | AJ41: 4.302905477 | BP41: =IF(SUM(BP48:BP138)>0,STDEV(BP48:BP138),NA()) -> 
B42: max-avg | C42: =IF(SUM(C48:C138)>0,C44-C46,"") -> 5.330399091 | D42: =IF(SUM(D48:D138)>0,D44-D46,"") -> 5.515195909 | E42: 4.68978 | F42: 7.343460909 | G42: 5.447490909 | H42: 7.309963636 | I42: 7.849927778 | J42: 7.331670588 | K42: 4.795467857 | L42: 7.229854545 | M42: 6.543190909 | N42: 5.713751818 | O42: 5.086673 | P42: 6.579698909 | Q42: 4.897084091 | R42: 4.612268 | S42: 6.225883364 | T42: 6.477905818 | U42: 5.365917455 | V42: 5.9283827 | W42: 4.8498793 | X42: 6.9316941 | Y42: 5.9043218 | Z42: 7.69834 | AA42: 4.781286667 | AB42: 4.830293778 | AC42: 4.970268 | AD42: 5.8413168 | AE42: 6.221248 | AF42: 5.333449 | AG42: 6.440373 | AH42: 5.0346 | AI42: 6.9635676 | AJ42: 4.386128 | BP42: =IF(SUM(BP48:BP138)>0,BP44-BP46,"") -> 
B43: avg-min | C43: =IF(SUM(C48:C138)>0,C46-C45,"") -> 10.59607091 | D43: =IF(SUM(D48:D138)>0,D46-D45,"") -> 8.004839091 | E43: 5.39327 | F43: 11.90265909 | G43: 14.08950909 | H43: 12.93053636 | I43: 14.40897222 | J43: 12.43482941 | K43: 10.47273214 | L43: 9.156945455 | M43: 13.16730909 | N43: 7.312548182 | O43: 13.164257 | P43: 13.01802309 | Q43: 12.78222491 | R43: 11.957937 | S43: 10.11576064 | T43: 16.13191518 | U43: 9.939701545 | V43: 9.6670703 | W43: 9.6775117 | X43: 15.2543819 | Y43: 13.6886502 | Z43: 10.256805 | AA43: 12.38730133 | AB43: 9.547389222 | AC43: 12.054912 | AD43: 13.3520232 | AE43: 11.482902 | AF43: 12.200651 | AG43: 12.317657 | AH43: 14.01514 | AI43: 9.4779124 | AJ43: 10.759292 | BP43: =IF(SUM(BP48:BP138)>0,BP46-BP45,"") -> 
B44: max | C44: =MAX(C48:C138) -> 70.372 | D44: =MAX(D48:D138) -> 71.3853 | E44: 66.8081 | F44: 67.99096 | G44: 68.3033 | H44: 69.8232 | I44: 69.9814 | J44: 69.6839 | K44: 69.6427 | L44: 73.0288 | M44: 70.8793 | N44: 70.2497 | O44: 68.01818 | P44: 69.54974 | Q44: 67.020836 | R44: 68.276066 | S44: 69.30804 | T44: 70.159101 | U44: 69.234939 | V44: 68.87954 | W44: 70.243192 | X44: 68.491667 | Y44: 70.230091 | Z44: 68.699613 | AA44: 65.84723 | AB44: 67.02629 | AC44: 68.34263 | AD44: 68.26233 | AE44: 67.95022 | AF44: 67.1372 | AG44: 67.92898 | AH44: 67.5726 | AI44: =MAX(AI48:AI138) -> 68.33432 | AJ44: 65.87348 | AK44: 0 | AL44: 0 | AM44: 0 | AN44: 0 | AO44: 0 | AP44: 0 | AQ44: 0 | AR44: 0 | AS44: 0 | AT44: 0 | AU44: 0 | AV44: 0 | AW44: 0 | AX44: 0 | AY44: 0 | AZ44: 0 | BA44: 0 | BB44: 0 | BC44: 0 | BD44: 0 | BE44: 0 | BF44: 0 | BG44: 0 | BH44: 0 | BI44: 0 | BJ44: 0 | BK44: 0 | BL44: 0 | BM44: 0 | BN44: 0 | BO44: 0 | BP44: =MAX(BP48:BP138) -> 0 | BQ44: 0 | BR44: 0 | BS44: 0 | BT44: 0 | BU44: 0 | BV44: 0 | BW44: 0 | BX44: 0 | BY44: 0 | BZ44: 0 | CA44: 0 | CB44: 0 | CC44: 0 | CD44: 0 | CE44: 0 | CF44: 0 | CG44: 0 | CH44: 0 | CI44: 0 | CJ44: 0 | CK44: 0 | CL44: 0 | CM44: 0 | CN44: 0 | CO44: 0 | CP44: 0 | CQ44: 0 | CR44: 0 | CS44: 0 | CT44: 0 | CU44: 0 | CV44: 0 | CW44: 0 | CX44: 0 | CY44: 0 | CZ44: 0 | DA44: 0 | DB44: 0 | DC44: 0 | DD44: 0 | DE44: 0 | DF44: 0 | DG44: 0 | DH44: 0 | DI44: 0 | DJ44: 0 | DK44: 0 | DL44: 0 | DM44: 0 | DN44: 0 | DO44: 0 | DP44: 0 | DQ44: 0 | DR44: 0
B45: min | C45: =MIN(C48:C138) -> 54.44553 | D45: =MIN(D48:D138) -> 57.865265 | E45: 56.72505 | F45: 48.74484 | G45: 48.7663 | H45: 49.5827 | I45: 47.7225 | J45: 49.9174 | K45: 54.3745 | L45: 56.642 | M45: 51.1688 | N45: 57.2234 | O45: 49.76725 | P45: 49.952018 | Q45: 49.341527 | R45: 51.705861 | S45: 52.966396 | T45: 47.54928 | U45: 53.92932 | V45: 53.284087 | W45: 55.715801 | X45: 46.305591 | Y45: 50.637119 | Z45: 50.744468 | AA45: 48.678642 | AB45: 52.648607 | AC45: 51.31745 | AD45: 49.06899 | AE45: 50.24607 | AF45: 49.6031 | AG45: 49.17095 | AH45: 48.52286 | AI45: =MIN(AI48:AI138) -> 51.89284 | AJ45: 50.72806 | AK45: 0 | AL45: 0 | AM45: 0 | AN45: 0 | AO45: 0 | AP45: 0 | AQ45: 0 | AR45: 0 | AS45: 0 | AT45: 0 | AU45: 0 | AV45: 0 | AW45: 0 | AX45: 0 | AY45: 0 | AZ45: 0 | BA45: 0 | BB45: 0 | BC45: 0 | BD45: 0 | BE45: 0 | BF45: 0 | BG45: 0 | BH45: 0 | BI45: 0 | BJ45: 0 | BK45: 0 | BL45: 0 | BM45: 0 | BN45: 0 | BO45: 0 | BP45: =MIN(BP48:BP138) -> 0 | BQ45: 0 | BR45: 0 | BS45: 0 | BT45: 0 | BU45: 0 | BV45: 0 | BW45: 0 | BX45: 0 | BY45: 0 | BZ45: 0 | CA45: 0 | CB45: 0 | CC45: 0 | CD45: 0 | CE45: 0 | CF45: 0 | CG45: 0 | CH45: 0 | CI45: 0 | CJ45: 0 | CK45: 0 | CL45: 0 | CM45: 0 | CN45: 0 | CO45: 0 | CP45: 0 | CQ45: 0 | CR45: 0 | CS45: 0 | CT45: 0 | CU45: 0 | CV45: 0 | CW45: 0 | CX45: 0 | CY45: 0 | CZ45: 0 | DA45: 0 | DB45: 0 | DC45: 0 | DD45: 0 | DE45: 0 | DF45: 0 | DG45: 0 | DH45: 0 | DI45: 0 | DJ45: 0 | DK45: 0 | DL45: 0 | DM45: 0 | DN45: 0 | DO45: 0 | DP45: 0 | DQ45: 0 | DR45: 0
B46: avg | C46: =IF(SUM(C48:C138)>0,AVERAGE(C48:C138),NA()) -> 65.04160091 | D46: =IF(SUM(D48:D138)>0,AVERAGE(D48:D138),NA()) -> 65.87010409 | E46: 62.11832 | F46: =IF(SUM(F48:F138)>0,AVERAGE(F48:F138),NA()) -> 60.64749909 | G46: 62.85580909 | H46: 62.51323636 | I46: 62.13147222 | J46: 62.35222941 | K46: 64.84723214 | L46: 65.79894545 | M46: 64.33610909 | N46: 64.53594818 | O46: 62.931507 | P46: 62.97004109 | Q46: 62.12375191 | R46: 63.663798 | S46: 63.08215664 | T46: 63.68119518 | U46: 63.86902155 | V46: 62.9511573 | W46: 65.3933127 | X46: 61.5599729 | Y46: 64.3257692 | Z46: 61.001273 | AA46: 61.06594333 | AB46: 62.19599622 | AC46: 63.372362 | AD46: 62.4210132 | AE46: 61.728972 | AF46: 61.803751 | AG46: 61.488607 | AH46: 62.538 | AI46: =IF(SUM(AI48:AI138)>0,AVERAGE(AI48:AI138),NA()) -> 61.3707524 | AJ46: 61.487352 | BP46: =IF(SUM(BP48:BP138)>0,AVERAGE(BP48:BP138),NA()) -> 
B47: Year | C47: 1990 | D47: 1991 | E47: 1992 | F47: 1993 | G47: 1994 | H47: 1995 | I47: 1996 | J47: 1997 | K47: 1998 | L47: 1999 | M47: 2000 | N47: 2001 | O47: 2002 | P47: 2003 | Q47: 2004 | R47: 2005 | S47: 2006 | T47: 2007 | U47: 2008 | V47: 2009 | W47: 2010 | X47: 2011 | Y47: 2012 | Z47: 2013 | AA47: 2014 | AB47: 2015 | AC47: 2016 | AD47: 2017 | AE47: 2018 | AF47: 2019 | AG47: 2020 | AH47: 2021 | AI47: 2022 | AJ47: 2023
C48: 54.44553 | D48: 57.865265 | E48: 57.3146 | F48: 48.74484 | G48: 48.7663 | H48: 49.5827 | I48: 47.7225 | J48: 50.01885 | K48: 54.3745 | L48: 56.642 | M48: 51.1688 | N48: 57.2234 | O48: 49.76725 | P48: 49.952018 | Q48: 49.341527 | R48: 51.705861 | S48: 52.966396 | T48: 47.54928 | U48: 53.92932 | V48: 53.284087 | W48: 55.715801 | X48: 46.305591 | Y48: 50.637119 | Z48: 50.744468 | AA48: 48.678642 | AB48: 52.648607 | AC48: 51.31745 | AD48: 49.06899 | AE48: 50.24607 | AF48: 49.6031 | AG48: 49.17095 | AH48: 48.52286 | AI48: 51.89284 | AJ48: 50.72806
C49: 57.331945 | D49: 63.97065 | E49: 56.72505 | F49: 53.19181 | G49: 52.7927 | H49: 55.5103 | I49: 47.9526 | J49: 49.9174 | K49: 63.0152 | L49: 59.5349 | M49: 56.1923 | N49: 60.2944 | O49: 52.86658 | P49: 54.884984 | Q49: 55.46123 | R49: 55.88737 | S49: 54.553301 | T49: 54.130788 | U49: 54.277846 | V49: 57.656033 | W49: 64.112381 | X49: 51.783377 | Y49: 57.128983 | Z49: 55.117637 | AA49: 57.373674 | AB49: 57.28607 | AC49: 59.10496 | AD49: 55.18041 | AE49: 54.38846 | AF49: 57.27101 | AG49: 58.19772 | AH49: 56.87185 | AI49: 56.159678 | AJ49: 59.31339
C50: 62.75374 | D50: 64.86816 | E50: 63.685475 | F50: 52.85384 | G50: 60.248 | H50: 61.24865 | I50: 54.4497 | J50: 50.4601 | K50: 62.23375 | L50: 59.965 | M50: 61.9389 | N50: 57.67501 | O50: 59.66283 | P50: 57.650402 | Q50: 56.937776 | R50: 61.593766 | S50: 59.40856 | T50: 62.554562 | U50: 59.497415 | V50: 59.623866 | W50: 64.815349 | X50: 59.510397 | Y50: 61.414605 | Z50: 57.773819 | AA50: 61.262253 | AB50: 59.690077 | AC50: 61.04519 | AD50: 59.553962 | AE50: 58.76352 | AF50: 60.59953 | AG50: 60.1535 | AH50: 62.66284 | AI50: 61.06784 | AJ50: 59.10859
C51: 64.25756 | D51: 67.308345 | E51: 59.51315 | F51: 59.59033 | G51: 65.6554 | H51: 61.5661 | I51: 57.1385 | J51: 55.5936 | K51: 62.2309 | L51: 65.8076 | M51: 64.4865 | N51: 65.02413 | O51: 64.28153 | P51: 62.746468 | Q51: 62.674694 | R51: 62.617228 | S51: 61.395092 | T51: 63.753218 | U51: 63.386873 | V51: 62.770622 | W51: 67.880446 | X51: 61.870666 | Y51: 63.867677 | Z51: 60.415231 | AA51: 63.823646 | AB51: 62.110122 | AC51: 63.02078 | AD51: 64.25653 | AE51: 61.91713 | AF51: 62.30862 | AG51: 62.641 | AH51: 62.2121 | AI51: 63.28623 | AJ51: 62.40851
C52: 67.739285 | D52: 71.3853 | E52: 66.8081 | F52: 61.81869 | G52: 66.7576 | H52: 64.7447 | I52: 58.457 | J52: 59.0802 | K52: 59.9933 | L52: 66.4839 | M52: 67.2286 | N52: 66.01707 | O52: 66.62435 | P52: 64.981372 | Q52: 63.19011 | R52: 66.450048 | S52: 63.614229 | T52: 67.313396 | U52: 65.54842 | V52: 64.2579 | W52: 69.310888 | X52: 63.412783 | Y52: 67.852764 | Z52: 63.749397 | AA52: 62.846524 | AB52: 64.91128 | AC52: 66.62015 | AD52: 64.72558 | AE52: 67.18802 | AF52: 64.60752 | AG52: 67.92898 | AH52: 65.14097 | AI52: 65.14355 | AJ52: 63.97942
C53: 70.372 | D53: 69.52761 | E53: 63.602915 | F53: 65.29013 | G53: 65.547 | H53: 65.9142 | I53: 60.5591 | J53: 63.1735 | K53: 64.5937 | L53: 70.541 | M53: 68.4636 | N53: 68.88043 | O53: 67.04735 | P53: 65.84131 | Q53: 63.37132 | R53: 67.642355 | S53: 64.903047 | T53: 67.298914 | U53: 68.475969 | V53: 66.712634 | W53: 70.243192 | X53: 67.88986 | Y53: 70.183361 | Z53: 68.699613 | AA53: 65.169153 | AB53: 65.94946 | AC53: 68.03649 | AD53: 67.3716 | AE53: 65.19187 | AF53: 65.72218 | AG53: 66.00841 | AH53: 66.68613 | AI53: 67.769708 | AJ53: 65.87348
C54: 68.123015 | D54: 67.16452 | E54: 64.03284 | F54: 66.59668 | G54: 68.3033 | H54: 68.5256 | I54: 64.7748 | J54: 64.9754 | K54: 67.5244 | L54: 73.0288 | M54: 70.14 | N54: 69.89993 | O54: 67.10575 | P54: 68.325362 | Q54: 67.020836 | R54: 66.744732 | S54: 69.096765 | T54: 68.165577 | U54: 69.09163 | V54: 66.214211 | W54: 68.931659 | X54: 68.343462 | Y54: 70.230091 | Z54: 63.839913 | AA54: 64.994451 | AB54: 67.02629 | AC54: 68.34263 | AD54: 68.26233 | AE54: 67.95022 | AF54: 67.1372 | AG54: 66.32453 | AH54: 67.40829 | AI54: 68.33432 | AJ54: 63.61184
C55: 67.911665 | D55: 68.049935 | E55: 66.18625 | F55: 65.80385 | G55: 64.4807 | H55: 69.8232 | I55: 64.6335 | J55: 67.80115 | K55: 67.0769 | L55: 69.6798 | M55: 70.8793 | N55: 70.2497 | O55: 67.75303 | P55: 69.54974 | Q55: 66.026875 | R55: 68.276066 | S55: 69.30804 | T55: 70.159101 | U55: 69.234939 | V55: 68.87954 | W55: 69.77095 | X55: 68.491667 | Y55: 67.934895 | Z55: 65.5765 | AA55: 65.84723 | AB55: 66.03169 | AC55: 67.73515 | AD55: 66.77926 | AE55: 65.48525 | AF55: 63.74064 | AG55: 62.11062 | AH55: 67.5726 | AI55: 67.64294 | AJ55: 63.28341
C56: 69.98007 | D56: 69.8497 | E56: 64.01128 | F56: 67.99096 | G56: 67.1835 | H56: 69.2505 | I56: 66.5132 | J56: 67.7375 | K56: 67.9884 | L56: 69.1475 | M56: 69.328 | N56: 69.21727 | O56: 68.01818 | P56: 68.746906 | Q56: 65.877065 | R56: 66.697398 | S56: 68.627218 | T56: 67.453833 | U56: 68.714897 | V56: 64.364916 | W56: 62.672667 | X56: 65.386116 | Y56: 69.812906 | Z56: 63.30203 | AA56: 59.597917 | AB56: 64.11037 | AC56: 65.72022 | AD56: 63.4831 | AE56: 64.93091 | AF56: 63.16544 | AG56: 61.17518 | AH56: 64.15118 | AI56: 66.04004 | AJ56: 63.28341
C57: 69.038665 | D57: 65.94332 | E57: 63.76991 | F57: 65.03761 | G57: 64.8745 | H57: 63.88185 | I57: 66.4277 | J57: 65.671 | K57: 69.4864 | L57: 70.2062 | M57: 67.2849 | N57: 66.17507 | O57: 66.18822 | P57: 67.086622 | Q57: 66.982416 | R57: 66.891471 | S57: 67.694643 | T57: 68.378836 | U57: 65.828821 | V57: 65.747764 | W57: 60.479794 | X57: 62.60581 | Y57: 64.195291 | Z57: 60.794122 | AC57: 62.7806 | AD57: 65.52837 | AE57: 61.22827 | AF57: 63.88227 | AG57: 61.17518 | AH57: 64.15118 | AI57: 58.87069 | AJ57: 63.28341
C58: 63.504135 | D58: 58.63834 | E58: 62.789035 | F58: 60.20375 | G58: 66.8049 | H58: 57.5978 | I58: 66.5609 | J58: 69.5921 | K58: 69.229 | L58: 62.7517 | M58: 60.5863 | N58: 59.23902 | P58: 62.905268 | Q58: 66.477422 | R58: 65.795483 | S58: 62.336432 | T58: 63.735642 | U58: 64.573107 | AI58: 58.87069
E59: 60.880685 | I59: 67.1079 | J59: 69.6839 | K59: 69.6427 | AI59: 58.87069
E60: 58.21887 | I60: 66.7275 | J60: 68.6147 | K60: 65.2209 | AI60: 58.87069
I61: 69.9759 | J61: 66.6267 | K61: 65.2512 | AI61: 58.87069
I62: 69.5949 | J62: 65.8006 | AI62: 58.87069
I63: 69.9814 | J63: 65.0142
I64: 60.7709 | J64: 60.227
I65: 59.0185
B140: above avg | C140: =IF($H$6=$AI$3, C42,$AJ$2*C41) -> 5.231791041 | D140: =IF($H$6=$AI$3, D42,$AJ$2*D41) -> 4.348800643 | E140: 3.282730433 | F140: 6.460821504 | G140: 6.384356331 | H140: 6.295169116 | I140: 6.92559569 | J140: 6.932529959 | K140: 4.263995585 | L140: 5.360348849 | M140: 6.285264328 | N140: 5.03906076 | O140: 6.623495995 | P140: 6.306899059 | Q140: 5.775206684 | R140: 5.360665902 | S140: 5.679139129 | T140: 6.90927464 | U140: 5.639714873 | V140: 4.761690841 | W140: 4.759922971 | X140: 7.34750839 | Y140: 6.434466007 | Z140: 5.288590693 | AA140: 5.421915272 | AB140: 4.805171563 | AC140: 5.280712095 | AD140: 6.110194508 | AE140: 5.770412964 | AF140: 5.084765138 | AG140: 5.286688519 | AH140: 5.839570546 | AI140: 4.803743291 | AJ140: 4.302905477 | BP140: =IF($H$6=$AI$3, BP42,$AJ$2*BP41) -> 
B141: below avg | C141: =IF($H$6=$AI$3, C43,C140) -> 5.231791041 | D141: =IF($H$6=$AI$3, D43,D140) -> 4.348800643 | E141: 3.282730433 | F141: 6.460821504 | G141: 6.384356331 | H141: 6.295169116 | I141: 6.92559569 | J141: 6.932529959 | K141: 4.263995585 | L141: 5.360348849 | M141: 6.285264328 | N141: 5.03906076 | O141: 6.623495995 | P141: 6.306899059 | Q141: 5.775206684 | R141: 5.360665902 | S141: 5.679139129 | T141: 6.90927464 | U141: 5.639714873 | V141: 4.761690841 | W141: 4.759922971 | X141: 7.34750839 | Y141: 6.434466007 | Z141: 5.288590693 | AA141: 5.421915272 | AB141: 4.805171563 | AC141: 5.280712095 | AD141: 6.110194508 | AE141: 5.770412964 | AF141: 5.084765138 | AG141: 5.286688519 | AH141: 5.839570546 | AI141: 4.803743291 | AJ141: 4.302905477 | BP141: =IF($H$6=$AI$3, BP43,BP140) -> 
B148: std Sev | C148: =IF(SUM(C155:C245)>0,STDEV(C155:C245),NA()) -> 5.231791041 | D148: =IF(SUM(D155:D245)>0,STDEV(D155:D245),NA()) -> 4.348800643 | E148: 3.282730433 | F148: 6.460821504 | G148: 6.384356331 | H148: 6.295169116 | I148: 6.92559569 | J148: 6.932529959 | K148: 4.263995585 | L148: 5.360348849 | M148: 6.285264328 | N148: 5.03906076 | O148: 6.623495995 | P148: 6.306899059 | Q148: 5.775206684 | R148: 5.360665902 | S148: 5.679139129 | T148: 6.90927464 | U148: 5.639714873 | V148: 4.761690841 | W148: 4.759922971 | X148: 7.34750839 | Y148: 6.434466007 | Z148: 5.288590693 | AA148: 5.421915272 | AB148: 4.805171563 | AC148: 5.280712095 | AD148: 6.110194508 | AE148: 5.770412964 | AF148: 5.084765138 | AG148: 5.286688519 | AH148: 5.839570546 | AI148: 4.803743291 | AJ148: 4.302905477 | BP148: =IF(SUM(BP155:BP245)>0,STDEV(BP155:BP245),NA()) -> 
B149: max-avg | C149: =IF(SUM(C155:C255)>0,C151-C153,"") -> 5.330399091 | D149: 5.515195909 | E149: 4.68978 | F149: 7.343460909 | G149: 5.447490909 | H149: 7.309963636 | I149: 7.849927778 | J149: 7.331670588 | K149: 4.795467857 | L149: 7.229854545 | M149: 6.543190909 | N149: 5.713751818 | O149: 5.086673 | P149: 6.579698909 | Q149: 4.897084091 | R149: 4.612268 | S149: 6.225883364 | T149: 6.477905818 | U149: 5.365917455 | V149: 5.9283827 | W149: 4.8498793 | X149: 6.9316941 | Y149: 5.9043218 | Z149: 7.69834 | AA149: 4.781286667 | AB149: 4.830293778 | AC149: 4.970268 | AD149: 5.8413168 | AE149: 6.221248 | AF149: 5.333449 | AG149: 6.440373 | AH149: 5.0346 | AI149: 6.9635676 | AJ149: 4.386128 | BO149: =IF(SUM(BO155:BO255)>0,BO151-BO153,"") -> 
B150: avg-min | C150: =IF(SUM(C155:C255)>0,C153-C152,"") -> 10.59607091 | D150: 8.004839091 | E150: 5.39327 | F150: 11.90265909 | G150: 14.08950909 | H150: 12.93053636 | I150: 14.40897222 | J150: 12.43482941 | K150: 10.47273214 | L150: 9.156945455 | M150: 13.16730909 | N150: 7.312548182 | O150: 13.164257 | P150: 13.01802309 | Q150: 12.78222491 | R150: 11.957937 | S150: 10.11576064 | T150: 16.13191518 | U150: 9.939701545 | V150: 9.6670703 | W150: 9.6775117 | X150: 15.2543819 | Y150: 13.6886502 | Z150: 10.256805 | AA150: 12.38730133 | AB150: 9.547389222 | AC150: 12.054912 | AD150: 13.3520232 | AE150: 11.482902 | AF150: 12.200651 | AG150: 12.317657 | AH150: 14.01514 | AI150: 9.4779124 | AJ150: 10.759292 | BO150: =IF(SUM(BO155:BO255)>0,BO153-BO152,"") -> 
B151: max | C151: =MAX(C155:C255) -> 70.372 | D151: 71.3853 | E151: 66.8081 | F151: 67.99096 | G151: 68.3033 | H151: 69.8232 | I151: 69.9814 | J151: 69.6839 | K151: 69.6427 | L151: 73.0288 | M151: 70.8793 | N151: 70.2497 | O151: 68.01818 | P151: 69.54974 | Q151: 67.020836 | R151: 68.276066 | S151: 69.30804 | T151: 70.159101 | U151: 69.234939 | V151: 68.87954 | W151: 70.243192 | X151: 68.491667 | Y151: 70.230091 | Z151: 68.699613 | AA151: 65.84723 | AB151: 67.02629 | AC151: 68.34263 | AD151: 68.26233 | AE151: 67.95022 | AF151: 67.1372 | AG151: 67.92898 | AH151: 67.5726 | AI151: 68.33432 | AJ151: 65.87348 | AK151: 0 | AL151: 0 | AM151: 0 | AN151: 0 | AO151: 0 | AP151: 0 | AQ151: 0 | AR151: 0 | AS151: 0 | AT151: 0 | AU151: 0 | AV151: 0 | AW151: 0 | AX151: 0 | AY151: 0 | AZ151: 0 | BA151: 0 | BB151: 0 | BC151: 0 | BD151: 0 | BE151: 0 | BF151: 0 | BG151: 0 | BH151: 0 | BI151: 0 | BJ151: 0 | BK151: 0 | BL151: 0 | BM151: 0 | BN151: 0 | BO151: =MAX(BO155:BO255) -> 0 | BP151: 0 | BQ151: 0 | BR151: 0 | BS151: 0 | BT151: 0 | BU151: 0 | BV151: 0 | BW151: 0 | BX151: 0 | BY151: 0 | BZ151: 0 | CA151: 0 | CB151: 0 | CC151: 0 | CD151: 0 | CE151: 0 | CF151: 0 | CG151: 0 | CH151: 0 | CI151: 0 | CJ151: 0 | CK151: 0 | CL151: 0 | CM151: 0 | CN151: 0 | CO151: 0 | CP151: 0 | CQ151: 0 | CR151: 0 | CS151: 0 | CT151: 0 | CU151: 0 | CV151: 0 | CW151: 0 | CX151: 0 | CY151: 0 | CZ151: 0 | DA151: 0 | DB151: 0 | DC151: 0 | DD151: 0 | DE151: 0 | DF151: 0 | DG151: 0 | DH151: 0 | DI151: 0
B152: min | C152: =MIN(C155:C255) -> 54.44553 | D152: 57.865265 | E152: 56.72505 | F152: 48.74484 | G152: 48.7663 | H152: 49.5827 | I152: 47.7225 | J152: 49.9174 | K152: 54.3745 | L152: 56.642 | M152: 51.1688 | N152: 57.2234 | O152: 49.76725 | P152: 49.952018 | Q152: 49.341527 | R152: 51.705861 | S152: 52.966396 | T152: 47.54928 | U152: 53.92932 | V152: 53.284087 | W152: 55.715801 | X152: 46.305591 | Y152: 50.637119 | Z152: 50.744468 | AA152: 48.678642 | AB152: 52.648607 | AC152: 51.31745 | AD152: 49.06899 | AE152: 50.24607 | AF152: 49.6031 | AG152: 49.17095 | AH152: 48.52286 | AI152: 51.89284 | AJ152: 50.72806 | AK152: 0 | AL152: 0 | AM152: 0 | AN152: 0 | AO152: 0 | AP152: 0 | AQ152: 0 | AR152: 0 | AS152: 0 | AT152: 0 | AU152: 0 | AV152: 0 | AW152: 0 | AX152: 0 | AY152: 0 | AZ152: 0 | BA152: 0 | BB152: 0 | BC152: 0 | BD152: 0 | BE152: 0 | BF152: 0 | BG152: 0 | BH152: 0 | BI152: 0 | BJ152: 0 | BK152: 0 | BL152: 0 | BM152: 0 | BN152: 0 | BO152: =MIN(BO155:BO255) -> 0 | BP152: 0 | BQ152: 0 | BR152: 0 | BS152: 0 | BT152: 0 | BU152: 0 | BV152: 0 | BW152: 0 | BX152: 0 | BY152: 0 | BZ152: 0 | CA152: 0 | CB152: 0 | CC152: 0 | CD152: 0 | CE152: 0 | CF152: 0 | CG152: 0 | CH152: 0 | CI152: 0 | CJ152: 0 | CK152: 0 | CL152: 0 | CM152: 0 | CN152: 0 | CO152: 0 | CP152: 0 | CQ152: 0 | CR152: 0 | CS152: 0 | CT152: 0 | CU152: 0 | CV152: 0 | CW152: 0 | CX152: 0 | CY152: 0 | CZ152: 0 | DA152: 0 | DB152: 0 | DC152: 0 | DD152: 0 | DE152: 0 | DF152: 0 | DG152: 0 | DH152: 0 | DI152: 0
B153: avg | C153: =IF(SUM(C155:C255)>0,AVERAGE(C155:C255),NA()) -> 65.04160091 | D153: =IF(SUM(D155:D255)>0,AVERAGE(D155:D255),NA()) -> 65.87010409 | E153: 62.11832 | F153: 60.64749909 | G153: 62.85580909 | H153: 62.51323636 | I153: 62.13147222 | J153: 62.35222941 | K153: 64.84723214 | L153: 65.79894545 | M153: 64.33610909 | N153: 64.53594818 | O153: 62.931507 | P153: 62.97004109 | Q153: 62.12375191 | R153: 63.663798 | S153: 63.08215664 | T153: 63.68119518 | U153: 63.86902155 | V153: 62.9511573 | W153: 65.3933127 | X153: 61.5599729 | Y153: 64.3257692 | Z153: 61.001273 | AA153: 61.06594333 | AB153: 62.19599622 | AC153: 63.372362 | AD153: 62.4210132 | AE153: 61.728972 | AF153: 61.803751 | AG153: 61.488607 | AH153: 62.538 | AI153: 61.3707524 | AJ153: 61.487352 | BP153: =IF(SUM(BP155:BP255)>0,AVERAGE(BP155:BP255),NA()) -> 
B154: Year | C154: 1990 | D154: 1991 | E154: 1992 | F154: 1993 | G154: 1994 | H154: 1995 | I154: 1996 | J154: 1997 | K154: 1998 | L154: 1999 | M154: 2000 | N154: 2001 | O154: 2002 | P154: 2003 | Q154: 2004 | R154: 2005 | S154: 2006 | T154: 2007 | U154: 2008 | V154: 2009 | W154: 2010 | X154: 2011 | Y154: 2012 | Z154: 2013 | AA154: 2014 | AB154: 2015 | AC154: 2016 | AD154: 2017 | AE154: 2018 | AF154: 2019 | AG154: 2020 | AH154: 2021 | AI154: 2022 | AJ154: 2023
C155: 54.44553 | D155: 57.865265 | E155: 57.3146 | F155: 48.74484 | G155: 48.7663 | H155: 49.5827 | I155: 47.7225 | J155: 50.01885 | K155: 54.3745 | L155: 56.642 | M155: 51.1688 | N155: 57.2234 | O155: 49.76725 | P155: 49.952018 | Q155: 49.341527 | R155: 51.705861 | S155: 52.966396 | T155: 47.54928 | U155: 53.92932 | V155: 53.284087 | W155: 55.715801 | X155: 46.305591 | Y155: 50.637119 | Z155: 50.744468 | AA155: 48.678642 | AB155: 52.648607 | AC155: 51.31745 | AD155: 49.06899 | AE155: 50.24607 | AF155: 49.6031 | AG155: 49.17095 | AH155: 48.52286 | AI155: 51.89284 | AJ155: 50.72806
C156: 57.331945 | D156: 63.97065 | E156: 56.72505 | F156: 53.19181 | G156: 52.7927 | H156: 55.5103 | I156: 47.9526 | J156: 49.9174 | K156: 63.0152 | L156: 59.5349 | M156: 56.1923 | N156: 60.2944 | O156: 52.86658 | P156: 54.884984 | Q156: 55.46123 | R156: 55.88737 | S156: 54.553301 | T156: 54.130788 | U156: 54.277846 | V156: 57.656033 | W156: 64.112381 | X156: 51.783377 | Y156: 57.128983 | Z156: 55.117637 | AA156: 57.373674 | AB156: 57.28607 | AC156: 59.10496 | AD156: 55.18041 | AE156: 54.38846 | AF156: 57.27101 | AG156: 58.19772 | AH156: 56.87185 | AI156: 56.159678 | AJ156: 59.31339
C157: 62.75374 | D157: 64.86816 | E157: 63.685475 | F157: 52.85384 | G157: 60.248 | H157: 61.24865 | I157: 54.4497 | J157: 50.4601 | K157: 62.23375 | L157: 59.965 | M157: 61.9389 | N157: 57.67501 | O157: 59.66283 | P157: 57.650402 | Q157: 56.937776 | R157: 61.593766 | S157: 59.40856 | T157: 62.554562 | U157: 59.497415 | V157: 59.623866 | W157: 64.815349 | X157: 59.510397 | Y157: 61.414605 | Z157: 57.773819 | AA157: 61.262253 | AB157: 59.690077 | AC157: 61.04519 | AD157: 59.553962 | AE157: 58.76352 | AF157: 60.59953 | AG157: 60.1535 | AH157: 62.66284 | AI157: 61.06784 | AJ157: 59.10859
C158: 64.25756 | D158: 67.308345 | E158: 59.51315 | F158: 59.59033 | G158: 65.6554 | H158: 61.5661 | I158: 57.1385 | J158: 55.5936 | K158: 62.2309 | L158: 65.8076 | M158: 64.4865 | N158: 65.02413 | O158: 64.28153 | P158: 62.746468 | Q158: 62.674694 | R158: 62.617228 | S158: 61.395092 | T158: 63.753218 | U158: 63.386873 | V158: 62.770622 | W158: 67.880446 | X158: 61.870666 | Y158: 63.867677 | Z158: 60.415231 | AA158: 63.823646 | AB158: 62.110122 | AC158: 63.02078 | AD158: 64.25653 | AE158: 61.91713 | AF158: 62.30862 | AG158: 62.641 | AH158: 62.2121 | AI158: 63.28623 | AJ158: 62.40851
C159: 67.739285 | D159: 71.3853 | E159: 66.8081 | F159: 61.81869 | G159: 66.7576 | H159: 64.7447 | I159: 58.457 | J159: 59.0802 | K159: 59.9933 | L159: 66.4839 | M159: 67.2286 | N159: 66.01707 | O159: 66.62435 | P159: 64.981372 | Q159: 63.19011 | R159: 66.450048 | S159: 63.614229 | T159: 67.313396 | U159: 65.54842 | V159: 64.2579 | W159: 69.310888 | X159: 63.412783 | Y159: 67.852764 | Z159: 63.749397 | AA159: 62.846524 | AB159: 64.91128 | AC159: 66.62015 | AD159: 64.72558 | AE159: 67.18802 | AF159: 64.60752 | AG159: 67.92898 | AH159: 65.14097 | AI159: 65.14355 | AJ159: 63.97942
C160: 70.372 | D160: 69.52761 | E160: 63.602915 | F160: 65.29013 | G160: 65.547 | H160: 65.9142 | I160: 60.5591 | J160: 63.1735 | K160: 64.5937 | L160: 70.541 | M160: 68.4636 | N160: 68.88043 | O160: 67.04735 | P160: 65.84131 | Q160: 63.37132 | R160: 67.642355 | S160: 64.903047 | T160: 67.298914 | U160: 68.475969 | V160: 66.712634 | W160: 70.243192 | X160: 67.88986 | Y160: 70.183361 | Z160: 68.699613 | AA160: 65.169153 | AB160: 65.94946 | AC160: 68.03649 | AD160: 67.3716 | AE160: 65.19187 | AF160: 65.72218 | AG160: 66.00841 | AH160: 66.68613 | AI160: 67.769708 | AJ160: 65.87348
C161: 68.123015 | D161: 67.16452 | E161: 64.03284 | F161: 66.59668 | G161: 68.3033 | H161: 68.5256 | I161: 64.7748 | J161: 64.9754 | K161: 67.5244 | L161: 73.0288 | M161: 70.14 | N161: 69.89993 | O161: 67.10575 | P161: 68.325362 | Q161: 67.020836 | R161: 66.744732 | S161: 69.096765 | T161: 68.165577 | U161: 69.09163 | V161: 66.214211 | W161: 68.931659 | X161: 68.343462 | Y161: 70.230091 | Z161: 63.839913 | AA161: 64.994451 | AB161: 67.02629 | AC161: 68.34263 | AD161: 68.26233 | AE161: 67.95022 | AF161: 67.1372 | AG161: 66.32453 | AH161: 67.40829 | AI161: 68.33432 | AJ161: 63.61184
C162: 67.911665 | D162: 68.049935 | E162: 66.18625 | F162: 65.80385 | G162: 64.4807 | H162: 69.8232 | I162: 64.6335 | J162: 67.80115 | K162: 67.0769 | L162: 69.6798 | M162: 70.8793 | N162: 70.2497 | O162: 67.75303 | P162: 69.54974 | Q162: 66.026875 | R162: 68.276066 | S162: 69.30804 | T162: 70.159101 | U162: 69.234939 | V162: 68.87954 | W162: 69.77095 | X162: 68.491667 | Y162: 67.934895 | Z162: 65.5765 | AA162: 65.84723 | AB162: 66.03169 | AC162: 67.73515 | AD162: 66.77926 | AE162: 65.48525 | AF162: 63.74064 | AG162: 62.11062 | AH162: 67.5726 | AI162: 67.64294 | AJ162: 63.28341
C163: 69.98007 | D163: 69.8497 | E163: 64.01128 | F163: 67.99096 | G163: 67.1835 | H163: 69.2505 | I163: 66.5132 | J163: 67.7375 | K163: 67.9884 | L163: 69.1475 | M163: 69.328 | N163: 69.21727 | O163: 68.01818 | P163: 68.746906 | Q163: 65.877065 | R163: 66.697398 | S163: 68.627218 | T163: 67.453833 | U163: 68.714897 | V163: 64.364916 | W163: 62.672667 | X163: 65.386116 | Y163: 69.812906 | Z163: 63.30203 | AA163: 59.597917 | AB163: 64.11037 | AC163: 65.72022 | AD163: 63.4831 | AE163: 64.93091 | AF163: 63.16544 | AG163: 61.17518 | AH163: 64.15118 | AI163: 66.04004 | AJ163: 63.28341
C164: 69.038665 | D164: 65.94332 | E164: 63.76991 | F164: 65.03761 | G164: 64.8745 | H164: 63.88185 | I164: 66.4277 | J164: 65.671 | K164: 69.4864 | L164: 70.2062 | M164: 67.2849 | N164: 66.17507 | O164: 66.18822 | P164: 67.086622 | Q164: 66.982416 | R164: 66.891471 | S164: 67.694643 | T164: 68.378836 | U164: 65.828821 | V164: 65.747764 | W164: 60.479794 | X164: 62.60581 | Y164: 64.195291 | Z164: 60.794122 | AC164: 62.7806 | AD164: 65.52837 | AE164: 61.22827 | AF164: 63.88227 | AG164: 61.17518 | AH164: 64.15118 | AI164: 58.87069 | AJ164: 63.28341
C165: 63.504135 | D165: 58.63834 | E165: 62.789035 | F165: 60.20375 | G165: 66.8049 | H165: 57.5978 | I165: 66.5609 | J165: 69.5921 | K165: 69.229 | L165: 62.7517 | M165: 60.5863 | N165: 59.23902 | P165: 62.905268 | Q165: 66.477422 | R165: 65.795483 | S165: 62.336432 | T165: 63.735642 | U165: 64.573107 | AI165: 58.87069
E166: 60.880685 | I166: 67.1079 | J166: 69.6839 | K166: 69.6427 | AI166: 58.87069
E167: 58.21887 | I167: 66.7275 | J167: 68.6147 | K167: 65.2209 | AI167: 58.87069
I168: 69.9759 | J168: 66.6267 | K168: 65.2512 | AI168: 58.87069
I169: 69.5949 | J169: 65.8006 | AI169: 58.87069
I170: 69.9814 | J170: 65.0142
I171: 60.7709 | J171: 60.227
I172: 59.0185
B260: above avg | C260: =IF($N$6=$AI$3, C149,$AK$2*C148) -> 5.231791041 | D260: =IF($N$6=$AI$3, D149,$AK$2*D148) -> 4.348800643 | E260: 3.282730433 | F260: 6.460821504 | G260: 6.384356331 | H260: 6.295169116 | I260: 6.92559569 | J260: 6.932529959 | K260: 4.263995585 | L260: 5.360348849 | M260: 6.285264328 | N260: 5.03906076 | O260: 6.623495995 | P260: 6.306899059 | Q260: 5.775206684 | R260: 5.360665902 | S260: 5.679139129 | T260: 6.90927464 | U260: 5.639714873 | V260: 4.761690841 | W260: 4.759922971 | X260: 7.34750839 | Y260: 6.434466007 | Z260: 5.288590693 | AA260: 5.421915272 | AB260: 4.805171563 | AC260: 5.280712095 | AD260: 6.110194508 | AE260: 5.770412964 | AF260: 5.084765138 | AG260: 5.286688519 | AH260: 5.839570546 | AI260: 4.803743291 | AJ260: 4.302905477 | BP260: =IF($N$6=$AI$3, BP149,$AK$2*BP148) ->  | DJ260: 0 | DK260: 0 | DL260: 0 | DM260: 0 | DN260: 0 | DO260: 0 | DP260: 0 | DQ260: 0 | DR260: 0
B261: below avg | C261: =IF($N$6=$AI$3, C150,C260) -> 5.231791041 | D261: =IF($N$6=$AI$3, D150,D260) -> 4.348800643 | E261: 3.282730433 | F261: 6.460821504 | G261: 6.384356331 | H261: 6.295169116 | I261: 6.92559569 | J261: 6.932529959 | K261: 4.263995585 | L261: 5.360348849 | M261: 6.285264328 | N261: 5.03906076 | O261: 6.623495995 | P261: 6.306899059 | Q261: 5.775206684 | R261: 5.360665902 | S261: 5.679139129 | T261: 6.90927464 | U261: 5.639714873 | V261: 4.761690841 | W261: 4.759922971 | X261: 7.34750839 | Y261: 6.434466007 | Z261: 5.288590693 | AA261: 5.421915272 | AB261: 4.805171563 | AC261: 5.280712095 | AD261: 6.110194508 | AE261: 5.770412964 | AF261: 5.084765138 | AG261: 5.286688519 | AH261: 5.839570546 | AI261: 4.803743291 | AJ261: 4.302905477 | BP261: =IF($N$6=$AI$3, BP150,BP260) ->  | DJ261: 0 | DK261: 0 | DL261: 0 | DM261: 0 | DN261: 0 | DO261: 0 | DP261: 0 | DQ261: 0 | DR261: 0
B266: USGS Flow Data | D266: Chart 3 | F266: Avg = | G266: =AVERAGE(C268:CI268) -> 
B267: Year
B268: avg
B269: max
B270: min
B271: Std Dev
B272: max-avg | C272: =C269-C268 -> 0 | D272: =D269-D268 -> 0 | E272: 0 | F272: 0 | G272: 0 | H272: 0 | I272: 0 | J272: 0 | K272: 0 | L272: 0 | M272: 0 | N272: 0 | O272: 0 | P272: 0 | Q272: 0 | R272: 0 | S272: 0 | T272: 0 | U272: 0 | V272: 0 | W272: 0 | X272: 0 | Y272: 0 | Z272: 0 | AA272: 0 | AB272: 0 | AC272: 0 | AD272: 0 | AE272: 0 | AF272: 0 | AG272: 0 | AH272: 0 | AI272: 0 | AJ272: 0 | AK272: 0 | AL272: 0 | AM272: 0 | AN272: =AN269-AN268 -> 0 | AO272: 0 | AP272: 0 | AQ272: 0 | AR272: 0 | AS272: 0 | AT272: 0 | AU272: 0 | AV272: 0 | AW272: 0 | AX272: 0 | AY272: 0 | AZ272: 0 | BA272: 0 | BB272: 0 | BC272: 0 | BD272: 0 | BE272: 0 | BF272: 0 | BG272: 0 | BH272: 0 | BI272: 0 | BJ272: 0 | BK272: 0 | BL272: 0 | BM272: 0 | BN272: 0 | BO272: 0 | BP272: 0 | BQ272: 0 | BR272: 0 | BS272: 0 | BT272: 0 | BU272: 0 | BV272: 0 | BW272: 0 | BX272: 0 | BY272: 0 | BZ272: =BZ269-BZ268 -> 0 | CA272: 0 | CB272: 0 | CC272: 0 | CD272: 0 | CE272: 0 | CF272: 0 | CG272: 0 | CH272: 0 | CI272: 0
B273: avg-min | C273: =C268-C270 -> 0 | D273: =D268-D270 -> 0 | E273: 0 | F273: 0 | G273: 0 | H273: 0 | I273: 0 | J273: 0 | K273: 0 | L273: 0 | M273: 0 | N273: 0 | O273: 0 | P273: 0 | Q273: 0 | R273: 0 | S273: 0 | T273: 0 | U273: 0 | V273: 0 | W273: 0 | X273: 0 | Y273: 0 | Z273: 0 | AA273: 0 | AB273: 0 | AC273: 0 | AD273: 0 | AE273: 0 | AF273: 0 | AG273: 0 | AH273: 0 | AI273: 0 | AJ273: 0 | AK273: 0 | AL273: 0 | AM273: 0 | AN273: =AN268-AN270 -> 0 | AO273: 0 | AP273: 0 | AQ273: 0 | AR273: 0 | AS273: 0 | AT273: 0 | AU273: 0 | AV273: 0 | AW273: 0 | AX273: 0 | AY273: 0 | AZ273: 0 | BA273: 0 | BB273: 0 | BC273: 0 | BD273: 0 | BE273: 0 | BF273: 0 | BG273: 0 | BH273: 0 | BI273: 0 | BJ273: 0 | BK273: 0 | BL273: 0 | BM273: 0 | BN273: 0 | BO273: 0 | BP273: 0 | BQ273: 0 | BR273: 0 | BS273: 0 | BT273: 0 | BU273: 0 | BV273: 0 | BW273: 0 | BX273: 0 | BY273: 0 | BZ273: =BZ268-BZ270 -> 0 | CA273: 0 | CB273: 0 | CC273: 0 | CD273: 0 | CE273: 0 | CF273: 0 | CG273: 0 | CH273: 0 | CI273: 0
B275: above avg | C275: =IF($H$6=$AI$3, C272,$AJ$2*C271) -> 0 | D275: =IF($H$6=$AI$3, D272,$AJ$2*D271) -> 0 | E275: 0 | F275: 0 | G275: 0 | H275: 0 | I275: 0 | J275: 0 | K275: 0 | L275: 0 | M275: 0 | N275: 0 | O275: 0 | P275: 0 | Q275: 0 | R275: 0 | S275: 0 | T275: 0 | U275: 0 | V275: 0 | W275: 0 | X275: 0 | Y275: 0 | Z275: 0 | AA275: 0 | AB275: 0 | AC275: 0 | AD275: 0 | AE275: 0 | AF275: 0 | AG275: 0 | AH275: 0 | AI275: =IF($H$6=$AI$3, AI272,$AJ$2*AI271) -> 0 | AJ275: =IF($H$6=$AI$3, AJ272,$AJ$2*AJ271) -> 0 | AK275: =IF($H$6=$AI$3, AK272,$AJ$2*AK271) -> 0 | AL275: =IF($H$6=$AI$3, AL272,$AJ$2*AL271) -> 0 | AM275: =IF($H$6=$AI$3, AM272,$AJ$2*AM271) -> 0 | AN275: =IF($H$6=$AI$3, AN272,$AJ$2*AN271) -> 0 | AO275: 0 | AP275: 0 | AQ275: 0 | AR275: 0 | AS275: 0 | AT275: 0 | AU275: 0 | AV275: 0 | AW275: 0 | AX275: 0 | AY275: 0 | AZ275: 0 | BA275: 0 | BB275: 0 | BC275: 0 | BD275: 0 | BE275: 0 | BF275: 0 | BG275: 0 | BH275: 0 | BI275: 0 | BJ275: 0 | BK275: 0 | BL275: 0 | BM275: 0 | BN275: 0 | BO275: 0 | BP275: 0 | BQ275: 0 | BR275: 0 | BS275: 0 | BT275: 0 | BU275: 0 | BV275: 0 | BW275: 0 | BX275: 0 | BY275: 0 | BZ275: =IF($H$6=$AI$3, BZ272,$AJ$2*BZ271) -> 0 | CA275: 0 | CB275: 0 | CC275: 0 | CD275: 0 | CE275: 0 | CF275: 0 | CG275: 0 | CH275: 0 | CI275: 0
B276: below avg | C276: =IF($H$6=$AI$3, C273,C275) -> 0 | D276: =IF($H$6=$AI$3, D273,D275) -> 0 | E276: 0 | F276: 0 | G276: 0 | H276: 0 | I276: 0 | J276: 0 | K276: 0 | L276: 0 | M276: 0 | N276: 0 | O276: 0 | P276: 0 | Q276: 0 | R276: 0 | S276: 0 | T276: 0 | U276: 0 | V276: 0 | W276: 0 | X276: 0 | Y276: 0 | Z276: 0 | AA276: 0 | AB276: 0 | AC276: 0 | AD276: 0 | AE276: 0 | AF276: 0 | AG276: 0 | AH276: 0 | AI276: =IF($H$6=$AI$3, AI273,AI275) -> 0 | AJ276: =IF($H$6=$AI$3, AJ273,AJ275) -> 0 | AK276: =IF($H$6=$AI$3, AK273,AK275) -> 0 | AL276: =IF($H$6=$AI$3, AL273,AL275) -> 0 | AM276: =IF($H$6=$AI$3, AM273,AM275) -> 0 | AN276: =IF($H$6=$AI$3, AN273,AN275) -> 0 | AO276: 0 | AP276: 0 | AQ276: 0 | AR276: 0 | AS276: 0 | AT276: 0 | AU276: 0 | AV276: 0 | AW276: 0 | AX276: 0 | AY276: 0 | AZ276: 0 | BA276: 0 | BB276: 0 | BC276: 0 | BD276: 0 | BE276: 0 | BF276: 0 | BG276: 0 | BH276: 0 | BI276: 0 | BJ276: 0 | BK276: 0 | BL276: 0 | BM276: 0 | BN276: 0 | BO276: 0 | BP276: 0 | BQ276: 0 | BR276: 0 | BS276: 0 | BT276: 0 | BU276: 0 | BV276: 0 | BW276: 0 | BX276: 0 | BY276: 0 | BZ276: =IF($H$6=$AI$3, BZ273,BZ275) -> 0 | CA276: 0 | CB276: 0 | CC276: 0 | CD276: 0 | CE276: 0 | CF276: 0 | CG276: 0 | CH276: 0 | CI276: 0
B281: USGS Flow Data | D281: Chart 12 | F281: Avg = | G281: =AVERAGE(C283:CI283) -> 
B282: Year
B283: avg
B284: max
B285: min
B286: Std Dev
B287: max-avg | C287: =C284-C283 -> 0 | D287: =D284-D283 -> 0 | E287: 0 | F287: 0 | G287: 0 | H287: 0 | I287: 0 | J287: 0 | K287: 0 | L287: 0 | M287: 0 | N287: 0 | O287: 0 | P287: 0 | Q287: 0 | R287: 0 | S287: 0 | T287: 0 | U287: 0 | V287: 0 | W287: 0 | X287: 0 | Y287: 0 | Z287: 0 | AA287: 0 | AB287: 0 | AC287: 0 | AD287: 0 | AE287: 0 | AF287: 0 | AG287: 0 | AH287: 0 | AI287: 0 | AJ287: 0 | AK287: 0 | AL287: 0 | AM287: 0 | AN287: 0 | AO287: 0 | AP287: 0 | AQ287: 0 | AR287: 0 | AS287: 0 | AT287: 0 | AU287: 0 | AV287: 0 | AW287: 0 | AX287: 0 | AY287: 0 | AZ287: 0 | BA287: 0 | BB287: 0 | BC287: 0 | BD287: 0 | BE287: 0 | BF287: 0 | BG287: 0 | BH287: 0 | BI287: 0 | BJ287: 0 | BK287: 0 | BL287: 0 | BM287: 0 | BN287: 0 | BO287: 0 | BP287: =BP284-BP283 -> 0 | BQ287: 0 | BR287: 0 | BS287: 0 | BT287: 0 | BU287: 0 | BV287: 0 | BW287: 0 | BX287: 0 | BY287: 0 | BZ287: 0 | CA287: 0 | CB287: 0 | CC287: 0 | CD287: 0 | CE287: 0 | CF287: 0 | CG287: 0 | CH287: 0 | CI287: 0
B288: avg-min | C288: =C283-C285 -> 0 | D288: =D283-D285 -> 0 | E288: 0 | F288: 0 | G288: 0 | H288: 0 | I288: 0 | J288: 0 | K288: 0 | L288: 0 | M288: 0 | N288: 0 | O288: 0 | P288: 0 | Q288: 0 | R288: 0 | S288: 0 | T288: 0 | U288: 0 | V288: 0 | W288: 0 | X288: 0 | Y288: 0 | Z288: 0 | AA288: 0 | AB288: 0 | AC288: 0 | AD288: 0 | AE288: 0 | AF288: 0 | AG288: 0 | AH288: 0 | AI288: 0 | AJ288: 0 | AK288: 0 | AL288: 0 | AM288: 0 | AN288: 0 | AO288: 0 | AP288: 0 | AQ288: 0 | AR288: 0 | AS288: 0 | AT288: 0 | AU288: 0 | AV288: 0 | AW288: 0 | AX288: 0 | AY288: 0 | AZ288: 0 | BA288: 0 | BB288: 0 | BC288: 0 | BD288: 0 | BE288: 0 | BF288: 0 | BG288: 0 | BH288: 0 | BI288: 0 | BJ288: 0 | BK288: 0 | BL288: 0 | BM288: 0 | BN288: 0 | BO288: 0 | BP288: =BP283-BP285 -> 0 | BQ288: 0 | BR288: 0 | BS288: 0 | BT288: 0 | BU288: 0 | BV288: 0 | BW288: 0 | BX288: 0 | BY288: 0 | BZ288: 0 | CA288: 0 | CB288: 0 | CC288: 0 | CD288: 0 | CE288: 0 | CF288: 0 | CG288: 0 | CH288: 0 | CI288: 0
B290: above avg | C290: =IF($N$6=$AI$3, C287,$AK$2*C286) -> 0 | D290: =IF($N$6=$AI$3, D287,$AK$2*D286) -> 0 | E290: 0 | F290: 0 | G290: 0 | H290: 0 | I290: 0 | J290: 0 | K290: 0 | L290: 0 | M290: 0 | N290: 0 | O290: 0 | P290: 0 | Q290: 0 | R290: 0 | S290: 0 | T290: 0 | U290: 0 | V290: 0 | W290: 0 | X290: 0 | Y290: 0 | Z290: 0 | AA290: 0 | AB290: 0 | AC290: 0 | AD290: 0 | AE290: 0 | AF290: 0 | AG290: 0 | AH290: 0 | AI290: 0 | AJ290: 0 | AK290: 0 | AL290: 0 | AM290: 0 | AN290: 0 | AO290: 0 | AP290: 0 | AQ290: 0 | AR290: 0 | AS290: 0 | AT290: 0 | AU290: 0 | AV290: 0 | AW290: 0 | AX290: 0 | AY290: 0 | AZ290: 0 | BA290: 0 | BB290: 0 | BC290: 0 | BD290: 0 | BE290: 0 | BF290: 0 | BG290: 0 | BH290: 0 | BI290: 0 | BJ290: 0 | BK290: 0 | BL290: 0 | BM290: 0 | BN290: 0 | BO290: 0 | BP290: =IF($N$6=$AI$3, BP287,$AK$2*BP286) -> 0 | BQ290: 0 | BR290: 0 | BS290: 0 | BT290: 0 | BU290: 0 | BV290: 0 | BW290: 0 | BX290: 0 | BY290: 0 | BZ290: 0 | CA290: 0 | CB290: 0 | CC290: 0 | CD290: 0 | CE290: 0 | CF290: 0 | CG290: 0 | CH290: 0 | CI290: 0
B291: below avg | C291: =IF($N$6=$AI$3, C288,C290) -> 0 | D291: =IF($N$6=$AI$3, D288,D290) -> 0 | E291: 0 | F291: 0 | G291: 0 | H291: 0 | I291: 0 | J291: 0 | K291: 0 | L291: 0 | M291: 0 | N291: 0 | O291: 0 | P291: 0 | Q291: 0 | R291: 0 | S291: 0 | T291: 0 | U291: 0 | V291: 0 | W291: 0 | X291: 0 | Y291: 0 | Z291: 0 | AA291: 0 | AB291: 0 | AC291: 0 | AD291: 0 | AE291: 0 | AF291: 0 | AG291: 0 | AH291: 0 | AI291: 0 | AJ291: 0 | AK291: 0 | AL291: 0 | AM291: 0 | AN291: 0 | AO291: 0 | AP291: 0 | AQ291: 0 | AR291: 0 | AS291: 0 | AT291: 0 | AU291: 0 | AV291: 0 | AW291: 0 | AX291: 0 | AY291: 0 | AZ291: 0 | BA291: 0 | BB291: 0 | BC291: 0 | BD291: 0 | BE291: 0 | BF291: 0 | BG291: 0 | BH291: 0 | BI291: 0 | BJ291: 0 | BK291: 0 | BL291: 0 | BM291: 0 | BN291: 0 | BO291: 0 | BP291: =IF($N$6=$AI$3, BP288,BP290) -> 0 | BQ291: 0 | BR291: 0 | BS291: 0 | BT291: 0 | BU291: 0 | BV291: 0 | BW291: 0 | BX291: 0 | BY291: 0 | BZ291: 0 | CA291: 0 | CB291: 0 | CC291: 0 | CD291: 0 | CE291: 0 | CF291: 0 | CG291: 0 | CH291: 0 | CI291: 0

Sheet Annual Averages
AP2: why no 2023
I3: Lake TP | N3: USGS Flow
I4: USGS TP | N4: USGS TP | AP4: Chart 1 | AQ4: Chart2 | AS4: Chart 3 | AT4: Chart4
AP5: TP mg/m3 | AQ5: TP mg/m3 | AS5: cfs | AT5: TP mg/m3
AM6: Lake TP | AO6: Year | AP6: Annual Average Lake TP | AQ6: Annual Average USGS TP | AS6: Annual Average USGS Flow | AT6: Annual Average USGS TP
AM7: Days>8 | AO7: 2010 | AP7: 8.28 | AQ7: 11.89125 | AS7: 108.3 | AT7: 11.89125
AM8: Sed Rel | AO8: =AO7+1 -> 2011 | AP8: 7.86 | AQ8: 13.2736 | AS8: 113.5805479 | AT8: 13.2736
AM9: Loss Rate | AO9: =AO8+1 -> 2012 | AP9: 8.04 | AQ9: 11.50973333 | AS9: 117.6642077 | AT9: 11.50973333
AM10: Stone TP | AO10: 2013 | AP10: 8.37 | AQ10: 18.32666667 | AS10: 141.6958904 | AT10: 18.32666667
AM11: Vet's TP | AO11: 2014 | AP11: 7.3 | AQ11: 16.70729167 | AS11: 160.260274 | AT11: 16.70729167
AM12: Haze TP | AO12: 2015 | AP12: 8.34 | AQ12: 17.43424242 | AS12: 157.3315068 | AT12: 17.43424242
AM13: Carter TP | AO13: 2016 | AP13: 8.95 | AQ13: 16.20045455 | AS13: 140.3989071 | AT13: 16.20045455
AM14: Pioneer TP | AO14: 2017 | AP14: 7.59 | AQ14: 14.64136364 | AS14: 131.6136986 | AT14: 14.64136364
AM15: Collision TP | AO15: 2018 | AP15: 7.66 | AQ15: 15.42863636 | AS15: 139.0109589 | AT15: 15.42863636
AM16: USGS TP | AO16: 2019 | AP16: 7.78 | AQ16: 16.49333333 | AS16: 152.4 | AT16: 16.49333333
AM17: NB Ind Hill TP | AO17: 2020 | AP17: 7.58 | AQ17: 15.918 | AS17: 156.7213115 | AT17: 15.918
AM18: NB Dead TP | AO18: 2021 | AP18: 7.92 | AQ18: 15.92695652 | AS18: 126.2821918 | AT18: 15.92695652
AM19: BC InFlow | AO19: 2022 | AP19: 7.84 | AQ19: 16.040625 | AS19: 121.3413699 | AT19: 16.040625
AM20: BC TP | AO20: 2023 | AP20: 7.19 | AQ20: 14.54830681 | AT20: 14.54830681
AM21: BC Load | AO21: 2024 | AQ21: 17.61222955
AM22: PRSFH OutFlow | AO22: 2025
AM23: PRSFH TP | AO23: 2026
AM24: PRSFH Load | AO24: 2027
AM25: Lost Fish | AO25: 2028
AM26: Total Load | AO26: 2029
AM27: Lower NP | AO27: 2030
AM28: Upper NP | AO28: 2031
AM29: USGS Flow | AO29: 2032
AM30: Rain Inch | AO30: 2033
AM31: Rain Load | AO31: 2034
AO32: 2035
AO33: 2036
AO34: 2037
AO35: 2038
AO36: 2039
AO37: 2040
E38: 172.5 | AO38: 2041
AO39: 2042
AO40: 2043
B41: Min | C41: =MIN(C48:C98) -> 7.19 | D41: =MIN(D48:D98) -> 14.24657534 | E41: 57.3 | F41: 11.9216087 | G41: 8.818666667 | H41: =MIN(H55:H98) -> 12.53066667 | J41: 11.23454801 | K41: =MIN(K54:K98) -> 10.66428571 | L41: =MIN(L54:L98) -> 14.12811616 | M41: 11.50973333 | N41: =MIN(N54:N98) -> 11.10980003 | O41: =MIN(O53:O98) -> 14.875 | P41: 3.0089 | Q41: 10.93 | R41: 171.8335733 | S41: 5.972927464 | T41: 11.85125836 | U41: 254.6938839 | V41: 41.93 | W41: 4335.341381 | X41: 2282.006205 | Y41: 1265.93915 | Z41: 108.3 | AA41: 25.25666667 | AB41: 184.0804666 | AO41: 2044
B42: Max | C42: =MAX(C48:C98) -> 8.95 | D42: =MAX(D48:D98) -> 90.95890411 | E42: 237.9 | F42: 32.80041234 | G42: 12.79 | H42: =MAX(H55:H98) -> 17.39904762 | I42: 22.66915978 | J42: 15.37090909 | K42: =MAX(K54:K98) -> 13.61363636 | L42: =MAX(L54:L98) -> 16.58 | M42: 18.32666667 | N42: =MAX(N54:N98) -> 15.84409091 | O42: =MAX(O53:O98) -> 20.57727273 | P42: 5.543 | Q42: 19.92243979 | R42: 269.1 | S42: 8.51 | T42: 17.6825614 | U42: 406.2 | V42: 202.41 | W42: 8249.096422 | X42: 5173.456011 | Y42: 2334.795154 | Z42: 160.260274 | AA42: 48.995 | AB42: 357.0947258 | AO42: 2045
B43: Avg | C43: =AVERAGE(C48:C98) -> 7.907142857 | D43: =AVERAGE(D48:D98) -> 58.37573386 | E43: 158.6928571 | F43: 23.07116211 | G43: 11.17199261 | H43: =AVERAGE(H55:H98) -> 13.91773179 | I43: 20.853573 | J43: 13.79902449 | K43: =AVERAGE(K54:K98) -> 12.57898416 | L43: =AVERAGE(L54:L98) -> 15.2016066 | M43: 15.46351266 | N43: =ROUND(AVERAGE(N54:N98),2) -> 13 | O43: =ROUND(AVERAGE(O53:O98),2) -> 16.8 | P43: 4.538453846 | Q43: 14.43498697 | R43: 195.8968512 | S43: 7.381311392 | T43: 14.36385661 | U43: 321.9741236 | V43: 110.6204615 | W43: 6716.533135 | X43: 3985.684991 | Y43: 1851.094419 | Z43: 135.3816665 | AA43: 37.8522619 | AB43: 293 | AO43: 2046
B44: SD | C44: =STDEV(C48:C98) -> 0.4657901239 | D44: =STDEV(D48:D98) -> 17.93549856 | E44: 55.72668832 | F44: 6.063695549 | G44: 0.9618194709 | H44: =STDEV(H55:H98) -> 1.646450119 | I44: 4.807451943 | J44: 1.186973825 | K44: =STDEV(K54:K98) -> 0.8942596495 | L44: =STDEV(L54:L98) -> 0.8101707407 | M44: 1.987591953 | N44: =STDEV(N54:N98) -> 1.473593594 | O44: =STDEV(O53:O98) -> 1.646811949 | P44: 0.7047598168 | Q44: 2.497796965 | R44: 30.5840486 | S44: 0.6614886163 | T44: 1.632520187 | U44: 43.88344241 | V44: 42.72118174 | W44: 1290.794688 | X44: 950.008078 | Y44: 327.9249151 | Z44: 17.03365106 | AA44: 6.70618112 | AB44: 48.87727133 | AO44: 2047
AO45: 2048
C46: Lake | D46: Lake | E46: Lake | F46: Lake | G46: Stream | H46: Stream | I46: Stream | J46: Stream | K46: Stream | L46: Stream | M46: Stream | N46: Stream | O46: Stream | P46: Hatchery | Q46: Hatchery | R46: Hatchery | S46: Hatchery | T46: Hatchery | U46: Hatchery | V46: Hatchery | W46: Load | X46: Load | Y46: Load | Z46: USGS | AA46: Rain | AB46: Rain | AO46: 2049
B47: year | C47: Lake TP | D47: % Attain | E47: Sed Rel | F47: Loss Rate | G47: Stone TP | H47: Carter | I47: Collision TP | J47: NB Dead TP | K47: Vet's TP | L47: Pioneer TP | M47: USGS TP | N47: Haze TP | O47: NB Ind Hill TP | P47: BC InFlow (mgd) | Q47: BC TP | R47: BC Load | S47: OutFlow (mgd) | T47: PRSFH TP | U47: PRSFH Load | V47: Lost Fish | W47: Total Load | X47: Dir+Lower NP | Y47: Upper NP | Z47: USGS Flow | AA47: Rain Inch | AB47: Rain Load | AO47: 2050
B48: 2010 | C48: 8.28 | D48: 48.49315068 | E48: 146.2 | F48: 11.9216087 | G48: 10.40638889 | H48: =AVERAGE(H$55:H$98) -> 13.91773179 | I48: =I$51 -> 22.66915978 | J48: 13.55166667 | K48: 8.532222222 | L48: =AVERAGE(L$55:L$98) -> 15.25257665 | M48: 11.89125 | N48: 8.417142857 | O48: =AVERAGE(O$53:O$98) -> 16.79974826 | P48: 4.2108 | Q48: 13.54098862 | R48: 173.2063699 | S48: 7.107605415 | T48: 13.92388401 | U48: 303.5808869 | V48: 86.36 | W48: 4335.341381 | X48: 2282.006205 | Y48: 1265.93915 | Z48: 108.3 | AA48: 34.47333333 | AB48: =IF(AA48<>"",0.0254*0.0000022046*AA48*Support!$F$12*Miscellaneous!$W$28,"") -> 251.2551386 | AO48: 2051
B49: 2011 | C49: 7.86 | D49: 65.47945205 | E49: 135.6 | F49: 18.89791068 | G49: 11.60333333 | H49: 13.91773179 | I49: =I$51 -> 22.66915978 | J49: 13.73293333 | K49: 13.19718254 | L49: 15.25257665 | M49: 13.2736 | N49: 15.03293651 | O49: =AVERAGE(O$53:O$98) -> 16.79974826 | P49: 4.2918 | Q49: 13.46641427 | R49: 174.668593 | S49: 7.139662063 | T49: 12.53163836 | U49: 277.9312013 | V49: 202.41 | W49: 5459.537145 | X49: 2907.4837 | Y49: 1643.531927 | Z49: 113.5805479 | AA49: 40.14333333 | AB49: =IF(AA49<>"",0.0254*0.0000022046*AA49*Support!$F$12*Miscellaneous!$W$28,"") -> 292.5803166 | AO49: 2052
B50: 2012 | C50: 8.04 | D50: 67.39726027 | E50: 142.1 | F50: 14.82813865 | G50: 8.818666667 | H50: 13.91773179 | I50: =I$51 -> 22.66915978 | J50: 12.38373333 | K50: =AVERAGE(K$54:K$98) -> 12.57898416 | L50: 15.25257665 | M50: 11.50973333 | N50: =AVERAGE(N$54:N$98) -> 13.00084251 | O50: =AVERAGE(O$53:O$98) -> 16.79974826 | P50: 4.3347 | Q50: 12.99256217 | R50: 171.8335733 | S50: 7.004507355 | T50: 11.85125836 | U50: 254.6938839 | V50: 99.47 | W50: 4940.036376 | X50: 2804.593642 | Y50: 1346.598534 | Z50: 117.6642077 | AA50: 40.14333333 | AB50: =IF(AA50<>"",0.0254*0.0000022046*AA50*Support!$F$12*Miscellaneous!$W$28,"") -> 292.5803166 | AO50: 2053
B51: 2013 | C51: 8.37 | D51: 61.64383562 | E51: 152.9 | F51: 27.5485628 | G51: 12.37561404 | H51: 13.91773179 | I51: ='Stream Chemistry'!$AA$4001 -> 22.66915978 | J51: 14.58 | K51: 12.8175 | L51: 15.25257665 | M51: 18.32666667 | N51: 16.19583333 | O51: =AVERAGE(O$53:O$98) -> 16.79974826 | P51: 3.6187 | Q51: 16.82422116 | R51: 185.496383 | S51: 6.80837161 | T51: 15.49205105 | U51: 322.26889 | V51: 188.71 | W51: 8061.096007 | X51: 4892.539069 | Y51: 2147.583322 | Z51: 141.6958904 | AA51: 48.995 | AB51: =IF(AA51<>"",0.0254*0.0000022046*AA51*Support!$F$12*Miscellaneous!$W$28,"") -> 357.0947258 | AO51: 2054
B52: 2014 | C52: 7.3 | D52: 59.45205479 | E52: 57.3 | F52: 32.80041234 | G52: 11.85598039 | H52: 13.91773179 | I52: =I$51 -> 22.66915978 | J52: 14.42431373 | K52: =AVERAGE(K$54:K$98) -> 12.57898416 | L52: 15.25257665 | M52: 16.70729167 | N52: =AVERAGE(N$54:N$98) -> 13.00084251 | P52: 3.0089 | Q52: 19.92243979 | R52: 182.6897161 | S52: 5.972927464 | T52: 17.6825614 | U52: 306.082021 | V52: 41.93 | W52: 8249.096422 | X52: 5173.456011 | Y52: 2334.795154 | Z52: 160.260274 | AA52: 46.03666667 | AB52: =IF(AA52<>"",0.0254*0.0000022046*AA52*Support!$F$12*Miscellaneous!$W$28,"") -> 335.5332353 | AO52: 2055
B53: 2015 | C53: 8.34 | D53: 33.69863014 | E53: 131.5 | F53: 25.0012528 | G53: 11.695 | H53: 13.91773179 | I53: =I$51 -> 22.66915978 | J53: 14.21530303 | K53: =AVERAGE(K$54:K$98) -> 12.57898416 | L53: 15.25257665 | M53: 17.43424242 | O53: 16.72833333 | P53: 5.06 | Q53: 16.89465401 | R53: 251.9281268 | S53: 7.981552991 | T53: 14.87606277 | U53: 356.2284566 | V53: 123.776 | W53: 7894.834581 | X53: 4970.696759 | Y53: 2053.215228 | Z53: 157.3315068 | AA53: 35.59333333 | AB53: =IF(AA53<>"",0.0254*0.0000022046*AA53*Support!$F$12*Miscellaneous!$W$28,"") -> 259.4181367 | AO53: 2056
B54: 2016 | C54: 8.95 | D54: 14.24657534 | E54: 228.5 | F54: 18.42216499 | G54: 12.79 | H54: =AVERAGE(H$55:H$98) -> 13.91773179 | I54: 22.66915978 | J54: 12.705 | K54: 10.66428571 | L54: 14.79384615 | M54: 16.20045455 | N54: 11.17625 | O54: 20.57727273 | P54: 4.456 | Q54: 13.67070133 | R54: 185.8393988 | S54: 7.600536482 | T54: 15.62917516 | U54: 360.2347941 | V54: 87.08 | W54: 6757.937504 | X54: 3850.779379 | Y54: 1976.055282 | Z54: 140.3989071 | AA54: 35.02666667 | AB54: =IF(AA54<>"",0.0254*0.0000022046*AA54*Support!$F$12*Miscellaneous!$W$28,"") -> 255.2880484 | AO54: 2057
B55: 2017 | C55: 7.59 | D55: 67.67123288 | E55: 222 | F55: 22.36301014 | G55: 11.06136364 | H55: 12.78076923 | I55: 22.66915978 | J55: 12.99136364 | K55: 12.40818182 | L55: 14.65318182 | M55: 14.64136364 | N55: 12.34727273 | O55: 17.86636364 | P55: 4.923 | Q55: 11.84303717 | R55: 180.7306693 | S55: 8.119924245 | T55: 14.94340565 | U55: 378.0990232 | V55: 95.93 | W55: 6222.803997 | X55: 3505.929086 | Y55: 1722.665658 | Z55: 131.6136986 | AA55: 40.91166667 | AB55: =IF(AA55<>"",0.0254*0.0000022046*AA55*Support!$F$12*Miscellaneous!$W$28,"") -> 298.1802305 | AO55: 2058
B56: 2018 | C56: 7.66 | D56: 66.30136986 | E56: 167.7 | F56: 25.49085912 | G56: 10.81090909 | H56: 13.70363636 | I56: 22.66915978 | J56: 15.37090909 | K56: 12.51181818 | L56: 15.14409091 | M56: 15.42863636 | N56: 13.02954545 | O56: 14.875 | P56: 4.76 | Q56: 13.43281205 | R56: 190.1262351 | S56: 7.551960473 | T56: 15.01009913 | U56: 341.2644498 | V56: 101.3 | W56: 6968.332523 | X56: 4202.182372 | Y56: 1856.089877 | Z56: 139.0109589 | AA56: 41.13333333 | AB56: =IF(AA56<>"",0.0254*0.0000022046*AA56*Support!$F$12*Miscellaneous!$W$28,"") -> 299.7958239 | AO56: 2059
B57: 2019 | C57: 7.78 | D57: 62.19178082 | E57: 198.1 | F57: 30.20646743 | G57: 11.25238095 | H57: 17.39904762 | I57: 22.66915978 | J57: 15.20818182 | K57: 13.61363636 | L57: 15.59190476 | M57: 16.49333333 | N57: 15.84409091 | O57: 16.00636364 | P57: 5.543 | Q57: 16.057 | R57: 269.1 | S57: 8.51 | T57: 15.6 | U57: 406.2 | V57: 125.2 | W57: 8176.746436 | X57: 4925.24124 | Y57: 2186.970001 | Z57: 152.4 | AA57: 45.96833333 | AB57: =IF(AA57<>"",0.0254*0.0000022046*AA57*Support!$F$12*Miscellaneous!$W$28,"") -> 335.0351952 | AO57: 2060
B58: 2020 | C58: 7.58 | D58: 69.8630137 | E58: 100.9 | F58: 28.53660401 | G58: 11.15428571 | H58: 14.345 | I58: 22.66915978 | J58: 14.4152381 | K58: 12.81761905 | L58: 14.332 | M58: 15.918 | N58: 13.00761905 | O58: 15.57285714 | P58: 4.313 | Q58: 15.72 | R58: 211.6 | S58: 6.92 | T58: 13.7 | U58: 290.6 | V58: 95.3 | W58: 7775.605764 | X58: 4894.72631 | Y58: 2144.646414 | Z58: 156.7213115 | AA58: 34.22333333 | AB58: =IF(AA58<>"",0.0254*0.0000022046*AA58*Support!$F$12*Miscellaneous!$W$28,"") -> 249.4330408
B59: 2021 | C59: 7.92 | D59: 53.69863014 | E59: 237.9 | F59: 20.9883729 | G59: 11.56434783 | H59: 13.24529412 | I59: 22.66915978 | J59: 15.05565217 | K59: 13.44882353 | L59: 16.58 | M59: 15.92695652 | N59: 14.18 | O59: 16.30875 | P59: 5.09 | Q59: 12.36 | R59: 189.1 | S59: 7.42 | T59: 12.7 | U59: 282.5 | V59: 95.3 | W59: 6137.543224 | X59: 3674.059989 | Y59: 1635.52099 | Z59: 126.2821918 | AA59: 29.12333333 | AB59: =IF(AA59<>"",0.0254*0.0000022046*AA59*Support!$F$12*Miscellaneous!$W$28,"") -> 212.2622458
B60: 2022 | C60: 7.84 | D60: 56.16438356 | E60: 214.1 | F60: 22.91974288 | G60: 11.43875 | H60: 12.53066667 | I60: 22.66915978 | J60: 13.3175 | K60: 12.5 | L60: 16.034375 | M60: 16.040625 | N60: 13.66428571 | O60: 16.901875 | P60: 5.39 | Q60: 10.93 | R60: 180.34 | S60: 7.82 | T60: 12.79 | U60: 305.98 | V60: 95.3 | W60: 6336.019396 | X60: 3730.211118 | Y60: 1750.615913 | Z60: 122.349589 | AA60: 32.90333333 | AB60: =IF(AA60<>"",0.0254*0.0000022046*AA60*Support!$F$12*Miscellaneous!$W$28,"") -> 239.8123644
B61: 2023 | C61: 7.19 | D61: 90.95890411 | E61: 86.9 | G61: 10.6868004 | H61: 13.41970855 | I61: 10.09333333 | J61: 11.23454801 | K61: 12.66750862 | L61: 14.12811616 | M61: 14.54830681 | N61: 12.64871867 | O61: 16.36091889 | Z61: 127.7342466 | AA61: 25.25666667 | AB61: =IF(AA61<>"",0.0254*0.0000022046*AA61*Support!$F$12*Miscellaneous!$W$28,"") -> 184.0804666
B62: 2024 | G62: 10.06606816 | I62: 8.011184535 | L62: 15.55694456 | M62: 17.61222955 | N62: 11.10980003 | AB62: =IF(AA62<>"",0.0254*0.0000022046*AA62*Support!$F$12*Miscellaneous!$W$28,"") -> 
B63: 2025 | AB63: =IF(AA63<>"",0.0254*0.0000022046*AA63*Support!$F$12*Miscellaneous!$W$28,"") -> 
B64: 2026 | AB64: =IF(AA64<>"",0.0254*0.0000022046*AA64*Support!$F$12*Miscellaneous!$W$28,"") -> 
B65: 2027 | AB65: =IF(AA65<>"",0.0254*0.0000022046*AA65*Support!$F$12*Miscellaneous!$W$28,"") -> 
B66: 2028 | AB66: =IF(AA66<>"",0.0254*0.0000022046*AA66*Support!$F$12*Miscellaneous!$W$28,"") -> 
B67: 2029 | AB67: =IF(AA67<>"",0.0254*0.0000022046*AA67*Support!$F$12*Miscellaneous!$W$28,"") -> 
B68: 2030 | AB68: =IF(AA68<>"",0.0254*0.0000022046*AA68*Support!$F$12*Miscellaneous!$W$28,"") -> 
B69: 2031 | AB69: =IF(AA69<>"",0.0254*0.0000022046*AA69*Support!$F$12*Miscellaneous!$W$28,"") -> 
B70: 2032 | AB70: =IF(AA70<>"",0.0254*0.0000022046*AA70*Support!$F$12*Miscellaneous!$W$28,"") -> 
B71: 2033 | AB71: =IF(AA71<>"",0.0254*0.0000022046*AA71*Support!$F$12*Miscellaneous!$W$28,"") -> 
B72: 2034 | AB72: =IF(AA72<>"",0.0254*0.0000022046*AA72*Support!$F$12*Miscellaneous!$W$28,"") -> 
B73: 2035 | AB73: =IF(AA73<>"",0.0254*0.0000022046*AA73*Support!$F$12*Miscellaneous!$W$28,"") -> 
B74: 2036 | AB74: =IF(AA74<>"",0.0254*0.0000022046*AA74*Support!$F$12*Miscellaneous!$W$28,"") -> 
B75: 2037 | AB75: =IF(AA75<>"",0.0254*0.0000022046*AA75*Support!$F$12*Miscellaneous!$W$28,"") -> 
B76: 2038 | AB76: =IF(AA76<>"",0.0254*0.0000022046*AA76*Support!$F$12*Miscellaneous!$W$28,"") -> 
B77: 2039 | AB77: =IF(AA77<>"",0.0254*0.0000022046*AA77*Support!$F$12*Miscellaneous!$W$28,"") -> 
B78: 2040 | AB78: =IF(AA78<>"",0.0254*0.0000022046*AA78*Support!$F$12*Miscellaneous!$W$28,"") -> 
B79: 2041 | AB79: =IF(AA79<>"",0.0254*0.0000022046*AA79*Support!$F$12*Miscellaneous!$W$28,"") -> 
B80: 2042 | AB80: =IF(AA80<>"",0.0254*0.0000022046*AA80*Support!$F$12*Miscellaneous!$W$28,"") -> 
B81: 2043 | AB81: =IF(AA81<>"",0.0254*0.0000022046*AA81*Support!$F$12*Miscellaneous!$W$28,"") -> 
B82: 2044 | AB82: =IF(AA82<>"",0.0254*0.0000022046*AA82*Support!$F$12*Miscellaneous!$W$28,"") -> 
B83: 2045 | AB83: =IF(AA83<>"",0.0254*0.0000022046*AA83*Support!$F$12*Miscellaneous!$W$28,"") -> 
B84: 2046 | AB84: =IF(AA84<>"",0.0254*0.0000022046*AA84*Support!$F$12*Miscellaneous!$W$28,"") -> 
B85: 2047 | AB85: =IF(AA85<>"",0.0254*0.0000022046*AA85*Support!$F$12*Miscellaneous!$W$28,"") -> 
B86: 2048 | AB86: =IF(AA86<>"",0.0254*0.0000022046*AA86*Support!$F$12*Miscellaneous!$W$28,"") -> 
B87: 2049 | AB87: =IF(AA87<>"",0.0254*0.0000022046*AA87*Support!$F$12*Miscellaneous!$W$28,"") -> 
B88: 2050 | AB88: =IF(AA88<>"",0.0254*0.0000022046*AA88*Support!$F$12*Miscellaneous!$W$28,"") -> 
B89: 2051 | AB89: =IF(AA89<>"",0.0254*0.0000022046*AA89*Support!$F$12*Miscellaneous!$W$28,"") -> 
B90: 2052 | AB90: =IF(AA90<>"",0.0254*0.0000022046*AA90*Support!$F$12*Miscellaneous!$W$28,"") -> 
B91: 2053 | AB91: =IF(AA91<>"",0.0254*0.0000022046*AA91*Support!$F$12*Miscellaneous!$W$28,"") -> 
B92: 2054 | AB92: =IF(AA92<>"",0.0254*0.0000022046*AA92*Support!$F$12*Miscellaneous!$W$28,"") -> 
B93: 2055 | AB93: =IF(AA93<>"",0.0254*0.0000022046*AA93*Support!$F$12*Miscellaneous!$W$28,"") -> 
B94: 2056 | AB94: =IF(AA94<>"",0.0254*0.0000022046*AA94*Support!$F$12*Miscellaneous!$W$28,"") -> 
B95: 2057 | AB95: =IF(AA95<>"",0.0254*0.0000022046*AA95*Support!$F$12*Miscellaneous!$W$28,"") -> 
B96: 2058 | AB96: =IF(AA96<>"",0.0254*0.0000022046*AA96*Support!$F$12*Miscellaneous!$W$28,"") -> 
B97: 2059 | AB97: =IF(AA97<>"",0.0254*0.0000022046*AA97*Support!$F$12*Miscellaneous!$W$28,"") -> 
B98: 2060 | AB98: =IF(AA98<>"",0.0254*0.0000022046*AA98*Support!$F$12*Miscellaneous!$W$28,"") -> 
C131: Year | D131: Avg TP | E131: % Att
C132: 1990 | D132: 8.778808431 | E132: 25.20547945
C133: =C132+1 -> 1991 | D133: 8.216705226 | E133: 34.52054795
C134: =C133+1 -> 1992 | D134: 8.439055517 | E134: 37.26027397
C135: 1993 | D135: 8.019536882 | E135: 51.23287671
C136: 1994 | D136: 7.976502622 | E136: 61.64383562
C137: 1995 | D137: 8.122637502 | E137: 47.67123288
C138: 1996 | D138: 7.458157837 | E138: 68.49315068
C139: 1997 | D139: 6.551233631 | E139: 100
C140: 1998 | D140: 6.555304971 | E140: 94.79452055
C141: 1999 | D141: 6.489752083 | E141: 95.61643836
C142: 2000 | D142: 6.50245497 | E142: 89.31506849
C143: 2001 | D143: 7.619278142 | E143: 64.65753425
C144: 2002 | D144: 8.602557582 | E144: 55.06849315
C145: 2003 | D145: 8.261136755 | E145: 45.75342466
C146: 2004 | D146: 7.227309145 | E146: 72.32876712
C147: 2005 | D147: 8.55246393 | E147: 37.26027397
C148: 2006 | D148: 8.266675987 | E148: 47.39726027
C149: 2007 | D149: 7.625831994 | E149: 51.78082192
C150: 2008 | D150: 8.142395724 | E150: 65.75342466
C151: 2009 | D151: 8.559438837 | E151: 58.90410959
C152: 2010 | D152: 8.28 | E152: 48.49315068
C153: 2011 | D153: 7.86 | E153: 65.47945205
C154: 2012 | D154: 8.04 | E154: 67.39726027
C155: 2013 | D155: 8.37 | E155: 61.64383562
C156: 2014 | D156: 7.3 | E156: 59.45205479
C157: 2015 | D157: 8.34 | E157: 33.69863014
C158: 2016 | D158: 8.95 | E158: 14.24657534
C159: 2017 | D159: 7.59 | E159: 67.67123288
C160: 2018 | D160: 7.66 | E160: 66.30136986
C161: 2019 | D161: 7.78 | E161: 62.19178082
C162: 2020 | D162: 7.58 | E162: 69.8630137
C163: 2021 | D163: 7.92 | E163: 53.69863014
C164: 2022 | D164: 7.84 | E164: 56.16438356
C165: 2023 | D165: 7.19 | E165: 90.95890411
C166: 2024
C167: 2025
C168: 2026
C169: 2027
C170: 2028
C171: 2029
C172: 2030
C173: 2031
C174: 2032
C175: 2033
C176: 2034
C177: 2035
C178: 2036
C179: 2037
C180: 2038
C181: 2039
C182: 2040
C183: 2041
C184: 2042
C185: 2043
C186: 2044
C187: 2045
C188: 2046
C189: 2047
C190: 2048
C191: 2049
C192: 2050
C193: 2051
C194: 2052
C195: 2053
C196: 2054
C197: 2055
C198: =C197+1 -> 2056
C199: =C198+1 -> 2057
C200: =C199+1 -> 2058
C201: =C200+1 -> 2059
C202: =C201+1 -> 2060
D205: Intercept | E205: =INTERCEPT(E132:E202,D132:D202) -> 270.9389679
D206: Slope | E206: =SLOPE(E132:E202,D132:D202) -> -26.96246888

Sheet Watershed Mass Bal
M6: Year | N6: 2016
P13: Event TP
O14: Stone, NB | P14: ='Wet Weather TP'!$C$36 -> 50.94380952
O15: BC, Car, Col | P15: ='Wet Weather TP'!$G$36 -> 79.22292208
O16: USGS, Vet, Pion | P16: ='Wet Weather TP'!$K$36 -> 53.815
I20: Deadstream | M20: Collision
